Workbook

Sheet Overview
B3: Lake Superior Link
B4: SEC 22b IR Response

Sheet Project Inputs
A1: A: PROJECT INFORMATION
A3: To reset all user inputs, please click here:
A5: Analysis prepared by: | B5: Hydro One inc.
A7: Plan Number: | B7: 25032
A9: Project name: | B9: Hydro One Lake Superior Link proposal
A11: Description: | B11: Lake Superior Link 2018 Rates
A13: Customer: | B13: Lake Superior Link Project
A15: Project in-service date: | B15: 44495
A17: Type of Project: | B17: Network
A19: Customer Risk Classification | B19: Low | C19: Evaluation period (years): | E19: =VLOOKUP('Project Inputs'!B19,Menus!D12:E15,MATCH(C19,Menus!D11:E11,0),0) -> 25
A21: Alternate evaluation period (enter in years) | C21: =IF('Project Inputs'!B21>E19,"Warning - please select an alternate horizon that is less than the standard horizon of "&E19&" years.","Check: ok") -> Check: ok
A23: Rationale for selected economic evaluation period:
A26: B: STAGE INFORMATION
A28: Current stage of economic evaluation: | B28: Estimated cost | C28: =IF(OR(AND('Project Inputs'!B19="Low",OR('Project Inputs'!B28="4th true-up",'Project Inputs'!B28="5th true-up")),AND('Project Inputs'!B19="Medium-low",OR('Project Inputs'!B28="4th true-up",'Project Inputs'!B28="5th true-up")),AND('Project Inputs'!B19="Medium-high",OR('Project Inputs'!B28="4th true-up",'Project Inputs'!B28="5th true-up"))),"A true-up stage has been selected that does not exist for the selected customer risk classification. Please review the inputs.","Check: ok") -> Check: ok
A31: C: UP-FRONT COSTS:
A33: ='Standard Inputs'!A34 -> Land costs | B33: ='Capital Cont Inputs'!B15 -> 2021
A34: Enter total up-front capital costs ($k): | B34: 14064.541
A37: ='Standard Inputs'!A35 -> Class 47 costs | B37: ='Capital Cont Inputs'!B15 -> 2021
A38: Enter total up-front capital costs (excluding AFUDC & OH - $k): | B38: 576803.934 | C38: =IF(AND(SUM(B38:B40)<>0,ISBLANK('Standard Inputs'!C35)),"Error - Decision Support has not assigned a class of asset for this input. Remove any inputs within this section","Check: ok") -> Check: ok
A39: Enter Overhead - $k | B39: 8502.295784
A40: Enter AFUDC - $k | B40: 42596.29673
A43: Removal costs | B43: ='Capital Cont Inputs'!B15 -> 2021
A44: Enter Cash Flows (excluding OH - $k): | B44: 20600
A45: Enter Overhead - $k
A48: ='Standard Inputs'!A36 -> Decision Support defined costs (1) | B48: ='Capital Cont Inputs'!B15 -> 2021
A49: Enter total up-front capital costs (excluding AFUDC & OH - $k): | C49: =IF(AND(SUM(B49:B51)<>0,ISBLANK('Standard Inputs'!C36)),"Error - Decision Support has not assigned a class of asset for this input. Remove any inputs within this section","Check: ok") -> Check: ok
A50: Enter Overhead - $k
A51: Enter AFUDC - $k
A54: ='Standard Inputs'!A37 -> Decision Support defined costs (2) | B54: ='Capital Cont Inputs'!B15 -> 2021
A55: Enter total up-front capital costs (excluding AFUDC & OH - $k): | C55: =IF(AND(SUM(B55:B57)<>0,ISBLANK('Standard Inputs'!C37)),"Error - Decision Support has not assigned a class of asset for this input. Remove any inputs within this section","Check: ok") -> Check: ok
A56: Enter Overhead - $k
A57: Enter AFUDC - $k
A60: ='Standard Inputs'!A38 -> Decision Support defined costs (3) | B60: ='Capital Cont Inputs'!B15 -> 2021
A61: Enter total up-front capital costs (excluding AFUDC & OH - $k): | C61: =IF(AND(SUM(B61:B63)<>0,ISBLANK('Standard Inputs'!C38)),"Error - Decision Support has not assigned a class of asset for this input. Remove any inputs within this section","Check: ok") -> Check: ok
A62: Enter Overhead - $k
A63: Enter AFUDC - $k
A67: D: INCREMENTAL OM&A:
A69: Asset Type 1: | B69: Line - Overhead | D69: =IF(B69="N/A","","% applicable to customer:") -> % applicable to customer: | H69: =IF(OR(B69="Line - Overhead",B69="Line - Underground"),"Enter KM of line","") -> Enter KM of line | K69: =VLOOKUP($B$17&$B$69,Warnings!$B$4:$C$24,MATCH(Warnings!$C$3,Warnings!$B$3:$C$3,0),0) -> Check: ok
A70: Asset Type 2: | B70: N/A | D70: =IF(B70="N/A","","% applicable to customer:") ->  | H70: =IF(OR(B70="Line - Overhead",B70="Line - Underground"),"Enter KM of line","") ->  | K70: =VLOOKUP($B$17&$B$70,Warnings!$B$4:$C$24,MATCH(Warnings!$C$3,Warnings!$B$3:$C$3,0),0) -> Check: ok
A71: Asset Type 3: | B71: N/A | D71: =IF(B71="N/A","","% applicable to customer:") ->  | H71: =IF(OR(B71="Line - Overhead",B71="Line - Underground"),"Enter KM of line","") ->  | K71: =VLOOKUP($B$17&$B$71,Warnings!$B$4:$C$24,MATCH(Warnings!$C$3,Warnings!$B$3:$C$3,0),0) -> Check: ok
A74: Enter the total up-front capital costs by asset type: | B74: ='Capital Cont Inputs'!B15 -> 2021
B75: =IF(B69="N/A","N/A","Asset 1") -> Asset 1 | C75: =IF(B70="N/A","N/A","Asset 2") -> N/A | D75: =IF(B71="N/A","N/A","Asset 3") -> N/A | E75: Total
A76: *Enter total up-front capital costs (including AFUDC & OH) - $k: | B76: =SUM(B38:B40)+B34 -> 641967.0675 | E76: =B76+C76+D76 -> 641967.0675
A77: *total must match capital cost included in section C, excluding removal costs | D77: Check total: | E77: =B34+B38+B39+B40+B49+B50+B51+B55+B56+B57+B61+B62+B63 -> 641967.0675
E78: =IF(AND(OR(B69="Network - SS",B69="Network - TS",B70="Network - SS",B70="Network - TS",B71="Network - SS",B71="Network - TS"),E77<>E76),"Warning, the total capital cost does not match the total capital cost input in section C.","Check: ok") -> Check: ok
A80: Do you agree with the standard OM&A assumptions above? | B80: No
C82: ='Capital Cont Inputs'!C15 -> 2022 | D82: ='Capital Cont Inputs'!D15 -> 2023 | E82: ='Capital Cont Inputs'!E15 -> 2024 | F82: ='Capital Cont Inputs'!F15 -> 2025 | G82: ='Capital Cont Inputs'!G15 -> 2026 | H82: ='Capital Cont Inputs'!H15 -> 2027 | I82: ='Capital Cont Inputs'!I15 -> 2028 | J82: ='Capital Cont Inputs'!J15 -> 2029 | K82: ='Capital Cont Inputs'!K15 -> 2030 | L82: ='Capital Cont Inputs'!L15 -> 2031 | M82: ='Capital Cont Inputs'!M15 -> 2032 | N82: ='Capital Cont Inputs'!N15 -> 2033 | O82: ='Capital Cont Inputs'!O15 -> 2034 | P82: ='Capital Cont Inputs'!P15 -> 2035 | Q82: ='Capital Cont Inputs'!Q15 -> 2036 | R82: ='Capital Cont Inputs'!R15 -> 2037 | S82: ='Capital Cont Inputs'!S15 -> 2038 | T82: ='Capital Cont Inputs'!T15 -> 2039 | U82: ='Capital Cont Inputs'!U15 -> 2040 | V82: ='Capital Cont Inputs'!V15 -> 2041 | W82: ='Capital Cont Inputs'!W15 -> 2042 | X82: ='Capital Cont Inputs'!X15 -> 2043 | Y82: ='Capital Cont Inputs'!Y15 -> 2044 | Z82: ='Capital Cont Inputs'!Z15 -> 2045 | AA82: ='Capital Cont Inputs'!AA15 -> 2046
A83: =IF(B80="Yes","","Alternate OM&A input - $k") -> Alternate OM&A input - $k | C83: 1500 | D83: 1500 | E83: 1500 | F83: 1500 | G83: 1500 | H83: 1500 | I83: 1500 | J83: 1500 | K83: 1500 | L83: 1500 | M83: 1500 | N83: 1500 | O83: 1500 | P83: 1500 | Q83: 1500 | R83: 1500 | S83: 1500 | T83: 1500 | U83: 1500 | V83: 1500 | W83: 1500 | X83: 1500 | Y83: 1500 | Z83: 1500 | AA83: 1500
A86: E: LOAD INPUTS:
A88: Is this load based on calendar or project year? | B88: Calendar Year
A89: Has the load been load factor adjusted? | B89: No | C89: Enter PLI adj | D89: 1
B91: =IF($B$88="Project Year","Project Year Ended",$B$88) -> Calendar Year | C91: =B91 -> Calendar Year | D91: Calendar Year | E91: Calendar Year | F91: Calendar Year | G91: Calendar Year | H91: Calendar Year | I91: Calendar Year | J91: Calendar Year | K91: Calendar Year | L91: Calendar Year | M91: Calendar Year | N91: Calendar Year | O91: Calendar Year | P91: Calendar Year | Q91: Calendar Year | R91: Calendar Year | S91: Calendar Year | T91: Calendar Year | U91: Calendar Year | V91: Calendar Year | W91: Calendar Year | X91: Calendar Year | Y91: Calendar Year | Z91: Calendar Year | AA91: Calendar Year
B92: =IF(B88="Calendar Year",'Capital Cont Inputs'!B15,"") -> 2021 | C92: ='Capital Cont Inputs'!C15 -> 2022 | D92: ='Capital Cont Inputs'!D15 -> 2023 | E92: ='Capital Cont Inputs'!E15 -> 2024 | F92: ='Capital Cont Inputs'!F15 -> 2025 | G92: ='Capital Cont Inputs'!G15 -> 2026 | H92: ='Capital Cont Inputs'!H15 -> 2027 | I92: ='Capital Cont Inputs'!I15 -> 2028 | J92: ='Capital Cont Inputs'!J15 -> 2029 | K92: ='Capital Cont Inputs'!K15 -> 2030 | L92: ='Capital Cont Inputs'!L15 -> 2031 | M92: ='Capital Cont Inputs'!M15 -> 2032 | N92: ='Capital Cont Inputs'!N15 -> 2033 | O92: ='Capital Cont Inputs'!O15 -> 2034 | P92: ='Capital Cont Inputs'!P15 -> 2035 | Q92: ='Capital Cont Inputs'!Q15 -> 2036 | R92: ='Capital Cont Inputs'!R15 -> 2037 | S92: ='Capital Cont Inputs'!S15 -> 2038 | T92: ='Capital Cont Inputs'!T15 -> 2039 | U92: ='Capital Cont Inputs'!U15 -> 2040 | V92: ='Capital Cont Inputs'!V15 -> 2041 | W92: ='Capital Cont Inputs'!W15 -> 2042 | X92: ='Capital Cont Inputs'!X15 -> 2043 | Y92: ='Capital Cont Inputs'!Y15 -> 2044 | Z92: ='Capital Cont Inputs'!Z15 -> 2045 | AA92: ='Capital Cont Inputs'!AA15 -> 2046
A93: Actual/Forecasted Load | B93: =C93 -> Forecast | C93: =IF('Capital Cont Inputs'!B8<'Project Inputs'!C92,"Forecast","Actual") -> Forecast | D93: =IF('Capital Cont Inputs'!B8<'Project Inputs'!D92,"Forecast","Actual") -> Forecast | E93: =IF('Capital Cont Inputs'!B8<'Project Inputs'!E92,"Forecast","Actual") -> Forecast | F93: =IF('Capital Cont Inputs'!B8<'Project Inputs'!F92,"Forecast","Actual") -> Forecast | G93: =IF('Capital Cont Inputs'!B8<'Project Inputs'!G92,"Forecast","Actual") -> Forecast | H93: =IF('Capital Cont Inputs'!B8<'Project Inputs'!H92,"Forecast","Actual") -> Forecast | I93: =IF('Capital Cont Inputs'!B8<'Project Inputs'!I92,"Forecast","Actual") -> Forecast | J93: =IF('Capital Cont Inputs'!B8<'Project Inputs'!J92,"Forecast","Actual") -> Forecast | K93: =IF('Capital Cont Inputs'!B8<'Project Inputs'!K92,"Forecast","Actual") -> Forecast | L93: =IF('Capital Cont Inputs'!B8<'Project Inputs'!L92,"Forecast","Actual") -> Forecast | M93: =IF('Capital Cont Inputs'!B8<'Project Inputs'!M92,"Forecast","Actual") -> Forecast | N93: =IF('Capital Cont Inputs'!B8<'Project Inputs'!N92,"Forecast","Actual") -> Forecast | O93: =IF('Capital Cont Inputs'!B8<'Project Inputs'!O92,"Forecast","Actual") -> Forecast | P93: =IF('Capital Cont Inputs'!B8<'Project Inputs'!P92,"Forecast","Actual") -> Forecast | Q93: =IF('Capital Cont Inputs'!B8<'Project Inputs'!Q92,"Forecast","Actual") -> Forecast | R93: =IF('Capital Cont Inputs'!B8<'Project Inputs'!R92,"Forecast","Actual") -> Forecast | S93: =IF('Capital Cont Inputs'!B8<'Project Inputs'!S92,"Forecast","Actual") -> Forecast | T93: =IF('Capital Cont Inputs'!B8<'Project Inputs'!T92,"Forecast","Actual") -> Forecast | U93: =IF('Capital Cont Inputs'!B8<'Project Inputs'!U92,"Forecast","Actual") -> Forecast | V93: =IF('Capital Cont Inputs'!B8<'Project Inputs'!V92,"Forecast","Actual") -> Forecast | W93: =IF('Capital Cont Inputs'!B8<'Project Inputs'!W92,"Forecast","Actual") -> Forecast | X93: =IF('Capital Cont Inputs'!B8<'Project Inputs'!X92,"Forecast","Actual") -> Forecast | Y93: =IF('Capital Cont Inputs'!B8<'Project Inputs'!Y92,"Forecast","Actual") -> Forecast | Z93: =IF('Capital Cont Inputs'!B8<'Project Inputs'!Z92,"Forecast","Actual") -> Forecast | AA93: =IF('Capital Cont Inputs'!B8<'Project Inputs'!AA92,"Forecast","Actual") -> Forecast
A94: Enter Load data by Year (MW)
A95: Enter Load adjustments (MW)

Sheet Capital Cont Inputs
A1: SUMMARY OF CAPITAL CONTRIBUTIONS & ECONOMIC EVALUATION PERIOD
A3: Summary of Key Dates:
A4: In-service year | B4: =YEAR('Project Inputs'!B15) -> 2021
A5: Duration of Economic Evaluation | B5: =IF(ISNUMBER('Project Inputs'!B21),'Project Inputs'!B21,'Project Inputs'!E19) -> 25 | C5: ="Based on "&'Project Inputs'!B19&" "&'Project Inputs'!A19&IF(ISNUMBER('Project Inputs'!B21)," with alternate evaluation period of "&'Project Inputs'!B21&" years.",".") -> Based on Low Customer Risk Classification.
B7: Year | C7: Stage
A8: Current Stage Data | B8: =VLOOKUP('Project Inputs'!B19&" - "&'Project Inputs'!B28,'Standard Inputs'!$A$73:$F$105,MATCH('Standard Inputs'!$F$73,'Standard Inputs'!$A$73:$F$73,0),0) -> 2021 | C8: ='Project Inputs'!B28 -> Estimated cost
A10: End of Economic Evaluation | B10: =B4+B5 -> 2046
A12: Economic Evaluation Period by Year: | B12: =IF(ISNUMBER(AlternateEvaluationYears),"Warning - an alternate evaluation period has been selected. This could result in an incorrect economic horizon schedule below. Please consult with your Decision Support contact.","Check: ok") -> Check: ok
B13: =IF(SUM('Standard Inputs'!C74:C105)<>0,"Warning - an alternate period has been used within the standard inputs worksheet. This could result in an incorrect economic horizon schedule below. Please review.","Check: ok") -> Check: ok | Q13: =IF(RiskLevel="Low","Note: the economic horizon schedule above contains a planned third true-up. This may not be required as per 6.5.3 section (c) of the Transmission System Code.","Check: ok") -> Note: the economic horizon schedule above contains a planned third true-up. This may not be required as per 6.5.3 section (c) of the Transmission System Code.
A14: Economic evaluation stages | B14: IEE | C14: =IF('Project Inputs'!$B$19="High",VLOOKUP('Capital Cont Inputs'!C16,'Standard Inputs'!$D$75:$E$81,MATCH('Standard Inputs'!$E$73,'Standard Inputs'!$D$73:$E$73,0),0),IF('Project Inputs'!$B$19="Medium-high",VLOOKUP('Capital Cont Inputs'!C16,'Standard Inputs'!$D$85:$E$89,MATCH('Standard Inputs'!$E$73,'Standard Inputs'!$D$73:$E$73,0),0),IF('Project Inputs'!$B$19="Medium-low",VLOOKUP('Capital Cont Inputs'!C16,'Standard Inputs'!$D$93:$E$97,MATCH('Standard Inputs'!$E$73,'Standard Inputs'!$D$73:$E$73,0),0),IF('Project Inputs'!$B$19="Low",VLOOKUP('Capital Cont Inputs'!C16,'Standard Inputs'!$D$101:$E$105,MATCH('Standard Inputs'!$E$73,'Standard Inputs'!$D$73:$E$73,0),0),"Error")))) ->  | D14: =IF('Project Inputs'!$B$19="High",VLOOKUP('Capital Cont Inputs'!D16,'Standard Inputs'!$D$75:$E$81,MATCH('Standard Inputs'!$E$73,'Standard Inputs'!$D$73:$E$73,0),0),IF('Project Inputs'!$B$19="Medium-high",VLOOKUP('Capital Cont Inputs'!D16,'Standard Inputs'!$D$85:$E$89,MATCH('Standard Inputs'!$E$73,'Standard Inputs'!$D$73:$E$73,0),0),IF('Project Inputs'!$B$19="Medium-low",VLOOKUP('Capital Cont Inputs'!D16,'Standard Inputs'!$D$93:$E$97,MATCH('Standard Inputs'!$E$73,'Standard Inputs'!$D$73:$E$73,0),0),IF('Project Inputs'!$B$19="Low",VLOOKUP('Capital Cont Inputs'!D16,'Standard Inputs'!$D$101:$E$105,MATCH('Standard Inputs'!$E$73,'Standard Inputs'!$D$73:$E$73,0),0),"Error")))) ->  | E14: =IF('Project Inputs'!$B$19="High",VLOOKUP('Capital Cont Inputs'!E16,'Standard Inputs'!$D$75:$E$81,MATCH('Standard Inputs'!$E$73,'Standard Inputs'!$D$73:$E$73,0),0),IF('Project Inputs'!$B$19="Medium-high",VLOOKUP('Capital Cont Inputs'!E16,'Standard Inputs'!$D$85:$E$89,MATCH('Standard Inputs'!$E$73,'Standard Inputs'!$D$73:$E$73,0),0),IF('Project Inputs'!$B$19="Medium-low",VLOOKUP('Capital Cont Inputs'!E16,'Standard Inputs'!$D$93:$E$97,MATCH('Standard Inputs'!$E$73,'Standard Inputs'!$D$73:$E$73,0),0),IF('Project Inputs'!$B$19="Low",VLOOKUP('Capital Cont Inputs'!E16,'Standard Inputs'!$D$101:$E$105,MATCH('Standard Inputs'!$E$73,'Standard Inputs'!$D$73:$E$73,0),0),"Error")))) ->  | F14: =IF('Project Inputs'!$B$19="High",VLOOKUP('Capital Cont Inputs'!F16,'Standard Inputs'!$D$75:$E$81,MATCH('Standard Inputs'!$E$73,'Standard Inputs'!$D$73:$E$73,0),0),IF('Project Inputs'!$B$19="Medium-high",VLOOKUP('Capital Cont Inputs'!F16,'Standard Inputs'!$D$85:$E$89,MATCH('Standard Inputs'!$E$73,'Standard Inputs'!$D$73:$E$73,0),0),IF('Project Inputs'!$B$19="Medium-low",VLOOKUP('Capital Cont Inputs'!F16,'Standard Inputs'!$D$93:$E$97,MATCH('Standard Inputs'!$E$73,'Standard Inputs'!$D$73:$E$73,0),0),IF('Project Inputs'!$B$19="Low",VLOOKUP('Capital Cont Inputs'!F16,'Standard Inputs'!$D$101:$E$105,MATCH('Standard Inputs'!$E$73,'Standard Inputs'!$D$73:$E$73,0),0),"Error")))) ->  | G14: =IF('Project Inputs'!$B$19="High",VLOOKUP('Capital Cont Inputs'!G16,'Standard Inputs'!$D$75:$E$81,MATCH('Standard Inputs'!$E$73,'Standard Inputs'!$D$73:$E$73,0),0),IF('Project Inputs'!$B$19="Medium-high",VLOOKUP('Capital Cont Inputs'!G16,'Standard Inputs'!$D$85:$E$89,MATCH('Standard Inputs'!$E$73,'Standard Inputs'!$D$73:$E$73,0),0),IF('Project Inputs'!$B$19="Medium-low",VLOOKUP('Capital Cont Inputs'!G16,'Standard Inputs'!$D$93:$E$97,MATCH('Standard Inputs'!$E$73,'Standard Inputs'!$D$73:$E$73,0),0),IF('Project Inputs'!$B$19="Low",VLOOKUP('Capital Cont Inputs'!G16,'Standard Inputs'!$D$101:$E$105,MATCH('Standard Inputs'!$E$73,'Standard Inputs'!$D$73:$E$73,0),0),"Error")))) -> 1st true-up | H14: =IF('Project Inputs'!$B$19="High",VLOOKUP('Capital Cont Inputs'!H16,'Standard Inputs'!$D$75:$E$81,MATCH('Standard Inputs'!$E$73,'Standard Inputs'!$D$73:$E$73,0),0),IF('Project Inputs'!$B$19="Medium-high",VLOOKUP('Capital Cont Inputs'!H16,'Standard Inputs'!$D$85:$E$89,MATCH('Standard Inputs'!$E$73,'Standard Inputs'!$D$73:$E$73,0),0),IF('Project Inputs'!$B$19="Medium-low",VLOOKUP('Capital Cont Inputs'!H16,'Standard Inputs'!$D$93:$E$97,MATCH('Standard Inputs'!$E$73,'Standard Inputs'!$D$73:$E$73,0),0),IF('Project Inputs'!$B$19="Low",VLOOKUP('Capital Cont Inputs'!H16,'Standard Inputs'!$D$101:$E$105,MATCH('Standard Inputs'!$E$73,'Standard Inputs'!$D$73:$E$73,0),0),"Error")))) ->  | I14: =IF('Project Inputs'!$B$19="High",VLOOKUP('Capital Cont Inputs'!I16,'Standard Inputs'!$D$75:$E$81,MATCH('Standard Inputs'!$E$73,'Standard Inputs'!$D$73:$E$73,0),0),IF('Project Inputs'!$B$19="Medium-high",VLOOKUP('Capital Cont Inputs'!I16,'Standard Inputs'!$D$85:$E$89,MATCH('Standard Inputs'!$E$73,'Standard Inputs'!$D$73:$E$73,0),0),IF('Project Inputs'!$B$19="Medium-low",VLOOKUP('Capital Cont Inputs'!I16,'Standard Inputs'!$D$93:$E$97,MATCH('Standard Inputs'!$E$73,'Standard Inputs'!$D$73:$E$73,0),0),IF('Project Inputs'!$B$19="Low",VLOOKUP('Capital Cont Inputs'!I16,'Standard Inputs'!$D$101:$E$105,MATCH('Standard Inputs'!$E$73,'Standard Inputs'!$D$73:$E$73,0),0),"Error")))) ->  | J14: =IF('Project Inputs'!$B$19="High",VLOOKUP('Capital Cont Inputs'!J16,'Standard Inputs'!$D$75:$E$81,MATCH('Standard Inputs'!$E$73,'Standard Inputs'!$D$73:$E$73,0),0),IF('Project Inputs'!$B$19="Medium-high",VLOOKUP('Capital Cont Inputs'!J16,'Standard Inputs'!$D$85:$E$89,MATCH('Standard Inputs'!$E$73,'Standard Inputs'!$D$73:$E$73,0),0),IF('Project Inputs'!$B$19="Medium-low",VLOOKUP('Capital Cont Inputs'!J16,'Standard Inputs'!$D$93:$E$97,MATCH('Standard Inputs'!$E$73,'Standard Inputs'!$D$73:$E$73,0),0),IF('Project Inputs'!$B$19="Low",VLOOKUP('Capital Cont Inputs'!J16,'Standard Inputs'!$D$101:$E$105,MATCH('Standard Inputs'!$E$73,'Standard Inputs'!$D$73:$E$73,0),0),"Error")))) ->  | K14: =IF('Project Inputs'!$B$19="High",VLOOKUP('Capital Cont Inputs'!K16,'Standard Inputs'!$D$75:$E$81,MATCH('Standard Inputs'!$E$73,'Standard Inputs'!$D$73:$E$73,0),0),IF('Project Inputs'!$B$19="Medium-high",VLOOKUP('Capital Cont Inputs'!K16,'Standard Inputs'!$D$85:$E$89,MATCH('Standard Inputs'!$E$73,'Standard Inputs'!$D$73:$E$73,0),0),IF('Project Inputs'!$B$19="Medium-low",VLOOKUP('Capital Cont Inputs'!K16,'Standard Inputs'!$D$93:$E$97,MATCH('Standard Inputs'!$E$73,'Standard Inputs'!$D$73:$E$73,0),0),IF('Project Inputs'!$B$19="Low",VLOOKUP('Capital Cont Inputs'!K16,'Standard Inputs'!$D$101:$E$105,MATCH('Standard Inputs'!$E$73,'Standard Inputs'!$D$73:$E$73,0),0),"Error")))) ->  | L14: =IF('Project Inputs'!$B$19="High",VLOOKUP('Capital Cont Inputs'!L16,'Standard Inputs'!$D$75:$E$81,MATCH('Standard Inputs'!$E$73,'Standard Inputs'!$D$73:$E$73,0),0),IF('Project Inputs'!$B$19="Medium-high",VLOOKUP('Capital Cont Inputs'!L16,'Standard Inputs'!$D$85:$E$89,MATCH('Standard Inputs'!$E$73,'Standard Inputs'!$D$73:$E$73,0),0),IF('Project Inputs'!$B$19="Medium-low",VLOOKUP('Capital Cont Inputs'!L16,'Standard Inputs'!$D$93:$E$97,MATCH('Standard Inputs'!$E$73,'Standard Inputs'!$D$73:$E$73,0),0),IF('Project Inputs'!$B$19="Low",VLOOKUP('Capital Cont Inputs'!L16,'Standard Inputs'!$D$101:$E$105,MATCH('Standard Inputs'!$E$73,'Standard Inputs'!$D$73:$E$73,0),0),"Error")))) -> 2nd true-up | M14: =IF('Project Inputs'!$B$19="High",VLOOKUP('Capital Cont Inputs'!M16,'Standard Inputs'!$D$75:$E$81,MATCH('Standard Inputs'!$E$73,'Standard Inputs'!$D$73:$E$73,0),0),IF('Project Inputs'!$B$19="Medium-high",VLOOKUP('Capital Cont Inputs'!M16,'Standard Inputs'!$D$85:$E$89,MATCH('Standard Inputs'!$E$73,'Standard Inputs'!$D$73:$E$73,0),0),IF('Project Inputs'!$B$19="Medium-low",VLOOKUP('Capital Cont Inputs'!M16,'Standard Inputs'!$D$93:$E$97,MATCH('Standard Inputs'!$E$73,'Standard Inputs'!$D$73:$E$73,0),0),IF('Project Inputs'!$B$19="Low",VLOOKUP('Capital Cont Inputs'!M16,'Standard Inputs'!$D$101:$E$105,MATCH('Standard Inputs'!$E$73,'Standard Inputs'!$D$73:$E$73,0),0),"Error")))) ->  | N14: =IF('Project Inputs'!$B$19="High",VLOOKUP('Capital Cont Inputs'!N16,'Standard Inputs'!$D$75:$E$81,MATCH('Standard Inputs'!$E$73,'Standard Inputs'!$D$73:$E$73,0),0),IF('Project Inputs'!$B$19="Medium-high",VLOOKUP('Capital Cont Inputs'!N16,'Standard Inputs'!$D$85:$E$89,MATCH('Standard Inputs'!$E$73,'Standard Inputs'!$D$73:$E$73,0),0),IF('Project Inputs'!$B$19="Medium-low",VLOOKUP('Capital Cont Inputs'!N16,'Standard Inputs'!$D$93:$E$97,MATCH('Standard Inputs'!$E$73,'Standard Inputs'!$D$73:$E$73,0),0),IF('Project Inputs'!$B$19="Low",VLOOKUP('Capital Cont Inputs'!N16,'Standard Inputs'!$D$101:$E$105,MATCH('Standard Inputs'!$E$73,'Standard Inputs'!$D$73:$E$73,0),0),"Error")))) ->  | O14: =IF('Project Inputs'!$B$19="High",VLOOKUP('Capital Cont Inputs'!O16,'Standard Inputs'!$D$75:$E$81,MATCH('Standard Inputs'!$E$73,'Standard Inputs'!$D$73:$E$73,0),0),IF('Project Inputs'!$B$19="Medium-high",VLOOKUP('Capital Cont Inputs'!O16,'Standard Inputs'!$D$85:$E$89,MATCH('Standard Inputs'!$E$73,'Standard Inputs'!$D$73:$E$73,0),0),IF('Project Inputs'!$B$19="Medium-low",VLOOKUP('Capital Cont Inputs'!O16,'Standard Inputs'!$D$93:$E$97,MATCH('Standard Inputs'!$E$73,'Standard Inputs'!$D$73:$E$73,0),0),IF('Project Inputs'!$B$19="Low",VLOOKUP('Capital Cont Inputs'!O16,'Standard Inputs'!$D$101:$E$105,MATCH('Standard Inputs'!$E$73,'Standard Inputs'!$D$73:$E$73,0),0),"Error")))) ->  | P14: =IF('Project Inputs'!$B$19="High",VLOOKUP('Capital Cont Inputs'!P16,'Standard Inputs'!$D$75:$E$81,MATCH('Standard Inputs'!$E$73,'Standard Inputs'!$D$73:$E$73,0),0),IF('Project Inputs'!$B$19="Medium-high",VLOOKUP('Capital Cont Inputs'!P16,'Standard Inputs'!$D$85:$E$89,MATCH('Standard Inputs'!$E$73,'Standard Inputs'!$D$73:$E$73,0),0),IF('Project Inputs'!$B$19="Medium-low",VLOOKUP('Capital Cont Inputs'!P16,'Standard Inputs'!$D$93:$E$97,MATCH('Standard Inputs'!$E$73,'Standard Inputs'!$D$73:$E$73,0),0),IF('Project Inputs'!$B$19="Low",VLOOKUP('Capital Cont Inputs'!P16,'Standard Inputs'!$D$101:$E$105,MATCH('Standard Inputs'!$E$73,'Standard Inputs'!$D$73:$E$73,0),0),"Error")))) ->  | Q14: =IF('Project Inputs'!$B$19="High",VLOOKUP('Capital Cont Inputs'!Q16,'Standard Inputs'!$D$75:$E$81,MATCH('Standard Inputs'!$E$73,'Standard Inputs'!$D$73:$E$73,0),0),IF('Project Inputs'!$B$19="Medium-high",VLOOKUP('Capital Cont Inputs'!Q16,'Standard Inputs'!$D$85:$E$89,MATCH('Standard Inputs'!$E$73,'Standard Inputs'!$D$73:$E$73,0),0),IF('Project Inputs'!$B$19="Medium-low",VLOOKUP('Capital Cont Inputs'!Q16,'Standard Inputs'!$D$93:$E$97,MATCH('Standard Inputs'!$E$73,'Standard Inputs'!$D$73:$E$73,0),0),IF('Project Inputs'!$B$19="Low",VLOOKUP('Capital Cont Inputs'!Q16,'Standard Inputs'!$D$101:$E$105,MATCH('Standard Inputs'!$E$73,'Standard Inputs'!$D$73:$E$73,0),0),"Error")))) -> 3rd true-up | R14: =IF('Project Inputs'!$B$19="High",VLOOKUP('Capital Cont Inputs'!R16,'Standard Inputs'!$D$75:$E$81,MATCH('Standard Inputs'!$E$73,'Standard Inputs'!$D$73:$E$73,0),0),IF('Project Inputs'!$B$19="Medium-high",VLOOKUP('Capital Cont Inputs'!R16,'Standard Inputs'!$D$85:$E$89,MATCH('Standard Inputs'!$E$73,'Standard Inputs'!$D$73:$E$73,0),0),IF('Project Inputs'!$B$19="Medium-low",VLOOKUP('Capital Cont Inputs'!R16,'Standard Inputs'!$D$93:$E$97,MATCH('Standard Inputs'!$E$73,'Standard Inputs'!$D$73:$E$73,0),0),IF('Project Inputs'!$B$19="Low",VLOOKUP('Capital Cont Inputs'!R16,'Standard Inputs'!$D$101:$E$105,MATCH('Standard Inputs'!$E$73,'Standard Inputs'!$D$73:$E$73,0),0),"Error")))) ->  | S14: =IF('Project Inputs'!$B$19="High",VLOOKUP('Capital Cont Inputs'!S16,'Standard Inputs'!$D$75:$E$81,MATCH('Standard Inputs'!$E$73,'Standard Inputs'!$D$73:$E$73,0),0),IF('Project Inputs'!$B$19="Medium-high",VLOOKUP('Capital Cont Inputs'!S16,'Standard Inputs'!$D$85:$E$89,MATCH('Standard Inputs'!$E$73,'Standard Inputs'!$D$73:$E$73,0),0),IF('Project Inputs'!$B$19="Medium-low",VLOOKUP('Capital Cont Inputs'!S16,'Standard Inputs'!$D$93:$E$97,MATCH('Standard Inputs'!$E$73,'Standard Inputs'!$D$73:$E$73,0),0),IF('Project Inputs'!$B$19="Low",VLOOKUP('Capital Cont Inputs'!S16,'Standard Inputs'!$D$101:$E$105,MATCH('Standard Inputs'!$E$73,'Standard Inputs'!$D$73:$E$73,0),0),"Error")))) ->  | T14: =IF('Project Inputs'!$B$19="High",VLOOKUP('Capital Cont Inputs'!T16,'Standard Inputs'!$D$75:$E$81,MATCH('Standard Inputs'!$E$73,'Standard Inputs'!$D$73:$E$73,0),0),IF('Project Inputs'!$B$19="Medium-high",VLOOKUP('Capital Cont Inputs'!T16,'Standard Inputs'!$D$85:$E$89,MATCH('Standard Inputs'!$E$73,'Standard Inputs'!$D$73:$E$73,0),0),IF('Project Inputs'!$B$19="Medium-low",VLOOKUP('Capital Cont Inputs'!T16,'Standard Inputs'!$D$93:$E$97,MATCH('Standard Inputs'!$E$73,'Standard Inputs'!$D$73:$E$73,0),0),IF('Project Inputs'!$B$19="Low",VLOOKUP('Capital Cont Inputs'!T16,'Standard Inputs'!$D$101:$E$105,MATCH('Standard Inputs'!$E$73,'Standard Inputs'!$D$73:$E$73,0),0),"Error")))) ->  | U14: =IF('Project Inputs'!$B$19="High",VLOOKUP('Capital Cont Inputs'!U16,'Standard Inputs'!$D$75:$E$81,MATCH('Standard Inputs'!$E$73,'Standard Inputs'!$D$73:$E$73,0),0),IF('Project Inputs'!$B$19="Medium-high",VLOOKUP('Capital Cont Inputs'!U16,'Standard Inputs'!$D$85:$E$89,MATCH('Standard Inputs'!$E$73,'Standard Inputs'!$D$73:$E$73,0),0),IF('Project Inputs'!$B$19="Medium-low",VLOOKUP('Capital Cont Inputs'!U16,'Standard Inputs'!$D$93:$E$97,MATCH('Standard Inputs'!$E$73,'Standard Inputs'!$D$73:$E$73,0),0),IF('Project Inputs'!$B$19="Low",VLOOKUP('Capital Cont Inputs'!U16,'Standard Inputs'!$D$101:$E$105,MATCH('Standard Inputs'!$E$73,'Standard Inputs'!$D$73:$E$73,0),0),"Error")))) ->  | V14: =IF('Project Inputs'!$B$19="High",VLOOKUP('Capital Cont Inputs'!V16,'Standard Inputs'!$D$75:$E$81,MATCH('Standard Inputs'!$E$73,'Standard Inputs'!$D$73:$E$73,0),0),IF('Project Inputs'!$B$19="Medium-high",VLOOKUP('Capital Cont Inputs'!V16,'Standard Inputs'!$D$85:$E$89,MATCH('Standard Inputs'!$E$73,'Standard Inputs'!$D$73:$E$73,0),0),IF('Project Inputs'!$B$19="Medium-low",VLOOKUP('Capital Cont Inputs'!V16,'Standard Inputs'!$D$93:$E$97,MATCH('Standard Inputs'!$E$73,'Standard Inputs'!$D$73:$E$73,0),0),IF('Project Inputs'!$B$19="Low",VLOOKUP('Capital Cont Inputs'!V16,'Standard Inputs'!$D$101:$E$105,MATCH('Standard Inputs'!$E$73,'Standard Inputs'!$D$73:$E$73,0),0),"Error")))) ->  | W14: =IF('Project Inputs'!$B$19="High",VLOOKUP('Capital Cont Inputs'!W16,'Standard Inputs'!$D$75:$E$81,MATCH('Standard Inputs'!$E$73,'Standard Inputs'!$D$73:$E$73,0),0),IF('Project Inputs'!$B$19="Medium-high",VLOOKUP('Capital Cont Inputs'!W16,'Standard Inputs'!$D$85:$E$89,MATCH('Standard Inputs'!$E$73,'Standard Inputs'!$D$73:$E$73,0),0),IF('Project Inputs'!$B$19="Medium-low",VLOOKUP('Capital Cont Inputs'!W16,'Standard Inputs'!$D$93:$E$97,MATCH('Standard Inputs'!$E$73,'Standard Inputs'!$D$73:$E$73,0),0),IF('Project Inputs'!$B$19="Low",VLOOKUP('Capital Cont Inputs'!W16,'Standard Inputs'!$D$101:$E$105,MATCH('Standard Inputs'!$E$73,'Standard Inputs'!$D$73:$E$73,0),0),"Error")))) ->  | X14: =IF('Project Inputs'!$B$19="High",VLOOKUP('Capital Cont Inputs'!X16,'Standard Inputs'!$D$75:$E$81,MATCH('Standard Inputs'!$E$73,'Standard Inputs'!$D$73:$E$73,0),0),IF('Project Inputs'!$B$19="Medium-high",VLOOKUP('Capital Cont Inputs'!X16,'Standard Inputs'!$D$85:$E$89,MATCH('Standard Inputs'!$E$73,'Standard Inputs'!$D$73:$E$73,0),0),IF('Project Inputs'!$B$19="Medium-low",VLOOKUP('Capital Cont Inputs'!X16,'Standard Inputs'!$D$93:$E$97,MATCH('Standard Inputs'!$E$73,'Standard Inputs'!$D$73:$E$73,0),0),IF('Project Inputs'!$B$19="Low",VLOOKUP('Capital Cont Inputs'!X16,'Standard Inputs'!$D$101:$E$105,MATCH('Standard Inputs'!$E$73,'Standard Inputs'!$D$73:$E$73,0),0),"Error")))) ->  | Y14: =IF('Project Inputs'!$B$19="High",VLOOKUP('Capital Cont Inputs'!Y16,'Standard Inputs'!$D$75:$E$81,MATCH('Standard Inputs'!$E$73,'Standard Inputs'!$D$73:$E$73,0),0),IF('Project Inputs'!$B$19="Medium-high",VLOOKUP('Capital Cont Inputs'!Y16,'Standard Inputs'!$D$85:$E$89,MATCH('Standard Inputs'!$E$73,'Standard Inputs'!$D$73:$E$73,0),0),IF('Project Inputs'!$B$19="Medium-low",VLOOKUP('Capital Cont Inputs'!Y16,'Standard Inputs'!$D$93:$E$97,MATCH('Standard Inputs'!$E$73,'Standard Inputs'!$D$73:$E$73,0),0),IF('Project Inputs'!$B$19="Low",VLOOKUP('Capital Cont Inputs'!Y16,'Standard Inputs'!$D$101:$E$105,MATCH('Standard Inputs'!$E$73,'Standard Inputs'!$D$73:$E$73,0),0),"Error")))) ->  | Z14: =IF('Project Inputs'!$B$19="High",VLOOKUP('Capital Cont Inputs'!Z16,'Standard Inputs'!$D$75:$E$81,MATCH('Standard Inputs'!$E$73,'Standard Inputs'!$D$73:$E$73,0),0),IF('Project Inputs'!$B$19="Medium-high",VLOOKUP('Capital Cont Inputs'!Z16,'Standard Inputs'!$D$85:$E$89,MATCH('Standard Inputs'!$E$73,'Standard Inputs'!$D$73:$E$73,0),0),IF('Project Inputs'!$B$19="Medium-low",VLOOKUP('Capital Cont Inputs'!Z16,'Standard Inputs'!$D$93:$E$97,MATCH('Standard Inputs'!$E$73,'Standard Inputs'!$D$73:$E$73,0),0),IF('Project Inputs'!$B$19="Low",VLOOKUP('Capital Cont Inputs'!Z16,'Standard Inputs'!$D$101:$E$105,MATCH('Standard Inputs'!$E$73,'Standard Inputs'!$D$73:$E$73,0),0),"Error")))) ->  | AA14: =IF('Project Inputs'!$B$19="High",VLOOKUP('Capital Cont Inputs'!AA16,'Standard Inputs'!$D$75:$E$81,MATCH('Standard Inputs'!$E$73,'Standard Inputs'!$D$73:$E$73,0),0),IF('Project Inputs'!$B$19="Medium-high",VLOOKUP('Capital Cont Inputs'!AA16,'Standard Inputs'!$D$85:$E$89,MATCH('Standard Inputs'!$E$73,'Standard Inputs'!$D$73:$E$73,0),0),IF('Project Inputs'!$B$19="Medium-low",VLOOKUP('Capital Cont Inputs'!AA16,'Standard Inputs'!$D$93:$E$97,MATCH('Standard Inputs'!$E$73,'Standard Inputs'!$D$73:$E$73,0),0),IF('Project Inputs'!$B$19="Low",VLOOKUP('Capital Cont Inputs'!AA16,'Standard Inputs'!$D$101:$E$105,MATCH('Standard Inputs'!$E$73,'Standard Inputs'!$D$73:$E$73,0),0),"Error")))) -> 
A15: Years | B15: =B4 -> 2021 | C15: =IF(ISNUMBER(B15),IF(B15+1>$B$10,"",B15+1),"") -> 2022 | D15: 2023 | E15: 2024 | F15: 2025 | G15: 2026 | H15: 2027 | I15: 2028 | J15: 2029 | K15: 2030 | L15: 2031 | M15: 2032 | N15: 2033 | O15: 2034 | P15: 2035 | Q15: 2036 | R15: 2037 | S15: 2038 | T15: 2039 | U15: 2040 | V15: 2041 | W15: 2042 | X15: 2043 | Y15: 2044 | Z15: 2045 | AA15: 2046
A16: Project Year | B16: =IF(ISNUMBER(B15),0,"") -> 0 | C16: =IF(ISNUMBER(C15),B16+1,"") -> 1 | D16: 2 | E16: 3 | F16: 4 | G16: 5 | H16: 6 | I16: 7 | J16: 8 | K16: 9 | L16: 10 | M16: 11 | N16: 12 | O16: 13 | P16: 14 | Q16: 15 | R16: 16 | S16: 17 | T16: 18 | U16: 19 | V16: 20 | W16: 21 | X16: 22 | Y16: 23 | Z16: 24 | AA16: 25 | AC16: Capital Contribution Input Warnings
A17: Actual Contribution Payments made - $k | AC17: =B15 -> 2021 | AD17: 2022 | AE17: 2023 | AF17: 2024 | AG17: 2025 | AH17: 2026 | AI17: 2027 | AJ17: 2028 | AK17: 2029 | AL17: 2030 | AM17: 2031 | AN17: 2032 | AO17: 2033 | AP17: 2034 | AQ17: 2035 | AR17: 2036 | AS17: 2037 | AT17: 2038 | AU17: 2039 | AV17: 2040 | AW17: 2041 | AX17: 2042 | AY17: 2043 | AZ17: 2044 | BA17: 2045 | BB17: 2046
A18: Current Contribution Payment - $k
A19: =IF(ISNA(HLOOKUP("Warning",$AC19:$BB19,1,0)),"Check: ok","Warning, a cap con't has been improperly input beyond the current stage. Remove all con't inputs beyond "&'Capital Cont Inputs'!B8&".") -> Check: ok | AC19: =IF(AND(B15>$B$8,(B17+B18)<>0),"Warning","Check: Ok") -> Check: Ok | AD19: Check: Ok | AE19: Check: Ok | AF19: Check: Ok | AG19: Check: Ok | AH19: Check: Ok | AI19: Check: Ok | AJ19: Check: Ok | AK19: Check: Ok | AL19: Check: Ok | AM19: Check: Ok | AN19: Check: Ok | AO19: Check: Ok | AP19: Check: Ok | AQ19: Check: Ok | AR19: Check: Ok | AS19: Check: Ok | AT19: Check: Ok | AU19: Check: Ok | AV19: Check: Ok | AW19: Check: Ok | AX19: Check: Ok | AY19: Check: Ok | AZ19: Check: Ok | BA19: Check: Ok | BB19: Check: Ok
A20: =IF(ISNA(HLOOKUP("Warning",$AC20:$BB20,1,0)),"Check: ok","Warning, an actual cap con't has been improperly input in the current stage. Remove the actual con't in "&'Capital Cont Inputs'!B8&".") -> Check: ok | AC20: =IF(AND('Project Inputs'!B28="Estimated cost",B17<>0),"Warning","Check: Ok") -> Check: Ok | AD20: =IF(AND(C15=$B$8,C17<>0),"Warning","Check: Ok") -> Check: Ok | AE20: Check: Ok | AF20: Check: Ok | AG20: Check: Ok | AH20: Check: Ok | AI20: Check: Ok | AJ20: Check: Ok | AK20: Check: Ok | AL20: Check: Ok | AM20: Check: Ok | AN20: Check: Ok | AO20: Check: Ok | AP20: Check: Ok | AQ20: Check: Ok | AR20: Check: Ok | AS20: Check: Ok | AT20: Check: Ok | AU20: Check: Ok | AV20: Check: Ok | AW20: Check: Ok | AX20: Check: Ok | AY20: Check: Ok | AZ20: Check: Ok | BA20: Check: Ok | BB20: Check: Ok
A21: =IF(ISNA(HLOOKUP("Warning",$AC21:$BB21,1,0)),"Check: ok","Warning, a cap con't has been improperly input in a non true-up year. Remove all con't inputs in non true-up years.") -> Check: ok | AC21: Check: Ok | AD21: =IF(AND(ISNA(C14),(C18+C17)<>0),"Warning","Check: Ok") -> Check: Ok | AE21: Check: Ok | AF21: Check: Ok | AG21: Check: Ok | AH21: Check: Ok | AI21: Check: Ok | AJ21: Check: Ok | AK21: Check: Ok | AL21: Check: Ok | AM21: Check: Ok | AN21: Check: Ok | AO21: Check: Ok | AP21: Check: Ok | AQ21: Check: Ok | AR21: Check: Ok | AS21: Check: Ok | AT21: Check: Ok | AU21: Check: Ok | AV21: Check: Ok | AW21: Check: Ok | AX21: Check: Ok | AY21: Check: Ok | AZ21: Check: Ok | BA21: Check: Ok | BB21: Check: Ok
A24: CALCULATIONS:
A26: Calculation of initial economic evaluation (IEE) / true-up:
A27: Is the NPV before contributions less than 0? | B27: =IF(ROUND('NPV Calc'!D50,4)<0,"Yes","No") -> Yes
A28: Or
A29: Have contributions been paid (excluding estimated IEE pre-payments)? | B29: =IF(AND(OR(Stage='Standard Inputs'!E76, Stage='Standard Inputs'!E75),B17>0),"N/A",IF(OR(B17<>0,B18<>0,SUM(C17:AA18)<>0),"Yes","No")) -> No
A31: Is the model ready to proceed with the true-up calculation? | B31: =IF(AND(OR(B29="Yes",B27="Yes"),B45="Revenue Guarantee"),"Warning",IF(OR(B29="Yes",B27="Yes"),"Yes","No")) -> Yes
A32: =IF(TrueUpFlag="Warning","The model is currently set to a revenue guarantee, which is resulting in a warning. To correct, please run the IEE / True-up Calculation","Check: ok") -> Check: ok
A37: Calculation of Revenue Guarantee:
A39: Is the model ready to proceed with the Revenue Guarantee calculation? | B39: =IF(B31="No","Yes","No") -> No
A42: Revenue guarantee factor: | B42: 1
A47: REPORTING / PRINT:
A49: 1. Standard Report:
A50: - Contains a detailed summary of the calculation of capital contributions or revenue requirement
A52: Please select which report you would like to review: | B52: IEE/True-up | D52: =IF(OR((AND(B39="Yes",B45="IEE/True-up")),(AND(B31="Yes",B52="Revenue Guarantee"))),"Warning - the revenue guarantee has not been calculated, please review detail above.","Check: ok") -> Check: ok
A53: Display capital contributions in the standard report? | B53: =IF(B52="Revenue Guarantee","N/A",IF(AND(B52="IEE/True-up",B39="Yes",B29="No"),"No","Yes")) -> Yes

Sheet Standard Inputs
A4: REVENUE INPUTS:
A5: Pool | B5: Tariffs ($/kW/Month) | C5: Revenue Requirement ($k) | D5: Annual Billing (MW)
A6: Line | B6: 0.94 | C6: 226748.083 | D6: 240445.584 | E6: EB-2016-0160 - Hydro One Networks' 2017-2018 Transmission Revenue Requirement
A7: Network | B7: 3.59 | C7: 893562.074 | D7: 249132.407 | E7: & Charge Determinants
A8: Transformation | B8: 2.33 | C8: 475639.752 | D8: 203770.823 | E8: EB-2017-0359 - 2018 Uniform Transmission Rates
A10: DISCOUNT RATE INPUTS:
A12: Capital Structure:
A13: Third-Party Long-term Debt Ratio | B13: 0.4905 | E13: EB-2016-0160 - Hydro One Networks' 2017-2018 Transmission Revenue Requirement
A14: Deemed Long-term Debt Ratio | B14: 0.0695 | E14: & Charge Determinants
A15: Short-term Debt Ratio | B15: 0.04 | E15: EB-2017-0359 - 2018 Uniform Transmission Rates
A16: Common Equity | B16: 0.4
A18: Allowed Return:
A19: Third-Party Long-term Debt Ratio | B19: 0.0468 | E19: EB-2016-0160 - Hydro One Networks' 2017-2018 Transmission Revenue Requirement
A20: Deemed Long-term Debt Ratio | B20: 0.0468 | E20: & Charge Determinants
A21: Short-term Debt Ratio | B21: 0.0229 | E21: EB-2017-0359 - 2018 Uniform Transmission Rates
A22: Return on Equity | B22: 0.09
A24: TAX INPUTS:
A26: Federal Income Tax Rate | B26: 0.15 | E26: Updated: 2017-11-16
A27: Ontario Income Tax Rate | B27: 0.115 | E27: EB-2016-0160
A28: Income Tax rate | B28: 0.265 | E28: EB-2017-0280
E29: DRO Exhibit 9.0
A30: Municipal (Property) Tax | B30: =64.714/((16641.1+17616.4)/2) -> 0.003778092389 | E30: Property Taxes, Rights and Indemnity Payments = $64.714M. Updated as per Prefiled Evidence (EB-2017-0280 Ex 9.0). Mid-Year Gross Asset Balance = $17128.75 M (16,641.1+ 17,616.4)/2. Updated as per Draft Rate Order (EB-2014-0140 Ex C1.2)
A32: CCA / Depreciation:
B33: Class Number | C33: CCA Rates | D33: Service Life
A34: Land costs | B34: N/A | C34: N/A | D34: N/A | E34: Land does not depreciate or attract CCA
A35: Class 47 costs | B35: 47 | C35: 0.08 | D35: 50 | E35: Transmission equipment (which may include for this purpose a structure)
A36: Decision Support defined costs (1)
A37: Decision Support defined costs (2)
A38: Decision Support defined costs (3)
A40: OTHER COST INPUTS:
A42: Estimated incremental OM&A:
B43: Years: | C43: 1 | D43: =C43+1 -> 2 | E43: 3 | F43: 4 | G43: 5 | H43: 6 | I43: 7 | J43: 8 | K43: 9 | L43: 10 | M43: 11 | N43: 12 | O43: 13 | P43: 14 | Q43: 15 | R43: 16 | S43: 17 | T43: 18 | U43: 19 | V43: 20 | W43: 21 | X43: 22 | Y43: 23 | Z43: 24 | AA43: 25 | AB43: Report Description
A55: WORKING CAPITAL INPUTS:
A57: Revenue Lag | B57: 35.52
A58: OM&A Lead | B58: 26.76
A59: Net Lag | B59: =B57-B58 -> 8.76
A60: Net Lag / 365 | B60: =B59/365 -> 0.024
A63: REPORTING INPUTS:
A65: Income tax rates date | B65: 2018
A67: HST | B67: 0.13
A69: Working capital detail (report description): | B69: As per Lead Lag Study as prepared by Navigant for 2018/2019 rates
A71: ALTERNATE HORIZON INPUTS:
A73: Risk Level | B73: Standard Period | C73: Alternate Period | D73: In-use Period | E73: Stage | F73: Year
A74: High
A75: =$A$74&" - "&E75 -> High - Estimated cost | B75: 0 | D75: =IF(ISNUMBER(C75),C75,B75) -> 0 | E75: Estimated cost | F75: ='Capital Cont Inputs'!B15 -> 2021 | G75: =IF(C75>$D$81,"Warning - you cannot input an alternate horizon that is greater than the standard horizon given the selected risk classification","Check: ok") -> Check: ok
A76: =$A$74&" - "&E76 -> High - Actual cost | B76: 0 | D76: 0 | E76: Actual cost | F76: =$F$75+D76 -> 2021 | G76: =IF(C76>$D$81,"Warning - you cannot input an alternate horizon that is greater than the standard horizon given the selected risk classification","Check: ok") -> Check: ok
A77: =$A$74&" - "&E77 -> High - 1st true-up | B77: =B75+1 -> 1 | D77: 1 | E77: 1st true-up | F77: 2022 | G77: Check: ok
A78: High - 2nd true-up | B78: =B77+1 -> 2 | D78: 2 | E78: 2nd true-up | F78: 2023 | G78: Check: ok
A79: High - 3rd true-up | B79: =B78+1 -> 3 | D79: 3 | E79: 3rd true-up | F79: 2024 | G79: Check: ok
A80: High - 4th true-up | B80: =B79+1 -> 4 | D80: 4 | E80: 4th true-up | F80: 2025 | G80: Check: ok
A81: High - 5th true-up | B81: =B80+1 -> 5 | D81: 5 | E81: 5th true-up | F81: 2026 | G81: Check: ok
A84: Medium-high
A85: =$A$84&" - "&E85 -> Medium-high - Estimated cost | B85: 0 | D85: =IF(ISNUMBER(C85),C85,B85) -> 0 | E85: =E75 -> Estimated cost | F85: ='Capital Cont Inputs'!B15 -> 2021 | G85: =IF(C85>$D$89,"Warning - you cannot input an alternate horizon that is greater than the standard horizon given the selected risk classification","Check: ok") -> Check: ok
A86: =$A$84&" - "&E86 -> Medium-high - Actual cost | B86: 0 | D86: =IF(ISNUMBER(C86),C86,B86) -> 0 | E86: =E76 -> Actual cost | F86: =$F$85+D86 -> 2021 | G86: =IF(C86>$D$89,"Warning - you cannot input an alternate horizon that is greater than the standard horizon given the selected risk classification","Check: ok") -> Check: ok
A87: =$A$84&" - "&E87 -> Medium-high - 1st true-up | B87: =B85+3 -> 3 | D87: =IF(ISNUMBER(C87),C87,B87) -> 3 | E87: =E77 -> 1st true-up | F87: =$F$85+D87 -> 2024 | G87: =IF(C87>$D$89,"Warning - you cannot input an alternate horizon that is greater than the standard horizon given the selected risk classification","Check: ok") -> Check: ok
A88: =$A$84&" - "&E88 -> Medium-high - 2nd true-up | B88: =B87+2 -> 5 | D88: =IF(ISNUMBER(C88),C88,B88) -> 5 | E88: =E78 -> 2nd true-up | F88: =$F$85+D88 -> 2026 | G88: =IF(C88>$D$89,"Warning - you cannot input an alternate horizon that is greater than the standard horizon given the selected risk classification","Check: ok") -> Check: ok
A89: =$A$84&" - "&E89 -> Medium-high - 3rd true-up | B89: =B88+5 -> 10 | D89: =IF(ISNUMBER(C89),C89,B89) -> 10 | E89: =E79 -> 3rd true-up | F89: =$F$85+D89 -> 2031 | G89: =IF(C89>$D$89,"Warning - you cannot input an alternate horizon that is greater than the standard horizon given the selected risk classification","Check: ok") -> Check: ok
A92: Medium-low
A93: =$A$92&" - "&E93 -> Medium-low - Estimated cost | B93: 0 | D93: =IF(ISNUMBER(C93),C93,B93) -> 0 | E93: =E75 -> Estimated cost | F93: ='Capital Cont Inputs'!B15 -> 2021 | G93: =IF(C93>$D$97,"Warning - you cannot input an alternate horizon that is greater than the standard horizon given the selected risk classification","Check: ok") -> Check: ok
A94: =$A$92&" - "&E94 -> Medium-low - Actual cost | B94: 0 | D94: =IF(ISNUMBER(C94),C94,B94) -> 0 | E94: =E76 -> Actual cost | F94: =$F$93+D94 -> 2021 | G94: =IF(C94>$D$97,"Warning - you cannot input an alternate horizon that is greater than the standard horizon given the selected risk classification","Check: ok") -> Check: ok
A95: =$A$92&" - "&E95 -> Medium-low - 1st true-up | B95: =B93+3 -> 3 | D95: =IF(ISNUMBER(C95),C95,B95) -> 3 | E95: =E77 -> 1st true-up | F95: =$F$93+D95 -> 2024 | G95: =IF(C95>$D$97,"Warning - you cannot input an alternate horizon that is greater than the standard horizon given the selected risk classification","Check: ok") -> Check: ok
A96: =$A$92&" - "&E96 -> Medium-low - 2nd true-up | B96: =B95+2 -> 5 | D96: =IF(ISNUMBER(C96),C96,B96) -> 5 | E96: =E78 -> 2nd true-up | F96: =$F$93+D96 -> 2026 | G96: =IF(C96>$D$97,"Warning - you cannot input an alternate horizon that is greater than the standard horizon given the selected risk classification","Check: ok") -> Check: ok
A97: =$A$92&" - "&E97 -> Medium-low - 3rd true-up | B97: =B96+5 -> 10 | D97: =IF(ISNUMBER(C97),C97,B97) -> 10 | E97: =E79 -> 3rd true-up | F97: =$F$93+D97 -> 2031 | G97: =IF(C97>$D$97,"Warning - you cannot input an alternate horizon that is greater than the standard horizon given the selected risk classification","Check: ok") -> Check: ok
A100: Low
A101: =$A$100&" - "&E101 -> Low - Estimated cost | B101: 0 | D101: =IF(ISNUMBER(C101),C101,B101) -> 0 | E101: =E75 -> Estimated cost | F101: ='Capital Cont Inputs'!B15 -> 2021 | G101: =IF(C101>$D$105,"Warning - you cannot input an alternate horizon that is greater than the standard horizon given the selected risk classification","Check: ok") -> Check: ok
A102: =$A$100&" - "&E102 -> Low - Actual cost | B102: 0 | D102: =IF(ISNUMBER(C102),C102,B102) -> 0 | E102: =E76 -> Actual cost | F102: =$F$101+D102 -> 2021 | G102: =IF(C102>$D$105,"Warning - you cannot input an alternate horizon that is greater than the standard horizon given the selected risk classification","Check: ok") -> Check: ok
A103: =$A$100&" - "&E103 -> Low - 1st true-up | B103: =B101+5 -> 5 | D103: =IF(ISNUMBER(C103),C103,B103) -> 5 | E103: =E77 -> 1st true-up | F103: =$F$101+D103 -> 2026 | G103: =IF(C103>$D$105,"Warning - you cannot input an alternate horizon that is greater than the standard horizon given the selected risk classification","Check: ok") -> Check: ok
A104: =$A$100&" - "&E104 -> Low - 2nd true-up | B104: =B103+5 -> 10 | D104: =IF(ISNUMBER(C104),C104,B104) -> 10 | E104: =E78 -> 2nd true-up | F104: =$F$101+D104 -> 2031 | G104: =IF(C104>$D$105,"Warning - you cannot input an alternate horizon that is greater than the standard horizon given the selected risk classification","Check: ok") -> Check: ok
A105: =$A$100&" - "&E105 -> Low - 3rd true-up | B105: =B104+5 -> 15 | D105: =IF(ISNUMBER(C105),C105,B105) -> 15 | E105: =E79 -> 3rd true-up | F105: =$F$101+D105 -> 2036 | G105: =IF(C105>$D$105,"Warning - you cannot input an alternate horizon that is greater than the standard horizon given the selected risk classification","Check: ok") -> Check: ok

Sheet Prelim Calc
C2: Calculation of Discount Rate | D2: Capital | E2: Allowed | F2: Regulated | H2: After-tax
D3: Structure | E3: Return* | F3: Return | G3: Tax Rate | H3: Discount Rate
C4: Debt:
C5: Third-Party Long-term Debt | D5: ='Standard Inputs'!B13 -> 0.4905 | E5: ='Standard Inputs'!B19 -> 0.0468 | F5: =D5*E5 -> 0.0229554 | G5: ='Standard Inputs'!B28 -> 0.265 | H5: =D5*E5*(1-G5) -> 0.016872219
C6: Deemed Long-term Debt | D6: ='Standard Inputs'!B14 -> 0.0695 | E6: ='Standard Inputs'!B20 -> 0.0468 | F6: =D6*E6 -> 0.0032526 | G6: =G5 -> 0.265 | H6: =D6*E6*(1-G6) -> 0.002390661
C7: Short-term Debt | D7: ='Standard Inputs'!B15 -> 0.04 | E7: ='Standard Inputs'!B21 -> 0.0229 | F7: =D7*E7 -> 0.000916 | G7: =G6 -> 0.265 | H7: =D7*E7*(1-G7) -> 0.00067326
F8: =SUM(F5:F7) -> 0.027124 | H8: =SUM(H5:H7) -> 0.01993614
C10: Equity:
C11: Common Equity | D11: ='Standard Inputs'!B16 -> 0.4 | E11: ='Standard Inputs'!B22 -> 0.09 | F11: =D11*E11 -> 0.036 | H11: =D11*E11 -> 0.036
F13: =F8+F11 -> 0.063124 | H13: =H8+H11 -> 0.05593614
C14: * Allowed debt returns are before tax. Allowed equity returns are after tax.
C18: Summary of Up-front Costs Before Contributions
E19: ='Capital Cont Inputs'!B15 -> 2021
C21: Up-front capital excluding AFUDC & Overhead - $k | E21: ='Project Inputs'!B34+'Project Inputs'!B38+'Project Inputs'!B49+'Project Inputs'!B55+'Project Inputs'!B61 -> 590868.475
C22: Overhead - $k | E22: ='Project Inputs'!B39+'Project Inputs'!B50+'Project Inputs'!B56+'Project Inputs'!B62 -> 8502.295784
C23: AFUDC - $k | E23: ='Project Inputs'!B40+'Project Inputs'!B51+'Project Inputs'!B57+'Project Inputs'!B63 -> 42596.29673
C24: Total up-front capital before capital contributions - $k | E24: =SUM(E21:E23) -> 641967.0675
C26: Up-front removal costs - $k | E26: =SUM('Project Inputs'!B44:B45) -> 20600
C28: Total up-front capital including removals - $k | E28: =E24+E26 -> 662567.0675
C32: Calculation of Incremental OM&A
C33: Project Year: | F33: ='Capital Cont Inputs'!C16 -> 1 | G33: ='Capital Cont Inputs'!D16 -> 2 | H33: ='Capital Cont Inputs'!E16 -> 3 | I33: ='Capital Cont Inputs'!F16 -> 4 | J33: ='Capital Cont Inputs'!G16 -> 5 | K33: ='Capital Cont Inputs'!H16 -> 6 | L33: ='Capital Cont Inputs'!I16 -> 7 | M33: ='Capital Cont Inputs'!J16 -> 8 | N33: ='Capital Cont Inputs'!K16 -> 9 | O33: ='Capital Cont Inputs'!L16 -> 10 | P33: ='Capital Cont Inputs'!M16 -> 11 | Q33: ='Capital Cont Inputs'!N16 -> 12 | R33: ='Capital Cont Inputs'!O16 -> 13 | S33: ='Capital Cont Inputs'!P16 -> 14 | T33: ='Capital Cont Inputs'!Q16 -> 15 | U33: ='Capital Cont Inputs'!R16 -> 16 | V33: ='Capital Cont Inputs'!S16 -> 17 | W33: ='Capital Cont Inputs'!T16 -> 18 | X33: ='Capital Cont Inputs'!U16 -> 19 | Y33: ='Capital Cont Inputs'!V16 -> 20 | Z33: ='Capital Cont Inputs'!W16 -> 21 | AA33: ='Capital Cont Inputs'!X16 -> 22 | AB33: ='Capital Cont Inputs'!Y16 -> 23 | AC33: ='Capital Cont Inputs'!Z16 -> 24 | AD33: ='Capital Cont Inputs'!AA16 -> 25
C34: Year Ended: | F34: ='Capital Cont Inputs'!C15 -> 2022 | G34: ='Capital Cont Inputs'!D15 -> 2023 | H34: ='Capital Cont Inputs'!E15 -> 2024 | I34: ='Capital Cont Inputs'!F15 -> 2025 | J34: ='Capital Cont Inputs'!G15 -> 2026 | K34: ='Capital Cont Inputs'!H15 -> 2027 | L34: ='Capital Cont Inputs'!I15 -> 2028 | M34: ='Capital Cont Inputs'!J15 -> 2029 | N34: ='Capital Cont Inputs'!K15 -> 2030 | O34: ='Capital Cont Inputs'!L15 -> 2031 | P34: ='Capital Cont Inputs'!M15 -> 2032 | Q34: ='Capital Cont Inputs'!N15 -> 2033 | R34: ='Capital Cont Inputs'!O15 -> 2034 | S34: ='Capital Cont Inputs'!P15 -> 2035 | T34: ='Capital Cont Inputs'!Q15 -> 2036 | U34: ='Capital Cont Inputs'!R15 -> 2037 | V34: ='Capital Cont Inputs'!S15 -> 2038 | W34: ='Capital Cont Inputs'!T15 -> 2039 | X34: ='Capital Cont Inputs'!U15 -> 2040 | Y34: ='Capital Cont Inputs'!V15 -> 2041 | Z34: ='Capital Cont Inputs'!W15 -> 2042 | AA34: ='Capital Cont Inputs'!X15 -> 2043 | AB34: ='Capital Cont Inputs'!Y15 -> 2044 | AC34: ='Capital Cont Inputs'!Z15 -> 2045 | AD34: ='Capital Cont Inputs'!AA15 -> 2046
C35: Standard OM&A Calculation
C37: =CONCATENATE('Project Inputs'!A69," ",'Project Inputs'!B69) -> Asset Type 1: Line - Overhead
C38: =VLOOKUP('Project Inputs'!B69,'Standard Inputs'!$44:$50,MATCH('Standard Inputs'!$B$43,'Standard Inputs'!$A$43:$B$43,0),0) ->  | F38: =IF(ISNUMBER(F33),VLOOKUP('Project Inputs'!$B69,'Standard Inputs'!$44:$50,MATCH(F$33,'Standard Inputs'!$A$43:$AA$43,0),0),0) ->  | G38: =IF(ISNUMBER(G33),VLOOKUP('Project Inputs'!$B69,'Standard Inputs'!$44:$50,MATCH(G$33,'Standard Inputs'!$A$43:$AA$43,0),0),0) ->  | H38: =IF(ISNUMBER(H33),VLOOKUP('Project Inputs'!$B69,'Standard Inputs'!$44:$50,MATCH(H$33,'Standard Inputs'!$A$43:$AA$43,0),0),0) ->  | I38: =IF(ISNUMBER(I33),VLOOKUP('Project Inputs'!$B69,'Standard Inputs'!$44:$50,MATCH(I$33,'Standard Inputs'!$A$43:$AA$43,0),0),0) ->  | J38: =IF(ISNUMBER(J33),VLOOKUP('Project Inputs'!$B69,'Standard Inputs'!$44:$50,MATCH(J$33,'Standard Inputs'!$A$43:$AA$43,0),0),0) ->  | K38: =IF(ISNUMBER(K33),VLOOKUP('Project Inputs'!$B69,'Standard Inputs'!$44:$50,MATCH(K$33,'Standard Inputs'!$A$43:$AA$43,0),0),0) ->  | L38: =IF(ISNUMBER(L33),VLOOKUP('Project Inputs'!$B69,'Standard Inputs'!$44:$50,MATCH(L$33,'Standard Inputs'!$A$43:$AA$43,0),0),0) ->  | M38: =IF(ISNUMBER(M33),VLOOKUP('Project Inputs'!$B69,'Standard Inputs'!$44:$50,MATCH(M$33,'Standard Inputs'!$A$43:$AA$43,0),0),0) ->  | N38: =IF(ISNUMBER(N33),VLOOKUP('Project Inputs'!$B69,'Standard Inputs'!$44:$50,MATCH(N$33,'Standard Inputs'!$A$43:$AA$43,0),0),0) ->  | O38: =IF(ISNUMBER(O33),VLOOKUP('Project Inputs'!$B69,'Standard Inputs'!$44:$50,MATCH(O$33,'Standard Inputs'!$A$43:$AA$43,0),0),0) ->  | P38: =IF(ISNUMBER(P33),VLOOKUP('Project Inputs'!$B69,'Standard Inputs'!$44:$50,MATCH(P$33,'Standard Inputs'!$A$43:$AA$43,0),0),0) ->  | Q38: =IF(ISNUMBER(Q33),VLOOKUP('Project Inputs'!$B69,'Standard Inputs'!$44:$50,MATCH(Q$33,'Standard Inputs'!$A$43:$AA$43,0),0),0) ->  | R38: =IF(ISNUMBER(R33),VLOOKUP('Project Inputs'!$B69,'Standard Inputs'!$44:$50,MATCH(R$33,'Standard Inputs'!$A$43:$AA$43,0),0),0) ->  | S38: =IF(ISNUMBER(S33),VLOOKUP('Project Inputs'!$B69,'Standard Inputs'!$44:$50,MATCH(S$33,'Standard Inputs'!$A$43:$AA$43,0),0),0) ->  | T38: =IF(ISNUMBER(T33),VLOOKUP('Project Inputs'!$B69,'Standard Inputs'!$44:$50,MATCH(T$33,'Standard Inputs'!$A$43:$AA$43,0),0),0) ->  | U38: =IF(ISNUMBER(U33),VLOOKUP('Project Inputs'!$B69,'Standard Inputs'!$44:$50,MATCH(U$33,'Standard Inputs'!$A$43:$AA$43,0),0),0) ->  | V38: =IF(ISNUMBER(V33),VLOOKUP('Project Inputs'!$B69,'Standard Inputs'!$44:$50,MATCH(V$33,'Standard Inputs'!$A$43:$AA$43,0),0),0) ->  | W38: =IF(ISNUMBER(W33),VLOOKUP('Project Inputs'!$B69,'Standard Inputs'!$44:$50,MATCH(W$33,'Standard Inputs'!$A$43:$AA$43,0),0),0) ->  | X38: =IF(ISNUMBER(X33),VLOOKUP('Project Inputs'!$B69,'Standard Inputs'!$44:$50,MATCH(X$33,'Standard Inputs'!$A$43:$AA$43,0),0),0) ->  | Y38: =IF(ISNUMBER(Y33),VLOOKUP('Project Inputs'!$B69,'Standard Inputs'!$44:$50,MATCH(Y$33,'Standard Inputs'!$A$43:$AA$43,0),0),0) ->  | Z38: =IF(ISNUMBER(Z33),VLOOKUP('Project Inputs'!$B69,'Standard Inputs'!$44:$50,MATCH(Z$33,'Standard Inputs'!$A$43:$AA$43,0),0),0) ->  | AA38: =IF(ISNUMBER(AA33),VLOOKUP('Project Inputs'!$B69,'Standard Inputs'!$44:$50,MATCH(AA$33,'Standard Inputs'!$A$43:$AA$43,0),0),0) ->  | AB38: =IF(ISNUMBER(AB33),VLOOKUP('Project Inputs'!$B69,'Standard Inputs'!$44:$50,MATCH(AB$33,'Standard Inputs'!$A$43:$AA$43,0),0),0) ->  | AC38: =IF(ISNUMBER(AC33),VLOOKUP('Project Inputs'!$B69,'Standard Inputs'!$44:$50,MATCH(AC$33,'Standard Inputs'!$A$43:$AA$43,0),0),0) ->  | AD38: =IF(ISNUMBER(AD33),VLOOKUP('Project Inputs'!$B69,'Standard Inputs'!$44:$50,MATCH(AD$33,'Standard Inputs'!$A$43:$AA$43,0),0),0) -> 
C39: =IF(C38='Standard Inputs'!B46,"Total Up-front Capital before Capital Contribution",IF(C38='Standard Inputs'!B44,"KM of Line",IF(C38='Standard Inputs'!B48,"Number of stations","ERROR"))) ->  | F39: =IF(OR('Project Inputs'!$B69="Line - Overhead",'Project Inputs'!$B69="Line - Underground"),'Project Inputs'!$J69,IF(OR('Project Inputs'!$B69="Network - SS",'Project Inputs'!$B69="Network - TS"),'Project Inputs'!B76,IF(OR('Project Inputs'!$B69="Station - DESN",'Project Inputs'!$B69="Station - single"),1,0))) -> 0 | G39: =IF(ISNUMBER('Capital Cont Inputs'!D16),F39,0) -> 0 | H39: =IF(ISNUMBER('Capital Cont Inputs'!E16),G39,0) -> 0 | I39: =IF(ISNUMBER('Capital Cont Inputs'!F16),H39,0) -> 0 | J39: =IF(ISNUMBER('Capital Cont Inputs'!G16),I39,0) -> 0 | K39: =IF(ISNUMBER('Capital Cont Inputs'!H16),J39,0) -> 0 | L39: =IF(ISNUMBER('Capital Cont Inputs'!I16),K39,0) -> 0 | M39: =IF(ISNUMBER('Capital Cont Inputs'!J16),L39,0) -> 0 | N39: =IF(ISNUMBER('Capital Cont Inputs'!K16),M39,0) -> 0 | O39: =IF(ISNUMBER('Capital Cont Inputs'!L16),N39,0) -> 0 | P39: =IF(ISNUMBER('Capital Cont Inputs'!M16),O39,0) -> 0 | Q39: =IF(ISNUMBER('Capital Cont Inputs'!N16),P39,0) -> 0 | R39: =IF(ISNUMBER('Capital Cont Inputs'!O16),Q39,0) -> 0 | S39: =IF(ISNUMBER('Capital Cont Inputs'!P16),R39,0) -> 0 | T39: =IF(ISNUMBER('Capital Cont Inputs'!Q16),S39,0) -> 0 | U39: =IF(ISNUMBER('Capital Cont Inputs'!R16),T39,0) -> 0 | V39: =IF(ISNUMBER('Capital Cont Inputs'!S16),U39,0) -> 0 | W39: =IF(ISNUMBER('Capital Cont Inputs'!T16),V39,0) -> 0 | X39: =IF(ISNUMBER('Capital Cont Inputs'!U16),W39,0) -> 0 | Y39: =IF(ISNUMBER('Capital Cont Inputs'!V16),X39,0) -> 0 | Z39: =IF(ISNUMBER('Capital Cont Inputs'!W16),Y39,0) -> 0 | AA39: =IF(ISNUMBER('Capital Cont Inputs'!X16),Z39,0) -> 0 | AB39: =IF(ISNUMBER('Capital Cont Inputs'!Y16),AA39,0) -> 0 | AC39: =IF(ISNUMBER('Capital Cont Inputs'!Z16),AB39,0) -> 0 | AD39: =IF(ISNUMBER('Capital Cont Inputs'!AA16),AC39,0) -> 0
C40: % of asset applicable to customer | F40: =IF(ISNUMBER(F33),IF(ISBLANK('Project Inputs'!$G$69),100%,'Project Inputs'!$G$69),0) -> 1 | G40: =IF(ISNUMBER(G33),IF(ISBLANK('Project Inputs'!$G$69),100%,'Project Inputs'!$G$69),0) -> 1 | H40: =IF(ISNUMBER(H33),IF(ISBLANK('Project Inputs'!$G$69),100%,'Project Inputs'!$G$69),0) -> 1 | I40: =IF(ISNUMBER(I33),IF(ISBLANK('Project Inputs'!$G$69),100%,'Project Inputs'!$G$69),0) -> 1 | J40: =IF(ISNUMBER(J33),IF(ISBLANK('Project Inputs'!$G$69),100%,'Project Inputs'!$G$69),0) -> 1 | K40: =IF(ISNUMBER(K33),IF(ISBLANK('Project Inputs'!$G$69),100%,'Project Inputs'!$G$69),0) -> 1 | L40: =IF(ISNUMBER(L33),IF(ISBLANK('Project Inputs'!$G$69),100%,'Project Inputs'!$G$69),0) -> 1 | M40: =IF(ISNUMBER(M33),IF(ISBLANK('Project Inputs'!$G$69),100%,'Project Inputs'!$G$69),0) -> 1 | N40: =IF(ISNUMBER(N33),IF(ISBLANK('Project Inputs'!$G$69),100%,'Project Inputs'!$G$69),0) -> 1 | O40: =IF(ISNUMBER(O33),IF(ISBLANK('Project Inputs'!$G$69),100%,'Project Inputs'!$G$69),0) -> 1 | P40: =IF(ISNUMBER(P33),IF(ISBLANK('Project Inputs'!$G$69),100%,'Project Inputs'!$G$69),0) -> 1 | Q40: =IF(ISNUMBER(Q33),IF(ISBLANK('Project Inputs'!$G$69),100%,'Project Inputs'!$G$69),0) -> 1 | R40: =IF(ISNUMBER(R33),IF(ISBLANK('Project Inputs'!$G$69),100%,'Project Inputs'!$G$69),0) -> 1 | S40: =IF(ISNUMBER(S33),IF(ISBLANK('Project Inputs'!$G$69),100%,'Project Inputs'!$G$69),0) -> 1 | T40: =IF(ISNUMBER(T33),IF(ISBLANK('Project Inputs'!$G$69),100%,'Project Inputs'!$G$69),0) -> 1 | U40: =IF(ISNUMBER(U33),IF(ISBLANK('Project Inputs'!$G$69),100%,'Project Inputs'!$G$69),0) -> 1 | V40: =IF(ISNUMBER(V33),IF(ISBLANK('Project Inputs'!$G$69),100%,'Project Inputs'!$G$69),0) -> 1 | W40: =IF(ISNUMBER(W33),IF(ISBLANK('Project Inputs'!$G$69),100%,'Project Inputs'!$G$69),0) -> 1 | X40: =IF(ISNUMBER(X33),IF(ISBLANK('Project Inputs'!$G$69),100%,'Project Inputs'!$G$69),0) -> 1 | Y40: =IF(ISNUMBER(Y33),IF(ISBLANK('Project Inputs'!$G$69),100%,'Project Inputs'!$G$69),0) -> 1 | Z40: =IF(ISNUMBER(Z33),IF(ISBLANK('Project Inputs'!$G$69),100%,'Project Inputs'!$G$69),0) -> 1 | AA40: =IF(ISNUMBER(AA33),IF(ISBLANK('Project Inputs'!$G$69),100%,'Project Inputs'!$G$69),0) -> 1 | AB40: =IF(ISNUMBER(AB33),IF(ISBLANK('Project Inputs'!$G$69),100%,'Project Inputs'!$G$69),0) -> 1 | AC40: =IF(ISNUMBER(AC33),IF(ISBLANK('Project Inputs'!$G$69),100%,'Project Inputs'!$G$69),0) -> 1 | AD40: =IF(ISNUMBER(AD33),IF(ISBLANK('Project Inputs'!$G$69),100%,'Project Inputs'!$G$69),0) -> 1
C42: Total - $k | F42: =IF(ISNUMBER('Capital Cont Inputs'!C16),F38*F39*F40,0) ->  | G42: =IF(ISNUMBER('Capital Cont Inputs'!D16),G38*G39*G40,0) ->  | H42: =IF(ISNUMBER('Capital Cont Inputs'!E16),H38*H39*H40,0) ->  | I42: =IF(ISNUMBER('Capital Cont Inputs'!F16),I38*I39*I40,0) ->  | J42: =IF(ISNUMBER('Capital Cont Inputs'!G16),J38*J39*J40,0) ->  | K42: =IF(ISNUMBER('Capital Cont Inputs'!H16),K38*K39*K40,0) ->  | L42: =IF(ISNUMBER('Capital Cont Inputs'!I16),L38*L39*L40,0) ->  | M42: =IF(ISNUMBER('Capital Cont Inputs'!J16),M38*M39*M40,0) ->  | N42: =IF(ISNUMBER('Capital Cont Inputs'!K16),N38*N39*N40,0) ->  | O42: =IF(ISNUMBER('Capital Cont Inputs'!L16),O38*O39*O40,0) ->  | P42: =IF(ISNUMBER('Capital Cont Inputs'!M16),P38*P39*P40,0) ->  | Q42: =IF(ISNUMBER('Capital Cont Inputs'!N16),Q38*Q39*Q40,0) ->  | R42: =IF(ISNUMBER('Capital Cont Inputs'!O16),R38*R39*R40,0) ->  | S42: =IF(ISNUMBER('Capital Cont Inputs'!P16),S38*S39*S40,0) ->  | T42: =IF(ISNUMBER('Capital Cont Inputs'!Q16),T38*T39*T40,0) ->  | U42: =IF(ISNUMBER('Capital Cont Inputs'!R16),U38*U39*U40,0) ->  | V42: =IF(ISNUMBER('Capital Cont Inputs'!S16),V38*V39*V40,0) ->  | W42: =IF(ISNUMBER('Capital Cont Inputs'!T16),W38*W39*W40,0) ->  | X42: =IF(ISNUMBER('Capital Cont Inputs'!U16),X38*X39*X40,0) ->  | Y42: =IF(ISNUMBER('Capital Cont Inputs'!V16),Y38*Y39*Y40,0) ->  | Z42: =IF(ISNUMBER('Capital Cont Inputs'!W16),Z38*Z39*Z40,0) ->  | AA42: =IF(ISNUMBER('Capital Cont Inputs'!X16),AA38*AA39*AA40,0) ->  | AB42: =IF(ISNUMBER('Capital Cont Inputs'!Y16),AB38*AB39*AB40,0) ->  | AC42: =IF(ISNUMBER('Capital Cont Inputs'!Z16),AC38*AC39*AC40,0) ->  | AD42: =IF(ISNUMBER('Capital Cont Inputs'!AA16),AD38*AD39*AD40,0) -> 
C44: =CONCATENATE('Project Inputs'!A70," ",'Project Inputs'!B70) -> Asset Type 2: N/A
C45: =VLOOKUP('Project Inputs'!B70,'Standard Inputs'!44:50,MATCH('Standard Inputs'!$B$43,'Standard Inputs'!$A$43:$B$43,0),0) ->  | F45: =IF(ISNUMBER(F33),VLOOKUP('Project Inputs'!$B70,'Standard Inputs'!$44:$50,MATCH(F$33,'Standard Inputs'!$A$43:$AA$43,0),0),0) ->  | G45: =IF(ISNUMBER(G33),VLOOKUP('Project Inputs'!$B70,'Standard Inputs'!$44:$50,MATCH(G$33,'Standard Inputs'!$A$43:$AA$43,0),0),0) ->  | H45: =IF(ISNUMBER(H33),VLOOKUP('Project Inputs'!$B70,'Standard Inputs'!$44:$50,MATCH(H$33,'Standard Inputs'!$A$43:$AA$43,0),0),0) ->  | I45: =IF(ISNUMBER(I33),VLOOKUP('Project Inputs'!$B70,'Standard Inputs'!$44:$50,MATCH(I$33,'Standard Inputs'!$A$43:$AA$43,0),0),0) ->  | J45: =IF(ISNUMBER(J33),VLOOKUP('Project Inputs'!$B70,'Standard Inputs'!$44:$50,MATCH(J$33,'Standard Inputs'!$A$43:$AA$43,0),0),0) ->  | K45: =IF(ISNUMBER(K33),VLOOKUP('Project Inputs'!$B70,'Standard Inputs'!$44:$50,MATCH(K$33,'Standard Inputs'!$A$43:$AA$43,0),0),0) ->  | L45: =IF(ISNUMBER(L33),VLOOKUP('Project Inputs'!$B70,'Standard Inputs'!$44:$50,MATCH(L$33,'Standard Inputs'!$A$43:$AA$43,0),0),0) ->  | M45: =IF(ISNUMBER(M33),VLOOKUP('Project Inputs'!$B70,'Standard Inputs'!$44:$50,MATCH(M$33,'Standard Inputs'!$A$43:$AA$43,0),0),0) ->  | N45: =IF(ISNUMBER(N33),VLOOKUP('Project Inputs'!$B70,'Standard Inputs'!$44:$50,MATCH(N$33,'Standard Inputs'!$A$43:$AA$43,0),0),0) ->  | O45: =IF(ISNUMBER(O33),VLOOKUP('Project Inputs'!$B70,'Standard Inputs'!$44:$50,MATCH(O$33,'Standard Inputs'!$A$43:$AA$43,0),0),0) ->  | P45: =IF(ISNUMBER(P33),VLOOKUP('Project Inputs'!$B70,'Standard Inputs'!$44:$50,MATCH(P$33,'Standard Inputs'!$A$43:$AA$43,0),0),0) ->  | Q45: =IF(ISNUMBER(Q33),VLOOKUP('Project Inputs'!$B70,'Standard Inputs'!$44:$50,MATCH(Q$33,'Standard Inputs'!$A$43:$AA$43,0),0),0) ->  | R45: =IF(ISNUMBER(R33),VLOOKUP('Project Inputs'!$B70,'Standard Inputs'!$44:$50,MATCH(R$33,'Standard Inputs'!$A$43:$AA$43,0),0),0) ->  | S45: =IF(ISNUMBER(S33),VLOOKUP('Project Inputs'!$B70,'Standard Inputs'!$44:$50,MATCH(S$33,'Standard Inputs'!$A$43:$AA$43,0),0),0) ->  | T45: =IF(ISNUMBER(T33),VLOOKUP('Project Inputs'!$B70,'Standard Inputs'!$44:$50,MATCH(T$33,'Standard Inputs'!$A$43:$AA$43,0),0),0) ->  | U45: =IF(ISNUMBER(U33),VLOOKUP('Project Inputs'!$B70,'Standard Inputs'!$44:$50,MATCH(U$33,'Standard Inputs'!$A$43:$AA$43,0),0),0) ->  | V45: =IF(ISNUMBER(V33),VLOOKUP('Project Inputs'!$B70,'Standard Inputs'!$44:$50,MATCH(V$33,'Standard Inputs'!$A$43:$AA$43,0),0),0) ->  | W45: =IF(ISNUMBER(W33),VLOOKUP('Project Inputs'!$B70,'Standard Inputs'!$44:$50,MATCH(W$33,'Standard Inputs'!$A$43:$AA$43,0),0),0) ->  | X45: =IF(ISNUMBER(X33),VLOOKUP('Project Inputs'!$B70,'Standard Inputs'!$44:$50,MATCH(X$33,'Standard Inputs'!$A$43:$AA$43,0),0),0) ->  | Y45: =IF(ISNUMBER(Y33),VLOOKUP('Project Inputs'!$B70,'Standard Inputs'!$44:$50,MATCH(Y$33,'Standard Inputs'!$A$43:$AA$43,0),0),0) ->  | Z45: =IF(ISNUMBER(Z33),VLOOKUP('Project Inputs'!$B70,'Standard Inputs'!$44:$50,MATCH(Z$33,'Standard Inputs'!$A$43:$AA$43,0),0),0) ->  | AA45: =IF(ISNUMBER(AA33),VLOOKUP('Project Inputs'!$B70,'Standard Inputs'!$44:$50,MATCH(AA$33,'Standard Inputs'!$A$43:$AA$43,0),0),0) ->  | AB45: =IF(ISNUMBER(AB33),VLOOKUP('Project Inputs'!$B70,'Standard Inputs'!$44:$50,MATCH(AB$33,'Standard Inputs'!$A$43:$AA$43,0),0),0) ->  | AC45: =IF(ISNUMBER(AC33),VLOOKUP('Project Inputs'!$B70,'Standard Inputs'!$44:$50,MATCH(AC$33,'Standard Inputs'!$A$43:$AA$43,0),0),0) ->  | AD45: =IF(ISNUMBER(AD33),VLOOKUP('Project Inputs'!$B70,'Standard Inputs'!$44:$50,MATCH(AD$33,'Standard Inputs'!$A$43:$AA$43,0),0),0) -> 
C46: =IF(C45='Standard Inputs'!B46,"Total Up-front Capital before Capital Contribution",IF(C45='Standard Inputs'!B44,"KM of Line",IF(C45='Standard Inputs'!B48,"Number of stations","N/A"))) ->  | F46: =IF(OR('Project Inputs'!$B70="Line - Overhead",'Project Inputs'!$B70="Line - Underground"),'Project Inputs'!$J70,IF(OR('Project Inputs'!$B70="Network - SS",'Project Inputs'!$B70="Network - TS"),'Project Inputs'!C76,IF(OR('Project Inputs'!$B70="Station - DESN",'Project Inputs'!$B70="Station - single"),1,0))) -> 0 | G46: =IF(ISNUMBER('Capital Cont Inputs'!D16),F46,0) -> 0 | H46: =IF(ISNUMBER('Capital Cont Inputs'!E16),G46,0) -> 0 | I46: =IF(ISNUMBER('Capital Cont Inputs'!F16),H46,0) -> 0 | J46: =IF(ISNUMBER('Capital Cont Inputs'!G16),I46,0) -> 0 | K46: =IF(ISNUMBER('Capital Cont Inputs'!H16),J46,0) -> 0 | L46: =IF(ISNUMBER('Capital Cont Inputs'!I16),K46,0) -> 0 | M46: =IF(ISNUMBER('Capital Cont Inputs'!J16),L46,0) -> 0 | N46: =IF(ISNUMBER('Capital Cont Inputs'!K16),M46,0) -> 0 | O46: =IF(ISNUMBER('Capital Cont Inputs'!L16),N46,0) -> 0 | P46: =IF(ISNUMBER('Capital Cont Inputs'!M16),O46,0) -> 0 | Q46: =IF(ISNUMBER('Capital Cont Inputs'!N16),P46,0) -> 0 | R46: =IF(ISNUMBER('Capital Cont Inputs'!O16),Q46,0) -> 0 | S46: =IF(ISNUMBER('Capital Cont Inputs'!P16),R46,0) -> 0 | T46: =IF(ISNUMBER('Capital Cont Inputs'!Q16),S46,0) -> 0 | U46: =IF(ISNUMBER('Capital Cont Inputs'!R16),T46,0) -> 0 | V46: =IF(ISNUMBER('Capital Cont Inputs'!S16),U46,0) -> 0 | W46: =IF(ISNUMBER('Capital Cont Inputs'!T16),V46,0) -> 0 | X46: =IF(ISNUMBER('Capital Cont Inputs'!U16),W46,0) -> 0 | Y46: =IF(ISNUMBER('Capital Cont Inputs'!V16),X46,0) -> 0 | Z46: =IF(ISNUMBER('Capital Cont Inputs'!W16),Y46,0) -> 0 | AA46: =IF(ISNUMBER('Capital Cont Inputs'!X16),Z46,0) -> 0 | AB46: =IF(ISNUMBER('Capital Cont Inputs'!Y16),AA46,0) -> 0 | AC46: =IF(ISNUMBER('Capital Cont Inputs'!Z16),AB46,0) -> 0 | AD46: =IF(ISNUMBER('Capital Cont Inputs'!AA16),AC46,0) -> 0
C47: % of asset applicable to customer | F47: =IF(ISNUMBER(F33),IF(ISBLANK('Project Inputs'!$G$70),100%,'Project Inputs'!$G$70),0) -> 1 | G47: =IF(ISNUMBER(G33),IF(ISBLANK('Project Inputs'!$G$70),100%,'Project Inputs'!$G$70),0) -> 1 | H47: =IF(ISNUMBER(H33),IF(ISBLANK('Project Inputs'!$G$70),100%,'Project Inputs'!$G$70),0) -> 1 | I47: =IF(ISNUMBER(I33),IF(ISBLANK('Project Inputs'!$G$70),100%,'Project Inputs'!$G$70),0) -> 1 | J47: =IF(ISNUMBER(J33),IF(ISBLANK('Project Inputs'!$G$70),100%,'Project Inputs'!$G$70),0) -> 1 | K47: =IF(ISNUMBER(K33),IF(ISBLANK('Project Inputs'!$G$70),100%,'Project Inputs'!$G$70),0) -> 1 | L47: =IF(ISNUMBER(L33),IF(ISBLANK('Project Inputs'!$G$70),100%,'Project Inputs'!$G$70),0) -> 1 | M47: =IF(ISNUMBER(M33),IF(ISBLANK('Project Inputs'!$G$70),100%,'Project Inputs'!$G$70),0) -> 1 | N47: =IF(ISNUMBER(N33),IF(ISBLANK('Project Inputs'!$G$70),100%,'Project Inputs'!$G$70),0) -> 1 | O47: =IF(ISNUMBER(O33),IF(ISBLANK('Project Inputs'!$G$70),100%,'Project Inputs'!$G$70),0) -> 1 | P47: =IF(ISNUMBER(P33),IF(ISBLANK('Project Inputs'!$G$70),100%,'Project Inputs'!$G$70),0) -> 1 | Q47: =IF(ISNUMBER(Q33),IF(ISBLANK('Project Inputs'!$G$70),100%,'Project Inputs'!$G$70),0) -> 1 | R47: =IF(ISNUMBER(R33),IF(ISBLANK('Project Inputs'!$G$70),100%,'Project Inputs'!$G$70),0) -> 1 | S47: =IF(ISNUMBER(S33),IF(ISBLANK('Project Inputs'!$G$70),100%,'Project Inputs'!$G$70),0) -> 1 | T47: =IF(ISNUMBER(T33),IF(ISBLANK('Project Inputs'!$G$70),100%,'Project Inputs'!$G$70),0) -> 1 | U47: =IF(ISNUMBER(U33),IF(ISBLANK('Project Inputs'!$G$70),100%,'Project Inputs'!$G$70),0) -> 1 | V47: =IF(ISNUMBER(V33),IF(ISBLANK('Project Inputs'!$G$70),100%,'Project Inputs'!$G$70),0) -> 1 | W47: =IF(ISNUMBER(W33),IF(ISBLANK('Project Inputs'!$G$70),100%,'Project Inputs'!$G$70),0) -> 1 | X47: =IF(ISNUMBER(X33),IF(ISBLANK('Project Inputs'!$G$70),100%,'Project Inputs'!$G$70),0) -> 1 | Y47: =IF(ISNUMBER(Y33),IF(ISBLANK('Project Inputs'!$G$70),100%,'Project Inputs'!$G$70),0) -> 1 | Z47: =IF(ISNUMBER(Z33),IF(ISBLANK('Project Inputs'!$G$70),100%,'Project Inputs'!$G$70),0) -> 1 | AA47: =IF(ISNUMBER(AA33),IF(ISBLANK('Project Inputs'!$G$70),100%,'Project Inputs'!$G$70),0) -> 1 | AB47: =IF(ISNUMBER(AB33),IF(ISBLANK('Project Inputs'!$G$70),100%,'Project Inputs'!$G$70),0) -> 1 | AC47: =IF(ISNUMBER(AC33),IF(ISBLANK('Project Inputs'!$G$70),100%,'Project Inputs'!$G$70),0) -> 1 | AD47: =IF(ISNUMBER(AD33),IF(ISBLANK('Project Inputs'!$G$70),100%,'Project Inputs'!$G$70),0) -> 1
C49: Total - $k | F49: =IF(ISNUMBER('Capital Cont Inputs'!C16),F45*F46*F47,0) ->  | G49: =IF(ISNUMBER('Capital Cont Inputs'!D16),G45*G46*G47,0) ->  | H49: =IF(ISNUMBER('Capital Cont Inputs'!E16),H45*H46*H47,0) ->  | I49: =IF(ISNUMBER('Capital Cont Inputs'!F16),I45*I46*I47,0) ->  | J49: =IF(ISNUMBER('Capital Cont Inputs'!G16),J45*J46*J47,0) ->  | K49: =IF(ISNUMBER('Capital Cont Inputs'!H16),K45*K46*K47,0) ->  | L49: =IF(ISNUMBER('Capital Cont Inputs'!I16),L45*L46*L47,0) ->  | M49: =IF(ISNUMBER('Capital Cont Inputs'!J16),M45*M46*M47,0) ->  | N49: =IF(ISNUMBER('Capital Cont Inputs'!K16),N45*N46*N47,0) ->  | O49: =IF(ISNUMBER('Capital Cont Inputs'!L16),O45*O46*O47,0) ->  | P49: =IF(ISNUMBER('Capital Cont Inputs'!M16),P45*P46*P47,0) ->  | Q49: =IF(ISNUMBER('Capital Cont Inputs'!N16),Q45*Q46*Q47,0) ->  | R49: =IF(ISNUMBER('Capital Cont Inputs'!O16),R45*R46*R47,0) ->  | S49: =IF(ISNUMBER('Capital Cont Inputs'!P16),S45*S46*S47,0) ->  | T49: =IF(ISNUMBER('Capital Cont Inputs'!Q16),T45*T46*T47,0) ->  | U49: =IF(ISNUMBER('Capital Cont Inputs'!R16),U45*U46*U47,0) ->  | V49: =IF(ISNUMBER('Capital Cont Inputs'!S16),V45*V46*V47,0) ->  | W49: =IF(ISNUMBER('Capital Cont Inputs'!T16),W45*W46*W47,0) ->  | X49: =IF(ISNUMBER('Capital Cont Inputs'!U16),X45*X46*X47,0) ->  | Y49: =IF(ISNUMBER('Capital Cont Inputs'!V16),Y45*Y46*Y47,0) ->  | Z49: =IF(ISNUMBER('Capital Cont Inputs'!W16),Z45*Z46*Z47,0) ->  | AA49: =IF(ISNUMBER('Capital Cont Inputs'!X16),AA45*AA46*AA47,0) ->  | AB49: =IF(ISNUMBER('Capital Cont Inputs'!Y16),AB45*AB46*AB47,0) ->  | AC49: =IF(ISNUMBER('Capital Cont Inputs'!Z16),AC45*AC46*AC47,0) ->  | AD49: =IF(ISNUMBER('Capital Cont Inputs'!AA16),AD45*AD46*AD47,0) -> 
C51: =CONCATENATE('Project Inputs'!A71," ",'Project Inputs'!B71) -> Asset Type 3: N/A
C52: =VLOOKUP('Project Inputs'!B71,'Standard Inputs'!44:50,MATCH('Standard Inputs'!$B$43,'Standard Inputs'!$A$43:$B$43,0),0) ->  | F52: =IF(ISNUMBER(F33),VLOOKUP('Project Inputs'!$B71,'Standard Inputs'!$44:$50,MATCH(F$33,'Standard Inputs'!$A$43:$AA$43,0),0),0) ->  | G52: =IF(ISNUMBER(G33),VLOOKUP('Project Inputs'!$B71,'Standard Inputs'!$44:$50,MATCH(G$33,'Standard Inputs'!$A$43:$AA$43,0),0),0) ->  | H52: =IF(ISNUMBER(H33),VLOOKUP('Project Inputs'!$B71,'Standard Inputs'!$44:$50,MATCH(H$33,'Standard Inputs'!$A$43:$AA$43,0),0),0) ->  | I52: =IF(ISNUMBER(I33),VLOOKUP('Project Inputs'!$B71,'Standard Inputs'!$44:$50,MATCH(I$33,'Standard Inputs'!$A$43:$AA$43,0),0),0) ->  | J52: =IF(ISNUMBER(J33),VLOOKUP('Project Inputs'!$B71,'Standard Inputs'!$44:$50,MATCH(J$33,'Standard Inputs'!$A$43:$AA$43,0),0),0) ->  | K52: =IF(ISNUMBER(K33),VLOOKUP('Project Inputs'!$B71,'Standard Inputs'!$44:$50,MATCH(K$33,'Standard Inputs'!$A$43:$AA$43,0),0),0) ->  | L52: =IF(ISNUMBER(L33),VLOOKUP('Project Inputs'!$B71,'Standard Inputs'!$44:$50,MATCH(L$33,'Standard Inputs'!$A$43:$AA$43,0),0),0) ->  | M52: =IF(ISNUMBER(M33),VLOOKUP('Project Inputs'!$B71,'Standard Inputs'!$44:$50,MATCH(M$33,'Standard Inputs'!$A$43:$AA$43,0),0),0) ->  | N52: =IF(ISNUMBER(N33),VLOOKUP('Project Inputs'!$B71,'Standard Inputs'!$44:$50,MATCH(N$33,'Standard Inputs'!$A$43:$AA$43,0),0),0) ->  | O52: =IF(ISNUMBER(O33),VLOOKUP('Project Inputs'!$B71,'Standard Inputs'!$44:$50,MATCH(O$33,'Standard Inputs'!$A$43:$AA$43,0),0),0) ->  | P52: =IF(ISNUMBER(P33),VLOOKUP('Project Inputs'!$B71,'Standard Inputs'!$44:$50,MATCH(P$33,'Standard Inputs'!$A$43:$AA$43,0),0),0) ->  | Q52: =IF(ISNUMBER(Q33),VLOOKUP('Project Inputs'!$B71,'Standard Inputs'!$44:$50,MATCH(Q$33,'Standard Inputs'!$A$43:$AA$43,0),0),0) ->  | R52: =IF(ISNUMBER(R33),VLOOKUP('Project Inputs'!$B71,'Standard Inputs'!$44:$50,MATCH(R$33,'Standard Inputs'!$A$43:$AA$43,0),0),0) ->  | S52: =IF(ISNUMBER(S33),VLOOKUP('Project Inputs'!$B71,'Standard Inputs'!$44:$50,MATCH(S$33,'Standard Inputs'!$A$43:$AA$43,0),0),0) ->  | T52: =IF(ISNUMBER(T33),VLOOKUP('Project Inputs'!$B71,'Standard Inputs'!$44:$50,MATCH(T$33,'Standard Inputs'!$A$43:$AA$43,0),0),0) ->  | U52: =IF(ISNUMBER(U33),VLOOKUP('Project Inputs'!$B71,'Standard Inputs'!$44:$50,MATCH(U$33,'Standard Inputs'!$A$43:$AA$43,0),0),0) ->  | V52: =IF(ISNUMBER(V33),VLOOKUP('Project Inputs'!$B71,'Standard Inputs'!$44:$50,MATCH(V$33,'Standard Inputs'!$A$43:$AA$43,0),0),0) ->  | W52: =IF(ISNUMBER(W33),VLOOKUP('Project Inputs'!$B71,'Standard Inputs'!$44:$50,MATCH(W$33,'Standard Inputs'!$A$43:$AA$43,0),0),0) ->  | X52: =IF(ISNUMBER(X33),VLOOKUP('Project Inputs'!$B71,'Standard Inputs'!$44:$50,MATCH(X$33,'Standard Inputs'!$A$43:$AA$43,0),0),0) ->  | Y52: =IF(ISNUMBER(Y33),VLOOKUP('Project Inputs'!$B71,'Standard Inputs'!$44:$50,MATCH(Y$33,'Standard Inputs'!$A$43:$AA$43,0),0),0) ->  | Z52: =IF(ISNUMBER(Z33),VLOOKUP('Project Inputs'!$B71,'Standard Inputs'!$44:$50,MATCH(Z$33,'Standard Inputs'!$A$43:$AA$43,0),0),0) ->  | AA52: =IF(ISNUMBER(AA33),VLOOKUP('Project Inputs'!$B71,'Standard Inputs'!$44:$50,MATCH(AA$33,'Standard Inputs'!$A$43:$AA$43,0),0),0) ->  | AB52: =IF(ISNUMBER(AB33),VLOOKUP('Project Inputs'!$B71,'Standard Inputs'!$44:$50,MATCH(AB$33,'Standard Inputs'!$A$43:$AA$43,0),0),0) ->  | AC52: =IF(ISNUMBER(AC33),VLOOKUP('Project Inputs'!$B71,'Standard Inputs'!$44:$50,MATCH(AC$33,'Standard Inputs'!$A$43:$AA$43,0),0),0) ->  | AD52: =IF(ISNUMBER(AD33),VLOOKUP('Project Inputs'!$B71,'Standard Inputs'!$44:$50,MATCH(AD$33,'Standard Inputs'!$A$43:$AA$43,0),0),0) -> 
C53: =IF(C52='Standard Inputs'!B46,"Total Up-front Capital before Capital Contribution",IF(C52='Standard Inputs'!B44,"KM of Line",IF(C52='Standard Inputs'!B48,"Number of stations","N/A"))) ->  | F53: =IF(OR('Project Inputs'!$B71="Line - Overhead",'Project Inputs'!$B71="Line - Underground"),'Project Inputs'!$J71,IF(OR('Project Inputs'!$B71="Network - SS",'Project Inputs'!$B71="Network - TS"),'Project Inputs'!D76,IF(OR('Project Inputs'!$B71="Station - DESN",'Project Inputs'!$B71="Station - single"),1,0))) -> 0 | G53: =IF(ISNUMBER('Capital Cont Inputs'!D16),F53,0) -> 0 | H53: =IF(ISNUMBER('Capital Cont Inputs'!E16),G53,0) -> 0 | I53: =IF(ISNUMBER('Capital Cont Inputs'!F16),H53,0) -> 0 | J53: =IF(ISNUMBER('Capital Cont Inputs'!G16),I53,0) -> 0 | K53: =IF(ISNUMBER('Capital Cont Inputs'!H16),J53,0) -> 0 | L53: =IF(ISNUMBER('Capital Cont Inputs'!I16),K53,0) -> 0 | M53: =IF(ISNUMBER('Capital Cont Inputs'!J16),L53,0) -> 0 | N53: =IF(ISNUMBER('Capital Cont Inputs'!K16),M53,0) -> 0 | O53: =IF(ISNUMBER('Capital Cont Inputs'!L16),N53,0) -> 0 | P53: =IF(ISNUMBER('Capital Cont Inputs'!M16),O53,0) -> 0 | Q53: =IF(ISNUMBER('Capital Cont Inputs'!N16),P53,0) -> 0 | R53: =IF(ISNUMBER('Capital Cont Inputs'!O16),Q53,0) -> 0 | S53: =IF(ISNUMBER('Capital Cont Inputs'!P16),R53,0) -> 0 | T53: =IF(ISNUMBER('Capital Cont Inputs'!Q16),S53,0) -> 0 | U53: =IF(ISNUMBER('Capital Cont Inputs'!R16),T53,0) -> 0 | V53: =IF(ISNUMBER('Capital Cont Inputs'!S16),U53,0) -> 0 | W53: =IF(ISNUMBER('Capital Cont Inputs'!T16),V53,0) -> 0 | X53: =IF(ISNUMBER('Capital Cont Inputs'!U16),W53,0) -> 0 | Y53: =IF(ISNUMBER('Capital Cont Inputs'!V16),X53,0) -> 0 | Z53: =IF(ISNUMBER('Capital Cont Inputs'!W16),Y53,0) -> 0 | AA53: =IF(ISNUMBER('Capital Cont Inputs'!X16),Z53,0) -> 0 | AB53: =IF(ISNUMBER('Capital Cont Inputs'!Y16),AA53,0) -> 0 | AC53: =IF(ISNUMBER('Capital Cont Inputs'!Z16),AB53,0) -> 0 | AD53: =IF(ISNUMBER('Capital Cont Inputs'!AA16),AC53,0) -> 0
C54: % of asset applicable to customer | F54: =IF(ISNUMBER(F33),IF(ISBLANK('Project Inputs'!$G$71),100%,'Project Inputs'!$G$71),0) -> 1 | G54: =IF(ISNUMBER(G33),IF(ISBLANK('Project Inputs'!$G$71),100%,'Project Inputs'!$G$71),0) -> 1 | H54: =IF(ISNUMBER(H33),IF(ISBLANK('Project Inputs'!$G$71),100%,'Project Inputs'!$G$71),0) -> 1 | I54: =IF(ISNUMBER(I33),IF(ISBLANK('Project Inputs'!$G$71),100%,'Project Inputs'!$G$71),0) -> 1 | J54: =IF(ISNUMBER(J33),IF(ISBLANK('Project Inputs'!$G$71),100%,'Project Inputs'!$G$71),0) -> 1 | K54: =IF(ISNUMBER(K33),IF(ISBLANK('Project Inputs'!$G$71),100%,'Project Inputs'!$G$71),0) -> 1 | L54: =IF(ISNUMBER(L33),IF(ISBLANK('Project Inputs'!$G$71),100%,'Project Inputs'!$G$71),0) -> 1 | M54: =IF(ISNUMBER(M33),IF(ISBLANK('Project Inputs'!$G$71),100%,'Project Inputs'!$G$71),0) -> 1 | N54: =IF(ISNUMBER(N33),IF(ISBLANK('Project Inputs'!$G$71),100%,'Project Inputs'!$G$71),0) -> 1 | O54: =IF(ISNUMBER(O33),IF(ISBLANK('Project Inputs'!$G$71),100%,'Project Inputs'!$G$71),0) -> 1 | P54: =IF(ISNUMBER(P33),IF(ISBLANK('Project Inputs'!$G$71),100%,'Project Inputs'!$G$71),0) -> 1 | Q54: =IF(ISNUMBER(Q33),IF(ISBLANK('Project Inputs'!$G$71),100%,'Project Inputs'!$G$71),0) -> 1 | R54: =IF(ISNUMBER(R33),IF(ISBLANK('Project Inputs'!$G$71),100%,'Project Inputs'!$G$71),0) -> 1 | S54: =IF(ISNUMBER(S33),IF(ISBLANK('Project Inputs'!$G$71),100%,'Project Inputs'!$G$71),0) -> 1 | T54: =IF(ISNUMBER(T33),IF(ISBLANK('Project Inputs'!$G$71),100%,'Project Inputs'!$G$71),0) -> 1 | U54: =IF(ISNUMBER(U33),IF(ISBLANK('Project Inputs'!$G$71),100%,'Project Inputs'!$G$71),0) -> 1 | V54: =IF(ISNUMBER(V33),IF(ISBLANK('Project Inputs'!$G$71),100%,'Project Inputs'!$G$71),0) -> 1 | W54: =IF(ISNUMBER(W33),IF(ISBLANK('Project Inputs'!$G$71),100%,'Project Inputs'!$G$71),0) -> 1 | X54: =IF(ISNUMBER(X33),IF(ISBLANK('Project Inputs'!$G$71),100%,'Project Inputs'!$G$71),0) -> 1 | Y54: =IF(ISNUMBER(Y33),IF(ISBLANK('Project Inputs'!$G$71),100%,'Project Inputs'!$G$71),0) -> 1 | Z54: =IF(ISNUMBER(Z33),IF(ISBLANK('Project Inputs'!$G$71),100%,'Project Inputs'!$G$71),0) -> 1 | AA54: =IF(ISNUMBER(AA33),IF(ISBLANK('Project Inputs'!$G$71),100%,'Project Inputs'!$G$71),0) -> 1 | AB54: =IF(ISNUMBER(AB33),IF(ISBLANK('Project Inputs'!$G$71),100%,'Project Inputs'!$G$71),0) -> 1 | AC54: =IF(ISNUMBER(AC33),IF(ISBLANK('Project Inputs'!$G$71),100%,'Project Inputs'!$G$71),0) -> 1 | AD54: =IF(ISNUMBER(AD33),IF(ISBLANK('Project Inputs'!$G$71),100%,'Project Inputs'!$G$71),0) -> 1
C56: Total - $k | F56: =IF(ISNUMBER('Capital Cont Inputs'!C16),F52*F53*F54,0) ->  | G56: =IF(ISNUMBER('Capital Cont Inputs'!D16),G52*G53*G54,0) ->  | H56: =IF(ISNUMBER('Capital Cont Inputs'!E16),H52*H53*H54,0) ->  | I56: =IF(ISNUMBER('Capital Cont Inputs'!F16),I52*I53*I54,0) ->  | J56: =IF(ISNUMBER('Capital Cont Inputs'!G16),J52*J53*J54,0) ->  | K56: =IF(ISNUMBER('Capital Cont Inputs'!H16),K52*K53*K54,0) ->  | L56: =IF(ISNUMBER('Capital Cont Inputs'!I16),L52*L53*L54,0) ->  | M56: =IF(ISNUMBER('Capital Cont Inputs'!J16),M52*M53*M54,0) ->  | N56: =IF(ISNUMBER('Capital Cont Inputs'!K16),N52*N53*N54,0) ->  | O56: =IF(ISNUMBER('Capital Cont Inputs'!L16),O52*O53*O54,0) ->  | P56: =IF(ISNUMBER('Capital Cont Inputs'!M16),P52*P53*P54,0) ->  | Q56: =IF(ISNUMBER('Capital Cont Inputs'!N16),Q52*Q53*Q54,0) ->  | R56: =IF(ISNUMBER('Capital Cont Inputs'!O16),R52*R53*R54,0) ->  | S56: =IF(ISNUMBER('Capital Cont Inputs'!P16),S52*S53*S54,0) ->  | T56: =IF(ISNUMBER('Capital Cont Inputs'!Q16),T52*T53*T54,0) ->  | U56: =IF(ISNUMBER('Capital Cont Inputs'!R16),U52*U53*U54,0) ->  | V56: =IF(ISNUMBER('Capital Cont Inputs'!S16),V52*V53*V54,0) ->  | W56: =IF(ISNUMBER('Capital Cont Inputs'!T16),W52*W53*W54,0) ->  | X56: =IF(ISNUMBER('Capital Cont Inputs'!U16),X52*X53*X54,0) ->  | Y56: =IF(ISNUMBER('Capital Cont Inputs'!V16),Y52*Y53*Y54,0) ->  | Z56: =IF(ISNUMBER('Capital Cont Inputs'!W16),Z52*Z53*Z54,0) ->  | AA56: =IF(ISNUMBER('Capital Cont Inputs'!X16),AA52*AA53*AA54,0) ->  | AB56: =IF(ISNUMBER('Capital Cont Inputs'!Y16),AB52*AB53*AB54,0) ->  | AC56: =IF(ISNUMBER('Capital Cont Inputs'!Z16),AC52*AC53*AC54,0) ->  | AD56: =IF(ISNUMBER('Capital Cont Inputs'!AA16),AD52*AD53*AD54,0) -> 
C58: Total Standard OM&A - $k | F58: =F56+F49+F42 ->  | G58: =G56+G49+G42 -> 
C61: Total Alternate OM&A - $k | F61: =IF(ISNUMBER(F34),'Project Inputs'!C83,) -> 1500 | G61: =IF(ISNUMBER(G34),'Project Inputs'!D83,) -> 1500 | H61: =IF(ISNUMBER(H34),'Project Inputs'!E83,) -> 1500 | I61: =IF(ISNUMBER(I34),'Project Inputs'!F83,) -> 1500 | J61: =IF(ISNUMBER(J34),'Project Inputs'!G83,) -> 1500 | K61: =IF(ISNUMBER(K34),'Project Inputs'!H83,) -> 1500 | L61: =IF(ISNUMBER(L34),'Project Inputs'!I83,) -> 1500 | M61: =IF(ISNUMBER(M34),'Project Inputs'!J83,) -> 1500 | N61: =IF(ISNUMBER(N34),'Project Inputs'!K83,) -> 1500 | O61: =IF(ISNUMBER(O34),'Project Inputs'!L83,) -> 1500 | P61: =IF(ISNUMBER(P34),'Project Inputs'!M83,) -> 1500 | Q61: =IF(ISNUMBER(Q34),'Project Inputs'!N83,) -> 1500 | R61: =IF(ISNUMBER(R34),'Project Inputs'!O83,) -> 1500 | S61: =IF(ISNUMBER(S34),'Project Inputs'!P83,) -> 1500 | T61: =IF(ISNUMBER(T34),'Project Inputs'!Q83,) -> 1500 | U61: =IF(ISNUMBER(U34),'Project Inputs'!R83,) -> 1500 | V61: =IF(ISNUMBER(V34),'Project Inputs'!S83,) -> 1500 | W61: =IF(ISNUMBER(W34),'Project Inputs'!T83,) -> 1500 | X61: =IF(ISNUMBER(X34),'Project Inputs'!U83,) -> 1500 | Y61: =IF(ISNUMBER(Y34),'Project Inputs'!V83,) -> 1500 | Z61: =IF(ISNUMBER(Z34),'Project Inputs'!W83,) -> 1500 | AA61: =IF(ISNUMBER(AA34),'Project Inputs'!X83,) -> 1500 | AB61: =IF(ISNUMBER(AB34),'Project Inputs'!Y83,) -> 1500 | AC61: =IF(ISNUMBER(AC34),'Project Inputs'!Z83,) -> 1500 | AD61: =IF(ISNUMBER(AD34),'Project Inputs'!AA83,) -> 1500
C63: Apply Standard or Alternate OM&A? | D63: =IF('Project Inputs'!B80="No","Alternate","Standard") -> Alternate
C65: Total incremental OM&A - $k | F65: =IF(ISNUMBER('Capital Cont Inputs'!C16),IF($D$63="Alternate",F61,F58),0) -> 1500 | G65: =IF(ISNUMBER('Capital Cont Inputs'!D16),IF($D$63="Alternate",G61,G58),0) -> 1500 | H65: =IF(ISNUMBER('Capital Cont Inputs'!E16),IF($D$63="Alternate",H61,H58),0) -> 1500 | I65: =IF(ISNUMBER('Capital Cont Inputs'!F16),IF($D$63="Alternate",I61,I58),0) -> 1500 | J65: =IF(ISNUMBER('Capital Cont Inputs'!G16),IF($D$63="Alternate",J61,J58),0) -> 1500 | K65: =IF(ISNUMBER('Capital Cont Inputs'!H16),IF($D$63="Alternate",K61,K58),0) -> 1500 | L65: =IF(ISNUMBER('Capital Cont Inputs'!I16),IF($D$63="Alternate",L61,L58),0) -> 1500 | M65: =IF(ISNUMBER('Capital Cont Inputs'!J16),IF($D$63="Alternate",M61,M58),0) -> 1500 | N65: =IF(ISNUMBER('Capital Cont Inputs'!K16),IF($D$63="Alternate",N61,N58),0) -> 1500 | O65: =IF(ISNUMBER('Capital Cont Inputs'!L16),IF($D$63="Alternate",O61,O58),0) -> 1500 | P65: =IF(ISNUMBER('Capital Cont Inputs'!M16),IF($D$63="Alternate",P61,P58),0) -> 1500 | Q65: =IF(ISNUMBER('Capital Cont Inputs'!N16),IF($D$63="Alternate",Q61,Q58),0) -> 1500 | R65: =IF(ISNUMBER('Capital Cont Inputs'!O16),IF($D$63="Alternate",R61,R58),0) -> 1500 | S65: =IF(ISNUMBER('Capital Cont Inputs'!P16),IF($D$63="Alternate",S61,S58),0) -> 1500 | T65: =IF(ISNUMBER('Capital Cont Inputs'!Q16),IF($D$63="Alternate",T61,T58),0) -> 1500 | U65: =IF(ISNUMBER('Capital Cont Inputs'!R16),IF($D$63="Alternate",U61,U58),0) -> 1500 | V65: =IF(ISNUMBER('Capital Cont Inputs'!S16),IF($D$63="Alternate",V61,V58),0) -> 1500 | W65: =IF(ISNUMBER('Capital Cont Inputs'!T16),IF($D$63="Alternate",W61,W58),0) -> 1500 | X65: =IF(ISNUMBER('Capital Cont Inputs'!U16),IF($D$63="Alternate",X61,X58),0) -> 1500 | Y65: =IF(ISNUMBER('Capital Cont Inputs'!V16),IF($D$63="Alternate",Y61,Y58),0) -> 1500 | Z65: =IF(ISNUMBER('Capital Cont Inputs'!W16),IF($D$63="Alternate",Z61,Z58),0) -> 1500 | AA65: =IF(ISNUMBER('Capital Cont Inputs'!X16),IF($D$63="Alternate",AA61,AA58),0) -> 1500 | AB65: =IF(ISNUMBER('Capital Cont Inputs'!Y16),IF($D$63="Alternate",AB61,AB58),0) -> 1500 | AC65: =IF(ISNUMBER('Capital Cont Inputs'!Z16),IF($D$63="Alternate",AC61,AC58),0) -> 1500 | AD65: =IF(ISNUMBER('Capital Cont Inputs'!AA16),IF($D$63="Alternate",AD61,AD58),0) -> 1500
C69: Calculation of Municipal Tax
C70: =C33 -> Project Year: | F70: ='Capital Cont Inputs'!C16 -> 1 | G70: ='Capital Cont Inputs'!D16 -> 2 | H70: ='Capital Cont Inputs'!E16 -> 3 | I70: ='Capital Cont Inputs'!F16 -> 4 | J70: ='Capital Cont Inputs'!G16 -> 5 | K70: ='Capital Cont Inputs'!H16 -> 6 | L70: ='Capital Cont Inputs'!I16 -> 7 | M70: ='Capital Cont Inputs'!J16 -> 8 | N70: ='Capital Cont Inputs'!K16 -> 9 | O70: ='Capital Cont Inputs'!L16 -> 10 | P70: ='Capital Cont Inputs'!M16 -> 11 | Q70: ='Capital Cont Inputs'!N16 -> 12 | R70: ='Capital Cont Inputs'!O16 -> 13 | S70: ='Capital Cont Inputs'!P16 -> 14 | T70: ='Capital Cont Inputs'!Q16 -> 15 | U70: ='Capital Cont Inputs'!R16 -> 16 | V70: ='Capital Cont Inputs'!S16 -> 17 | W70: ='Capital Cont Inputs'!T16 -> 18 | X70: ='Capital Cont Inputs'!U16 -> 19 | Y70: ='Capital Cont Inputs'!V16 -> 20 | Z70: ='Capital Cont Inputs'!W16 -> 21 | AA70: ='Capital Cont Inputs'!X16 -> 22 | AB70: ='Capital Cont Inputs'!Y16 -> 23 | AC70: ='Capital Cont Inputs'!Z16 -> 24 | AD70: ='Capital Cont Inputs'!AA16 -> 25
C71: =C34 -> Year Ended: | F71: ='Capital Cont Inputs'!C15 -> 2022 | G71: ='Capital Cont Inputs'!D15 -> 2023 | H71: ='Capital Cont Inputs'!E15 -> 2024 | I71: ='Capital Cont Inputs'!F15 -> 2025 | J71: ='Capital Cont Inputs'!G15 -> 2026 | K71: ='Capital Cont Inputs'!H15 -> 2027 | L71: ='Capital Cont Inputs'!I15 -> 2028 | M71: ='Capital Cont Inputs'!J15 -> 2029 | N71: ='Capital Cont Inputs'!K15 -> 2030 | O71: ='Capital Cont Inputs'!L15 -> 2031 | P71: ='Capital Cont Inputs'!M15 -> 2032 | Q71: ='Capital Cont Inputs'!N15 -> 2033 | R71: ='Capital Cont Inputs'!O15 -> 2034 | S71: ='Capital Cont Inputs'!P15 -> 2035 | T71: ='Capital Cont Inputs'!Q15 -> 2036 | U71: ='Capital Cont Inputs'!R15 -> 2037 | V71: ='Capital Cont Inputs'!S15 -> 2038 | W71: ='Capital Cont Inputs'!T15 -> 2039 | X71: ='Capital Cont Inputs'!U15 -> 2040 | Y71: ='Capital Cont Inputs'!V15 -> 2041 | Z71: ='Capital Cont Inputs'!W15 -> 2042 | AA71: ='Capital Cont Inputs'!X15 -> 2043 | AB71: ='Capital Cont Inputs'!Y15 -> 2044 | AC71: ='Capital Cont Inputs'!Z15 -> 2045 | AD71: ='Capital Cont Inputs'!AA15 -> 2046
C73: ="Up-front capital - $k" -> Up-front capital - $k | F73: =E24 -> 641967.0675 | G73: =IF(ISNUMBER(G$70),F73,0) -> 641967.0675 | H73: =IF(ISNUMBER(H$70),G73,0) -> 641967.0675 | I73: 641967.0675 | J73: 641967.0675 | K73: 641967.0675 | L73: 641967.0675 | M73: 641967.0675 | N73: 641967.0675 | O73: 641967.0675 | P73: 641967.0675 | Q73: 641967.0675 | R73: 641967.0675 | S73: 641967.0675 | T73: 641967.0675 | U73: 641967.0675 | V73: 641967.0675 | W73: 641967.0675 | X73: 641967.0675 | Y73: 641967.0675 | Z73: 641967.0675 | AA73: 641967.0675 | AB73: 641967.0675 | AC73: 641967.0675 | AD73: 641967.0675
C75: Municipal tax rate | F75: ='Standard Inputs'!B30 -> 0.003778092389 | G75: =IF(ISNUMBER(G$70),F75,0) -> 0.003778092389 | H75: =IF(ISNUMBER(H$70),G75,0) -> 0.003778092389 | I75: 0.003778092389 | J75: 0.003778092389 | K75: 0.003778092389 | L75: 0.003778092389 | M75: 0.003778092389 | N75: 0.003778092389 | O75: 0.003778092389 | P75: 0.003778092389 | Q75: 0.003778092389 | R75: 0.003778092389 | S75: 0.003778092389 | T75: 0.003778092389 | U75: 0.003778092389 | V75: 0.003778092389 | W75: 0.003778092389 | X75: 0.003778092389 | Y75: 0.003778092389 | Z75: 0.003778092389 | AA75: 0.003778092389 | AB75: 0.003778092389 | AC75: 0.003778092389 | AD75: 0.003778092389
C77: Municipal tax - $k | F77: =IF(ISNUMBER(F70),F73*F75,0) -> 2425.410891 | G77: 2425.410891 | H77: 2425.410891 | I77: 2425.410891 | J77: 2425.410891 | K77: 2425.410891 | L77: 2425.410891 | M77: 2425.410891 | N77: 2425.410891 | O77: 2425.410891 | P77: 2425.410891 | Q77: 2425.410891 | R77: 2425.410891 | S77: 2425.410891 | T77: 2425.410891 | U77: 2425.410891 | V77: 2425.410891 | W77: 2425.410891 | X77: 2425.410891 | Y77: 2425.410891 | Z77: 2425.410891 | AA77: 2425.410891 | AB77: 2425.410891 | AC77: 2425.410891 | AD77: 2425.410891
C81: Calculation of Working Capital
C82: =C70 -> Project Year: | F82: ='Capital Cont Inputs'!C16 -> 1 | G82: ='Capital Cont Inputs'!D16 -> 2 | H82: ='Capital Cont Inputs'!E16 -> 3 | I82: ='Capital Cont Inputs'!F16 -> 4 | J82: ='Capital Cont Inputs'!G16 -> 5 | K82: ='Capital Cont Inputs'!H16 -> 6 | L82: ='Capital Cont Inputs'!I16 -> 7 | M82: ='Capital Cont Inputs'!J16 -> 8 | N82: ='Capital Cont Inputs'!K16 -> 9 | O82: ='Capital Cont Inputs'!L16 -> 10 | P82: ='Capital Cont Inputs'!M16 -> 11 | Q82: ='Capital Cont Inputs'!N16 -> 12 | R82: ='Capital Cont Inputs'!O16 -> 13 | S82: ='Capital Cont Inputs'!P16 -> 14 | T82: ='Capital Cont Inputs'!Q16 -> 15 | U82: ='Capital Cont Inputs'!R16 -> 16 | V82: ='Capital Cont Inputs'!S16 -> 17 | W82: ='Capital Cont Inputs'!T16 -> 18 | X82: ='Capital Cont Inputs'!U16 -> 19 | Y82: ='Capital Cont Inputs'!V16 -> 20 | Z82: ='Capital Cont Inputs'!W16 -> 21 | AA82: ='Capital Cont Inputs'!X16 -> 22 | AB82: ='Capital Cont Inputs'!Y16 -> 23 | AC82: ='Capital Cont Inputs'!Z16 -> 24 | AD82: ='Capital Cont Inputs'!AA16 -> 25
C83: =C71 -> Year Ended: | F83: ='Capital Cont Inputs'!C15 -> 2022 | G83: ='Capital Cont Inputs'!D15 -> 2023 | H83: ='Capital Cont Inputs'!E15 -> 2024 | I83: ='Capital Cont Inputs'!F15 -> 2025 | J83: ='Capital Cont Inputs'!G15 -> 2026 | K83: ='Capital Cont Inputs'!H15 -> 2027 | L83: ='Capital Cont Inputs'!I15 -> 2028 | M83: ='Capital Cont Inputs'!J15 -> 2029 | N83: ='Capital Cont Inputs'!K15 -> 2030 | O83: ='Capital Cont Inputs'!L15 -> 2031 | P83: ='Capital Cont Inputs'!M15 -> 2032 | Q83: ='Capital Cont Inputs'!N15 -> 2033 | R83: ='Capital Cont Inputs'!O15 -> 2034 | S83: ='Capital Cont Inputs'!P15 -> 2035 | T83: ='Capital Cont Inputs'!Q15 -> 2036 | U83: ='Capital Cont Inputs'!R15 -> 2037 | V83: ='Capital Cont Inputs'!S15 -> 2038 | W83: ='Capital Cont Inputs'!T15 -> 2039 | X83: ='Capital Cont Inputs'!U15 -> 2040 | Y83: ='Capital Cont Inputs'!V15 -> 2041 | Z83: ='Capital Cont Inputs'!W15 -> 2042 | AA83: ='Capital Cont Inputs'!X15 -> 2043 | AB83: ='Capital Cont Inputs'!Y15 -> 2044 | AC83: ='Capital Cont Inputs'!Z15 -> 2045 | AD83: ='Capital Cont Inputs'!AA15 -> 2046
C85: Annual OM&A cost - $k | F85: =F65 -> 1500 | G85: 1500 | H85: 1500 | I85: 1500 | J85: 1500 | K85: 1500 | L85: 1500 | M85: 1500 | N85: 1500 | O85: 1500 | P85: 1500 | Q85: 1500 | R85: 1500 | S85: 1500 | T85: 1500 | U85: 1500 | V85: 1500 | W85: 1500 | X85: 1500 | Y85: 1500 | Z85: 1500 | AA85: 1500 | AB85: 1500 | AC85: 1500 | AD85: 1500
C86: Incremental OM&A cost compared with prior year - $k | F86: =F85 -> 1500 | G86: =G85-F85 -> 0 | H86: 0 | I86: 0 | J86: 0 | K86: 0 | L86: 0 | M86: 0 | N86: 0 | O86: 0 | P86: 0 | Q86: 0 | R86: 0 | S86: 0 | T86: 0 | U86: 0 | V86: 0 | W86: 0 | X86: 0 | Y86: 0 | Z86: 0 | AA86: 0 | AB86: 0 | AC86: 0 | AD86: 0
C88: Net Lag / 365 | F88: ='Standard Inputs'!$B$60 -> 0.024 | G88: =IF(ISNUMBER(F82),'Standard Inputs'!$B$60,0) -> 0.024 | H88: =IF(ISNUMBER(G82),'Standard Inputs'!$B$60,0) -> 0.024 | I88: =IF(ISNUMBER(H82),'Standard Inputs'!$B$60,0) -> 0.024 | J88: =IF(ISNUMBER(I82),'Standard Inputs'!$B$60,0) -> 0.024 | K88: =IF(ISNUMBER(J82),'Standard Inputs'!$B$60,0) -> 0.024 | L88: =IF(ISNUMBER(K82),'Standard Inputs'!$B$60,0) -> 0.024 | M88: =IF(ISNUMBER(L82),'Standard Inputs'!$B$60,0) -> 0.024 | N88: =IF(ISNUMBER(M82),'Standard Inputs'!$B$60,0) -> 0.024 | O88: =IF(ISNUMBER(N82),'Standard Inputs'!$B$60,0) -> 0.024 | P88: =IF(ISNUMBER(O82),'Standard Inputs'!$B$60,0) -> 0.024 | Q88: =IF(ISNUMBER(P82),'Standard Inputs'!$B$60,0) -> 0.024 | R88: =IF(ISNUMBER(Q82),'Standard Inputs'!$B$60,0) -> 0.024 | S88: =IF(ISNUMBER(R82),'Standard Inputs'!$B$60,0) -> 0.024 | T88: =IF(ISNUMBER(S82),'Standard Inputs'!$B$60,0) -> 0.024 | U88: =IF(ISNUMBER(T82),'Standard Inputs'!$B$60,0) -> 0.024 | V88: =IF(ISNUMBER(U82),'Standard Inputs'!$B$60,0) -> 0.024 | W88: =IF(ISNUMBER(V82),'Standard Inputs'!$B$60,0) -> 0.024 | X88: =IF(ISNUMBER(W82),'Standard Inputs'!$B$60,0) -> 0.024 | Y88: =IF(ISNUMBER(X82),'Standard Inputs'!$B$60,0) -> 0.024 | Z88: =IF(ISNUMBER(Y82),'Standard Inputs'!$B$60,0) -> 0.024 | AA88: =IF(ISNUMBER(Z82),'Standard Inputs'!$B$60,0) -> 0.024 | AB88: =IF(ISNUMBER(AA82),'Standard Inputs'!$B$60,0) -> 0.024 | AC88: =IF(ISNUMBER(AB82),'Standard Inputs'!$B$60,0) -> 0.024 | AD88: =IF(ISNUMBER(AC82),'Standard Inputs'!$B$60,0) -> 0.024
C90: Annual working cash impact - $k | F90: =F86*F88 -> 36 | G90: =G86*G88 -> 0 | H90: 0 | I90: 0 | J90: 0 | K90: 0 | L90: 0 | M90: 0 | N90: 0 | O90: 0 | P90: 0 | Q90: 0 | R90: 0 | S90: 0 | T90: 0 | U90: 0 | V90: 0 | W90: 0 | X90: 0 | Y90: 0 | Z90: 0 | AA90: 0 | AB90: 0 | AC90: 0 | AD90: 0
C92: Cumulative working cash impact - $k | F92: =IF(ISNUMBER(F82),F90+D92,0) -> 36 | G92: =IF(ISNUMBER(G82),G90+F92,0) -> 36 | H92: 36 | I92: 36 | J92: 36 | K92: 36 | L92: 36 | M92: 36 | N92: 36 | O92: 36 | P92: 36 | Q92: 36 | R92: 36 | S92: 36 | T92: 36 | U92: 36 | V92: 36 | W92: 36 | X92: 36 | Y92: 36 | Z92: 36 | AA92: 36 | AB92: 36 | AC92: 36 | AD92: 36
C94: Reversal of cumulative working cash impact - $k | F94: =IF(ISNUMBER(G82),0,-F92) -> 0 | G94: 0 | H94: 0 | I94: 0 | J94: 0 | K94: 0 | L94: 0 | M94: 0 | N94: 0 | O94: 0 | P94: 0 | Q94: 0 | R94: 0 | S94: 0 | T94: 0 | U94: 0 | V94: 0 | W94: 0 | X94: 0 | Y94: 0 | Z94: 0 | AA94: 0 | AB94: 0 | AC94: 0 | AD94: =IF(ISNUMBER(#REF!),0,-AD92) -> -36
C96: Net annual working cash impact - $k | F96: =IF(ISNUMBER(F83),F90+F94,0) -> 36 | G96: 0 | H96: 0 | I96: 0 | J96: 0 | K96: 0 | L96: 0 | M96: 0 | N96: 0 | O96: 0 | P96: 0 | Q96: 0 | R96: 0 | S96: 0 | T96: 0 | U96: 0 | V96: 0 | W96: 0 | X96: 0 | Y96: 0 | Z96: 0 | AA96: 0 | AB96: 0 | AC96: 0 | AD96: -36
C100: Summary of Load Forecast
C103: Calendar Year Load Forecast Summary | E103: ='Capital Cont Inputs'!B15 -> 2021 | F103: ='Capital Cont Inputs'!C15 -> 2022 | G103: ='Capital Cont Inputs'!D15 -> 2023 | H103: ='Capital Cont Inputs'!E15 -> 2024 | I103: ='Capital Cont Inputs'!F15 -> 2025 | J103: ='Capital Cont Inputs'!G15 -> 2026 | K103: ='Capital Cont Inputs'!H15 -> 2027 | L103: ='Capital Cont Inputs'!I15 -> 2028 | M103: ='Capital Cont Inputs'!J15 -> 2029 | N103: ='Capital Cont Inputs'!K15 -> 2030 | O103: ='Capital Cont Inputs'!L15 -> 2031 | P103: ='Capital Cont Inputs'!M15 -> 2032 | Q103: ='Capital Cont Inputs'!N15 -> 2033 | R103: ='Capital Cont Inputs'!O15 -> 2034 | S103: ='Capital Cont Inputs'!P15 -> 2035 | T103: ='Capital Cont Inputs'!Q15 -> 2036 | U103: ='Capital Cont Inputs'!R15 -> 2037 | V103: ='Capital Cont Inputs'!S15 -> 2038 | W103: ='Capital Cont Inputs'!T15 -> 2039 | X103: ='Capital Cont Inputs'!U15 -> 2040 | Y103: ='Capital Cont Inputs'!V15 -> 2041 | Z103: ='Capital Cont Inputs'!W15 -> 2042 | AA103: ='Capital Cont Inputs'!X15 -> 2043 | AB103: ='Capital Cont Inputs'!Y15 -> 2044 | AC103: ='Capital Cont Inputs'!Z15 -> 2045 | AD103: ='Capital Cont Inputs'!AA15 -> 2046
C104: Load (MW / month) | E104: =IF(ISNUMBER(E103),IF('Project Inputs'!$B$88="Calendar Year",'Project Inputs'!B94,"N/A"),0) -> 0 | F104: =IF(E104="N/A","N/A",IF(ISNUMBER(F103),IF('Project Inputs'!$B$88="Calendar Year",'Project Inputs'!C94,"N/A"),0)) -> 0 | G104: =IF(F104="N/A","N/A",IF(ISNUMBER(G103),IF('Project Inputs'!$B$88="Calendar Year",'Project Inputs'!D94,"N/A"),0)) -> 0 | H104: =IF(G104="N/A","N/A",IF(ISNUMBER(H103),IF('Project Inputs'!$B$88="Calendar Year",'Project Inputs'!E94,"N/A"),0)) -> 0 | I104: =IF(H104="N/A","N/A",IF(ISNUMBER(I103),IF('Project Inputs'!$B$88="Calendar Year",'Project Inputs'!F94,"N/A"),0)) -> 0 | J104: =IF(I104="N/A","N/A",IF(ISNUMBER(J103),IF('Project Inputs'!$B$88="Calendar Year",'Project Inputs'!G94,"N/A"),0)) -> 0 | K104: =IF(J104="N/A","N/A",IF(ISNUMBER(K103),IF('Project Inputs'!$B$88="Calendar Year",'Project Inputs'!H94,"N/A"),0)) -> 0 | L104: =IF(K104="N/A","N/A",IF(ISNUMBER(L103),IF('Project Inputs'!$B$88="Calendar Year",'Project Inputs'!I94,"N/A"),0)) -> 0 | M104: =IF(L104="N/A","N/A",IF(ISNUMBER(M103),IF('Project Inputs'!$B$88="Calendar Year",'Project Inputs'!J94,"N/A"),0)) -> 0 | N104: =IF(M104="N/A","N/A",IF(ISNUMBER(N103),IF('Project Inputs'!$B$88="Calendar Year",'Project Inputs'!K94,"N/A"),0)) -> 0 | O104: =IF(N104="N/A","N/A",IF(ISNUMBER(O103),IF('Project Inputs'!$B$88="Calendar Year",'Project Inputs'!L94,"N/A"),0)) -> 0 | P104: =IF(O104="N/A","N/A",IF(ISNUMBER(P103),IF('Project Inputs'!$B$88="Calendar Year",'Project Inputs'!M94,"N/A"),0)) -> 0 | Q104: =IF(P104="N/A","N/A",IF(ISNUMBER(Q103),IF('Project Inputs'!$B$88="Calendar Year",'Project Inputs'!N94,"N/A"),0)) -> 0 | R104: =IF(Q104="N/A","N/A",IF(ISNUMBER(R103),IF('Project Inputs'!$B$88="Calendar Year",'Project Inputs'!O94,"N/A"),0)) -> 0 | S104: =IF(R104="N/A","N/A",IF(ISNUMBER(S103),IF('Project Inputs'!$B$88="Calendar Year",'Project Inputs'!P94,"N/A"),0)) -> 0 | T104: =IF(S104="N/A","N/A",IF(ISNUMBER(T103),IF('Project Inputs'!$B$88="Calendar Year",'Project Inputs'!Q94,"N/A"),0)) -> 0 | U104: =IF(T104="N/A","N/A",IF(ISNUMBER(U103),IF('Project Inputs'!$B$88="Calendar Year",'Project Inputs'!R94,"N/A"),0)) -> 0 | V104: =IF(U104="N/A","N/A",IF(ISNUMBER(V103),IF('Project Inputs'!$B$88="Calendar Year",'Project Inputs'!S94,"N/A"),0)) -> 0 | W104: =IF(V104="N/A","N/A",IF(ISNUMBER(W103),IF('Project Inputs'!$B$88="Calendar Year",'Project Inputs'!T94,"N/A"),0)) -> 0 | X104: =IF(W104="N/A","N/A",IF(ISNUMBER(X103),IF('Project Inputs'!$B$88="Calendar Year",'Project Inputs'!U94,"N/A"),0)) -> 0 | Y104: =IF(X104="N/A","N/A",IF(ISNUMBER(Y103),IF('Project Inputs'!$B$88="Calendar Year",'Project Inputs'!V94,"N/A"),0)) -> 0 | Z104: =IF(Y104="N/A","N/A",IF(ISNUMBER(Z103),IF('Project Inputs'!$B$88="Calendar Year",'Project Inputs'!W94,"N/A"),0)) -> 0 | AA104: =IF(Z104="N/A","N/A",IF(ISNUMBER(AA103),IF('Project Inputs'!$B$88="Calendar Year",'Project Inputs'!X94,"N/A"),0)) -> 0 | AB104: =IF(AA104="N/A","N/A",IF(ISNUMBER(AB103),IF('Project Inputs'!$B$88="Calendar Year",'Project Inputs'!Y94,"N/A"),0)) -> 0 | AC104: =IF(AB104="N/A","N/A",IF(ISNUMBER(AC103),IF('Project Inputs'!$B$88="Calendar Year",'Project Inputs'!Z94,"N/A"),0)) -> 0 | AD104: =IF(AC104="N/A","N/A",IF(ISNUMBER(AD103),IF('Project Inputs'!$B$88="Calendar Year",'Project Inputs'!AA94,"N/A"),0)) -> 0
C105: Load adjustments (MW / month) | E105: =IF(ISNUMBER(E103),IF('Project Inputs'!$B$88="Calendar Year",'Project Inputs'!B95,"N/A"),0) -> 0 | F105: =IF(E105="N/A","N/A",IF(ISNUMBER(F103),IF('Project Inputs'!$B$88="Calendar Year",'Project Inputs'!C95,"N/A"),0)) -> 0 | G105: =IF(F105="N/A","N/A",IF(ISNUMBER(G103),IF('Project Inputs'!$B$88="Calendar Year",'Project Inputs'!D95,"N/A"),0)) -> 0 | H105: =IF(G105="N/A","N/A",IF(ISNUMBER(H103),IF('Project Inputs'!$B$88="Calendar Year",'Project Inputs'!E95,"N/A"),0)) -> 0 | I105: =IF(H105="N/A","N/A",IF(ISNUMBER(I103),IF('Project Inputs'!$B$88="Calendar Year",'Project Inputs'!F95,"N/A"),0)) -> 0 | J105: =IF(I105="N/A","N/A",IF(ISNUMBER(J103),IF('Project Inputs'!$B$88="Calendar Year",'Project Inputs'!G95,"N/A"),0)) -> 0 | K105: =IF(J105="N/A","N/A",IF(ISNUMBER(K103),IF('Project Inputs'!$B$88="Calendar Year",'Project Inputs'!H95,"N/A"),0)) -> 0 | L105: =IF(K105="N/A","N/A",IF(ISNUMBER(L103),IF('Project Inputs'!$B$88="Calendar Year",'Project Inputs'!I95,"N/A"),0)) -> 0 | M105: =IF(L105="N/A","N/A",IF(ISNUMBER(M103),IF('Project Inputs'!$B$88="Calendar Year",'Project Inputs'!J95,"N/A"),0)) -> 0 | N105: =IF(M105="N/A","N/A",IF(ISNUMBER(N103),IF('Project Inputs'!$B$88="Calendar Year",'Project Inputs'!K95,"N/A"),0)) -> 0 | O105: =IF(N105="N/A","N/A",IF(ISNUMBER(O103),IF('Project Inputs'!$B$88="Calendar Year",'Project Inputs'!L95,"N/A"),0)) -> 0 | P105: =IF(O105="N/A","N/A",IF(ISNUMBER(P103),IF('Project Inputs'!$B$88="Calendar Year",'Project Inputs'!M95,"N/A"),0)) -> 0 | Q105: =IF(P105="N/A","N/A",IF(ISNUMBER(Q103),IF('Project Inputs'!$B$88="Calendar Year",'Project Inputs'!N95,"N/A"),0)) -> 0 | R105: =IF(Q105="N/A","N/A",IF(ISNUMBER(R103),IF('Project Inputs'!$B$88="Calendar Year",'Project Inputs'!O95,"N/A"),0)) -> 0 | S105: =IF(R105="N/A","N/A",IF(ISNUMBER(S103),IF('Project Inputs'!$B$88="Calendar Year",'Project Inputs'!P95,"N/A"),0)) -> 0 | T105: =IF(S105="N/A","N/A",IF(ISNUMBER(T103),IF('Project Inputs'!$B$88="Calendar Year",'Project Inputs'!Q95,"N/A"),0)) -> 0 | U105: =IF(T105="N/A","N/A",IF(ISNUMBER(U103),IF('Project Inputs'!$B$88="Calendar Year",'Project Inputs'!R95,"N/A"),0)) -> 0 | V105: =IF(U105="N/A","N/A",IF(ISNUMBER(V103),IF('Project Inputs'!$B$88="Calendar Year",'Project Inputs'!S95,"N/A"),0)) -> 0 | W105: =IF(V105="N/A","N/A",IF(ISNUMBER(W103),IF('Project Inputs'!$B$88="Calendar Year",'Project Inputs'!T95,"N/A"),0)) -> 0 | X105: =IF(W105="N/A","N/A",IF(ISNUMBER(X103),IF('Project Inputs'!$B$88="Calendar Year",'Project Inputs'!U95,"N/A"),0)) -> 0 | Y105: =IF(X105="N/A","N/A",IF(ISNUMBER(Y103),IF('Project Inputs'!$B$88="Calendar Year",'Project Inputs'!V95,"N/A"),0)) -> 0 | Z105: =IF(Y105="N/A","N/A",IF(ISNUMBER(Z103),IF('Project Inputs'!$B$88="Calendar Year",'Project Inputs'!W95,"N/A"),0)) -> 0 | AA105: =IF(Z105="N/A","N/A",IF(ISNUMBER(AA103),IF('Project Inputs'!$B$88="Calendar Year",'Project Inputs'!X95,"N/A"),0)) -> 0 | AB105: =IF(AA105="N/A","N/A",IF(ISNUMBER(AB103),IF('Project Inputs'!$B$88="Calendar Year",'Project Inputs'!Y95,"N/A"),0)) -> 0 | AC105: =IF(AB105="N/A","N/A",IF(ISNUMBER(AC103),IF('Project Inputs'!$B$88="Calendar Year",'Project Inputs'!Z95,"N/A"),0)) -> 0 | AD105: =IF(AC105="N/A","N/A",IF(ISNUMBER(AD103),IF('Project Inputs'!$B$88="Calendar Year",'Project Inputs'!AA95,"N/A"),0)) -> 0
C106: Forecasted load (MW / calendar year) | E106: =SUM(E104:E105) -> 0 | F106: =IF(F105="N/A","N/A",SUM(F104:F105)) -> 0 | G106: =IF(G105="N/A","N/A",SUM(G104:G105)) -> 0 | H106: 0 | I106: 0 | J106: 0 | K106: 0 | L106: 0 | M106: 0 | N106: 0 | O106: 0 | P106: 0 | Q106: 0 | R106: 0 | S106: 0 | T106: 0 | U106: 0 | V106: 0 | W106: 0 | X106: 0 | Y106: 0 | Z106: 0 | AA106: 0 | AB106: 0 | AC106: 0 | AD106: 0
C108: * In-Service Month | F108: =IF(ISNUMBER(F103),IF('Project Inputs'!$B$88="Calendar Year",IF(DAY('Project Inputs'!B15)<15,MONTH('Project Inputs'!B15)-1,MONTH('Project Inputs'!B15)),"N/A"),0) -> 10 | G108: =IF(F108="N/A","N/A",IF(ISNUMBER(G103),F108,0)) -> 10 | H108: =IF(G108="N/A","N/A",IF(ISNUMBER(H103),G108,0)) -> 10 | I108: 10 | J108: 10 | K108: 10 | L108: 10 | M108: 10 | N108: 10 | O108: 10 | P108: 10 | Q108: 10 | R108: 10 | S108: 10 | T108: 10 | U108: 10 | V108: 10 | W108: 10 | X108: 10 | Y108: 10 | Z108: 10 | AA108: 10 | AB108: 10 | AC108: 10 | AD108: 10
C109: *if = 0, means In-Service falls between Jan 1- 15
C110: =C82 -> Project Year: | F110: ='Capital Cont Inputs'!C16 -> 1 | G110: ='Capital Cont Inputs'!D16 -> 2 | H110: ='Capital Cont Inputs'!E16 -> 3 | I110: ='Capital Cont Inputs'!F16 -> 4 | J110: ='Capital Cont Inputs'!G16 -> 5 | K110: ='Capital Cont Inputs'!H16 -> 6 | L110: ='Capital Cont Inputs'!I16 -> 7 | M110: ='Capital Cont Inputs'!J16 -> 8 | N110: ='Capital Cont Inputs'!K16 -> 9 | O110: ='Capital Cont Inputs'!L16 -> 10 | P110: ='Capital Cont Inputs'!M16 -> 11 | Q110: ='Capital Cont Inputs'!N16 -> 12 | R110: ='Capital Cont Inputs'!O16 -> 13 | S110: ='Capital Cont Inputs'!P16 -> 14 | T110: ='Capital Cont Inputs'!Q16 -> 15 | U110: ='Capital Cont Inputs'!R16 -> 16 | V110: ='Capital Cont Inputs'!S16 -> 17 | W110: ='Capital Cont Inputs'!T16 -> 18 | X110: ='Capital Cont Inputs'!U16 -> 19 | Y110: ='Capital Cont Inputs'!V16 -> 20 | Z110: ='Capital Cont Inputs'!W16 -> 21 | AA110: ='Capital Cont Inputs'!X16 -> 22 | AB110: ='Capital Cont Inputs'!Y16 -> 23 | AC110: ='Capital Cont Inputs'!Z16 -> 24 | AD110: ='Capital Cont Inputs'!AA16 -> 25
C111: =C83 -> Year Ended: | F111: ='Capital Cont Inputs'!C15 -> 2022 | G111: ='Capital Cont Inputs'!D15 -> 2023 | H111: ='Capital Cont Inputs'!E15 -> 2024 | I111: ='Capital Cont Inputs'!F15 -> 2025 | J111: ='Capital Cont Inputs'!G15 -> 2026 | K111: ='Capital Cont Inputs'!H15 -> 2027 | L111: ='Capital Cont Inputs'!I15 -> 2028 | M111: ='Capital Cont Inputs'!J15 -> 2029 | N111: ='Capital Cont Inputs'!K15 -> 2030 | O111: ='Capital Cont Inputs'!L15 -> 2031 | P111: ='Capital Cont Inputs'!M15 -> 2032 | Q111: ='Capital Cont Inputs'!N15 -> 2033 | R111: ='Capital Cont Inputs'!O15 -> 2034 | S111: ='Capital Cont Inputs'!P15 -> 2035 | T111: ='Capital Cont Inputs'!Q15 -> 2036 | U111: ='Capital Cont Inputs'!R15 -> 2037 | V111: ='Capital Cont Inputs'!S15 -> 2038 | W111: ='Capital Cont Inputs'!T15 -> 2039 | X111: ='Capital Cont Inputs'!U15 -> 2040 | Y111: ='Capital Cont Inputs'!V15 -> 2041 | Z111: ='Capital Cont Inputs'!W15 -> 2042 | AA111: ='Capital Cont Inputs'!X15 -> 2043 | AB111: ='Capital Cont Inputs'!Y15 -> 2044 | AC111: ='Capital Cont Inputs'!Z15 -> 2045 | AD111: ='Capital Cont Inputs'!AA15 -> 2046
C112: Project Year Load Forecast Summary
C113: =C104 -> Load (MW / month) | F113: =IF(ISNUMBER(F103),IF('Project Inputs'!$B$88="Calendar Year",(E104*(12-F$108)+F104*F$108)/12,'Project Inputs'!C94),0) -> 0 | G113: =IF(ISNUMBER(G103),IF('Project Inputs'!$B$88="Calendar Year",(F104*(12-G$108)+G104*G$108)/12,'Project Inputs'!D94),0) -> 0 | H113: =IF(ISNUMBER(H103),IF('Project Inputs'!$B$88="Calendar Year",(G104*(12-H$108)+H104*H$108)/12,'Project Inputs'!E94),0) -> 0 | I113: =IF(ISNUMBER(I103),IF('Project Inputs'!$B$88="Calendar Year",(H104*(12-I$108)+I104*I$108)/12,'Project Inputs'!F94),0) -> 0 | J113: =IF(ISNUMBER(J103),IF('Project Inputs'!$B$88="Calendar Year",(I104*(12-J$108)+J104*J$108)/12,'Project Inputs'!G94),0) -> 0 | K113: =IF(ISNUMBER(K103),IF('Project Inputs'!$B$88="Calendar Year",(J104*(12-K$108)+K104*K$108)/12,'Project Inputs'!H94),0) -> 0 | L113: =IF(ISNUMBER(L103),IF('Project Inputs'!$B$88="Calendar Year",(K104*(12-L$108)+L104*L$108)/12,'Project Inputs'!I94),0) -> 0 | M113: =IF(ISNUMBER(M103),IF('Project Inputs'!$B$88="Calendar Year",(L104*(12-M$108)+M104*M$108)/12,'Project Inputs'!J94),0) -> 0 | N113: =IF(ISNUMBER(N103),IF('Project Inputs'!$B$88="Calendar Year",(M104*(12-N$108)+N104*N$108)/12,'Project Inputs'!K94),0) -> 0 | O113: =IF(ISNUMBER(O103),IF('Project Inputs'!$B$88="Calendar Year",(N104*(12-O$108)+O104*O$108)/12,'Project Inputs'!L94),0) -> 0 | P113: =IF(ISNUMBER(P103),IF('Project Inputs'!$B$88="Calendar Year",(O104*(12-P$108)+P104*P$108)/12,'Project Inputs'!M94),0) -> 0 | Q113: =IF(ISNUMBER(Q103),IF('Project Inputs'!$B$88="Calendar Year",(P104*(12-Q$108)+Q104*Q$108)/12,'Project Inputs'!N94),0) -> 0 | R113: =IF(ISNUMBER(R103),IF('Project Inputs'!$B$88="Calendar Year",(Q104*(12-R$108)+R104*R$108)/12,'Project Inputs'!O94),0) -> 0 | S113: =IF(ISNUMBER(S103),IF('Project Inputs'!$B$88="Calendar Year",(R104*(12-S$108)+S104*S$108)/12,'Project Inputs'!P94),0) -> 0 | T113: =IF(ISNUMBER(T103),IF('Project Inputs'!$B$88="Calendar Year",(S104*(12-T$108)+T104*T$108)/12,'Project Inputs'!Q94),0) -> 0 | U113: =IF(ISNUMBER(U103),IF('Project Inputs'!$B$88="Calendar Year",(T104*(12-U$108)+U104*U$108)/12,'Project Inputs'!R94),0) -> 0 | V113: =IF(ISNUMBER(V103),IF('Project Inputs'!$B$88="Calendar Year",(U104*(12-V$108)+V104*V$108)/12,'Project Inputs'!S94),0) -> 0 | W113: =IF(ISNUMBER(W103),IF('Project Inputs'!$B$88="Calendar Year",(V104*(12-W$108)+W104*W$108)/12,'Project Inputs'!T94),0) -> 0 | X113: =IF(ISNUMBER(X103),IF('Project Inputs'!$B$88="Calendar Year",(W104*(12-X$108)+X104*X$108)/12,'Project Inputs'!U94),0) -> 0 | Y113: =IF(ISNUMBER(Y103),IF('Project Inputs'!$B$88="Calendar Year",(X104*(12-Y$108)+Y104*Y$108)/12,'Project Inputs'!V94),0) -> 0 | Z113: =IF(ISNUMBER(Z103),IF('Project Inputs'!$B$88="Calendar Year",(Y104*(12-Z$108)+Z104*Z$108)/12,'Project Inputs'!W94),0) -> 0 | AA113: =IF(ISNUMBER(AA103),IF('Project Inputs'!$B$88="Calendar Year",(Z104*(12-AA$108)+AA104*AA$108)/12,'Project Inputs'!X94),0) -> 0 | AB113: =IF(ISNUMBER(AB103),IF('Project Inputs'!$B$88="Calendar Year",(AA104*(12-AB$108)+AB104*AB$108)/12,'Project Inputs'!Y94),0) -> 0 | AC113: =IF(ISNUMBER(AC103),IF('Project Inputs'!$B$88="Calendar Year",(AB104*(12-AC$108)+AC104*AC$108)/12,'Project Inputs'!Z94),0) -> 0 | AD113: =IF(ISNUMBER(AD103),IF('Project Inputs'!$B$88="Calendar Year",(AC104*(12-AD$108)+AD104*AD$108)/12,'Project Inputs'!AA94),0) -> 0
C114: =C105 -> Load adjustments (MW / month) | F114: =IF(ISNUMBER(F103),IF('Project Inputs'!$B$88="Calendar Year",((E105*(12-F$108)+F105*F$108)/12),'Project Inputs'!C95),0) -> 0 | G114: =IF(ISNUMBER(G103),IF('Project Inputs'!$B$88="Calendar Year",((F105*(12-G$108)+G105*G$108)/12),'Project Inputs'!D95),0) -> 0 | H114: =IF(ISNUMBER(H103),IF('Project Inputs'!$B$88="Calendar Year",((G105*(12-H$108)+H105*H$108)/12),'Project Inputs'!E95),0) -> 0 | I114: =IF(ISNUMBER(I103),IF('Project Inputs'!$B$88="Calendar Year",((H105*(12-I$108)+I105*I$108)/12),'Project Inputs'!F95),0) -> 0 | J114: =IF(ISNUMBER(J103),IF('Project Inputs'!$B$88="Calendar Year",((I105*(12-J$108)+J105*J$108)/12),'Project Inputs'!G95),0) -> 0 | K114: =IF(ISNUMBER(K103),IF('Project Inputs'!$B$88="Calendar Year",((J105*(12-K$108)+K105*K$108)/12),'Project Inputs'!H95),0) -> 0 | L114: =IF(ISNUMBER(L103),IF('Project Inputs'!$B$88="Calendar Year",((K105*(12-L$108)+L105*L$108)/12),'Project Inputs'!I95),0) -> 0 | M114: =IF(ISNUMBER(M103),IF('Project Inputs'!$B$88="Calendar Year",((L105*(12-M$108)+M105*M$108)/12),'Project Inputs'!J95),0) -> 0 | N114: =IF(ISNUMBER(N103),IF('Project Inputs'!$B$88="Calendar Year",((M105*(12-N$108)+N105*N$108)/12),'Project Inputs'!K95),0) -> 0 | O114: =IF(ISNUMBER(O103),IF('Project Inputs'!$B$88="Calendar Year",((N105*(12-O$108)+O105*O$108)/12),'Project Inputs'!L95),0) -> 0 | P114: =IF(ISNUMBER(P103),IF('Project Inputs'!$B$88="Calendar Year",((O105*(12-P$108)+P105*P$108)/12),'Project Inputs'!M95),0) -> 0 | Q114: =IF(ISNUMBER(Q103),IF('Project Inputs'!$B$88="Calendar Year",((P105*(12-Q$108)+Q105*Q$108)/12),'Project Inputs'!N95),0) -> 0 | R114: =IF(ISNUMBER(R103),IF('Project Inputs'!$B$88="Calendar Year",((Q105*(12-R$108)+R105*R$108)/12),'Project Inputs'!O95),0) -> 0 | S114: =IF(ISNUMBER(S103),IF('Project Inputs'!$B$88="Calendar Year",((R105*(12-S$108)+S105*S$108)/12),'Project Inputs'!P95),0) -> 0 | T114: =IF(ISNUMBER(T103),IF('Project Inputs'!$B$88="Calendar Year",((S105*(12-T$108)+T105*T$108)/12),'Project Inputs'!Q95),0) -> 0 | U114: =IF(ISNUMBER(U103),IF('Project Inputs'!$B$88="Calendar Year",((T105*(12-U$108)+U105*U$108)/12),'Project Inputs'!R95),0) -> 0 | V114: =IF(ISNUMBER(V103),IF('Project Inputs'!$B$88="Calendar Year",((U105*(12-V$108)+V105*V$108)/12),'Project Inputs'!S95),0) -> 0 | W114: =IF(ISNUMBER(W103),IF('Project Inputs'!$B$88="Calendar Year",((V105*(12-W$108)+W105*W$108)/12),'Project Inputs'!T95),0) -> 0 | X114: =IF(ISNUMBER(X103),IF('Project Inputs'!$B$88="Calendar Year",((W105*(12-X$108)+X105*X$108)/12),'Project Inputs'!U95),0) -> 0 | Y114: =IF(ISNUMBER(Y103),IF('Project Inputs'!$B$88="Calendar Year",((X105*(12-Y$108)+Y105*Y$108)/12),'Project Inputs'!V95),0) -> 0 | Z114: =IF(ISNUMBER(Z103),IF('Project Inputs'!$B$88="Calendar Year",((Y105*(12-Z$108)+Z105*Z$108)/12),'Project Inputs'!W95),0) -> 0 | AA114: =IF(ISNUMBER(AA103),IF('Project Inputs'!$B$88="Calendar Year",((Z105*(12-AA$108)+AA105*AA$108)/12),'Project Inputs'!X95),0) -> 0 | AB114: =IF(ISNUMBER(AB103),IF('Project Inputs'!$B$88="Calendar Year",((AA105*(12-AB$108)+AB105*AB$108)/12),'Project Inputs'!Y95),0) -> 0 | AC114: =IF(ISNUMBER(AC103),IF('Project Inputs'!$B$88="Calendar Year",((AB105*(12-AC$108)+AC105*AC$108)/12),'Project Inputs'!Z95),0) -> 0 | AD114: =IF(ISNUMBER(AD103),IF('Project Inputs'!$B$88="Calendar Year",((AC105*(12-AD$108)+AD105*AD$108)/12),'Project Inputs'!AA95),0) -> 0
C115: Forecasted load (MW / project year) | F115: =SUM(F113:F114) -> 0 | G115: =SUM(G113:G114) -> 0 | H115: 0 | I115: 0 | J115: 0 | K115: 0 | L115: 0 | M115: 0 | N115: 0 | O115: 0 | P115: 0 | Q115: 0 | R115: 0 | S115: 0 | T115: 0 | U115: 0 | V115: 0 | W115: 0 | X115: 0 | Y115: 0 | Z115: 0 | AA115: 0 | AB115: 0 | AC115: 0 | AD115: 0
C118: Load Factor Adjustments
C119: PLI adjustment | D119: =IF('Project Inputs'!$B$89="Yes","N/A",IF(ISBLANK('Project Inputs'!$D$89),1,'Project Inputs'!$D$89)) -> 1
C120: =C113 -> Load (MW / month) | F120: =IF('Project Inputs'!$B$89="No",F113*$D$119,'Prelim Calc'!F113) -> 0 | G120: =IF('Project Inputs'!$B$89="No",G113*$D$119,'Prelim Calc'!G113) -> 0 | H120: =IF('Project Inputs'!$B$89="No",H113*$D$119,'Prelim Calc'!H113) -> 0 | I120: =IF('Project Inputs'!$B$89="No",I113*$D$119,'Prelim Calc'!I113) -> 0 | J120: =IF('Project Inputs'!$B$89="No",J113*$D$119,'Prelim Calc'!J113) -> 0 | K120: =IF('Project Inputs'!$B$89="No",K113*$D$119,'Prelim Calc'!K113) -> 0 | L120: =IF('Project Inputs'!$B$89="No",L113*$D$119,'Prelim Calc'!L113) -> 0 | M120: =IF('Project Inputs'!$B$89="No",M113*$D$119,'Prelim Calc'!M113) -> 0 | N120: =IF('Project Inputs'!$B$89="No",N113*$D$119,'Prelim Calc'!N113) -> 0 | O120: =IF('Project Inputs'!$B$89="No",O113*$D$119,'Prelim Calc'!O113) -> 0 | P120: =IF('Project Inputs'!$B$89="No",P113*$D$119,'Prelim Calc'!P113) -> 0 | Q120: =IF('Project Inputs'!$B$89="No",Q113*$D$119,'Prelim Calc'!Q113) -> 0 | R120: =IF('Project Inputs'!$B$89="No",R113*$D$119,'Prelim Calc'!R113) -> 0 | S120: =IF('Project Inputs'!$B$89="No",S113*$D$119,'Prelim Calc'!S113) -> 0 | T120: =IF('Project Inputs'!$B$89="No",T113*$D$119,'Prelim Calc'!T113) -> 0 | U120: =IF('Project Inputs'!$B$89="No",U113*$D$119,'Prelim Calc'!U113) -> 0 | V120: =IF('Project Inputs'!$B$89="No",V113*$D$119,'Prelim Calc'!V113) -> 0 | W120: =IF('Project Inputs'!$B$89="No",W113*$D$119,'Prelim Calc'!W113) -> 0 | X120: =IF('Project Inputs'!$B$89="No",X113*$D$119,'Prelim Calc'!X113) -> 0 | Y120: =IF('Project Inputs'!$B$89="No",Y113*$D$119,'Prelim Calc'!Y113) -> 0 | Z120: =IF('Project Inputs'!$B$89="No",Z113*$D$119,'Prelim Calc'!Z113) -> 0 | AA120: =IF('Project Inputs'!$B$89="No",AA113*$D$119,'Prelim Calc'!AA113) -> 0 | AB120: =IF('Project Inputs'!$B$89="No",AB113*$D$119,'Prelim Calc'!AB113) -> 0 | AC120: =IF('Project Inputs'!$B$89="No",AC113*$D$119,'Prelim Calc'!AC113) -> 0 | AD120: =IF('Project Inputs'!$B$89="No",AD113*$D$119,'Prelim Calc'!AD113) -> 0
C121: =C114 -> Load adjustments (MW / month) | F121: =IF('Project Inputs'!$B$89="No",F114*$D$119,'Prelim Calc'!F114) -> 0 | G121: =IF('Project Inputs'!$B$89="No",G114*$D$119,'Prelim Calc'!G114) -> 0 | H121: =IF('Project Inputs'!$B$89="No",H114*$D$119,'Prelim Calc'!H114) -> 0 | I121: =IF('Project Inputs'!$B$89="No",I114*$D$119,'Prelim Calc'!I114) -> 0 | J121: =IF('Project Inputs'!$B$89="No",J114*$D$119,'Prelim Calc'!J114) -> 0 | K121: =IF('Project Inputs'!$B$89="No",K114*$D$119,'Prelim Calc'!K114) -> 0 | L121: =IF('Project Inputs'!$B$89="No",L114*$D$119,'Prelim Calc'!L114) -> 0 | M121: =IF('Project Inputs'!$B$89="No",M114*$D$119,'Prelim Calc'!M114) -> 0 | N121: =IF('Project Inputs'!$B$89="No",N114*$D$119,'Prelim Calc'!N114) -> 0 | O121: =IF('Project Inputs'!$B$89="No",O114*$D$119,'Prelim Calc'!O114) -> 0 | P121: =IF('Project Inputs'!$B$89="No",P114*$D$119,'Prelim Calc'!P114) -> 0 | Q121: =IF('Project Inputs'!$B$89="No",Q114*$D$119,'Prelim Calc'!Q114) -> 0 | R121: =IF('Project Inputs'!$B$89="No",R114*$D$119,'Prelim Calc'!R114) -> 0 | S121: =IF('Project Inputs'!$B$89="No",S114*$D$119,'Prelim Calc'!S114) -> 0 | T121: =IF('Project Inputs'!$B$89="No",T114*$D$119,'Prelim Calc'!T114) -> 0 | U121: =IF('Project Inputs'!$B$89="No",U114*$D$119,'Prelim Calc'!U114) -> 0 | V121: =IF('Project Inputs'!$B$89="No",V114*$D$119,'Prelim Calc'!V114) -> 0 | W121: =IF('Project Inputs'!$B$89="No",W114*$D$119,'Prelim Calc'!W114) -> 0 | X121: =IF('Project Inputs'!$B$89="No",X114*$D$119,'Prelim Calc'!X114) -> 0 | Y121: =IF('Project Inputs'!$B$89="No",Y114*$D$119,'Prelim Calc'!Y114) -> 0 | Z121: =IF('Project Inputs'!$B$89="No",Z114*$D$119,'Prelim Calc'!Z114) -> 0 | AA121: =IF('Project Inputs'!$B$89="No",AA114*$D$119,'Prelim Calc'!AA114) -> 0 | AB121: =IF('Project Inputs'!$B$89="No",AB114*$D$119,'Prelim Calc'!AB114) -> 0 | AC121: =IF('Project Inputs'!$B$89="No",AC114*$D$119,'Prelim Calc'!AC114) -> 0 | AD121: =IF('Project Inputs'!$B$89="No",AD114*$D$119,'Prelim Calc'!AD114) -> 0
C122: Load factor adjusted forecasted load (MW / project year) | F122: =F120+F121 -> 0 | G122: 0 | H122: 0 | I122: 0 | J122: 0 | K122: 0 | L122: 0 | M122: 0 | N122: 0 | O122: 0 | P122: 0 | Q122: 0 | R122: 0 | S122: 0 | T122: 0 | U122: 0 | V122: 0 | W122: 0 | X122: 0 | Y122: 0 | Z122: 0 | AA122: 0 | AB122: 0 | AC122: 0 | AD122: 0
C125: Load Used in Model
C126: Forecast or revenue guarantee load to be used in model? | D126: =IF(RevenueGuaranteeCalc="IEE/True-up","Forecast",RevenueGuaranteeCalc) -> Forecast
C128: Revenue guarantee factor | D128: =IF(D126="Forecast","N/A",RevenueGuarantee) -> N/A
C129: Load (MW / month) | F129: =IF(OR('Project Inputs'!C$93="Actual",'Capital Cont Inputs'!$B$52="IEE/True-up"),F120,$D$128*F120) -> 0 | G129: =IF(OR('Project Inputs'!D$93="Actual",'Capital Cont Inputs'!$B$52="IEE/True-up"),G120,$D$128*G120) -> 0 | H129: =IF(OR('Project Inputs'!E$93="Actual",'Capital Cont Inputs'!$B$52="IEE/True-up"),H120,$D$128*H120) -> 0 | I129: =IF(OR('Project Inputs'!F$93="Actual",'Capital Cont Inputs'!$B$52="IEE/True-up"),I120,$D$128*I120) -> 0 | J129: =IF(OR('Project Inputs'!G$93="Actual",'Capital Cont Inputs'!$B$52="IEE/True-up"),J120,$D$128*J120) -> 0 | K129: =IF(OR('Project Inputs'!H$93="Actual",'Capital Cont Inputs'!$B$52="IEE/True-up"),K120,$D$128*K120) -> 0 | L129: =IF(OR('Project Inputs'!I$93="Actual",'Capital Cont Inputs'!$B$52="IEE/True-up"),L120,$D$128*L120) -> 0 | M129: =IF(OR('Project Inputs'!J$93="Actual",'Capital Cont Inputs'!$B$52="IEE/True-up"),M120,$D$128*M120) -> 0 | N129: =IF(OR('Project Inputs'!K$93="Actual",'Capital Cont Inputs'!$B$52="IEE/True-up"),N120,$D$128*N120) -> 0 | O129: =IF(OR('Project Inputs'!L$93="Actual",'Capital Cont Inputs'!$B$52="IEE/True-up"),O120,$D$128*O120) -> 0 | P129: =IF(OR('Project Inputs'!M$93="Actual",'Capital Cont Inputs'!$B$52="IEE/True-up"),P120,$D$128*P120) -> 0 | Q129: =IF(OR('Project Inputs'!N$93="Actual",'Capital Cont Inputs'!$B$52="IEE/True-up"),Q120,$D$128*Q120) -> 0 | R129: =IF(OR('Project Inputs'!O$93="Actual",'Capital Cont Inputs'!$B$52="IEE/True-up"),R120,$D$128*R120) -> 0 | S129: =IF(OR('Project Inputs'!P$93="Actual",'Capital Cont Inputs'!$B$52="IEE/True-up"),S120,$D$128*S120) -> 0 | T129: =IF(OR('Project Inputs'!Q$93="Actual",'Capital Cont Inputs'!$B$52="IEE/True-up"),T120,$D$128*T120) -> 0 | U129: =IF(OR('Project Inputs'!R$93="Actual",'Capital Cont Inputs'!$B$52="IEE/True-up"),U120,$D$128*U120) -> 0 | V129: =IF(OR('Project Inputs'!S$93="Actual",'Capital Cont Inputs'!$B$52="IEE/True-up"),V120,$D$128*V120) -> 0 | W129: =IF(OR('Project Inputs'!T$93="Actual",'Capital Cont Inputs'!$B$52="IEE/True-up"),W120,$D$128*W120) -> 0 | X129: =IF(OR('Project Inputs'!U$93="Actual",'Capital Cont Inputs'!$B$52="IEE/True-up"),X120,$D$128*X120) -> 0 | Y129: =IF(OR('Project Inputs'!V$93="Actual",'Capital Cont Inputs'!$B$52="IEE/True-up"),Y120,$D$128*Y120) -> 0 | Z129: =IF(OR('Project Inputs'!W$93="Actual",'Capital Cont Inputs'!$B$52="IEE/True-up"),Z120,$D$128*Z120) -> 0 | AA129: =IF(OR('Project Inputs'!X$93="Actual",'Capital Cont Inputs'!$B$52="IEE/True-up"),AA120,$D$128*AA120) -> 0 | AB129: =IF(OR('Project Inputs'!Y$93="Actual",'Capital Cont Inputs'!$B$52="IEE/True-up"),AB120,$D$128*AB120) -> 0 | AC129: =IF(OR('Project Inputs'!Z$93="Actual",'Capital Cont Inputs'!$B$52="IEE/True-up"),AC120,$D$128*AC120) -> 0 | AD129: =IF(OR('Project Inputs'!AA$93="Actual",'Capital Cont Inputs'!$B$52="IEE/True-up"),AD120,$D$128*AD120) -> 0
C130: Load adjustments (MW / month) | F130: =F121 -> 0 | G130: =G121 -> 0 | H130: 0 | I130: 0 | J130: 0 | K130: 0 | L130: 0 | M130: 0 | N130: 0 | O130: 0 | P130: 0 | Q130: 0 | R130: 0 | S130: 0 | T130: 0 | U130: 0 | V130: 0 | W130: 0 | X130: 0 | Y130: 0 | Z130: 0 | AA130: 0 | AB130: 0 | AC130: 0 | AD130: 0
C131: Total load (MW / project year) | F131: =SUM(F129:F130) -> 0 | G131: =SUM(G129:G130) -> 0 | H131: 0 | I131: 0 | J131: 0 | K131: 0 | L131: 0 | M131: 0 | N131: 0 | O131: 0 | P131: 0 | Q131: 0 | R131: 0 | S131: 0 | T131: 0 | U131: 0 | V131: 0 | W131: 0 | X131: 0 | Y131: 0 | Z131: 0 | AA131: 0 | AB131: 0 | AC131: 0 | AD131: 0

Sheet NPV Calc
B2: Capital Contribution flag (select Yes to include in calculation of NPV): | C2: No
D4: Project Year: | E4: ='Capital Cont Inputs'!B16 -> 0 | F4: ='Capital Cont Inputs'!C16 -> 1 | G4: ='Capital Cont Inputs'!D16 -> 2 | H4: ='Capital Cont Inputs'!E16 -> 3 | I4: ='Capital Cont Inputs'!F16 -> 4 | J4: ='Capital Cont Inputs'!G16 -> 5 | K4: ='Capital Cont Inputs'!H16 -> 6 | L4: ='Capital Cont Inputs'!I16 -> 7 | M4: ='Capital Cont Inputs'!J16 -> 8 | N4: ='Capital Cont Inputs'!K16 -> 9 | O4: ='Capital Cont Inputs'!L16 -> 10 | P4: ='Capital Cont Inputs'!M16 -> 11 | Q4: ='Capital Cont Inputs'!N16 -> 12 | R4: ='Capital Cont Inputs'!O16 -> 13 | S4: ='Capital Cont Inputs'!P16 -> 14 | T4: ='Capital Cont Inputs'!Q16 -> 15 | U4: ='Capital Cont Inputs'!R16 -> 16 | V4: ='Capital Cont Inputs'!S16 -> 17 | W4: ='Capital Cont Inputs'!T16 -> 18 | X4: ='Capital Cont Inputs'!U16 -> 19 | Y4: ='Capital Cont Inputs'!V16 -> 20 | Z4: ='Capital Cont Inputs'!W16 -> 21 | AA4: ='Capital Cont Inputs'!X16 -> 22 | AB4: ='Capital Cont Inputs'!Y16 -> 23 | AC4: ='Capital Cont Inputs'!Z16 -> 24 | AD4: ='Capital Cont Inputs'!AA16 -> 25
D5: Year Ended: | E5: ='Capital Cont Inputs'!B15 -> 2021 | F5: ='Capital Cont Inputs'!C15 -> 2022 | G5: ='Capital Cont Inputs'!D15 -> 2023 | H5: ='Capital Cont Inputs'!E15 -> 2024 | I5: ='Capital Cont Inputs'!F15 -> 2025 | J5: ='Capital Cont Inputs'!G15 -> 2026 | K5: ='Capital Cont Inputs'!H15 -> 2027 | L5: ='Capital Cont Inputs'!I15 -> 2028 | M5: ='Capital Cont Inputs'!J15 -> 2029 | N5: ='Capital Cont Inputs'!K15 -> 2030 | O5: ='Capital Cont Inputs'!L15 -> 2031 | P5: ='Capital Cont Inputs'!M15 -> 2032 | Q5: ='Capital Cont Inputs'!N15 -> 2033 | R5: ='Capital Cont Inputs'!O15 -> 2034 | S5: ='Capital Cont Inputs'!P15 -> 2035 | T5: ='Capital Cont Inputs'!Q15 -> 2036 | U5: ='Capital Cont Inputs'!R15 -> 2037 | V5: ='Capital Cont Inputs'!S15 -> 2038 | W5: ='Capital Cont Inputs'!T15 -> 2039 | X5: ='Capital Cont Inputs'!U15 -> 2040 | Y5: ='Capital Cont Inputs'!V15 -> 2041 | Z5: ='Capital Cont Inputs'!W15 -> 2042 | AA5: ='Capital Cont Inputs'!X15 -> 2043 | AB5: ='Capital Cont Inputs'!Y15 -> 2044 | AC5: ='Capital Cont Inputs'!Z15 -> 2045 | AD5: ='Capital Cont Inputs'!AA15 -> 2046
A7: Discount | B7: Calculation of Net Present Value: | C7: Undiscounted | D7: Cum. NPV at
A8: Method | C8: Cash Flow | D8: IS Date
B9: Incremental revenues:
B10: =CONCATENATE('Project Inputs'!B28," - ","Load Forecast (MW)") -> Estimated cost - Load Forecast (MW) | F10: ='Prelim Calc'!F129 -> 0 | G10: ='Prelim Calc'!G129 -> 0 | H10: ='Prelim Calc'!H129 -> 0 | I10: ='Prelim Calc'!I129 -> 0 | J10: ='Prelim Calc'!J129 -> 0 | K10: ='Prelim Calc'!K129 -> 0 | L10: ='Prelim Calc'!L129 -> 0 | M10: ='Prelim Calc'!M129 -> 0 | N10: ='Prelim Calc'!N129 -> 0 | O10: ='Prelim Calc'!O129 -> 0 | P10: ='Prelim Calc'!P129 -> 0 | Q10: ='Prelim Calc'!Q129 -> 0 | R10: ='Prelim Calc'!R129 -> 0 | S10: ='Prelim Calc'!S129 -> 0 | T10: ='Prelim Calc'!T129 -> 0 | U10: ='Prelim Calc'!U129 -> 0 | V10: ='Prelim Calc'!V129 -> 0 | W10: ='Prelim Calc'!W129 -> 0 | X10: ='Prelim Calc'!X129 -> 0 | Y10: ='Prelim Calc'!Y129 -> 0 | Z10: ='Prelim Calc'!Z129 -> 0 | AA10: ='Prelim Calc'!AA129 -> 0 | AB10: ='Prelim Calc'!AB129 -> 0 | AC10: ='Prelim Calc'!AC129 -> 0 | AD10: ='Prelim Calc'!AD129 -> 0
B11: Load adjustments (MW) | F11: ='Prelim Calc'!F130 -> 0 | G11: ='Prelim Calc'!G130 -> 0 | H11: ='Prelim Calc'!H130 -> 0 | I11: ='Prelim Calc'!I130 -> 0 | J11: ='Prelim Calc'!J130 -> 0 | K11: ='Prelim Calc'!K130 -> 0 | L11: ='Prelim Calc'!L130 -> 0 | M11: ='Prelim Calc'!M130 -> 0 | N11: ='Prelim Calc'!N130 -> 0 | O11: ='Prelim Calc'!O130 -> 0 | P11: ='Prelim Calc'!P130 -> 0 | Q11: ='Prelim Calc'!Q130 -> 0 | R11: ='Prelim Calc'!R130 -> 0 | S11: ='Prelim Calc'!S130 -> 0 | T11: ='Prelim Calc'!T130 -> 0 | U11: ='Prelim Calc'!U130 -> 0 | V11: ='Prelim Calc'!V130 -> 0 | W11: ='Prelim Calc'!W130 -> 0 | X11: ='Prelim Calc'!X130 -> 0 | Y11: ='Prelim Calc'!Y130 -> 0 | Z11: ='Prelim Calc'!Z130 -> 0 | AA11: ='Prelim Calc'!AA130 -> 0 | AB11: ='Prelim Calc'!AB130 -> 0 | AC11: ='Prelim Calc'!AC130 -> 0 | AD11: ='Prelim Calc'!AD130 -> 0
B12: Total load (MW) | F12: =SUM(F10:F11) -> 0 | G12: =SUM(G10:G11) -> 0 | H12: 0 | I12: 0 | J12: 0 | K12: 0 | L12: 0 | M12: 0 | N12: 0 | O12: 0 | P12: 0 | Q12: 0 | R12: 0 | S12: 0 | T12: 0 | U12: 0 | V12: 0 | W12: 0 | X12: 0 | Y12: 0 | Z12: 0 | AA12: 0 | AB12: 0 | AC12: 0 | AD12: 0
B14: =CONCATENATE("Tariff Applied"," - ",'Project Inputs'!B17, " $/kW/Month") -> Tariff Applied - Network $/kW/Month | F14: =IF('Project Inputs'!B17="Line",'Standard Inputs'!B6,IF('Project Inputs'!B17="Network",'Standard Inputs'!B7,'Standard Inputs'!B8)) -> 3.59 | G14: =IF(ISNUMBER(G5),F14,0) -> 3.59 | H14: 3.59 | I14: 3.59 | J14: 3.59 | K14: 3.59 | L14: 3.59 | M14: 3.59 | N14: 3.59 | O14: 3.59 | P14: 3.59 | Q14: 3.59 | R14: 3.59 | S14: 3.59 | T14: 3.59 | U14: 3.59 | V14: 3.59 | W14: 3.59 | X14: 3.59 | Y14: 3.59 | Z14: 3.59 | AA14: 3.59 | AB14: 3.59 | AC14: 3.59 | AD14: 3.59
B15: Total incremental revenue (monthly) | F15: =(F12)*F14 -> 0 | G15: =(G12)*G14 -> 0 | H15: 0 | I15: 0 | J15: 0 | K15: 0 | L15: 0 | M15: 0 | N15: 0 | O15: 0 | P15: 0 | Q15: 0 | R15: 0 | S15: 0 | T15: 0 | U15: 0 | V15: 0 | W15: 0 | X15: 0 | Y15: 0 | Z15: 0 | AA15: 0 | AB15: 0 | AC15: 0 | AD15: 0
A17: M | B17: Total incremental revenue - $k | C17: =SUM(E17:AD17) -> 0 | D17: =SUMPRODUCT(E17:AD17,$E$47:$AD$47) -> 0 | F17: =F15*12 -> 0 | G17: 0 | H17: 0 | I17: 0 | J17: 0 | K17: 0 | L17: 0 | M17: 0 | N17: 0 | O17: 0 | P17: 0 | Q17: 0 | R17: 0 | S17: 0 | T17: 0 | U17: 0 | V17: 0 | W17: 0 | X17: 0 | Y17: 0 | Z17: 0 | AA17: 0 | AB17: 0 | AC17: 0 | AD17: 0
B19: Incremental costs:
A20: M | B20: Removal costs | C20: =SUM(E20:AD20) -> -20600 | D20: =SUMPRODUCT(E20:AD20,$E$47:$AD$47) -> -20600 | E20: =-'Prelim Calc'!E26 -> -20600
A21: M | B21: OM&A costs | C21: =SUM(E21:AD21) -> -37500 | D21: =SUMPRODUCT(E21:AD21,$E$47:$AD$47) -> -20488.42026 | F21: =-'Prelim Calc'!F65 -> -1500 | G21: =-'Prelim Calc'!G65 -> -1500 | H21: =-'Prelim Calc'!H65 -> -1500 | I21: =-'Prelim Calc'!I65 -> -1500 | J21: =-'Prelim Calc'!J65 -> -1500 | K21: =-'Prelim Calc'!K65 -> -1500 | L21: =-'Prelim Calc'!L65 -> -1500 | M21: =-'Prelim Calc'!M65 -> -1500 | N21: =-'Prelim Calc'!N65 -> -1500 | O21: =-'Prelim Calc'!O65 -> -1500 | P21: =-'Prelim Calc'!P65 -> -1500 | Q21: =-'Prelim Calc'!Q65 -> -1500 | R21: =-'Prelim Calc'!R65 -> -1500 | S21: =-'Prelim Calc'!S65 -> -1500 | T21: =-'Prelim Calc'!T65 -> -1500 | U21: =-'Prelim Calc'!U65 -> -1500 | V21: =-'Prelim Calc'!V65 -> -1500 | W21: =-'Prelim Calc'!W65 -> -1500 | X21: =-'Prelim Calc'!X65 -> -1500 | Y21: =-'Prelim Calc'!Y65 -> -1500 | Z21: =-'Prelim Calc'!Z65 -> -1500 | AA21: =-'Prelim Calc'!AA65 -> -1500 | AB21: =-'Prelim Calc'!AB65 -> -1500 | AC21: =-'Prelim Calc'!AC65 -> -1500 | AD21: =-'Prelim Calc'!AD65 -> -1500
A22: M | B22: Municipal tax | C22: =SUM(E22:AD22) -> -60635.27229 | D22: =SUMPRODUCT(E22:AD22,$E$47:$AD$47) -> -33128.55842 | F22: =-'Prelim Calc'!F77 -> -2425.410891 | G22: =-'Prelim Calc'!G77 -> -2425.410891 | H22: =-'Prelim Calc'!H77 -> -2425.410891 | I22: =-'Prelim Calc'!I77 -> -2425.410891 | J22: =-'Prelim Calc'!J77 -> -2425.410891 | K22: =-'Prelim Calc'!K77 -> -2425.410891 | L22: =-'Prelim Calc'!L77 -> -2425.410891 | M22: =-'Prelim Calc'!M77 -> -2425.410891 | N22: =-'Prelim Calc'!N77 -> -2425.410891 | O22: =-'Prelim Calc'!O77 -> -2425.410891 | P22: =-'Prelim Calc'!P77 -> -2425.410891 | Q22: =-'Prelim Calc'!Q77 -> -2425.410891 | R22: =-'Prelim Calc'!R77 -> -2425.410891 | S22: =-'Prelim Calc'!S77 -> -2425.410891 | T22: =-'Prelim Calc'!T77 -> -2425.410891 | U22: =-'Prelim Calc'!U77 -> -2425.410891 | V22: =-'Prelim Calc'!V77 -> -2425.410891 | W22: =-'Prelim Calc'!W77 -> -2425.410891 | X22: =-'Prelim Calc'!X77 -> -2425.410891 | Y22: =-'Prelim Calc'!Y77 -> -2425.410891 | Z22: =-'Prelim Calc'!Z77 -> -2425.410891 | AA22: =-'Prelim Calc'!AA77 -> -2425.410891 | AB22: =-'Prelim Calc'!AB77 -> -2425.410891 | AC22: =-'Prelim Calc'!AC77 -> -2425.410891 | AD22: =-'Prelim Calc'!AD77 -> -2425.410891
B23: Total incremental removal costs, OM&A costs, and municpal taxes - $k | C23: =SUM(E23:AD23) -> -118735.2723 | D23: =SUM(D20:D22) -> -74216.97868 | E23: -20600 | F23: -3925.410891 | G23: -3925.410891 | H23: -3925.410891 | I23: -3925.410891 | J23: -3925.410891 | K23: -3925.410891 | L23: -3925.410891 | M23: -3925.410891 | N23: -3925.410891 | O23: -3925.410891 | P23: -3925.410891 | Q23: -3925.410891 | R23: -3925.410891 | S23: -3925.410891 | T23: -3925.410891 | U23: -3925.410891 | V23: -3925.410891 | W23: -3925.410891 | X23: -3925.410891 | Y23: -3925.410891 | Z23: -3925.410891 | AA23: -3925.410891 | AB23: -3925.410891 | AC23: -3925.410891 | AD23: -3925.410891
B25: Taxes:
A26: M | B26: Income tax provision | C26: =SUM(E26:AD26) -> 176265.8074 | D26: =SUMPRODUCT(E26:AD26,$E$47:$AD$47) -> 114279.401 | E26: =-E78 -> 5459 | F26: =-F78 -> 7696.000667 | G26: 13819.30611 | H26: 12796.98033 | I26: 11856.44061 | J26: 10991.14407 | K26: 10195.07126 | L26: 9462.68427 | M26: 8788.888239 | N26: 8168.995891 | O26: 7598.694931 | P26: 7074.018047 | Q26: 6591.315314 | R26: 6147.2288 | S26: 5738.669207 | T26: 5362.794381 | U26: 5016.989542 | V26: 4698.849089 | W26: 4406.159873 | X26: 4136.885794 | Y26: 3889.153641 | Z26: 3661.240061 | AA26: 3451.559567 | AB26: 3258.653513 | AC26: 3081.179942 | AD26: 2917.904258
A27: F | B27: CCA tax shield adjustment | C27: =SUM(E27:AD27) -> 12707.85489 | D27: =SUMPRODUCT(E27:AD27,$E$48:$AD$48) -> 3259.349216 | E27: =E93 -> 0 | F27: 0 | G27: 0 | H27: 0 | I27: 0 | J27: 0 | K27: 0 | L27: 0 | M27: 0 | N27: 0 | O27: 0 | P27: 0 | Q27: 0 | R27: 0 | S27: 0 | T27: 0 | U27: 0 | V27: 0 | W27: 0 | X27: 0 | Y27: 0 | Z27: 0 | AA27: 0 | AB27: 0 | AC27: 0 | AD27: 12707.85489
B28: Total incremental taxes - $k | C28: =SUM(E28:AD28) -> 188973.6623 | D28: =SUM(D26:D27) -> 117538.7502 | E28: 5459 | F28: 7696.000667 | G28: 13819.30611 | H28: 12796.98033 | I28: 11856.44061 | J28: 10991.14407 | K28: 10195.07126 | L28: 9462.68427 | M28: 8788.888239 | N28: 8168.995891 | O28: 7598.694931 | P28: 7074.018047 | Q28: 6591.315314 | R28: 6147.2288 | S28: 5738.669207 | T28: 5362.794381 | U28: 5016.989542 | V28: 4698.849089 | W28: 4406.159873 | X28: 4136.885794 | Y28: 3889.153641 | Z28: 3661.240061 | AA28: 3451.559567 | AB28: 3258.653513 | AC28: 3081.179942 | AD28: 15625.75915
B30: Capital expenditures:
A31: F | B31: Capital before overheads & AFUDC | C31: =SUM(E31:AD31) -> -590868.475 | D31: =SUMPRODUCT(E31:AD31,$E$48:$AD$48) -> -590868.475 | E31: =-('Project Inputs'!B34+'Project Inputs'!B38+'Project Inputs'!B49+'Project Inputs'!B55+'Project Inputs'!B61) -> -590868.475
A32: F | B32: Up-front overheads | C32: =SUM(E32:AD32) -> -8502.295784 | D32: =SUMPRODUCT(E32:AD32,$E$48:$AD$48) -> -8502.295784 | E32: =-('Project Inputs'!B39+'Project Inputs'!B50+'Project Inputs'!B56+'Project Inputs'!B62) -> -8502.295784
A33: F | B33: Up-front AFUDC | C33: =SUM(E33:AD33) -> -42596.29673 | D33: =SUMPRODUCT(E33:AD33,$E$48:$AD$48) -> -42596.29673 | E33: =-('Project Inputs'!B40+'Project Inputs'!B51+'Project Inputs'!B57+'Project Inputs'!B63) -> -42596.29673
B34: Total up-front capital expenditures - $k | C34: =SUM(E34:AD34) -> -641967.0675 | D34: =SUM(D31:D33) -> -641967.0675 | E34: =SUM(E31:E33) -> -641967.0675 | F34: 0 | G34: 0 | H34: 0 | I34: 0 | J34: 0 | K34: 0 | L34: 0 | M34: 0 | N34: 0 | O34: 0 | P34: 0 | Q34: 0 | R34: 0 | S34: 0 | T34: 0 | U34: 0 | V34: 0 | W34: 0 | X34: 0 | Y34: 0 | Z34: 0 | AA34: 0 | AB34: 0 | AC34: 0 | AD34: 0
A36: M | B36: Ongoing capital expenditures | C36: =SUM(E36:AD36) -> 0 | D36: =SUMPRODUCT(E36:AD36,$E$47:$AD$47) -> 0
B37: Total ongoing capital expenditures - $k | C37: =SUM(E37:AD37) -> 0 | D37: =SUM(D36:D36) -> 0 | E37: =SUM(E36:E36) -> 0 | F37: =SUM(F36:F36) -> 0 | G37: 0 | H37: 0 | I37: 0 | J37: 0 | K37: 0 | L37: 0 | M37: 0 | N37: 0 | O37: 0 | P37: 0 | Q37: 0 | R37: 0 | S37: 0 | T37: 0 | U37: 0 | V37: 0 | W37: 0 | X37: 0 | Y37: 0 | Z37: 0 | AA37: 0 | AB37: 0 | AC37: 0 | AD37: 0
A40: F | B40: Previous capital contribution/(credit) | C40: =SUM(E40:AD40) -> 0 | D40: =SUMPRODUCT(E40:AD40,$E$48:$AD$48) -> 0 | E40: =IF($C$2="Yes",IF(Stage='Standard Inputs'!E75,"",'Capital Cont Inputs'!B17),0) -> 0 | F40: =IF($C$2="Yes",'Capital Cont Inputs'!C17,0) -> 0 | G40: =IF($C$2="Yes",'Capital Cont Inputs'!D17,0) -> 0 | H40: =IF($C$2="Yes",'Capital Cont Inputs'!E17,0) -> 0 | I40: =IF($C$2="Yes",'Capital Cont Inputs'!F17,0) -> 0 | J40: =IF($C$2="Yes",'Capital Cont Inputs'!G17,0) -> 0 | K40: =IF($C$2="Yes",'Capital Cont Inputs'!H17,0) -> 0 | L40: =IF($C$2="Yes",'Capital Cont Inputs'!I17,0) -> 0 | M40: =IF($C$2="Yes",'Capital Cont Inputs'!J17,0) -> 0 | N40: =IF($C$2="Yes",'Capital Cont Inputs'!K17,0) -> 0 | O40: =IF($C$2="Yes",'Capital Cont Inputs'!L17,0) -> 0 | P40: =IF($C$2="Yes",'Capital Cont Inputs'!M17,0) -> 0 | Q40: =IF($C$2="Yes",'Capital Cont Inputs'!N17,0) -> 0 | R40: =IF($C$2="Yes",'Capital Cont Inputs'!O17,0) -> 0 | S40: =IF($C$2="Yes",'Capital Cont Inputs'!P17,0) -> 0 | T40: =IF($C$2="Yes",'Capital Cont Inputs'!Q17,0) -> 0 | U40: =IF($C$2="Yes",'Capital Cont Inputs'!R17,0) -> 0 | V40: =IF($C$2="Yes",'Capital Cont Inputs'!S17,0) -> 0 | W40: =IF($C$2="Yes",'Capital Cont Inputs'!T17,0) -> 0 | X40: =IF($C$2="Yes",'Capital Cont Inputs'!U17,0) -> 0 | Y40: =IF($C$2="Yes",'Capital Cont Inputs'!V17,0) -> 0 | Z40: =IF($C$2="Yes",'Capital Cont Inputs'!W17,0) -> 0 | AA40: =IF($C$2="Yes",'Capital Cont Inputs'!X17,0) -> 0 | AB40: =IF($C$2="Yes",'Capital Cont Inputs'!Y17,0) -> 0 | AC40: =IF($C$2="Yes",'Capital Cont Inputs'!Z17,0) -> 0 | AD40: =IF($C$2="Yes",'Capital Cont Inputs'!AA17,0) -> 0
A41: F | B41: Current capital contribution/(credit) | C41: =SUM(E41:AD41) -> 0 | D41: =SUMPRODUCT(E41:AD41,$E$48:$AD$48) -> 0 | E41: =IF($C$2="Yes",'Capital Cont Inputs'!B18,0) -> 0 | F41: =IF($C$2="Yes",'Capital Cont Inputs'!C18,0) -> 0 | G41: =IF($C$2="Yes",'Capital Cont Inputs'!D18,0) -> 0 | H41: =IF($C$2="Yes",'Capital Cont Inputs'!E18,0) -> 0 | I41: =IF($C$2="Yes",'Capital Cont Inputs'!F18,0) -> 0 | J41: =IF($C$2="Yes",'Capital Cont Inputs'!G18,0) -> 0 | K41: =IF($C$2="Yes",'Capital Cont Inputs'!H18,0) -> 0 | L41: =IF($C$2="Yes",'Capital Cont Inputs'!I18,0) -> 0 | M41: =IF($C$2="Yes",'Capital Cont Inputs'!J18,0) -> 0 | N41: =IF($C$2="Yes",'Capital Cont Inputs'!K18,0) -> 0 | O41: =IF($C$2="Yes",'Capital Cont Inputs'!L18,0) -> 0 | P41: =IF($C$2="Yes",'Capital Cont Inputs'!M18,0) -> 0 | Q41: =IF($C$2="Yes",'Capital Cont Inputs'!N18,0) -> 0 | R41: =IF($C$2="Yes",'Capital Cont Inputs'!O18,0) -> 0 | S41: =IF($C$2="Yes",'Capital Cont Inputs'!P18,0) -> 0 | T41: =IF($C$2="Yes",'Capital Cont Inputs'!Q18,0) -> 0 | U41: =IF($C$2="Yes",'Capital Cont Inputs'!R18,0) -> 0 | V41: =IF($C$2="Yes",'Capital Cont Inputs'!S18,0) -> 0 | W41: =IF($C$2="Yes",'Capital Cont Inputs'!T18,0) -> 0 | X41: =IF($C$2="Yes",'Capital Cont Inputs'!U18,0) -> 0 | Y41: =IF($C$2="Yes",'Capital Cont Inputs'!V18,0) -> 0 | Z41: =IF($C$2="Yes",'Capital Cont Inputs'!W18,0) -> 0 | AA41: =IF($C$2="Yes",'Capital Cont Inputs'!X18,0) -> 0 | AB41: =IF($C$2="Yes",'Capital Cont Inputs'!Y18,0) -> 0 | AC41: =IF($C$2="Yes",'Capital Cont Inputs'!Z18,0) -> 0 | AD41: =IF($C$2="Yes",'Capital Cont Inputs'!AA18,0) -> 0
B42: Total capital contributions - $k | C42: =SUM(E42:AD42) -> 0 | D42: =SUM(D40:D41) -> 0 | E42: =SUM(E40:E41) -> 0 | F42: =SUM(F40:F41) -> 0 | G42: 0 | H42: 0 | I42: 0 | J42: 0 | K42: 0 | L42: 0 | M42: 0 | N42: 0 | O42: 0 | P42: 0 | Q42: 0 | R42: 0 | S42: 0 | T42: 0 | U42: 0 | V42: 0 | W42: 0 | X42: 0 | Y42: 0 | Z42: 0 | AA42: 0 | AB42: 0 | AC42: 0 | AD42: 0
A44: F | B44: Change in working capital- $k | C44: =SUM(E44:AD44) -> 0 | D44: =SUMPRODUCT(E44:AD44,$E$48:$AD$48) -> -24.85958148 | E44: =-'Prelim Calc'!D96 -> 0 | F44: =-'Prelim Calc'!F96 -> -36 | G44: =-'Prelim Calc'!G96 -> 0 | H44: =-'Prelim Calc'!H96 -> 0 | I44: =-'Prelim Calc'!I96 -> 0 | J44: =-'Prelim Calc'!J96 -> 0 | K44: =-'Prelim Calc'!K96 -> 0 | L44: =-'Prelim Calc'!L96 -> 0 | M44: =-'Prelim Calc'!M96 -> 0 | N44: =-'Prelim Calc'!N96 -> 0 | O44: =-'Prelim Calc'!O96 -> 0 | P44: =-'Prelim Calc'!P96 -> 0 | Q44: =-'Prelim Calc'!Q96 -> 0 | R44: =-'Prelim Calc'!R96 -> 0 | S44: =-'Prelim Calc'!S96 -> 0 | T44: =-'Prelim Calc'!T96 -> 0 | U44: =-'Prelim Calc'!U96 -> 0 | V44: =-'Prelim Calc'!V96 -> 0 | W44: =-'Prelim Calc'!W96 -> 0 | X44: =-'Prelim Calc'!X96 -> 0 | Y44: =-'Prelim Calc'!Y96 -> 0 | Z44: =-'Prelim Calc'!Z96 -> 0 | AA44: =-'Prelim Calc'!AA96 -> 0 | AB44: =-'Prelim Calc'!AB96 -> 0 | AC44: =-'Prelim Calc'!AC96 -> 0 | AD44: =-'Prelim Calc'!AD96 -> 36
B46: ="Present value factor for discounting: "&ROUND('Prelim Calc'!H13*100,2)&"%" -> Present value factor for discounting: 5.59%
B47: Present value factor - mid-year | E47: =IF(E4=0,1,IF(E4=1,B47/(1+'Prelim Calc'!$H$13)^0.5,B47/(1+'Prelim Calc'!$H$13))) -> 1 | F47: =IF(F4=0,1,IF(F4=1,E47/(1+'Prelim Calc'!$H$13)^0.5,E47/(1+'Prelim Calc'!$H$13))) -> 0.9731531056 | G47: =IF(G4=0,1,IF(G4=1,F47/(1+'Prelim Calc'!$H$13)^0.5,F47/(1+'Prelim Calc'!$H$13))) -> 0.921602234 | H47: =IF(H4=0,1,IF(H4=1,G47/(1+'Prelim Calc'!$H$13)^0.5,G47/(1+'Prelim Calc'!$H$13))) -> 0.8727821685 | I47: =IF(I4=0,1,IF(I4=1,H47/(1+'Prelim Calc'!$H$13)^0.5,H47/(1+'Prelim Calc'!$H$13))) -> 0.8265482499 | J47: =IF(J4=0,1,IF(J4=1,I47/(1+'Prelim Calc'!$H$13)^0.5,I47/(1+'Prelim Calc'!$H$13))) -> 0.7827634821 | K47: =IF(K4=0,1,IF(K4=1,J47/(1+'Prelim Calc'!$H$13)^0.5,J47/(1+'Prelim Calc'!$H$13))) -> 0.7412981264 | L47: =IF(L4=0,1,IF(L4=1,K47/(1+'Prelim Calc'!$H$13)^0.5,K47/(1+'Prelim Calc'!$H$13))) -> 0.7020293162 | M47: =IF(M4=0,1,IF(M4=1,L47/(1+'Prelim Calc'!$H$13)^0.5,L47/(1+'Prelim Calc'!$H$13))) -> 0.6648406941 | N47: =IF(N4=0,1,IF(N4=1,M47/(1+'Prelim Calc'!$H$13)^0.5,M47/(1+'Prelim Calc'!$H$13))) -> 0.6296220661 | O47: =IF(O4=0,1,IF(O4=1,N47/(1+'Prelim Calc'!$H$13)^0.5,N47/(1+'Prelim Calc'!$H$13))) -> 0.5962690756 | P47: =IF(P4=0,1,IF(P4=1,O47/(1+'Prelim Calc'!$H$13)^0.5,O47/(1+'Prelim Calc'!$H$13))) -> 0.5646828941 | Q47: =IF(Q4=0,1,IF(Q4=1,P47/(1+'Prelim Calc'!$H$13)^0.5,P47/(1+'Prelim Calc'!$H$13))) -> 0.5347699286 | R47: =IF(R4=0,1,IF(R4=1,Q47/(1+'Prelim Calc'!$H$13)^0.5,Q47/(1+'Prelim Calc'!$H$13))) -> 0.5064415435 | S47: =IF(S4=0,1,IF(S4=1,R47/(1+'Prelim Calc'!$H$13)^0.5,R47/(1+'Prelim Calc'!$H$13))) -> 0.4796137989 | T47: =IF(T4=0,1,IF(T4=1,S47/(1+'Prelim Calc'!$H$13)^0.5,S47/(1+'Prelim Calc'!$H$13))) -> 0.4542072013 | U47: =IF(U4=0,1,IF(U4=1,T47/(1+'Prelim Calc'!$H$13)^0.5,T47/(1+'Prelim Calc'!$H$13))) -> 0.4301464682 | V47: =IF(V4=0,1,IF(V4=1,U47/(1+'Prelim Calc'!$H$13)^0.5,U47/(1+'Prelim Calc'!$H$13))) -> 0.4073603052 | W47: =IF(W4=0,1,IF(W4=1,V47/(1+'Prelim Calc'!$H$13)^0.5,V47/(1+'Prelim Calc'!$H$13))) -> 0.3857811943 | X47: =IF(X4=0,1,IF(X4=1,W47/(1+'Prelim Calc'!$H$13)^0.5,W47/(1+'Prelim Calc'!$H$13))) -> 0.3653451943 | Y47: =IF(Y4=0,1,IF(Y4=1,X47/(1+'Prelim Calc'!$H$13)^0.5,X47/(1+'Prelim Calc'!$H$13))) -> 0.3459917513 | Z47: =IF(Z4=0,1,IF(Z4=1,Y47/(1+'Prelim Calc'!$H$13)^0.5,Y47/(1+'Prelim Calc'!$H$13))) -> 0.3276635188 | AA47: =IF(AA4=0,1,IF(AA4=1,Z47/(1+'Prelim Calc'!$H$13)^0.5,Z47/(1+'Prelim Calc'!$H$13))) -> 0.3103061884 | AB47: =IF(AB4=0,1,IF(AB4=1,AA47/(1+'Prelim Calc'!$H$13)^0.5,AA47/(1+'Prelim Calc'!$H$13))) -> 0.2938683285 | AC47: =IF(AC4=0,1,IF(AC4=1,AB47/(1+'Prelim Calc'!$H$13)^0.5,AB47/(1+'Prelim Calc'!$H$13))) -> 0.2783012318 | AD47: =IF(AD4=0,1,IF(AD4=1,AC47/(1+'Prelim Calc'!$H$13)^0.5,AC47/(1+'Prelim Calc'!$H$13))) -> 0.2635587715
B48: Present value factor - full-year | E48: =IF(E4=0,1,B48/(1+'Prelim Calc'!$H$13)) -> 1 | F48: =IF(F4=0,1,E48/(1+'Prelim Calc'!$H$13)) -> 0.947026967 | G48: =IF(G4=0,1,F48/(1+'Prelim Calc'!$H$13)) -> 0.8968600762 | H48: =IF(H4=0,1,G48/(1+'Prelim Calc'!$H$13)) -> 0.8493506778 | I48: =IF(I4=0,1,H48/(1+'Prelim Calc'!$H$13)) -> 0.8043579963 | J48: =IF(J4=0,1,I48/(1+'Prelim Calc'!$H$13)) -> 0.7617487136 | K48: =IF(K4=0,1,J48/(1+'Prelim Calc'!$H$13)) -> 0.7213965739 | L48: =IF(L4=0,1,K48/(1+'Prelim Calc'!$H$13)) -> 0.6831820093 | M48: =IF(M4=0,1,L48/(1+'Prelim Calc'!$H$13)) -> 0.6469917862 | N48: =IF(N4=0,1,M48/(1+'Prelim Calc'!$H$13)) -> 0.612718669 | O48: =IF(O4=0,1,N48/(1+'Prelim Calc'!$H$13)) -> 0.5802611027 | P48: =IF(P4=0,1,O48/(1+'Prelim Calc'!$H$13)) -> 0.5495229121 | Q48: =IF(Q4=0,1,P48/(1+'Prelim Calc'!$H$13)) -> 0.5204130168 | R48: =IF(R4=0,1,Q48/(1+'Prelim Calc'!$H$13)) -> 0.4928451609 | S48: =IF(S4=0,1,R48/(1+'Prelim Calc'!$H$13)) -> 0.4667376579 | T48: =IF(T4=0,1,S48/(1+'Prelim Calc'!$H$13)) -> 0.4420131485 | U48: =IF(U4=0,1,T48/(1+'Prelim Calc'!$H$13)) -> 0.4185983714 | V48: =IF(V4=0,1,U48/(1+'Prelim Calc'!$H$13)) -> 0.3964239461 | W48: =IF(W4=0,1,V48/(1+'Prelim Calc'!$H$13)) -> 0.3754241673 | X48: =IF(X4=0,1,W48/(1+'Prelim Calc'!$H$13)) -> 0.3555368105 | Y48: =IF(Y4=0,1,X48/(1+'Prelim Calc'!$H$13)) -> 0.3367029473 | Z48: =IF(Z4=0,1,Y48/(1+'Prelim Calc'!$H$13)) -> 0.3188667709 | AA48: =IF(AA4=0,1,Z48/(1+'Prelim Calc'!$H$13)) -> 0.301975431 | AB48: =IF(AB4=0,1,AA48/(1+'Prelim Calc'!$H$13)) -> 0.2859788765 | AC48: =IF(AC4=0,1,AB48/(1+'Prelim Calc'!$H$13)) -> 0.270829708 | AD48: =IF(AD4=0,1,AC48/(1+'Prelim Calc'!$H$13)) -> 0.256483037
B50: Accumulated Net Present Value - $k | D50: =D17+D23+D28+D34+D37+D44+D42 -> -598670.1555
B52: Present value of capital contributions (for reporting) - $k | E52: =E42*E48 -> 0 | F52: 0 | G52: 0 | H52: 0 | I52: 0 | J52: 0 | K52: 0 | L52: 0 | M52: 0 | N52: 0 | O52: 0 | P52: 0 | Q52: 0 | R52: 0 | S52: 0 | T52: 0 | U52: 0 | V52: 0 | W52: 0 | X52: 0 | Y52: 0 | Z52: 0 | AA52: 0 | AB52: 0 | AC52: 0 | AD52: 0
B54: Calculatuon of Income Taxes | D54: ='Prelim Calc'!C33 -> Project Year: | E54: ='Capital Cont Inputs'!B16 -> 0 | F54: ='Capital Cont Inputs'!C16 -> 1 | G54: ='Capital Cont Inputs'!D16 -> 2 | H54: ='Capital Cont Inputs'!E16 -> 3 | I54: ='Capital Cont Inputs'!F16 -> 4 | J54: ='Capital Cont Inputs'!G16 -> 5 | K54: ='Capital Cont Inputs'!H16 -> 6 | L54: ='Capital Cont Inputs'!I16 -> 7 | M54: ='Capital Cont Inputs'!J16 -> 8 | N54: ='Capital Cont Inputs'!K16 -> 9 | O54: ='Capital Cont Inputs'!L16 -> 10 | P54: ='Capital Cont Inputs'!M16 -> 11 | Q54: ='Capital Cont Inputs'!N16 -> 12 | R54: ='Capital Cont Inputs'!O16 -> 13 | S54: ='Capital Cont Inputs'!P16 -> 14 | T54: ='Capital Cont Inputs'!Q16 -> 15 | U54: ='Capital Cont Inputs'!R16 -> 16 | V54: ='Capital Cont Inputs'!S16 -> 17 | W54: ='Capital Cont Inputs'!T16 -> 18 | X54: ='Capital Cont Inputs'!U16 -> 19 | Y54: ='Capital Cont Inputs'!V16 -> 20 | Z54: ='Capital Cont Inputs'!W16 -> 21 | AA54: ='Capital Cont Inputs'!X16 -> 22 | AB54: ='Capital Cont Inputs'!Y16 -> 23 | AC54: ='Capital Cont Inputs'!Z16 -> 24 | AD54: ='Capital Cont Inputs'!AA16 -> 25
D55: ='Prelim Calc'!C34 -> Year Ended: | E55: ='Capital Cont Inputs'!B15 -> 2021 | F55: ='Capital Cont Inputs'!C15 -> 2022 | G55: ='Capital Cont Inputs'!D15 -> 2023 | H55: ='Capital Cont Inputs'!E15 -> 2024 | I55: ='Capital Cont Inputs'!F15 -> 2025 | J55: ='Capital Cont Inputs'!G15 -> 2026 | K55: ='Capital Cont Inputs'!H15 -> 2027 | L55: ='Capital Cont Inputs'!I15 -> 2028 | M55: ='Capital Cont Inputs'!J15 -> 2029 | N55: ='Capital Cont Inputs'!K15 -> 2030 | O55: ='Capital Cont Inputs'!L15 -> 2031 | P55: ='Capital Cont Inputs'!M15 -> 2032 | Q55: ='Capital Cont Inputs'!N15 -> 2033 | R55: ='Capital Cont Inputs'!O15 -> 2034 | S55: ='Capital Cont Inputs'!P15 -> 2035 | T55: ='Capital Cont Inputs'!Q15 -> 2036 | U55: ='Capital Cont Inputs'!R15 -> 2037 | V55: ='Capital Cont Inputs'!S15 -> 2038 | W55: ='Capital Cont Inputs'!T15 -> 2039 | X55: ='Capital Cont Inputs'!U15 -> 2040 | Y55: ='Capital Cont Inputs'!V15 -> 2041 | Z55: ='Capital Cont Inputs'!W15 -> 2042 | AA55: ='Capital Cont Inputs'!X15 -> 2043 | AB55: ='Capital Cont Inputs'!Y15 -> 2044 | AC55: ='Capital Cont Inputs'!Z15 -> 2045 | AD55: ='Capital Cont Inputs'!AA15 -> 2046
C58: Up-front costs
B59: Allocation of Capital Contributions: | C59: $k | D59: % Split
B60: ='Project Inputs'!A33 -> Land costs | C60: ='Project Inputs'!B34 -> 14064.541 | D60: =C60/$C$65 -> 0.02190850857
B61: ='Project Inputs'!A37 -> Class 47 costs | C61: =SUM('Project Inputs'!B38:B40) -> 627902.5265 | D61: =C61/$C$65 -> 0.9780914914
B62: ='Project Inputs'!A48 -> Decision Support defined costs (1) | C62: =SUM('Project Inputs'!B49:B51) -> 0 | D62: =C62/$C$65 -> 0
B63: ='Project Inputs'!A54 -> Decision Support defined costs (2) | C63: =SUM('Project Inputs'!B55:B57) -> 0 | D63: =C63/$C$65 -> 0
B64: ='Project Inputs'!A60 -> Decision Support defined costs (3) | C64: =SUM('Project Inputs'!B61:B63) -> 0 | D64: =C64/$C$65 -> 0
B65: Total up-front capital before capital contributions | C65: =SUM(C60:C64) -> 641967.0675 | D65: =SUM(D60:D64) -> 1
B67: Calculation income tax provision - $k:
B68: Total incremental revenue | E68: =E17 -> 0 | F68: 0 | G68: 0 | H68: 0 | I68: 0 | J68: 0 | K68: 0 | L68: 0 | M68: 0 | N68: 0 | O68: 0 | P68: 0 | Q68: 0 | R68: 0 | S68: 0 | T68: 0 | U68: 0 | V68: 0 | W68: 0 | X68: 0 | Y68: 0 | Z68: 0 | AA68: 0 | AB68: 0 | AC68: 0 | AD68: 0
B69: Total incremental costs | E69: =E23 -> -20600 | F69: -3925.410891 | G69: -3925.410891 | H69: -3925.410891 | I69: -3925.410891 | J69: -3925.410891 | K69: -3925.410891 | L69: -3925.410891 | M69: -3925.410891 | N69: -3925.410891 | O69: -3925.410891 | P69: -3925.410891 | Q69: -3925.410891 | R69: -3925.410891 | S69: -3925.410891 | T69: -3925.410891 | U69: -3925.410891 | V69: -3925.410891 | W69: -3925.410891 | X69: -3925.410891 | Y69: -3925.410891 | Z69: -3925.410891 | AA69: -3925.410891 | AB69: -3925.410891 | AC69: -3925.410891 | AD69: -3925.410891
B70: Net income before CCA | E70: =E68+E69 -> -20600 | F70: =F68+F69 -> -3925.410891 | G70: -3925.410891 | H70: -3925.410891 | I70: -3925.410891 | J70: -3925.410891 | K70: -3925.410891 | L70: -3925.410891 | M70: -3925.410891 | N70: -3925.410891 | O70: -3925.410891 | P70: -3925.410891 | Q70: -3925.410891 | R70: -3925.410891 | S70: -3925.410891 | T70: -3925.410891 | U70: -3925.410891 | V70: -3925.410891 | W70: -3925.410891 | X70: -3925.410891 | Y70: -3925.410891 | Z70: -3925.410891 | AA70: -3925.410891 | AB70: -3925.410891 | AC70: -3925.410891 | AD70: -3925.410891
B72: CCA claim | E72: =E90 -> 0 | F72: =F90 -> 25116.10106 | G72: 48222.91404 | H72: 44365.08091 | I72: 40815.87444 | J72: 37550.60449 | K72: 34546.55613 | L72: 31782.83164 | M72: 29240.20511 | N72: 26900.9887 | O72: 24748.9096 | P72: 22768.99683 | Q72: 20947.47709 | R72: 19271.67892 | S72: 17729.94461 | T72: 16311.54904 | U72: 15006.62511 | V72: 13806.09511 | W72: 12701.6075 | X72: 11685.4789 | Y72: 10750.64059 | Z72: 9890.589339 | AA72: 9099.342191 | AB72: 8371.394816 | AC72: 7701.683231 | AD72: 7085.548572
B74: Taxable income / (loss) before income tax | E74: =E70-E72 -> -20600 | F74: =F70-F72 -> -29041.51195 | G74: -52148.32493 | H74: -48290.4918 | I74: -44741.28533 | J74: -41476.01538 | K74: -38471.96702 | L74: -35708.24253 | M74: -33165.616 | N74: -30826.39959 | O74: -28674.32049 | P74: -26694.40772 | Q74: -24872.88798 | R74: -23197.08981 | S74: -21655.3555 | T74: -20236.95993 | U74: -18932.03601 | V74: -17731.506 | W74: -16627.01839 | X74: -15610.88979 | Y74: -14676.05148 | Z74: -13816.00023 | AA74: -13024.75308 | AB74: -12296.80571 | AC74: -11627.09412 | AD74: -11010.95946
B76: Income tax rate | E76: ='Standard Inputs'!B28 -> 0.265 | F76: =E76 -> 0.265 | G76: 0.265 | H76: 0.265 | I76: 0.265 | J76: 0.265 | K76: 0.265 | L76: 0.265 | M76: 0.265 | N76: 0.265 | O76: 0.265 | P76: 0.265 | Q76: 0.265 | R76: 0.265 | S76: 0.265 | T76: 0.265 | U76: 0.265 | V76: 0.265 | W76: 0.265 | X76: 0.265 | Y76: 0.265 | Z76: 0.265 | AA76: 0.265 | AB76: 0.265 | AC76: 0.265 | AD76: 0.265
B78: Income tax provision | E78: =IF(ISNUMBER(E54),E74*E76,0) -> -5459 | F78: -7696.000667 | G78: -13819.30611 | H78: -12796.98033 | I78: -11856.44061 | J78: -10991.14407 | K78: -10195.07126 | L78: -9462.68427 | M78: -8788.888239 | N78: -8168.995891 | O78: -7598.694931 | P78: -7074.018047 | Q78: -6591.315314 | R78: -6147.2288 | S78: -5738.669207 | T78: -5362.794381 | U78: -5016.989542 | V78: -4698.849089 | W78: -4406.159873 | X78: -4136.885794 | Y78: -3889.153641 | Z78: -3661.240061 | AA78: -3451.559567 | AB78: -3258.653513 | AC78: -3081.179942 | AD78: -2917.904258
B80: PV of CCA claim | E80: =E72*E47 -> 0 | F80: 24441.81175 | G80: 44442.34531 | H80: 38721.05152 | I80: 33736.28958 | J80: 29393.24192 | K80: 25609.29733 | L80: 22312.47956 | M80: 19440.07826 | N80: 16937.45608 | O80: 14757.00945 | P80: 12857.26303 | Q80: 11202.08082 | R80: 9759.978817 | S80: 8503.526086 | T80: 7408.823037 | U80: 6455.046793 | V80: 5624.055115 | W80: 4900.041309 | X80: 4269.233558 | Y80: 3719.632964 | Z80: 3240.785306 | AA80: 2823.582193 | AB80: 2460.087802 | AC80: 2143.38793 | AD80: 1867.458477
B82: UCC Continuity - $k:
B84: Total:
B85: Opening UCC | E85: =E97+E105+E118+E131+E144 -> 0 | F85: 0 | G85: 616850.9665 | H85: 568628.0524 | I85: 524262.9715 | J85: 483447.0971 | K85: 445896.4926 | L85: 411349.9365 | M85: 379567.1048 | N85: 350326.8997 | O85: 323425.911 | P85: 298677.0014 | Q85: 275908.0046 | R85: 254960.5275 | S85: 235688.8486 | T85: 217958.904 | U85: 201647.3549 | V85: 186640.7298 | W85: 172834.6347 | X85: 160133.0272 | Y85: 148447.5483 | Z85: 137696.9077 | AA85: 127806.3184 | AB85: 118706.9762 | AC85: 110335.5814 | AD85: 102633.8982
B86: Additions | E86: =E98+E106+E119+E132+E145 -> 0 | F86: 641967.0675 | G86: 0 | H86: 0 | I86: 0 | J86: 0 | K86: 0 | L86: 0 | M86: 0 | N86: 0 | O86: 0 | P86: 0 | Q86: 0 | R86: 0 | S86: 0 | T86: 0 | U86: 0 | V86: 0 | W86: 0 | X86: 0 | Y86: 0 | Z86: 0 | AA86: 0 | AB86: 0 | AC86: 0 | AD86: 0
B88: UCC for CCA | E88: =E100+E108+E121+E134+E147 -> 0 | F88: 328015.8043 | G88: 616850.9665 | H88: 568628.0524 | I88: 524262.9715 | J88: 483447.0971 | K88: 445896.4926 | L88: 411349.9365 | M88: 379567.1048 | N88: 350326.8997 | O88: 323425.911 | P88: 298677.0014 | Q88: 275908.0046 | R88: 254960.5275 | S88: 235688.8486 | T88: 217958.904 | U88: 201647.3549 | V88: 186640.7298 | W88: 172834.6347 | X88: 160133.0272 | Y88: 148447.5483 | Z88: 137696.9077 | AA88: 127806.3184 | AB88: 118706.9762 | AC88: 110335.5814 | AD88: 102633.8982
B90: CCA claim | E90: =E110+E123+E136+E149 -> 0 | F90: 25116.10106 | G90: 48222.91404 | H90: 44365.08091 | I90: 40815.87444 | J90: 37550.60449 | K90: 34546.55613 | L90: 31782.83164 | M90: 29240.20511 | N90: 26900.9887 | O90: 24748.9096 | P90: 22768.99683 | Q90: 20947.47709 | R90: 19271.67892 | S90: 17729.94461 | T90: 16311.54904 | U90: 15006.62511 | V90: 13806.09511 | W90: 12701.6075 | X90: 11685.4789 | Y90: 10750.64059 | Z90: 9890.589339 | AA90: 9099.342191 | AB90: 8371.394816 | AC90: 7701.683231 | AD90: 7085.548572
B91: Ending UCC | E91: =E100+E111+E124+E137+E150 -> 0 | F91: 616850.9665 | G91: 568628.0524 | H91: 524262.9715 | I91: 483447.0971 | J91: 445896.4926 | K91: 411349.9365 | L91: 379567.1048 | M91: 350326.8997 | N91: 323425.911 | O91: 298677.0014 | P91: 275908.0046 | Q91: 254960.5275 | R91: 235688.8486 | S91: 217958.904 | T91: 201647.3549 | U91: 186640.7298 | V91: 172834.6347 | W91: 160133.0272 | X91: 148447.5483 | Y91: 137696.9077 | Z91: 127806.3184 | AA91: 118706.9762 | AB91: 110335.5814 | AC91: 102633.8982 | AD91: 95548.34958
B93: CCA tax shield adjustment | E93: =E113+E126+E139+E152 -> 0 | F93: 0 | G93: 0 | H93: 0 | I93: 0 | J93: 0 | K93: 0 | L93: 0 | M93: 0 | N93: 0 | O93: 0 | P93: 0 | Q93: 0 | R93: 0 | S93: 0 | T93: 0 | U93: 0 | V93: 0 | W93: 0 | X93: 0 | Y93: 0 | Z93: 0 | AA93: 0 | AB93: 0 | AC93: 0 | AD93: 12707.85489
B95: Detail by Class of Asset:
B96: ='Project Inputs'!A33&" - $k:" -> Land costs - $k:
B97: Opening UCC | E97: 0 | F97: =IF(ISNUMBER(F$54),E100,0) -> 0 | G97: 14064.541 | H97: 14064.541 | I97: 14064.541 | J97: 14064.541 | K97: 14064.541 | L97: 14064.541 | M97: 14064.541 | N97: 14064.541 | O97: 14064.541 | P97: 14064.541 | Q97: 14064.541 | R97: 14064.541 | S97: 14064.541 | T97: 14064.541 | U97: 14064.541 | V97: 14064.541 | W97: 14064.541 | X97: 14064.541 | Y97: 14064.541 | Z97: 14064.541 | AA97: 14064.541 | AB97: 14064.541 | AC97: 14064.541 | AD97: 14064.541
B98: Additions | F98: =-(F$42*$D$60)-((E42)*$D$60)+'Project Inputs'!$B$34 -> 14064.541 | G98: =IF(ISNUMBER(G5),-(G$42*$D$60),0) -> 0 | H98: =IF(ISNUMBER(H5),-(H$42*$D$60),0) -> 0 | I98: 0 | J98: 0 | K98: 0 | L98: 0 | M98: 0 | N98: 0 | O98: 0 | P98: 0 | Q98: 0 | R98: 0 | S98: 0 | T98: 0 | U98: 0 | V98: 0 | W98: 0 | X98: 0 | Y98: 0 | Z98: 0 | AA98: 0 | AB98: 0 | AC98: 0 | AD98: 0
B100: Ending UCC | E100: =E97+E98 -> 0 | F100: =F97+F98 -> 14064.541 | G100: =G97+G98 -> 14064.541 | H100: 14064.541 | I100: 14064.541 | J100: 14064.541 | K100: 14064.541 | L100: 14064.541 | M100: 14064.541 | N100: 14064.541 | O100: 14064.541 | P100: 14064.541 | Q100: 14064.541 | R100: 14064.541 | S100: 14064.541 | T100: 14064.541 | U100: 14064.541 | V100: 14064.541 | W100: 14064.541 | X100: 14064.541 | Y100: 14064.541 | Z100: 14064.541 | AA100: 14064.541 | AB100: 14064.541 | AC100: 14064.541 | AD100: 14064.541
B102: ='Project Inputs'!A37&" - $k:" -> Class 47 costs - $k:
B103: CCA rate | E103: ='Standard Inputs'!$C$35 -> 0.08 | F103: =E103 -> 0.08 | G103: 0.08 | H103: 0.08 | I103: 0.08 | J103: 0.08 | K103: 0.08 | L103: 0.08 | M103: 0.08 | N103: 0.08 | O103: 0.08 | P103: 0.08 | Q103: 0.08 | R103: 0.08 | S103: 0.08 | T103: 0.08 | U103: 0.08 | V103: 0.08 | W103: 0.08 | X103: 0.08 | Y103: 0.08 | Z103: 0.08 | AA103: 0.08 | AB103: 0.08 | AC103: 0.08 | AD103: 0.08
B105: Opening UCC | E105: 0 | F105: =IF(ISNUMBER(F$54),E111,0) -> 0 | G105: 602786.4255 | H105: 554563.5114 | I105: 510198.4305 | J105: 469382.5561 | K105: 431831.9516 | L105: 397285.3955 | M105: 365502.5638 | N105: 336262.3587 | O105: 309361.37 | P105: 284612.4604 | Q105: 261843.4636 | R105: 240895.9865 | S105: 221624.3076 | T105: 203894.363 | U105: 187582.8139 | V105: 172576.1888 | W105: 158770.0937 | X105: 146068.4862 | Y105: 134383.0073 | Z105: 123632.3667 | AA105: 113741.7774 | AB105: 104642.4352 | AC105: 96271.04039 | AD105: 88569.35715
B106: Additions | F106: ='Project Inputs'!$B$38+'Project Inputs'!$B$39+'Project Inputs'!$B$40-((E42)*$D$61)-(F$42*$D$61)-F37 -> 627902.5265 | G106: =IF(ISNUMBER(G5),-(G$42*$D$61)-G37,0) -> 0 | H106: =IF(ISNUMBER(H5),-(H$42*$D$61)-H37,0) -> 0 | I106: 0 | J106: 0 | K106: 0 | L106: 0 | M106: 0 | N106: 0 | O106: 0 | P106: 0 | Q106: 0 | R106: 0 | S106: 0 | T106: 0 | U106: 0 | V106: 0 | W106: 0 | X106: 0 | Y106: 0 | Z106: 0 | AA106: 0 | AB106: 0 | AC106: 0 | AD106: 0
B108: UCC for CCA | E108: =E105+(E106)*0.5 -> 0 | F108: 313951.2633 | G108: 602786.4255 | H108: 554563.5114 | I108: 510198.4305 | J108: 469382.5561 | K108: 431831.9516 | L108: 397285.3955 | M108: 365502.5638 | N108: 336262.3587 | O108: 309361.37 | P108: 284612.4604 | Q108: 261843.4636 | R108: 240895.9865 | S108: 221624.3076 | T108: 203894.363 | U108: 187582.8139 | V108: 172576.1888 | W108: 158770.0937 | X108: 146068.4862 | Y108: 134383.0073 | Z108: 123632.3667 | AA108: 113741.7774 | AB108: 104642.4352 | AC108: 96271.04039 | AD108: 88569.35715
B110: CCA claim | E110: =E108*E103 -> 0 | F110: 25116.10106 | G110: 48222.91404 | H110: 44365.08091 | I110: 40815.87444 | J110: 37550.60449 | K110: 34546.55613 | L110: 31782.83164 | M110: 29240.20511 | N110: 26900.9887 | O110: 24748.9096 | P110: 22768.99683 | Q110: 20947.47709 | R110: 19271.67892 | S110: 17729.94461 | T110: 16311.54904 | U110: 15006.62511 | V110: 13806.09511 | W110: 12701.6075 | X110: 11685.4789 | Y110: 10750.64059 | Z110: 9890.589339 | AA110: 9099.342191 | AB110: 8371.394816 | AC110: 7701.683231 | AD110: 7085.548572
B111: Ending UCC | E111: =E105+E106-E110 -> 0 | F111: =F105+F106-F110 -> 602786.4255 | G111: =G105+G106-G110 -> 554563.5114 | H111: 510198.4305 | I111: 469382.5561 | J111: 431831.9516 | K111: 397285.3955 | L111: 365502.5638 | M111: 336262.3587 | N111: 309361.37 | O111: 284612.4604 | P111: 261843.4636 | Q111: 240895.9865 | R111: 221624.3076 | S111: 203894.363 | T111: 187582.8139 | U111: 172576.1888 | V111: 158770.0937 | W111: 146068.4862 | X111: 134383.0073 | Y111: 123632.3667 | Z111: 113741.7774 | AA111: 104642.4352 | AB111: 96271.04039 | AC111: 88569.35715 | AD111: 81483.80858
B113: CCA tax shield adjustment | E113: =IF(E$55='Capital Cont Inputs'!$B$10,E111*E$76*E103/('Prelim Calc'!$H$13+E103),0) -> 0 | F113: =IF(F$55='Capital Cont Inputs'!$B$10,F111*F$76*F103/('Prelim Calc'!$H$13+F103),0) -> 0 | G113: =IF(G$55='Capital Cont Inputs'!$B$10,G111*G$76*G103/('Prelim Calc'!$H$13+G103),0) -> 0 | H113: =IF(H$55='Capital Cont Inputs'!$B$10,H111*H$76*H103/('Prelim Calc'!$H$13+H103),0) -> 0 | I113: =IF(I$55='Capital Cont Inputs'!$B$10,I111*I$76*I103/('Prelim Calc'!$H$13+I103),0) -> 0 | J113: =IF(J$55='Capital Cont Inputs'!$B$10,J111*J$76*J103/('Prelim Calc'!$H$13+J103),0) -> 0 | K113: =IF(K$55='Capital Cont Inputs'!$B$10,K111*K$76*K103/('Prelim Calc'!$H$13+K103),0) -> 0 | L113: =IF(L$55='Capital Cont Inputs'!$B$10,L111*L$76*L103/('Prelim Calc'!$H$13+L103),0) -> 0 | M113: =IF(M$55='Capital Cont Inputs'!$B$10,M111*M$76*M103/('Prelim Calc'!$H$13+M103),0) -> 0 | N113: =IF(N$55='Capital Cont Inputs'!$B$10,N111*N$76*N103/('Prelim Calc'!$H$13+N103),0) -> 0 | O113: =IF(O$55='Capital Cont Inputs'!$B$10,O111*O$76*O103/('Prelim Calc'!$H$13+O103),0) -> 0 | P113: =IF(P$55='Capital Cont Inputs'!$B$10,P111*P$76*P103/('Prelim Calc'!$H$13+P103),0) -> 0 | Q113: =IF(Q$55='Capital Cont Inputs'!$B$10,Q111*Q$76*Q103/('Prelim Calc'!$H$13+Q103),0) -> 0 | R113: =IF(R$55='Capital Cont Inputs'!$B$10,R111*R$76*R103/('Prelim Calc'!$H$13+R103),0) -> 0 | S113: =IF(S$55='Capital Cont Inputs'!$B$10,S111*S$76*S103/('Prelim Calc'!$H$13+S103),0) -> 0 | T113: =IF(T$55='Capital Cont Inputs'!$B$10,T111*T$76*T103/('Prelim Calc'!$H$13+T103),0) -> 0 | U113: =IF(U$55='Capital Cont Inputs'!$B$10,U111*U$76*U103/('Prelim Calc'!$H$13+U103),0) -> 0 | V113: =IF(V$55='Capital Cont Inputs'!$B$10,V111*V$76*V103/('Prelim Calc'!$H$13+V103),0) -> 0 | W113: =IF(W$55='Capital Cont Inputs'!$B$10,W111*W$76*W103/('Prelim Calc'!$H$13+W103),0) -> 0 | X113: =IF(X$55='Capital Cont Inputs'!$B$10,X111*X$76*X103/('Prelim Calc'!$H$13+X103),0) -> 0 | Y113: =IF(Y$55='Capital Cont Inputs'!$B$10,Y111*Y$76*Y103/('Prelim Calc'!$H$13+Y103),0) -> 0 | Z113: =IF(Z$55='Capital Cont Inputs'!$B$10,Z111*Z$76*Z103/('Prelim Calc'!$H$13+Z103),0) -> 0 | AA113: =IF(AA$55='Capital Cont Inputs'!$B$10,AA111*AA$76*AA103/('Prelim Calc'!$H$13+AA103),0) -> 0 | AB113: =IF(AB$55='Capital Cont Inputs'!$B$10,AB111*AB$76*AB103/('Prelim Calc'!$H$13+AB103),0) -> 0 | AC113: =IF(AC$55='Capital Cont Inputs'!$B$10,AC111*AC$76*AC103/('Prelim Calc'!$H$13+AC103),0) -> 0 | AD113: =IF(AD$55='Capital Cont Inputs'!$B$10,AD111*AD$76*AD103/('Prelim Calc'!$H$13+AD103),0) -> 12707.85489
B115: ='Project Inputs'!A48&" - $k:" -> Decision Support defined costs (1) - $k:
B116: CCA rate | E116: ='Standard Inputs'!C36 -> 0 | F116: =E116 -> 0 | G116: 0 | H116: 0 | I116: 0 | J116: 0 | K116: 0 | L116: 0 | M116: 0 | N116: 0 | O116: 0 | P116: 0 | Q116: 0 | R116: 0 | S116: 0 | T116: 0 | U116: 0 | V116: 0 | W116: 0 | X116: 0 | Y116: 0 | Z116: 0 | AA116: 0 | AB116: 0 | AC116: 0 | AD116: 0
B118: Opening UCC | E118: 0 | F118: =IF(ISNUMBER(F$54),E124,0) -> 0 | G118: 0 | H118: 0 | I118: 0 | J118: 0 | K118: 0 | L118: 0 | M118: 0 | N118: 0 | O118: 0 | P118: 0 | Q118: 0 | R118: 0 | S118: 0 | T118: 0 | U118: 0 | V118: 0 | W118: 0 | X118: 0 | Y118: 0 | Z118: 0 | AA118: 0 | AB118: 0 | AC118: 0 | AD118: 0
B119: Additions | F119: =SUM('Project Inputs'!$B$49:$B$51)-((E42)*$D$62)-(F$42*$D$62) -> 0 | G119: =IF(ISNUMBER(G5),-(G$42*$D$62),0) -> 0 | H119: =IF(ISNUMBER(H5),-(H$42*$D$62),0) -> 0 | I119: 0 | J119: 0 | K119: 0 | L119: 0 | M119: 0 | N119: 0 | O119: 0 | P119: 0 | Q119: 0 | R119: 0 | S119: 0 | T119: 0 | U119: 0 | V119: 0 | W119: 0 | X119: 0 | Y119: 0 | Z119: 0 | AA119: 0 | AB119: 0 | AC119: 0 | AD119: 0
B121: UCC for CCA | E121: =E118+(E119)*0.5 -> 0 | F121: 0 | G121: 0 | H121: 0 | I121: 0 | J121: 0 | K121: 0 | L121: 0 | M121: 0 | N121: 0 | O121: 0 | P121: 0 | Q121: 0 | R121: 0 | S121: 0 | T121: 0 | U121: 0 | V121: 0 | W121: 0 | X121: 0 | Y121: 0 | Z121: 0 | AA121: 0 | AB121: 0 | AC121: 0 | AD121: 0
B123: CCA claim | E123: =E121*E116 -> 0 | F123: 0 | G123: 0 | H123: 0 | I123: 0 | J123: 0 | K123: 0 | L123: 0 | M123: 0 | N123: 0 | O123: 0 | P123: 0 | Q123: 0 | R123: 0 | S123: 0 | T123: 0 | U123: 0 | V123: 0 | W123: 0 | X123: 0 | Y123: 0 | Z123: 0 | AA123: 0 | AB123: 0 | AC123: 0 | AD123: 0
B124: Ending UCC | E124: =E118+E119-E123 -> 0 | F124: =F118+F119-F123 -> 0 | G124: =G118+G119-G123 -> 0 | H124: 0 | I124: 0 | J124: 0 | K124: 0 | L124: 0 | M124: 0 | N124: 0 | O124: 0 | P124: 0 | Q124: 0 | R124: 0 | S124: 0 | T124: 0 | U124: 0 | V124: 0 | W124: 0 | X124: 0 | Y124: 0 | Z124: 0 | AA124: 0 | AB124: 0 | AC124: 0 | AD124: 0
B126: CCA tax shield adjustment | E126: =IF(E$55='Capital Cont Inputs'!$B$10,E124*E$76*E116/('Prelim Calc'!$H$13+E116),0) -> 0 | F126: =IF(F$55='Capital Cont Inputs'!$B$10,F124*F$76*F116/('Prelim Calc'!$H$13+F116),0) -> 0 | G126: =IF(G$55='Capital Cont Inputs'!$B$10,G124*G$76*G116/('Prelim Calc'!$H$13+G116),0) -> 0 | H126: =IF(H$55='Capital Cont Inputs'!$B$10,H124*H$76*H116/('Prelim Calc'!$H$13+H116),0) -> 0 | I126: =IF(I$55='Capital Cont Inputs'!$B$10,I124*I$76*I116/('Prelim Calc'!$H$13+I116),0) -> 0 | J126: =IF(J$55='Capital Cont Inputs'!$B$10,J124*J$76*J116/('Prelim Calc'!$H$13+J116),0) -> 0 | K126: =IF(K$55='Capital Cont Inputs'!$B$10,K124*K$76*K116/('Prelim Calc'!$H$13+K116),0) -> 0 | L126: =IF(L$55='Capital Cont Inputs'!$B$10,L124*L$76*L116/('Prelim Calc'!$H$13+L116),0) -> 0 | M126: =IF(M$55='Capital Cont Inputs'!$B$10,M124*M$76*M116/('Prelim Calc'!$H$13+M116),0) -> 0 | N126: =IF(N$55='Capital Cont Inputs'!$B$10,N124*N$76*N116/('Prelim Calc'!$H$13+N116),0) -> 0 | O126: =IF(O$55='Capital Cont Inputs'!$B$10,O124*O$76*O116/('Prelim Calc'!$H$13+O116),0) -> 0 | P126: =IF(P$55='Capital Cont Inputs'!$B$10,P124*P$76*P116/('Prelim Calc'!$H$13+P116),0) -> 0 | Q126: =IF(Q$55='Capital Cont Inputs'!$B$10,Q124*Q$76*Q116/('Prelim Calc'!$H$13+Q116),0) -> 0 | R126: =IF(R$55='Capital Cont Inputs'!$B$10,R124*R$76*R116/('Prelim Calc'!$H$13+R116),0) -> 0 | S126: =IF(S$55='Capital Cont Inputs'!$B$10,S124*S$76*S116/('Prelim Calc'!$H$13+S116),0) -> 0 | T126: =IF(T$55='Capital Cont Inputs'!$B$10,T124*T$76*T116/('Prelim Calc'!$H$13+T116),0) -> 0 | U126: =IF(U$55='Capital Cont Inputs'!$B$10,U124*U$76*U116/('Prelim Calc'!$H$13+U116),0) -> 0 | V126: =IF(V$55='Capital Cont Inputs'!$B$10,V124*V$76*V116/('Prelim Calc'!$H$13+V116),0) -> 0 | W126: =IF(W$55='Capital Cont Inputs'!$B$10,W124*W$76*W116/('Prelim Calc'!$H$13+W116),0) -> 0 | X126: =IF(X$55='Capital Cont Inputs'!$B$10,X124*X$76*X116/('Prelim Calc'!$H$13+X116),0) -> 0 | Y126: =IF(Y$55='Capital Cont Inputs'!$B$10,Y124*Y$76*Y116/('Prelim Calc'!$H$13+Y116),0) -> 0 | Z126: =IF(Z$55='Capital Cont Inputs'!$B$10,Z124*Z$76*Z116/('Prelim Calc'!$H$13+Z116),0) -> 0 | AA126: =IF(AA$55='Capital Cont Inputs'!$B$10,AA124*AA$76*AA116/('Prelim Calc'!$H$13+AA116),0) -> 0 | AB126: =IF(AB$55='Capital Cont Inputs'!$B$10,AB124*AB$76*AB116/('Prelim Calc'!$H$13+AB116),0) -> 0 | AC126: =IF(AC$55='Capital Cont Inputs'!$B$10,AC124*AC$76*AC116/('Prelim Calc'!$H$13+AC116),0) -> 0 | AD126: =IF(AD$55='Capital Cont Inputs'!$B$10,AD124*AD$76*AD116/('Prelim Calc'!$H$13+AD116),0) -> 0
B128: ='Project Inputs'!A54&" - $k:" -> Decision Support defined costs (2) - $k:
B129: CCA rate | E129: ='Standard Inputs'!C37 -> 0 | F129: =E129 -> 0 | G129: 0 | H129: 0 | I129: 0 | J129: 0 | K129: 0 | L129: 0 | M129: 0 | N129: 0 | O129: 0 | P129: 0 | Q129: 0 | R129: 0 | S129: 0 | T129: 0 | U129: 0 | V129: 0 | W129: 0 | X129: 0 | Y129: 0 | Z129: 0 | AA129: 0 | AB129: 0 | AC129: 0 | AD129: 0
B131: Opening UCC | E131: 0 | F131: =IF(ISNUMBER(F$54),E137,0) -> 0 | G131: 0 | H131: 0 | I131: 0 | J131: 0 | K131: 0 | L131: 0 | M131: 0 | N131: 0 | O131: 0 | P131: 0 | Q131: 0 | R131: 0 | S131: 0 | T131: 0 | U131: 0 | V131: 0 | W131: 0 | X131: 0 | Y131: 0 | Z131: 0 | AA131: 0 | AB131: 0 | AC131: 0 | AD131: 0
B132: Additions | F132: =SUM('Project Inputs'!$B$55:$B$57)-((E42)*'NPV Calc'!$D$63)-(F$42*'NPV Calc'!$D$63) -> 0 | G132: =IF(ISNUMBER(G5),-(G$42*'NPV Calc'!$D$63),0) -> 0 | H132: =IF(ISNUMBER(H5),-(H$42*'NPV Calc'!$D$63),0) -> 0 | I132: =IF(ISNUMBER(I5),-(I$42*'NPV Calc'!$D$63),0) -> 0 | J132: =IF(ISNUMBER(J5),-(J$42*'NPV Calc'!$D$63),0) -> 0 | K132: =IF(ISNUMBER(K5),-(K$42*'NPV Calc'!$D$63),0) -> 0 | L132: =IF(ISNUMBER(L5),-(L$42*'NPV Calc'!$D$63),0) -> 0 | M132: =IF(ISNUMBER(M5),-(M$42*'NPV Calc'!$D$63),0) -> 0 | N132: =IF(ISNUMBER(N5),-(N$42*'NPV Calc'!$D$63),0) -> 0 | O132: =IF(ISNUMBER(O5),-(O$42*'NPV Calc'!$D$63),0) -> 0 | P132: =IF(ISNUMBER(P5),-(P$42*'NPV Calc'!$D$63),0) -> 0 | Q132: =IF(ISNUMBER(Q5),-(Q$42*'NPV Calc'!$D$63),0) -> 0 | R132: =IF(ISNUMBER(R5),-(R$42*'NPV Calc'!$D$63),0) -> 0 | S132: =IF(ISNUMBER(S5),-(S$42*'NPV Calc'!$D$63),0) -> 0 | T132: =IF(ISNUMBER(T5),-(T$42*'NPV Calc'!$D$63),0) -> 0 | U132: =IF(ISNUMBER(U5),-(U$42*'NPV Calc'!$D$63),0) -> 0 | V132: =IF(ISNUMBER(V5),-(V$42*'NPV Calc'!$D$63),0) -> 0 | W132: =IF(ISNUMBER(W5),-(W$42*'NPV Calc'!$D$63),0) -> 0 | X132: =IF(ISNUMBER(X5),-(X$42*'NPV Calc'!$D$63),0) -> 0 | Y132: =IF(ISNUMBER(Y5),-(Y$42*'NPV Calc'!$D$63),0) -> 0 | Z132: =IF(ISNUMBER(Z5),-(Z$42*'NPV Calc'!$D$63),0) -> 0 | AA132: =IF(ISNUMBER(AA5),-(AA$42*'NPV Calc'!$D$63),0) -> 0 | AB132: =IF(ISNUMBER(AB5),-(AB$42*'NPV Calc'!$D$63),0) -> 0 | AC132: =IF(ISNUMBER(AC5),-(AC$42*'NPV Calc'!$D$63),0) -> 0 | AD132: =IF(ISNUMBER(AD5),-(AD$42*'NPV Calc'!$D$63),0) -> 0
B134: UCC for CCA | E134: =E131+(E132)*0.5 -> 0 | F134: 0 | G134: 0 | H134: 0 | I134: 0 | J134: 0 | K134: 0 | L134: 0 | M134: 0 | N134: 0 | O134: 0 | P134: 0 | Q134: 0 | R134: 0 | S134: 0 | T134: 0 | U134: 0 | V134: 0 | W134: 0 | X134: 0 | Y134: 0 | Z134: 0 | AA134: 0 | AB134: 0 | AC134: 0 | AD134: 0
B136: CCA claim | E136: =E134*E129 -> 0 | F136: 0 | G136: 0 | H136: 0 | I136: 0 | J136: 0 | K136: 0 | L136: 0 | M136: 0 | N136: 0 | O136: 0 | P136: 0 | Q136: 0 | R136: 0 | S136: 0 | T136: 0 | U136: 0 | V136: 0 | W136: 0 | X136: 0 | Y136: 0 | Z136: 0 | AA136: 0 | AB136: 0 | AC136: 0 | AD136: 0
B137: Ending UCC | E137: =E131+E132-E136 -> 0 | F137: =F131+F132-F136 -> 0 | G137: =G131+G132-G136 -> 0 | H137: 0 | I137: 0 | J137: 0 | K137: 0 | L137: 0 | M137: 0 | N137: 0 | O137: 0 | P137: 0 | Q137: 0 | R137: 0 | S137: 0 | T137: 0 | U137: 0 | V137: 0 | W137: 0 | X137: 0 | Y137: 0 | Z137: 0 | AA137: 0 | AB137: 0 | AC137: 0 | AD137: 0
B139: CCA tax shield adjustment | E139: =IF(E$55='Capital Cont Inputs'!$B$10,E137*E$76*E129/('Prelim Calc'!$H$13+E129),0) -> 0 | F139: =IF(F$55='Capital Cont Inputs'!$B$10,F137*F$76*F129/('Prelim Calc'!$H$13+F129),0) -> 0 | G139: =IF(G$55='Capital Cont Inputs'!$B$10,G137*G$76*G129/('Prelim Calc'!$H$13+G129),0) -> 0 | H139: =IF(H$55='Capital Cont Inputs'!$B$10,H137*H$76*H129/('Prelim Calc'!$H$13+H129),0) -> 0 | I139: =IF(I$55='Capital Cont Inputs'!$B$10,I137*I$76*I129/('Prelim Calc'!$H$13+I129),0) -> 0 | J139: =IF(J$55='Capital Cont Inputs'!$B$10,J137*J$76*J129/('Prelim Calc'!$H$13+J129),0) -> 0 | K139: =IF(K$55='Capital Cont Inputs'!$B$10,K137*K$76*K129/('Prelim Calc'!$H$13+K129),0) -> 0 | L139: =IF(L$55='Capital Cont Inputs'!$B$10,L137*L$76*L129/('Prelim Calc'!$H$13+L129),0) -> 0 | M139: =IF(M$55='Capital Cont Inputs'!$B$10,M137*M$76*M129/('Prelim Calc'!$H$13+M129),0) -> 0 | N139: =IF(N$55='Capital Cont Inputs'!$B$10,N137*N$76*N129/('Prelim Calc'!$H$13+N129),0) -> 0 | O139: =IF(O$55='Capital Cont Inputs'!$B$10,O137*O$76*O129/('Prelim Calc'!$H$13+O129),0) -> 0 | P139: =IF(P$55='Capital Cont Inputs'!$B$10,P137*P$76*P129/('Prelim Calc'!$H$13+P129),0) -> 0 | Q139: =IF(Q$55='Capital Cont Inputs'!$B$10,Q137*Q$76*Q129/('Prelim Calc'!$H$13+Q129),0) -> 0 | R139: =IF(R$55='Capital Cont Inputs'!$B$10,R137*R$76*R129/('Prelim Calc'!$H$13+R129),0) -> 0 | S139: =IF(S$55='Capital Cont Inputs'!$B$10,S137*S$76*S129/('Prelim Calc'!$H$13+S129),0) -> 0 | T139: =IF(T$55='Capital Cont Inputs'!$B$10,T137*T$76*T129/('Prelim Calc'!$H$13+T129),0) -> 0 | U139: =IF(U$55='Capital Cont Inputs'!$B$10,U137*U$76*U129/('Prelim Calc'!$H$13+U129),0) -> 0 | V139: =IF(V$55='Capital Cont Inputs'!$B$10,V137*V$76*V129/('Prelim Calc'!$H$13+V129),0) -> 0 | W139: =IF(W$55='Capital Cont Inputs'!$B$10,W137*W$76*W129/('Prelim Calc'!$H$13+W129),0) -> 0 | X139: =IF(X$55='Capital Cont Inputs'!$B$10,X137*X$76*X129/('Prelim Calc'!$H$13+X129),0) -> 0 | Y139: =IF(Y$55='Capital Cont Inputs'!$B$10,Y137*Y$76*Y129/('Prelim Calc'!$H$13+Y129),0) -> 0 | Z139: =IF(Z$55='Capital Cont Inputs'!$B$10,Z137*Z$76*Z129/('Prelim Calc'!$H$13+Z129),0) -> 0 | AA139: =IF(AA$55='Capital Cont Inputs'!$B$10,AA137*AA$76*AA129/('Prelim Calc'!$H$13+AA129),0) -> 0 | AB139: =IF(AB$55='Capital Cont Inputs'!$B$10,AB137*AB$76*AB129/('Prelim Calc'!$H$13+AB129),0) -> 0 | AC139: =IF(AC$55='Capital Cont Inputs'!$B$10,AC137*AC$76*AC129/('Prelim Calc'!$H$13+AC129),0) -> 0 | AD139: =IF(AD$55='Capital Cont Inputs'!$B$10,AD137*AD$76*AD129/('Prelim Calc'!$H$13+AD129),0) -> 0
B141: ='Project Inputs'!A60&" - $k:" -> Decision Support defined costs (3) - $k:
B142: CCA rate | E142: ='Standard Inputs'!C38 -> 0 | F142: =E142 -> 0 | G142: 0 | H142: 0 | I142: 0 | J142: 0 | K142: 0 | L142: 0 | M142: 0 | N142: 0 | O142: 0 | P142: 0 | Q142: 0 | R142: 0 | S142: 0 | T142: 0 | U142: 0 | V142: 0 | W142: 0 | X142: 0 | Y142: 0 | Z142: 0 | AA142: 0 | AB142: 0 | AC142: 0 | AD142: 0
B144: Opening UCC | E144: 0 | F144: =IF(ISNUMBER(F$54),E150,0) -> 0 | G144: 0 | H144: 0 | I144: 0 | J144: 0 | K144: 0 | L144: 0 | M144: 0 | N144: 0 | O144: 0 | P144: 0 | Q144: 0 | R144: 0 | S144: 0 | T144: 0 | U144: 0 | V144: 0 | W144: 0 | X144: 0 | Y144: 0 | Z144: 0 | AA144: 0 | AB144: 0 | AC144: 0 | AD144: 0
B145: Additions | F145: =SUM('Project Inputs'!$B$61:$B$63)-((E42)*$D$64)-(F$42*$D$64) -> 0 | G145: =IF(ISNUMBER(G5),-(G$42*$D$64),0) -> 0 | H145: =IF(ISNUMBER(H5),-(H$42*$D$64),0) -> 0 | I145: 0 | J145: 0 | K145: 0 | L145: 0 | M145: 0 | N145: 0 | O145: 0 | P145: 0 | Q145: 0 | R145: 0 | S145: 0 | T145: 0 | U145: 0 | V145: 0 | W145: 0 | X145: 0 | Y145: 0 | Z145: 0 | AA145: 0 | AB145: 0 | AC145: 0 | AD145: 0
B147: UCC for CCA | E147: =E144+(E145)*0.5 -> 0 | F147: 0 | G147: 0 | H147: 0 | I147: 0 | J147: 0 | K147: 0 | L147: 0 | M147: 0 | N147: 0 | O147: 0 | P147: 0 | Q147: 0 | R147: 0 | S147: 0 | T147: 0 | U147: 0 | V147: 0 | W147: 0 | X147: 0 | Y147: 0 | Z147: 0 | AA147: 0 | AB147: 0 | AC147: 0 | AD147: 0
B149: CCA claim | E149: =E147*E142 -> 0 | F149: 0 | G149: 0 | H149: 0 | I149: 0 | J149: 0 | K149: 0 | L149: 0 | M149: 0 | N149: 0 | O149: 0 | P149: 0 | Q149: 0 | R149: 0 | S149: 0 | T149: 0 | U149: 0 | V149: 0 | W149: 0 | X149: 0 | Y149: 0 | Z149: 0 | AA149: 0 | AB149: 0 | AC149: 0 | AD149: 0
B150: Ending UCC | E150: =E144+E145-E149 -> 0 | F150: =F144+F145-F149 -> 0 | G150: =G144+G145-G149 -> 0 | H150: 0 | I150: 0 | J150: 0 | K150: 0 | L150: 0 | M150: 0 | N150: 0 | O150: 0 | P150: 0 | Q150: 0 | R150: 0 | S150: 0 | T150: 0 | U150: 0 | V150: 0 | W150: 0 | X150: 0 | Y150: 0 | Z150: 0 | AA150: 0 | AB150: 0 | AC150: 0 | AD150: 0
B152: CCA tax shield adjustment | E152: =IF(E$55='Capital Cont Inputs'!$B$10,E150*E$76*E142/('Prelim Calc'!$H$13+E142),0) -> 0 | F152: =IF(F$55='Capital Cont Inputs'!$B$10,F150*F$76*F142/('Prelim Calc'!$H$13+F142),0) -> 0 | G152: =IF(G$55='Capital Cont Inputs'!$B$10,G150*G$76*G142/('Prelim Calc'!$H$13+G142),0) -> 0 | H152: =IF(H$55='Capital Cont Inputs'!$B$10,H150*H$76*H142/('Prelim Calc'!$H$13+H142),0) -> 0 | I152: =IF(I$55='Capital Cont Inputs'!$B$10,I150*I$76*I142/('Prelim Calc'!$H$13+I142),0) -> 0 | J152: =IF(J$55='Capital Cont Inputs'!$B$10,J150*J$76*J142/('Prelim Calc'!$H$13+J142),0) -> 0 | K152: =IF(K$55='Capital Cont Inputs'!$B$10,K150*K$76*K142/('Prelim Calc'!$H$13+K142),0) -> 0 | L152: =IF(L$55='Capital Cont Inputs'!$B$10,L150*L$76*L142/('Prelim Calc'!$H$13+L142),0) -> 0 | M152: =IF(M$55='Capital Cont Inputs'!$B$10,M150*M$76*M142/('Prelim Calc'!$H$13+M142),0) -> 0 | N152: =IF(N$55='Capital Cont Inputs'!$B$10,N150*N$76*N142/('Prelim Calc'!$H$13+N142),0) -> 0 | O152: =IF(O$55='Capital Cont Inputs'!$B$10,O150*O$76*O142/('Prelim Calc'!$H$13+O142),0) -> 0 | P152: =IF(P$55='Capital Cont Inputs'!$B$10,P150*P$76*P142/('Prelim Calc'!$H$13+P142),0) -> 0 | Q152: =IF(Q$55='Capital Cont Inputs'!$B$10,Q150*Q$76*Q142/('Prelim Calc'!$H$13+Q142),0) -> 0 | R152: =IF(R$55='Capital Cont Inputs'!$B$10,R150*R$76*R142/('Prelim Calc'!$H$13+R142),0) -> 0 | S152: =IF(S$55='Capital Cont Inputs'!$B$10,S150*S$76*S142/('Prelim Calc'!$H$13+S142),0) -> 0 | T152: =IF(T$55='Capital Cont Inputs'!$B$10,T150*T$76*T142/('Prelim Calc'!$H$13+T142),0) -> 0 | U152: =IF(U$55='Capital Cont Inputs'!$B$10,U150*U$76*U142/('Prelim Calc'!$H$13+U142),0) -> 0 | V152: =IF(V$55='Capital Cont Inputs'!$B$10,V150*V$76*V142/('Prelim Calc'!$H$13+V142),0) -> 0 | W152: =IF(W$55='Capital Cont Inputs'!$B$10,W150*W$76*W142/('Prelim Calc'!$H$13+W142),0) -> 0 | X152: =IF(X$55='Capital Cont Inputs'!$B$10,X150*X$76*X142/('Prelim Calc'!$H$13+X142),0) -> 0 | Y152: =IF(Y$55='Capital Cont Inputs'!$B$10,Y150*Y$76*Y142/('Prelim Calc'!$H$13+Y142),0) -> 0 | Z152: =IF(Z$55='Capital Cont Inputs'!$B$10,Z150*Z$76*Z142/('Prelim Calc'!$H$13+Z142),0) -> 0 | AA152: =IF(AA$55='Capital Cont Inputs'!$B$10,AA150*AA$76*AA142/('Prelim Calc'!$H$13+AA142),0) -> 0 | AB152: =IF(AB$55='Capital Cont Inputs'!$B$10,AB150*AB$76*AB142/('Prelim Calc'!$H$13+AB142),0) -> 0 | AC152: =IF(AC$55='Capital Cont Inputs'!$B$10,AC150*AC$76*AC142/('Prelim Calc'!$H$13+AC142),0) -> 0 | AD152: =IF(AD$55='Capital Cont Inputs'!$B$10,AD150*AD$76*AD142/('Prelim Calc'!$H$13+AD142),0) -> 0

Sheet S92 RevReq Calc
C2: Calculation of Revenue Requirement
D3: Project Year: | E3: ='Capital Cont Inputs'!B16 -> 0 | F3: ='Capital Cont Inputs'!C16 -> 1 | G3: ='Capital Cont Inputs'!D16 -> 2 | H3: ='Capital Cont Inputs'!E16 -> 3 | I3: ='Capital Cont Inputs'!F16 -> 4 | J3: ='Capital Cont Inputs'!G16 -> 5 | K3: ='Capital Cont Inputs'!H16 -> 6 | L3: ='Capital Cont Inputs'!I16 -> 7 | M3: ='Capital Cont Inputs'!J16 -> 8 | N3: ='Capital Cont Inputs'!K16 -> 9 | O3: ='Capital Cont Inputs'!L16 -> 10 | P3: ='Capital Cont Inputs'!M16 -> 11 | Q3: ='Capital Cont Inputs'!N16 -> 12 | R3: ='Capital Cont Inputs'!O16 -> 13 | S3: ='Capital Cont Inputs'!P16 -> 14 | T3: ='Capital Cont Inputs'!Q16 -> 15 | U3: ='Capital Cont Inputs'!R16 -> 16 | V3: ='Capital Cont Inputs'!S16 -> 17 | W3: ='Capital Cont Inputs'!T16 -> 18 | X3: ='Capital Cont Inputs'!U16 -> 19 | Y3: ='Capital Cont Inputs'!V16 -> 20 | Z3: ='Capital Cont Inputs'!W16 -> 21 | AA3: ='Capital Cont Inputs'!X16 -> 22 | AB3: ='Capital Cont Inputs'!Y16 -> 23 | AC3: ='Capital Cont Inputs'!Z16 -> 24 | AD3: ='Capital Cont Inputs'!AA16 -> 25
D4: Year Ended: | E4: ='Capital Cont Inputs'!B15 -> 2021 | F4: ='Capital Cont Inputs'!C15 -> 2022 | G4: ='Capital Cont Inputs'!D15 -> 2023 | H4: ='Capital Cont Inputs'!E15 -> 2024 | I4: ='Capital Cont Inputs'!F15 -> 2025 | J4: ='Capital Cont Inputs'!G15 -> 2026 | K4: ='Capital Cont Inputs'!H15 -> 2027 | L4: ='Capital Cont Inputs'!I15 -> 2028 | M4: ='Capital Cont Inputs'!J15 -> 2029 | N4: ='Capital Cont Inputs'!K15 -> 2030 | O4: ='Capital Cont Inputs'!L15 -> 2031 | P4: ='Capital Cont Inputs'!M15 -> 2032 | Q4: ='Capital Cont Inputs'!N15 -> 2033 | R4: ='Capital Cont Inputs'!O15 -> 2034 | S4: ='Capital Cont Inputs'!P15 -> 2035 | T4: ='Capital Cont Inputs'!Q15 -> 2036 | U4: ='Capital Cont Inputs'!R15 -> 2037 | V4: ='Capital Cont Inputs'!S15 -> 2038 | W4: ='Capital Cont Inputs'!T15 -> 2039 | X4: ='Capital Cont Inputs'!U15 -> 2040 | Y4: ='Capital Cont Inputs'!V15 -> 2041 | Z4: ='Capital Cont Inputs'!W15 -> 2042 | AA4: ='Capital Cont Inputs'!X15 -> 2043 | AB4: ='Capital Cont Inputs'!Y15 -> 2044 | AC4: ='Capital Cont Inputs'!Z15 -> 2045 | AD4: ='Capital Cont Inputs'!AA15 -> 2046
C5: ='NPV Calc'!B96 -> Land costs - $k:
C6: Net Book Value, beginning of year | E6: 0 | F6: =IF(ISNUMBER(F$3),E8,0) -> 0 | G6: 14064.541 | H6: 14064.541 | I6: 14064.541 | J6: 14064.541 | K6: 14064.541 | L6: 14064.541 | M6: 14064.541 | N6: 14064.541 | O6: 14064.541 | P6: 14064.541 | Q6: 14064.541 | R6: 14064.541 | S6: 14064.541 | T6: 14064.541 | U6: 14064.541 | V6: 14064.541 | W6: 14064.541 | X6: 14064.541 | Y6: 14064.541 | Z6: 14064.541 | AA6: 14064.541 | AB6: 14064.541 | AC6: 14064.541 | AD6: 14064.541
C7: Additions during year | E7: =IF(E$3=1,SUM('NPV Calc'!$E$98:$AD$98),0) -> 0 | F7: =IF(F$3=1,SUM('NPV Calc'!$E$98:$AD$98),0) -> 14064.541 | G7: =IF(G$3=1,SUM('NPV Calc'!$E$98:$AD$98),0) -> 0 | H7: =IF(H$3=1,SUM('NPV Calc'!$E$98:$AD$98),0) -> 0 | I7: =IF(I$3=1,SUM('NPV Calc'!$E$98:$AD$98),0) -> 0 | J7: =IF(J$3=1,SUM('NPV Calc'!$E$98:$AD$98),0) -> 0 | K7: =IF(K$3=1,SUM('NPV Calc'!$E$98:$AD$98),0) -> 0 | L7: =IF(L$3=1,SUM('NPV Calc'!$E$98:$AD$98),0) -> 0 | M7: =IF(M$3=1,SUM('NPV Calc'!$E$98:$AD$98),0) -> 0 | N7: =IF(N$3=1,SUM('NPV Calc'!$E$98:$AD$98),0) -> 0 | O7: =IF(O$3=1,SUM('NPV Calc'!$E$98:$AD$98),0) -> 0 | P7: =IF(P$3=1,SUM('NPV Calc'!$E$98:$AD$98),0) -> 0 | Q7: =IF(Q$3=1,SUM('NPV Calc'!$E$98:$AD$98),0) -> 0 | R7: =IF(R$3=1,SUM('NPV Calc'!$E$98:$AD$98),0) -> 0 | S7: =IF(S$3=1,SUM('NPV Calc'!$E$98:$AD$98),0) -> 0 | T7: =IF(T$3=1,SUM('NPV Calc'!$E$98:$AD$98),0) -> 0 | U7: =IF(U$3=1,SUM('NPV Calc'!$E$98:$AD$98),0) -> 0 | V7: =IF(V$3=1,SUM('NPV Calc'!$E$98:$AD$98),0) -> 0 | W7: =IF(W$3=1,SUM('NPV Calc'!$E$98:$AD$98),0) -> 0 | X7: =IF(X$3=1,SUM('NPV Calc'!$E$98:$AD$98),0) -> 0 | Y7: =IF(Y$3=1,SUM('NPV Calc'!$E$98:$AD$98),0) -> 0 | Z7: =IF(Z$3=1,SUM('NPV Calc'!$E$98:$AD$98),0) -> 0 | AA7: =IF(AA$3=1,SUM('NPV Calc'!$E$98:$AD$98),0) -> 0 | AB7: =IF(AB$3=1,SUM('NPV Calc'!$E$98:$AD$98),0) -> 0 | AC7: =IF(AC$3=1,SUM('NPV Calc'!$E$98:$AD$98),0) -> 0 | AD7: =IF(AD$3=1,SUM('NPV Calc'!$E$98:$AD$98),0) -> 0
C8: Net Book Value, end of year | E8: =E6+E7 -> 0 | F8: 14064.541 | G8: 14064.541 | H8: 14064.541 | I8: 14064.541 | J8: 14064.541 | K8: 14064.541 | L8: 14064.541 | M8: 14064.541 | N8: 14064.541 | O8: 14064.541 | P8: 14064.541 | Q8: 14064.541 | R8: 14064.541 | S8: 14064.541 | T8: 14064.541 | U8: 14064.541 | V8: 14064.541 | W8: 14064.541 | X8: 14064.541 | Y8: 14064.541 | Z8: 14064.541 | AA8: 14064.541 | AB8: 14064.541 | AC8: 14064.541 | AD8: 14064.541
C9: Average Net Book Value for the year | F9: =IF(ISNUMBER(F$3),AVERAGE(E8:F8),0) -> 7032.2705 | G9: 14064.541 | H9: 14064.541 | I9: 14064.541 | J9: 14064.541 | K9: 14064.541 | L9: 14064.541 | M9: 14064.541 | N9: 14064.541 | O9: 14064.541 | P9: 14064.541 | Q9: 14064.541 | R9: 14064.541 | S9: 14064.541 | T9: 14064.541 | U9: 14064.541 | V9: 14064.541 | W9: 14064.541 | X9: 14064.541 | Y9: 14064.541 | Z9: 14064.541 | AA9: 14064.541 | AB9: 14064.541 | AC9: 14064.541 | AD9: 14064.541
C11: ='NPV Calc'!B102 -> Class 47 costs - $k:
C12: Net book value, beginning of year | E12: 0 | F12: =IF(ISNUMBER(F$3),E15,0) -> 0 | G12: 615344.476 | H12: 602786.4255 | I12: 590228.3749 | J12: 577670.3244 | K12: 565112.2739 | L12: 552554.2233 | M12: 539996.1728 | N12: 527438.1223 | O12: 514880.0717 | P12: 502322.0212 | Q12: 489763.9707 | R12: 477205.9202 | S12: 464647.8696 | T12: 452089.8191 | U12: 439531.7686 | V12: 426973.718 | W12: 414415.6675 | X12: 401857.617 | Y12: 389299.5664 | Z12: 376741.5159 | AA12: 364183.4654 | AB12: 351625.4148 | AC12: 339067.3643 | AD12: 326509.3138
C13: Additions during year | E13: =IF(E$3=1,SUM('NPV Calc'!$E$106:$AD$106),0) -> 0 | F13: =IF(F$3=1,SUM('NPV Calc'!$E$106:$AD$106),0) -> 627902.5265 | G13: =IF(G$3=1,SUM('NPV Calc'!$E$106:$AD$106),0) -> 0 | H13: =IF(H$3=1,SUM('NPV Calc'!$E$106:$AD$106),0) -> 0 | I13: =IF(I$3=1,SUM('NPV Calc'!$E$106:$AD$106),0) -> 0 | J13: =IF(J$3=1,SUM('NPV Calc'!$E$106:$AD$106),0) -> 0 | K13: =IF(K$3=1,SUM('NPV Calc'!$E$106:$AD$106),0) -> 0 | L13: =IF(L$3=1,SUM('NPV Calc'!$E$106:$AD$106),0) -> 0 | M13: =IF(M$3=1,SUM('NPV Calc'!$E$106:$AD$106),0) -> 0 | N13: =IF(N$3=1,SUM('NPV Calc'!$E$106:$AD$106),0) -> 0 | O13: =IF(O$3=1,SUM('NPV Calc'!$E$106:$AD$106),0) -> 0 | P13: =IF(P$3=1,SUM('NPV Calc'!$E$106:$AD$106),0) -> 0 | Q13: =IF(Q$3=1,SUM('NPV Calc'!$E$106:$AD$106),0) -> 0 | R13: =IF(R$3=1,SUM('NPV Calc'!$E$106:$AD$106),0) -> 0 | S13: =IF(S$3=1,SUM('NPV Calc'!$E$106:$AD$106),0) -> 0 | T13: =IF(T$3=1,SUM('NPV Calc'!$E$106:$AD$106),0) -> 0 | U13: =IF(U$3=1,SUM('NPV Calc'!$E$106:$AD$106),0) -> 0 | V13: =IF(V$3=1,SUM('NPV Calc'!$E$106:$AD$106),0) -> 0 | W13: =IF(W$3=1,SUM('NPV Calc'!$E$106:$AD$106),0) -> 0 | X13: =IF(X$3=1,SUM('NPV Calc'!$E$106:$AD$106),0) -> 0 | Y13: =IF(Y$3=1,SUM('NPV Calc'!$E$106:$AD$106),0) -> 0 | Z13: =IF(Z$3=1,SUM('NPV Calc'!$E$106:$AD$106),0) -> 0 | AA13: =IF(AA$3=1,SUM('NPV Calc'!$E$106:$AD$106),0) -> 0 | AB13: =IF(AB$3=1,SUM('NPV Calc'!$E$106:$AD$106),0) -> 0 | AC13: =IF(AC$3=1,SUM('NPV Calc'!$E$106:$AD$106),0) -> 0 | AD13: =IF(AD$3=1,SUM('NPV Calc'!$E$106:$AD$106),0) -> 0
C14: Depreciaton - annual basis | F14: =IF(ISNUMBER('Standard Inputs'!$D$35),IF(ISNUMBER(F$3),SUM($E13:F13)/'Standard Inputs'!$D$35,0),0) -> 12558.05053 | G14: =IF(ISNUMBER('Standard Inputs'!$D$35),IF(ISNUMBER(G$3),SUM($E13:G13)/'Standard Inputs'!$D$35,0),0) -> 12558.05053 | H14: =IF(ISNUMBER('Standard Inputs'!$D$35),IF(ISNUMBER(H$3),SUM($E13:H13)/'Standard Inputs'!$D$35,0),0) -> 12558.05053 | I14: =IF(ISNUMBER('Standard Inputs'!$D$35),IF(ISNUMBER(I$3),SUM($E13:I13)/'Standard Inputs'!$D$35,0),0) -> 12558.05053 | J14: =IF(ISNUMBER('Standard Inputs'!$D$35),IF(ISNUMBER(J$3),SUM($E13:J13)/'Standard Inputs'!$D$35,0),0) -> 12558.05053 | K14: =IF(ISNUMBER('Standard Inputs'!$D$35),IF(ISNUMBER(K$3),SUM($E13:K13)/'Standard Inputs'!$D$35,0),0) -> 12558.05053 | L14: =IF(ISNUMBER('Standard Inputs'!$D$35),IF(ISNUMBER(L$3),SUM($E13:L13)/'Standard Inputs'!$D$35,0),0) -> 12558.05053 | M14: =IF(ISNUMBER('Standard Inputs'!$D$35),IF(ISNUMBER(M$3),SUM($E13:M13)/'Standard Inputs'!$D$35,0),0) -> 12558.05053 | N14: =IF(ISNUMBER('Standard Inputs'!$D$35),IF(ISNUMBER(N$3),SUM($E13:N13)/'Standard Inputs'!$D$35,0),0) -> 12558.05053 | O14: =IF(ISNUMBER('Standard Inputs'!$D$35),IF(ISNUMBER(O$3),SUM($E13:O13)/'Standard Inputs'!$D$35,0),0) -> 12558.05053 | P14: =IF(ISNUMBER('Standard Inputs'!$D$35),IF(ISNUMBER(P$3),SUM($E13:P13)/'Standard Inputs'!$D$35,0),0) -> 12558.05053 | Q14: =IF(ISNUMBER('Standard Inputs'!$D$35),IF(ISNUMBER(Q$3),SUM($E13:Q13)/'Standard Inputs'!$D$35,0),0) -> 12558.05053 | R14: =IF(ISNUMBER('Standard Inputs'!$D$35),IF(ISNUMBER(R$3),SUM($E13:R13)/'Standard Inputs'!$D$35,0),0) -> 12558.05053 | S14: =IF(ISNUMBER('Standard Inputs'!$D$35),IF(ISNUMBER(S$3),SUM($E13:S13)/'Standard Inputs'!$D$35,0),0) -> 12558.05053 | T14: =IF(ISNUMBER('Standard Inputs'!$D$35),IF(ISNUMBER(T$3),SUM($E13:T13)/'Standard Inputs'!$D$35,0),0) -> 12558.05053 | U14: =IF(ISNUMBER('Standard Inputs'!$D$35),IF(ISNUMBER(U$3),SUM($E13:U13)/'Standard Inputs'!$D$35,0),0) -> 12558.05053 | V14: =IF(ISNUMBER('Standard Inputs'!$D$35),IF(ISNUMBER(V$3),SUM($E13:V13)/'Standard Inputs'!$D$35,0),0) -> 12558.05053 | W14: =IF(ISNUMBER('Standard Inputs'!$D$35),IF(ISNUMBER(W$3),SUM($E13:W13)/'Standard Inputs'!$D$35,0),0) -> 12558.05053 | X14: =IF(ISNUMBER('Standard Inputs'!$D$35),IF(ISNUMBER(X$3),SUM($E13:X13)/'Standard Inputs'!$D$35,0),0) -> 12558.05053 | Y14: =IF(ISNUMBER('Standard Inputs'!$D$35),IF(ISNUMBER(Y$3),SUM($E13:Y13)/'Standard Inputs'!$D$35,0),0) -> 12558.05053 | Z14: =IF(ISNUMBER('Standard Inputs'!$D$35),IF(ISNUMBER(Z$3),SUM($E13:Z13)/'Standard Inputs'!$D$35,0),0) -> 12558.05053 | AA14: =IF(ISNUMBER('Standard Inputs'!$D$35),IF(ISNUMBER(AA$3),SUM($E13:AA13)/'Standard Inputs'!$D$35,0),0) -> 12558.05053 | AB14: =IF(ISNUMBER('Standard Inputs'!$D$35),IF(ISNUMBER(AB$3),SUM($E13:AB13)/'Standard Inputs'!$D$35,0),0) -> 12558.05053 | AC14: =IF(ISNUMBER('Standard Inputs'!$D$35),IF(ISNUMBER(AC$3),SUM($E13:AC13)/'Standard Inputs'!$D$35,0),0) -> 12558.05053 | AD14: =IF(ISNUMBER('Standard Inputs'!$D$35),IF(ISNUMBER(AD$3),SUM($E13:AD13)/'Standard Inputs'!$D$35,0),0) -> 12558.05053
C15: Net book value, end of year | E15: =E12+E13-E14 -> 0 | F15: 615344.476 | G15: 602786.4255 | H15: 590228.3749 | I15: 577670.3244 | J15: 565112.2739 | K15: 552554.2233 | L15: 539996.1728 | M15: 527438.1223 | N15: 514880.0717 | O15: 502322.0212 | P15: 489763.9707 | Q15: 477205.9202 | R15: 464647.8696 | S15: 452089.8191 | T15: 439531.7686 | U15: 426973.718 | V15: 414415.6675 | W15: 401857.617 | X15: 389299.5664 | Y15: 376741.5159 | Z15: 364183.4654 | AA15: 351625.4148 | AB15: 339067.3643 | AC15: 326509.3138 | AD15: 313951.2633
C16: Average net book value for the year | F16: =IF(ISNUMBER(F$3),AVERAGE(E15:F15),0) -> 307672.238 | G16: 609065.4507 | H16: 596507.4002 | I16: 583949.3497 | J16: 571391.2991 | K16: 558833.2486 | L16: 546275.1981 | M16: 533717.1475 | N16: 521159.097 | O16: 508601.0465 | P16: 496042.9959 | Q16: 483484.9454 | R16: 470926.8949 | S16: 458368.8444 | T16: 445810.7938 | U16: 433252.7433 | V16: 420694.6928 | W16: 408136.6422 | X16: 395578.5917 | Y16: 383020.5412 | Z16: 370462.4906 | AA16: 357904.4401 | AB16: 345346.3896 | AC16: 332788.3391 | AD16: 320230.2885
C18: ='NPV Calc'!B115 -> Decision Support defined costs (1) - $k:
C19: Net book value, beginning of year | E19: 0 | F19: =IF(ISNUMBER(F$3),E22,0) -> 0 | G19: 0 | H19: 0 | I19: 0 | J19: 0 | K19: 0 | L19: 0 | M19: 0 | N19: 0 | O19: 0 | P19: 0 | Q19: 0 | R19: 0 | S19: 0 | T19: 0 | U19: 0 | V19: 0 | W19: 0 | X19: 0 | Y19: 0 | Z19: 0 | AA19: 0 | AB19: 0 | AC19: 0 | AD19: 0
C20: Additions during year | E20: =IF(E$3=1,SUM('NPV Calc'!$E$119:$AD$119),0) -> 0 | F20: =IF(F$3=1,SUM('NPV Calc'!$E$119:$AD$119),0) -> 0 | G20: =IF(G$3=1,SUM('NPV Calc'!$E$119:$AD$119),0) -> 0 | H20: =IF(H$3=1,SUM('NPV Calc'!$E$119:$AD$119),0) -> 0 | I20: =IF(I$3=1,SUM('NPV Calc'!$E$119:$AD$119),0) -> 0 | J20: =IF(J$3=1,SUM('NPV Calc'!$E$119:$AD$119),0) -> 0 | K20: =IF(K$3=1,SUM('NPV Calc'!$E$119:$AD$119),0) -> 0 | L20: =IF(L$3=1,SUM('NPV Calc'!$E$119:$AD$119),0) -> 0 | M20: =IF(M$3=1,SUM('NPV Calc'!$E$119:$AD$119),0) -> 0 | N20: =IF(N$3=1,SUM('NPV Calc'!$E$119:$AD$119),0) -> 0 | O20: =IF(O$3=1,SUM('NPV Calc'!$E$119:$AD$119),0) -> 0 | P20: =IF(P$3=1,SUM('NPV Calc'!$E$119:$AD$119),0) -> 0 | Q20: =IF(Q$3=1,SUM('NPV Calc'!$E$119:$AD$119),0) -> 0 | R20: =IF(R$3=1,SUM('NPV Calc'!$E$119:$AD$119),0) -> 0 | S20: =IF(S$3=1,SUM('NPV Calc'!$E$119:$AD$119),0) -> 0 | T20: =IF(T$3=1,SUM('NPV Calc'!$E$119:$AD$119),0) -> 0 | U20: =IF(U$3=1,SUM('NPV Calc'!$E$119:$AD$119),0) -> 0 | V20: =IF(V$3=1,SUM('NPV Calc'!$E$119:$AD$119),0) -> 0 | W20: =IF(W$3=1,SUM('NPV Calc'!$E$119:$AD$119),0) -> 0 | X20: =IF(X$3=1,SUM('NPV Calc'!$E$119:$AD$119),0) -> 0 | Y20: =IF(Y$3=1,SUM('NPV Calc'!$E$119:$AD$119),0) -> 0 | Z20: =IF(Z$3=1,SUM('NPV Calc'!$E$119:$AD$119),0) -> 0 | AA20: =IF(AA$3=1,SUM('NPV Calc'!$E$119:$AD$119),0) -> 0 | AB20: =IF(AB$3=1,SUM('NPV Calc'!$E$119:$AD$119),0) -> 0 | AC20: =IF(AC$3=1,SUM('NPV Calc'!$E$119:$AD$119),0) -> 0 | AD20: =IF(AD$3=1,SUM('NPV Calc'!$E$119:$AD$119),0) -> 0
C21: Depreciaton - annual basis | F21: =IF(ISNUMBER('Standard Inputs'!$D$36),IF(ISNUMBER(F$3),SUM($E20:F20)/'Standard Inputs'!$D$36,0),0) -> 0 | G21: =IF(ISNUMBER('Standard Inputs'!$D$36),IF(ISNUMBER(G$3),SUM($E20:G20)/'Standard Inputs'!$D$36,0),0) -> 0 | H21: =IF(ISNUMBER('Standard Inputs'!$D$36),IF(ISNUMBER(H$3),SUM($E20:H20)/'Standard Inputs'!$D$36,0),0) -> 0 | I21: =IF(ISNUMBER('Standard Inputs'!$D$36),IF(ISNUMBER(I$3),SUM($E20:I20)/'Standard Inputs'!$D$36,0),0) -> 0 | J21: =IF(ISNUMBER('Standard Inputs'!$D$36),IF(ISNUMBER(J$3),SUM($E20:J20)/'Standard Inputs'!$D$36,0),0) -> 0 | K21: =IF(ISNUMBER('Standard Inputs'!$D$36),IF(ISNUMBER(K$3),SUM($E20:K20)/'Standard Inputs'!$D$36,0),0) -> 0 | L21: =IF(ISNUMBER('Standard Inputs'!$D$36),IF(ISNUMBER(L$3),SUM($E20:L20)/'Standard Inputs'!$D$36,0),0) -> 0 | M21: =IF(ISNUMBER('Standard Inputs'!$D$36),IF(ISNUMBER(M$3),SUM($E20:M20)/'Standard Inputs'!$D$36,0),0) -> 0 | N21: =IF(ISNUMBER('Standard Inputs'!$D$36),IF(ISNUMBER(N$3),SUM($E20:N20)/'Standard Inputs'!$D$36,0),0) -> 0 | O21: =IF(ISNUMBER('Standard Inputs'!$D$36),IF(ISNUMBER(O$3),SUM($E20:O20)/'Standard Inputs'!$D$36,0),0) -> 0 | P21: =IF(ISNUMBER('Standard Inputs'!$D$36),IF(ISNUMBER(P$3),SUM($E20:P20)/'Standard Inputs'!$D$36,0),0) -> 0 | Q21: =IF(ISNUMBER('Standard Inputs'!$D$36),IF(ISNUMBER(Q$3),SUM($E20:Q20)/'Standard Inputs'!$D$36,0),0) -> 0 | R21: =IF(ISNUMBER('Standard Inputs'!$D$36),IF(ISNUMBER(R$3),SUM($E20:R20)/'Standard Inputs'!$D$36,0),0) -> 0 | S21: =IF(ISNUMBER('Standard Inputs'!$D$36),IF(ISNUMBER(S$3),SUM($E20:S20)/'Standard Inputs'!$D$36,0),0) -> 0 | T21: =IF(ISNUMBER('Standard Inputs'!$D$36),IF(ISNUMBER(T$3),SUM($E20:T20)/'Standard Inputs'!$D$36,0),0) -> 0 | U21: =IF(ISNUMBER('Standard Inputs'!$D$36),IF(ISNUMBER(U$3),SUM($E20:U20)/'Standard Inputs'!$D$36,0),0) -> 0 | V21: =IF(ISNUMBER('Standard Inputs'!$D$36),IF(ISNUMBER(V$3),SUM($E20:V20)/'Standard Inputs'!$D$36,0),0) -> 0 | W21: =IF(ISNUMBER('Standard Inputs'!$D$36),IF(ISNUMBER(W$3),SUM($E20:W20)/'Standard Inputs'!$D$36,0),0) -> 0 | X21: =IF(ISNUMBER('Standard Inputs'!$D$36),IF(ISNUMBER(X$3),SUM($E20:X20)/'Standard Inputs'!$D$36,0),0) -> 0 | Y21: =IF(ISNUMBER('Standard Inputs'!$D$36),IF(ISNUMBER(Y$3),SUM($E20:Y20)/'Standard Inputs'!$D$36,0),0) -> 0 | Z21: =IF(ISNUMBER('Standard Inputs'!$D$36),IF(ISNUMBER(Z$3),SUM($E20:Z20)/'Standard Inputs'!$D$36,0),0) -> 0 | AA21: =IF(ISNUMBER('Standard Inputs'!$D$36),IF(ISNUMBER(AA$3),SUM($E20:AA20)/'Standard Inputs'!$D$36,0),0) -> 0 | AB21: =IF(ISNUMBER('Standard Inputs'!$D$36),IF(ISNUMBER(AB$3),SUM($E20:AB20)/'Standard Inputs'!$D$36,0),0) -> 0 | AC21: =IF(ISNUMBER('Standard Inputs'!$D$36),IF(ISNUMBER(AC$3),SUM($E20:AC20)/'Standard Inputs'!$D$36,0),0) -> 0 | AD21: =IF(ISNUMBER('Standard Inputs'!$D$36),IF(ISNUMBER(AD$3),SUM($E20:AD20)/'Standard Inputs'!$D$36,0),0) -> 0
C22: Net book value, end of year | E22: =E19+E20-E21 -> 0 | F22: 0 | G22: 0 | H22: 0 | I22: 0 | J22: 0 | K22: 0 | L22: 0 | M22: 0 | N22: 0 | O22: 0 | P22: 0 | Q22: 0 | R22: 0 | S22: 0 | T22: 0 | U22: 0 | V22: 0 | W22: 0 | X22: 0 | Y22: 0 | Z22: 0 | AA22: 0 | AB22: 0 | AC22: 0 | AD22: 0
C23: Average net book value for the year | F23: =IF(ISNUMBER(F$3),AVERAGE(E22:F22),0) -> 0 | G23: 0 | H23: 0 | I23: 0 | J23: 0 | K23: 0 | L23: 0 | M23: 0 | N23: 0 | O23: 0 | P23: 0 | Q23: 0 | R23: 0 | S23: 0 | T23: 0 | U23: 0 | V23: 0 | W23: 0 | X23: 0 | Y23: 0 | Z23: 0 | AA23: 0 | AB23: 0 | AC23: 0 | AD23: 0
C25: ='NPV Calc'!B128 -> Decision Support defined costs (2) - $k:
C26: Net book value, beginning of year | E26: 0 | F26: =IF(ISNUMBER(F$3),E29,0) -> 0 | G26: 0 | H26: 0 | I26: 0 | J26: 0 | K26: 0 | L26: 0 | M26: 0 | N26: 0 | O26: 0 | P26: 0 | Q26: 0 | R26: 0 | S26: 0 | T26: 0 | U26: 0 | V26: 0 | W26: 0 | X26: 0 | Y26: 0 | Z26: 0 | AA26: 0 | AB26: 0 | AC26: 0 | AD26: 0
C27: Additions during year | E27: =IF(E$3=1,SUM('NPV Calc'!$E$132:$AD$132),0) -> 0 | F27: =IF(F$3=1,SUM('NPV Calc'!$E$132:$AD$132),0) -> 0 | G27: =IF(G$3=1,SUM('NPV Calc'!$E$132:$AD$132),0) -> 0 | H27: =IF(H$3=1,SUM('NPV Calc'!$E$132:$AD$132),0) -> 0 | I27: =IF(I$3=1,SUM('NPV Calc'!$E$132:$AD$132),0) -> 0 | J27: =IF(J$3=1,SUM('NPV Calc'!$E$132:$AD$132),0) -> 0 | K27: =IF(K$3=1,SUM('NPV Calc'!$E$132:$AD$132),0) -> 0 | L27: =IF(L$3=1,SUM('NPV Calc'!$E$132:$AD$132),0) -> 0 | M27: =IF(M$3=1,SUM('NPV Calc'!$E$132:$AD$132),0) -> 0 | N27: =IF(N$3=1,SUM('NPV Calc'!$E$132:$AD$132),0) -> 0 | O27: =IF(O$3=1,SUM('NPV Calc'!$E$132:$AD$132),0) -> 0 | P27: =IF(P$3=1,SUM('NPV Calc'!$E$132:$AD$132),0) -> 0 | Q27: =IF(Q$3=1,SUM('NPV Calc'!$E$132:$AD$132),0) -> 0 | R27: =IF(R$3=1,SUM('NPV Calc'!$E$132:$AD$132),0) -> 0 | S27: =IF(S$3=1,SUM('NPV Calc'!$E$132:$AD$132),0) -> 0 | T27: =IF(T$3=1,SUM('NPV Calc'!$E$132:$AD$132),0) -> 0 | U27: =IF(U$3=1,SUM('NPV Calc'!$E$132:$AD$132),0) -> 0 | V27: =IF(V$3=1,SUM('NPV Calc'!$E$132:$AD$132),0) -> 0 | W27: =IF(W$3=1,SUM('NPV Calc'!$E$132:$AD$132),0) -> 0 | X27: =IF(X$3=1,SUM('NPV Calc'!$E$132:$AD$132),0) -> 0 | Y27: =IF(Y$3=1,SUM('NPV Calc'!$E$132:$AD$132),0) -> 0 | Z27: =IF(Z$3=1,SUM('NPV Calc'!$E$132:$AD$132),0) -> 0 | AA27: =IF(AA$3=1,SUM('NPV Calc'!$E$132:$AD$132),0) -> 0 | AB27: =IF(AB$3=1,SUM('NPV Calc'!$E$132:$AD$132),0) -> 0 | AC27: =IF(AC$3=1,SUM('NPV Calc'!$E$132:$AD$132),0) -> 0 | AD27: =IF(AD$3=1,SUM('NPV Calc'!$E$132:$AD$132),0) -> 0
C28: Depreciaton - annual basis | F28: =IF(ISNUMBER('Standard Inputs'!$D$37),IF(ISNUMBER(F$3),SUM($E27:F27)/'Standard Inputs'!$D$37,0),0) -> 0 | G28: =IF(ISNUMBER('Standard Inputs'!$D$37),IF(ISNUMBER(G$3),SUM($E27:G27)/'Standard Inputs'!$D$37,0),0) -> 0 | H28: =IF(ISNUMBER('Standard Inputs'!$D$37),IF(ISNUMBER(H$3),SUM($E27:H27)/'Standard Inputs'!$D$37,0),0) -> 0 | I28: =IF(ISNUMBER('Standard Inputs'!$D$37),IF(ISNUMBER(I$3),SUM($E27:I27)/'Standard Inputs'!$D$37,0),0) -> 0 | J28: =IF(ISNUMBER('Standard Inputs'!$D$37),IF(ISNUMBER(J$3),SUM($E27:J27)/'Standard Inputs'!$D$37,0),0) -> 0 | K28: =IF(ISNUMBER('Standard Inputs'!$D$37),IF(ISNUMBER(K$3),SUM($E27:K27)/'Standard Inputs'!$D$37,0),0) -> 0 | L28: =IF(ISNUMBER('Standard Inputs'!$D$37),IF(ISNUMBER(L$3),SUM($E27:L27)/'Standard Inputs'!$D$37,0),0) -> 0 | M28: =IF(ISNUMBER('Standard Inputs'!$D$37),IF(ISNUMBER(M$3),SUM($E27:M27)/'Standard Inputs'!$D$37,0),0) -> 0 | N28: =IF(ISNUMBER('Standard Inputs'!$D$37),IF(ISNUMBER(N$3),SUM($E27:N27)/'Standard Inputs'!$D$37,0),0) -> 0 | O28: =IF(ISNUMBER('Standard Inputs'!$D$37),IF(ISNUMBER(O$3),SUM($E27:O27)/'Standard Inputs'!$D$37,0),0) -> 0 | P28: =IF(ISNUMBER('Standard Inputs'!$D$37),IF(ISNUMBER(P$3),SUM($E27:P27)/'Standard Inputs'!$D$37,0),0) -> 0 | Q28: =IF(ISNUMBER('Standard Inputs'!$D$37),IF(ISNUMBER(Q$3),SUM($E27:Q27)/'Standard Inputs'!$D$37,0),0) -> 0 | R28: =IF(ISNUMBER('Standard Inputs'!$D$37),IF(ISNUMBER(R$3),SUM($E27:R27)/'Standard Inputs'!$D$37,0),0) -> 0 | S28: =IF(ISNUMBER('Standard Inputs'!$D$37),IF(ISNUMBER(S$3),SUM($E27:S27)/'Standard Inputs'!$D$37,0),0) -> 0 | T28: =IF(ISNUMBER('Standard Inputs'!$D$37),IF(ISNUMBER(T$3),SUM($E27:T27)/'Standard Inputs'!$D$37,0),0) -> 0 | U28: =IF(ISNUMBER('Standard Inputs'!$D$37),IF(ISNUMBER(U$3),SUM($E27:U27)/'Standard Inputs'!$D$37,0),0) -> 0 | V28: =IF(ISNUMBER('Standard Inputs'!$D$37),IF(ISNUMBER(V$3),SUM($E27:V27)/'Standard Inputs'!$D$37,0),0) -> 0 | W28: =IF(ISNUMBER('Standard Inputs'!$D$37),IF(ISNUMBER(W$3),SUM($E27:W27)/'Standard Inputs'!$D$37,0),0) -> 0 | X28: =IF(ISNUMBER('Standard Inputs'!$D$37),IF(ISNUMBER(X$3),SUM($E27:X27)/'Standard Inputs'!$D$37,0),0) -> 0 | Y28: =IF(ISNUMBER('Standard Inputs'!$D$37),IF(ISNUMBER(Y$3),SUM($E27:Y27)/'Standard Inputs'!$D$37,0),0) -> 0 | Z28: =IF(ISNUMBER('Standard Inputs'!$D$37),IF(ISNUMBER(Z$3),SUM($E27:Z27)/'Standard Inputs'!$D$37,0),0) -> 0 | AA28: =IF(ISNUMBER('Standard Inputs'!$D$37),IF(ISNUMBER(AA$3),SUM($E27:AA27)/'Standard Inputs'!$D$37,0),0) -> 0 | AB28: =IF(ISNUMBER('Standard Inputs'!$D$37),IF(ISNUMBER(AB$3),SUM($E27:AB27)/'Standard Inputs'!$D$37,0),0) -> 0 | AC28: =IF(ISNUMBER('Standard Inputs'!$D$37),IF(ISNUMBER(AC$3),SUM($E27:AC27)/'Standard Inputs'!$D$37,0),0) -> 0 | AD28: =IF(ISNUMBER('Standard Inputs'!$D$37),IF(ISNUMBER(AD$3),SUM($E27:AD27)/'Standard Inputs'!$D$37,0),0) -> 0
C29: Net book value, end of year | E29: =E26+E27-E28 -> 0 | F29: 0 | G29: 0 | H29: 0 | I29: 0 | J29: 0 | K29: 0 | L29: 0 | M29: 0 | N29: 0 | O29: 0 | P29: 0 | Q29: 0 | R29: 0 | S29: 0 | T29: 0 | U29: 0 | V29: 0 | W29: 0 | X29: 0 | Y29: 0 | Z29: 0 | AA29: 0 | AB29: 0 | AC29: 0 | AD29: 0
C30: Average net book value for the year | F30: =IF(ISNUMBER(F$3),AVERAGE(E29:F29),0) -> 0 | G30: 0 | H30: 0 | I30: 0 | J30: 0 | K30: 0 | L30: 0 | M30: 0 | N30: 0 | O30: 0 | P30: 0 | Q30: 0 | R30: 0 | S30: 0 | T30: 0 | U30: 0 | V30: 0 | W30: 0 | X30: 0 | Y30: 0 | Z30: 0 | AA30: 0 | AB30: 0 | AC30: 0 | AD30: 0
C32: ='NPV Calc'!B141 -> Decision Support defined costs (3) - $k:
C33: Net book value, beginning of year | E33: 0 | F33: =IF(ISNUMBER(F$3),E36,0) -> 0 | G33: 0 | H33: 0 | I33: 0 | J33: 0 | K33: 0 | L33: 0 | M33: 0 | N33: 0 | O33: 0 | P33: 0 | Q33: 0 | R33: 0 | S33: 0 | T33: 0 | U33: 0 | V33: 0 | W33: 0 | X33: 0 | Y33: 0 | Z33: 0 | AA33: 0 | AB33: 0 | AC33: 0 | AD33: 0
C34: Additions during year | E34: =IF(E$3=1,SUM('NPV Calc'!$E$145:$AD$145),0) -> 0 | F34: =IF(F$3=1,SUM('NPV Calc'!$E$145:$AD$145),0) -> 0 | G34: =IF(G$3=1,SUM('NPV Calc'!$E$145:$AD$145),0) -> 0 | H34: =IF(H$3=1,SUM('NPV Calc'!$E$145:$AD$145),0) -> 0 | I34: =IF(I$3=1,SUM('NPV Calc'!$E$145:$AD$145),0) -> 0 | J34: =IF(J$3=1,SUM('NPV Calc'!$E$145:$AD$145),0) -> 0 | K34: =IF(K$3=1,SUM('NPV Calc'!$E$145:$AD$145),0) -> 0 | L34: =IF(L$3=1,SUM('NPV Calc'!$E$145:$AD$145),0) -> 0 | M34: =IF(M$3=1,SUM('NPV Calc'!$E$145:$AD$145),0) -> 0 | N34: =IF(N$3=1,SUM('NPV Calc'!$E$145:$AD$145),0) -> 0 | O34: =IF(O$3=1,SUM('NPV Calc'!$E$145:$AD$145),0) -> 0 | P34: =IF(P$3=1,SUM('NPV Calc'!$E$145:$AD$145),0) -> 0 | Q34: =IF(Q$3=1,SUM('NPV Calc'!$E$145:$AD$145),0) -> 0 | R34: =IF(R$3=1,SUM('NPV Calc'!$E$145:$AD$145),0) -> 0 | S34: =IF(S$3=1,SUM('NPV Calc'!$E$145:$AD$145),0) -> 0 | T34: =IF(T$3=1,SUM('NPV Calc'!$E$145:$AD$145),0) -> 0 | U34: =IF(U$3=1,SUM('NPV Calc'!$E$145:$AD$145),0) -> 0 | V34: =IF(V$3=1,SUM('NPV Calc'!$E$145:$AD$145),0) -> 0 | W34: =IF(W$3=1,SUM('NPV Calc'!$E$145:$AD$145),0) -> 0 | X34: =IF(X$3=1,SUM('NPV Calc'!$E$145:$AD$145),0) -> 0 | Y34: =IF(Y$3=1,SUM('NPV Calc'!$E$145:$AD$145),0) -> 0 | Z34: =IF(Z$3=1,SUM('NPV Calc'!$E$145:$AD$145),0) -> 0 | AA34: =IF(AA$3=1,SUM('NPV Calc'!$E$145:$AD$145),0) -> 0 | AB34: =IF(AB$3=1,SUM('NPV Calc'!$E$145:$AD$145),0) -> 0 | AC34: =IF(AC$3=1,SUM('NPV Calc'!$E$145:$AD$145),0) -> 0 | AD34: =IF(AD$3=1,SUM('NPV Calc'!$E$145:$AD$145),0) -> 0
C35: Depreciaton - annual basis | F35: =IF(ISNUMBER('Standard Inputs'!$D$38),IF(ISNUMBER(F$3),SUM($E34:F34)/'Standard Inputs'!$D$38,0),0) -> 0 | G35: =IF(ISNUMBER('Standard Inputs'!$D$38),IF(ISNUMBER(G$3),SUM($E34:G34)/'Standard Inputs'!$D$38,0),0) -> 0 | H35: =IF(ISNUMBER('Standard Inputs'!$D$38),IF(ISNUMBER(H$3),SUM($E34:H34)/'Standard Inputs'!$D$38,0),0) -> 0 | I35: =IF(ISNUMBER('Standard Inputs'!$D$38),IF(ISNUMBER(I$3),SUM($E34:I34)/'Standard Inputs'!$D$38,0),0) -> 0 | J35: =IF(ISNUMBER('Standard Inputs'!$D$38),IF(ISNUMBER(J$3),SUM($E34:J34)/'Standard Inputs'!$D$38,0),0) -> 0 | K35: =IF(ISNUMBER('Standard Inputs'!$D$38),IF(ISNUMBER(K$3),SUM($E34:K34)/'Standard Inputs'!$D$38,0),0) -> 0 | L35: =IF(ISNUMBER('Standard Inputs'!$D$38),IF(ISNUMBER(L$3),SUM($E34:L34)/'Standard Inputs'!$D$38,0),0) -> 0 | M35: =IF(ISNUMBER('Standard Inputs'!$D$38),IF(ISNUMBER(M$3),SUM($E34:M34)/'Standard Inputs'!$D$38,0),0) -> 0 | N35: =IF(ISNUMBER('Standard Inputs'!$D$38),IF(ISNUMBER(N$3),SUM($E34:N34)/'Standard Inputs'!$D$38,0),0) -> 0 | O35: =IF(ISNUMBER('Standard Inputs'!$D$38),IF(ISNUMBER(O$3),SUM($E34:O34)/'Standard Inputs'!$D$38,0),0) -> 0 | P35: =IF(ISNUMBER('Standard Inputs'!$D$38),IF(ISNUMBER(P$3),SUM($E34:P34)/'Standard Inputs'!$D$38,0),0) -> 0 | Q35: =IF(ISNUMBER('Standard Inputs'!$D$38),IF(ISNUMBER(Q$3),SUM($E34:Q34)/'Standard Inputs'!$D$38,0),0) -> 0 | R35: =IF(ISNUMBER('Standard Inputs'!$D$38),IF(ISNUMBER(R$3),SUM($E34:R34)/'Standard Inputs'!$D$38,0),0) -> 0 | S35: =IF(ISNUMBER('Standard Inputs'!$D$38),IF(ISNUMBER(S$3),SUM($E34:S34)/'Standard Inputs'!$D$38,0),0) -> 0 | T35: =IF(ISNUMBER('Standard Inputs'!$D$38),IF(ISNUMBER(T$3),SUM($E34:T34)/'Standard Inputs'!$D$38,0),0) -> 0 | U35: =IF(ISNUMBER('Standard Inputs'!$D$38),IF(ISNUMBER(U$3),SUM($E34:U34)/'Standard Inputs'!$D$38,0),0) -> 0 | V35: =IF(ISNUMBER('Standard Inputs'!$D$38),IF(ISNUMBER(V$3),SUM($E34:V34)/'Standard Inputs'!$D$38,0),0) -> 0 | W35: =IF(ISNUMBER('Standard Inputs'!$D$38),IF(ISNUMBER(W$3),SUM($E34:W34)/'Standard Inputs'!$D$38,0),0) -> 0 | X35: =IF(ISNUMBER('Standard Inputs'!$D$38),IF(ISNUMBER(X$3),SUM($E34:X34)/'Standard Inputs'!$D$38,0),0) -> 0 | Y35: =IF(ISNUMBER('Standard Inputs'!$D$38),IF(ISNUMBER(Y$3),SUM($E34:Y34)/'Standard Inputs'!$D$38,0),0) -> 0 | Z35: =IF(ISNUMBER('Standard Inputs'!$D$38),IF(ISNUMBER(Z$3),SUM($E34:Z34)/'Standard Inputs'!$D$38,0),0) -> 0 | AA35: =IF(ISNUMBER('Standard Inputs'!$D$38),IF(ISNUMBER(AA$3),SUM($E34:AA34)/'Standard Inputs'!$D$38,0),0) -> 0 | AB35: =IF(ISNUMBER('Standard Inputs'!$D$38),IF(ISNUMBER(AB$3),SUM($E34:AB34)/'Standard Inputs'!$D$38,0),0) -> 0 | AC35: =IF(ISNUMBER('Standard Inputs'!$D$38),IF(ISNUMBER(AC$3),SUM($E34:AC34)/'Standard Inputs'!$D$38,0),0) -> 0 | AD35: =IF(ISNUMBER('Standard Inputs'!$D$38),IF(ISNUMBER(AD$3),SUM($E34:AD34)/'Standard Inputs'!$D$38,0),0) -> 0
C36: Net book value, end of year | E36: =E33+E34-E35 -> 0 | F36: 0 | G36: 0 | H36: 0 | I36: 0 | J36: 0 | K36: 0 | L36: 0 | M36: 0 | N36: 0 | O36: 0 | P36: 0 | Q36: 0 | R36: 0 | S36: 0 | T36: 0 | U36: 0 | V36: 0 | W36: 0 | X36: 0 | Y36: 0 | Z36: 0 | AA36: 0 | AB36: 0 | AC36: 0 | AD36: 0
C37: Average net book value for the year | F37: =IF(ISNUMBER(F$3),AVERAGE(E36:F36),0) -> 0 | G37: 0 | H37: 0 | I37: 0 | J37: 0 | K37: 0 | L37: 0 | M37: 0 | N37: 0 | O37: 0 | P37: 0 | Q37: 0 | R37: 0 | S37: 0 | T37: 0 | U37: 0 | V37: 0 | W37: 0 | X37: 0 | Y37: 0 | Z37: 0 | AA37: 0 | AB37: 0 | AC37: 0 | AD37: 0
C40: Average rate base, based on Avg NBV of assets - $k - A | F40: =F37+F30+F23+F16+F9 -> 314704.5085 | G40: =G37+G30+G23+G16+G9 -> 623129.9917 | H40: 610571.9412 | I40: 598013.8907 | J40: 585455.8401 | K40: 572897.7896 | L40: 560339.7391 | M40: 547781.6885 | N40: 535223.638 | O40: 522665.5875 | P40: 510107.5369 | Q40: 497549.4864 | R40: 484991.4359 | S40: 472433.3854 | T40: 459875.3348 | U40: 447317.2843 | V40: 434759.2338 | W40: 422201.1832 | X40: 409643.1327 | Y40: 397085.0822 | Z40: 384527.0316 | AA40: 371968.9811 | AB40: 359410.9306 | AC40: 346852.8801 | AD40: 334294.8295
C42: Regulated return | F42: ='Prelim Calc'!F13 -> 0.063124 | G42: =F42 -> 0.063124 | H42: 0.063124 | I42: 0.063124 | J42: 0.063124 | K42: 0.063124 | L42: 0.063124 | M42: 0.063124 | N42: 0.063124 | O42: 0.063124 | P42: 0.063124 | Q42: 0.063124 | R42: 0.063124 | S42: 0.063124 | T42: 0.063124 | U42: 0.063124 | V42: 0.063124 | W42: 0.063124 | X42: 0.063124 | Y42: 0.063124 | Z42: 0.063124 | AA42: 0.063124 | AB42: 0.063124 | AC42: 0.063124 | AD42: 0.063124
C44: Return on rate base - $k - B | F44: =F40*F42 -> 19865.40739 | G44: 39334.4576 | H44: 38541.74322 | I44: 37749.02883 | J44: 36956.31445 | K44: 36163.60007 | L44: 35370.88569 | M44: 34578.17131 | N44: 33785.45693 | O44: 32992.74254 | P44: 32200.02816 | Q44: 31407.31378 | R44: 30614.5994 | S44: 29821.88502 | T44: 29029.17064 | U44: 28236.45625 | V44: 27443.74187 | W44: 26651.02749 | X44: 25858.31311 | Y44: 25065.59873 | Z44: 24272.88435 | AA44: 23480.16996 | AB44: 22687.45558 | AC44: 21894.7412 | AD44: 21102.02682
C46: Interest component of regulated return | F46: ='Prelim Calc'!F8 -> 0.027124 | G46: =F46 -> 0.027124 | H46: 0.027124 | I46: 0.027124 | J46: 0.027124 | K46: 0.027124 | L46: 0.027124 | M46: 0.027124 | N46: 0.027124 | O46: 0.027124 | P46: 0.027124 | Q46: 0.027124 | R46: 0.027124 | S46: 0.027124 | T46: 0.027124 | U46: 0.027124 | V46: 0.027124 | W46: 0.027124 | X46: 0.027124 | Y46: 0.027124 | Z46: 0.027124 | AA46: 0.027124 | AB46: 0.027124 | AC46: 0.027124 | AD46: 0.027124
C48: Interest charge to finance part of rate base - $k - C | F48: =F40*F46 -> 8536.045088 | G48: 16901.7779 | H48: 16561.15333 | I48: 16220.52877 | J48: 15879.90421 | K48: 15539.27965 | L48: 15198.65508 | M48: 14858.03052 | N48: 14517.40596 | O48: 14176.78139 | P48: 13836.15683 | Q48: 13495.53227 | R48: 13154.90771 | S48: 12814.28314 | T48: 12473.65858 | U48: 12133.03402 | V48: 11792.40946 | W48: 11451.78489 | X48: 11111.16033 | Y48: 10770.53577 | Z48: 10429.91121 | AA48: 10089.28664 | AB48: 9748.662081 | AC48: 9408.037519 | AD48: 9067.412956
C50: Depreciation & Amortization - $k | F50: =F35+F28+F21+F14 -> 12558.05053 | G50: 12558.05053 | H50: 12558.05053 | I50: 12558.05053 | J50: 12558.05053 | K50: 12558.05053 | L50: 12558.05053 | M50: 12558.05053 | N50: 12558.05053 | O50: 12558.05053 | P50: 12558.05053 | Q50: 12558.05053 | R50: 12558.05053 | S50: 12558.05053 | T50: 12558.05053 | U50: 12558.05053 | V50: 12558.05053 | W50: 12558.05053 | X50: 12558.05053 | Y50: 12558.05053 | Z50: 12558.05053 | AA50: 12558.05053 | AB50: 12558.05053 | AC50: 12558.05053 | AD50: 12558.05053
C52: Calculations of income taxes for revenue requirement:
C54: Incremental revenue - $k | F54: ='NPV Calc'!F17 -> 0 | G54: ='NPV Calc'!G17 -> 0 | H54: ='NPV Calc'!H17 -> 0 | I54: ='NPV Calc'!I17 -> 0 | J54: ='NPV Calc'!J17 -> 0 | K54: ='NPV Calc'!K17 -> 0 | L54: ='NPV Calc'!L17 -> 0 | M54: ='NPV Calc'!M17 -> 0 | N54: ='NPV Calc'!N17 -> 0 | O54: ='NPV Calc'!O17 -> 0 | P54: ='NPV Calc'!P17 -> 0 | Q54: ='NPV Calc'!Q17 -> 0 | R54: ='NPV Calc'!R17 -> 0 | S54: ='NPV Calc'!S17 -> 0 | T54: ='NPV Calc'!T17 -> 0 | U54: ='NPV Calc'!U17 -> 0 | V54: ='NPV Calc'!V17 -> 0 | W54: ='NPV Calc'!W17 -> 0 | X54: ='NPV Calc'!X17 -> 0 | Y54: ='NPV Calc'!Y17 -> 0 | Z54: ='NPV Calc'!Z17 -> 0 | AA54: ='NPV Calc'!AA17 -> 0 | AB54: ='NPV Calc'!AB17 -> 0 | AC54: ='NPV Calc'!AC17 -> 0 | AD54: ='NPV Calc'!AD17 -> 0
C56: Incremental OM&A costs (includes removals) - $k | E56: ='NPV Calc'!E20+'NPV Calc'!E21 -> -20600 | F56: ='NPV Calc'!F20+'NPV Calc'!F21 -> -1500 | G56: ='NPV Calc'!G20+'NPV Calc'!G21 -> -1500 | H56: ='NPV Calc'!H20+'NPV Calc'!H21 -> -1500 | I56: ='NPV Calc'!I20+'NPV Calc'!I21 -> -1500 | J56: ='NPV Calc'!J20+'NPV Calc'!J21 -> -1500 | K56: ='NPV Calc'!K20+'NPV Calc'!K21 -> -1500 | L56: ='NPV Calc'!L20+'NPV Calc'!L21 -> -1500 | M56: ='NPV Calc'!M20+'NPV Calc'!M21 -> -1500 | N56: ='NPV Calc'!N20+'NPV Calc'!N21 -> -1500 | O56: ='NPV Calc'!O20+'NPV Calc'!O21 -> -1500 | P56: ='NPV Calc'!P20+'NPV Calc'!P21 -> -1500 | Q56: ='NPV Calc'!Q20+'NPV Calc'!Q21 -> -1500 | R56: ='NPV Calc'!R20+'NPV Calc'!R21 -> -1500 | S56: ='NPV Calc'!S20+'NPV Calc'!S21 -> -1500 | T56: ='NPV Calc'!T20+'NPV Calc'!T21 -> -1500 | U56: ='NPV Calc'!U20+'NPV Calc'!U21 -> -1500 | V56: ='NPV Calc'!V20+'NPV Calc'!V21 -> -1500 | W56: ='NPV Calc'!W20+'NPV Calc'!W21 -> -1500 | X56: ='NPV Calc'!X20+'NPV Calc'!X21 -> -1500 | Y56: ='NPV Calc'!Y20+'NPV Calc'!Y21 -> -1500 | Z56: ='NPV Calc'!Z20+'NPV Calc'!Z21 -> -1500 | AA56: ='NPV Calc'!AA20+'NPV Calc'!AA21 -> -1500 | AB56: ='NPV Calc'!AB20+'NPV Calc'!AB21 -> -1500 | AC56: ='NPV Calc'!AC20+'NPV Calc'!AC21 -> -1500 | AD56: ='NPV Calc'!AD20+'NPV Calc'!AD21 -> -1500
C57: Other expenses - $k:
C58: Municipal tax | E58: ='NPV Calc'!E22 -> 0 | F58: ='NPV Calc'!F22 -> -2425.410891 | G58: ='NPV Calc'!G22 -> -2425.410891 | H58: ='NPV Calc'!H22 -> -2425.410891 | I58: ='NPV Calc'!I22 -> -2425.410891 | J58: ='NPV Calc'!J22 -> -2425.410891 | K58: ='NPV Calc'!K22 -> -2425.410891 | L58: ='NPV Calc'!L22 -> -2425.410891 | M58: ='NPV Calc'!M22 -> -2425.410891 | N58: ='NPV Calc'!N22 -> -2425.410891 | O58: ='NPV Calc'!O22 -> -2425.410891 | P58: ='NPV Calc'!P22 -> -2425.410891 | Q58: ='NPV Calc'!Q22 -> -2425.410891 | R58: ='NPV Calc'!R22 -> -2425.410891 | S58: ='NPV Calc'!S22 -> -2425.410891 | T58: ='NPV Calc'!T22 -> -2425.410891 | U58: ='NPV Calc'!U22 -> -2425.410891 | V58: ='NPV Calc'!V22 -> -2425.410891 | W58: ='NPV Calc'!W22 -> -2425.410891 | X58: ='NPV Calc'!X22 -> -2425.410891 | Y58: ='NPV Calc'!Y22 -> -2425.410891 | Z58: ='NPV Calc'!Z22 -> -2425.410891 | AA58: ='NPV Calc'!AA22 -> -2425.410891 | AB58: ='NPV Calc'!AB22 -> -2425.410891 | AC58: ='NPV Calc'!AC22 -> -2425.410891 | AD58: ='NPV Calc'!AD22 -> -2425.410891
C59: CCA | E59: =-'NPV Calc'!E90 -> 0 | F59: =-'NPV Calc'!F90 -> -25116.10106 | G59: =-'NPV Calc'!G90 -> -48222.91404 | H59: =-'NPV Calc'!H90 -> -44365.08091 | I59: =-'NPV Calc'!I90 -> -40815.87444 | J59: =-'NPV Calc'!J90 -> -37550.60449 | K59: =-'NPV Calc'!K90 -> -34546.55613 | L59: =-'NPV Calc'!L90 -> -31782.83164 | M59: =-'NPV Calc'!M90 -> -29240.20511 | N59: =-'NPV Calc'!N90 -> -26900.9887 | O59: =-'NPV Calc'!O90 -> -24748.9096 | P59: =-'NPV Calc'!P90 -> -22768.99683 | Q59: =-'NPV Calc'!Q90 -> -20947.47709 | R59: =-'NPV Calc'!R90 -> -19271.67892 | S59: =-'NPV Calc'!S90 -> -17729.94461 | T59: =-'NPV Calc'!T90 -> -16311.54904 | U59: =-'NPV Calc'!U90 -> -15006.62511 | V59: =-'NPV Calc'!V90 -> -13806.09511 | W59: =-'NPV Calc'!W90 -> -12701.6075 | X59: =-'NPV Calc'!X90 -> -11685.4789 | Y59: =-'NPV Calc'!Y90 -> -10750.64059 | Z59: =-'NPV Calc'!Z90 -> -9890.589339 | AA59: =-'NPV Calc'!AA90 -> -9099.342191 | AB59: =-'NPV Calc'!AB90 -> -8371.394816 | AC59: =-'NPV Calc'!AC90 -> -7701.683231 | AD59: =-'NPV Calc'!AD90 -> -7085.548572
C60: Interest (see C above) | E60: =-E48 -> 0 | F60: -8536.045088 | G60: -16901.7779 | H60: -16561.15333 | I60: -16220.52877 | J60: -15879.90421 | K60: -15539.27965 | L60: -15198.65508 | M60: -14858.03052 | N60: -14517.40596 | O60: -14176.78139 | P60: -13836.15683 | Q60: -13495.53227 | R60: -13154.90771 | S60: -12814.28314 | T60: -12473.65858 | U60: -12133.03402 | V60: -11792.40946 | W60: -11451.78489 | X60: -11111.16033 | Y60: -10770.53577 | Z60: -10429.91121 | AA60: -10089.28664 | AB60: -9748.662081 | AC60: -9408.037519 | AD60: -9067.412956
C61: Total costs / expenses - $k | E61: =SUM(E56:E60) -> -20600 | F61: -37577.55704 | G61: -69050.10282 | H61: -64851.64514 | I61: -60961.8141 | J61: -57355.91958 | K61: -54011.24666 | L61: -50906.89761 | M61: -48023.64652 | N61: -45343.80555 | O61: -42851.10189 | P61: -40530.56456 | Q61: -38368.42025 | R61: -36351.99752 | S61: -34469.63864 | T61: -32710.61851 | U61: -31065.07003 | V61: -29523.91545 | W61: -28078.80328 | X61: -26722.05012 | Y61: -25446.58725 | Z61: -24245.91144 | AA61: -23114.03973 | AB61: -22045.46779 | AC61: -21035.13164 | AD61: -20078.37242
C63: Taxable income for revenue requirement purposes - $k: | E63: =E54+E61 -> -20600 | F63: -37577.55704 | G63: -69050.10282 | H63: -64851.64514 | I63: -60961.8141 | J63: -57355.91958 | K63: -54011.24666 | L63: -50906.89761 | M63: -48023.64652 | N63: -45343.80555 | O63: -42851.10189 | P63: -40530.56456 | Q63: -38368.42025 | R63: -36351.99752 | S63: -34469.63864 | T63: -32710.61851 | U63: -31065.07003 | V63: -29523.91545 | W63: -28078.80328 | X63: -26722.05012 | Y63: -25446.58725 | Z63: -24245.91144 | AA63: -23114.03973 | AB63: -22045.46779 | AC63: -21035.13164 | AD63: -20078.37242
C65: Total tax provisions required - $k | E65: =-E63*'Standard Inputs'!$B$28 -> 5459 | F65: =-F63*'Standard Inputs'!$B$28 -> 9958.052616 | G65: =-G63*'Standard Inputs'!$B$28 -> 18298.27725 | H65: =-H63*'Standard Inputs'!$B$28 -> 17185.68596 | I65: =-I63*'Standard Inputs'!$B$28 -> 16154.88074 | J65: =-J63*'Standard Inputs'!$B$28 -> 15199.31869 | K65: =-K63*'Standard Inputs'!$B$28 -> 14312.98037 | L65: =-L63*'Standard Inputs'!$B$28 -> 13490.32787 | M65: =-M63*'Standard Inputs'!$B$28 -> 12726.26633 | N65: =-N63*'Standard Inputs'!$B$28 -> 12016.10847 | O65: =-O63*'Standard Inputs'!$B$28 -> 11355.542 | P65: =-P63*'Standard Inputs'!$B$28 -> 10740.59961 | Q65: =-Q63*'Standard Inputs'!$B$28 -> 10167.63137 | R65: =-R63*'Standard Inputs'!$B$28 -> 9633.279342 | S65: =-S63*'Standard Inputs'!$B$28 -> 9134.45424 | T65: =-T63*'Standard Inputs'!$B$28 -> 8668.313905 | U65: =-U63*'Standard Inputs'!$B$28 -> 8232.243557 | V65: =-V63*'Standard Inputs'!$B$28 -> 7823.837595 | W65: =-W63*'Standard Inputs'!$B$28 -> 7440.88287 | X65: =-X63*'Standard Inputs'!$B$28 -> 7081.343282 | Y65: =-Y63*'Standard Inputs'!$B$28 -> 6743.34562 | Z65: =-Z63*'Standard Inputs'!$B$28 -> 6425.166531 | AA65: =-AA63*'Standard Inputs'!$B$28 -> 6125.220528 | AB65: =-AB63*'Standard Inputs'!$B$28 -> 5842.048964 | AC65: =-AC63*'Standard Inputs'!$B$28 -> 5574.309885 | AD65: =-AD63*'Standard Inputs'!$B$28 -> 5320.768691
C67: Calculations of revenue required
C68: Incremental revenue - $k | E68: =E54 -> 0 | F68: 0 | G68: 0 | H68: 0 | I68: 0 | J68: 0 | K68: 0 | L68: 0 | M68: 0 | N68: 0 | O68: 0 | P68: 0 | Q68: 0 | R68: 0 | S68: 0 | T68: 0 | U68: 0 | V68: 0 | W68: 0 | X68: 0 | Y68: 0 | Z68: 0 | AA68: 0 | AB68: 0 | AC68: 0 | AD68: 0
C69: Incremental OM&A costs - $k | E69: =E56 -> -20600 | F69: -1500 | G69: -1500 | H69: -1500 | I69: -1500 | J69: -1500 | K69: -1500 | L69: -1500 | M69: -1500 | N69: -1500 | O69: -1500 | P69: -1500 | Q69: -1500 | R69: -1500 | S69: -1500 | T69: -1500 | U69: -1500 | V69: -1500 | W69: -1500 | X69: -1500 | Y69: -1500 | Z69: -1500 | AA69: -1500 | AB69: -1500 | AC69: -1500 | AD69: -1500
C70: Other expenses, excluding financing charges - $k:
C71: Municipal tax | E71: =E58 -> 0 | F71: -2425.410891 | G71: -2425.410891 | H71: -2425.410891 | I71: -2425.410891 | J71: -2425.410891 | K71: -2425.410891 | L71: -2425.410891 | M71: -2425.410891 | N71: -2425.410891 | O71: -2425.410891 | P71: -2425.410891 | Q71: -2425.410891 | R71: -2425.410891 | S71: -2425.410891 | T71: -2425.410891 | U71: -2425.410891 | V71: -2425.410891 | W71: -2425.410891 | X71: -2425.410891 | Y71: -2425.410891 | Z71: -2425.410891 | AA71: -2425.410891 | AB71: -2425.410891 | AC71: -2425.410891 | AD71: -2425.410891
C72: Depreciation & Amortization | E72: =-E50 -> 0 | F72: -12558.05053 | G72: -12558.05053 | H72: -12558.05053 | I72: -12558.05053 | J72: -12558.05053 | K72: -12558.05053 | L72: -12558.05053 | M72: -12558.05053 | N72: -12558.05053 | O72: -12558.05053 | P72: -12558.05053 | Q72: -12558.05053 | R72: -12558.05053 | S72: -12558.05053 | T72: -12558.05053 | U72: -12558.05053 | V72: -12558.05053 | W72: -12558.05053 | X72: -12558.05053 | Y72: -12558.05053 | Z72: -12558.05053 | AA72: -12558.05053 | AB72: -12558.05053 | AC72: -12558.05053 | AD72: -12558.05053
C73: Total expenses, excluding financing charges - $k | E73: =E71+E72 -> 0 | F73: -14983.46142 | G73: -14983.46142 | H73: -14983.46142 | I73: -14983.46142 | J73: -14983.46142 | K73: -14983.46142 | L73: -14983.46142 | M73: -14983.46142 | N73: -14983.46142 | O73: -14983.46142 | P73: -14983.46142 | Q73: -14983.46142 | R73: -14983.46142 | S73: -14983.46142 | T73: -14983.46142 | U73: -14983.46142 | V73: -14983.46142 | W73: -14983.46142 | X73: -14983.46142 | Y73: -14983.46142 | Z73: -14983.46142 | AA73: -14983.46142 | AB73: -14983.46142 | AC73: -14983.46142 | AD73: -14983.46142
C74: Total tax provisions required - $k | E74: =E65 -> 5459 | F74: 9958.052616 | G74: 18298.27725 | H74: 17185.68596 | I74: 16154.88074 | J74: 15199.31869 | K74: 14312.98037 | L74: 13490.32787 | M74: 12726.26633 | N74: 12016.10847 | O74: 11355.542 | P74: 10740.59961 | Q74: 10167.63137 | R74: 9633.279342 | S74: 9134.45424 | T74: 8668.313905 | U74: 8232.243557 | V74: 7823.837595 | W74: 7440.88287 | X74: 7081.343282 | Y74: 6743.34562 | Z74: 6425.166531 | AA74: 6125.220528 | AB74: 5842.048964 | AC74: 5574.309885 | AD74: 5320.768691
C75: Achieved return - $k | E75: =E68+E69+E73+E74 -> -15141 | F75: -6525.408806 | G75: 1814.815826 | H75: 702.2245397 | I75: -328.5806847 | J75: -1284.142732 | K75: -2170.481056 | L75: -2993.133555 | M75: -3757.195095 | N75: -4467.352952 | O75: -5127.919422 | P75: -5742.861814 | Q75: -6315.830056 | R75: -6850.18208 | S75: -7349.007182 | T75: -7815.147516 | U75: -8251.217865 | V75: -8659.623827 | W75: -9042.578552 | X75: -9402.11814 | Y75: -9740.115802 | Z75: -10058.29489 | AA75: -10358.24089 | AB75: -10641.41246 | AC75: -10909.15154 | AD75: -11162.69273
C77: Required return on rate base - $k - see B above | E77: =E44 -> 0 | F77: 19865.40739 | G77: 39334.4576 | H77: 38541.74322 | I77: 37749.02883 | J77: 36956.31445 | K77: 36163.60007 | L77: 35370.88569 | M77: 34578.17131 | N77: 33785.45693 | O77: 32992.74254 | P77: 32200.02816 | Q77: 31407.31378 | R77: 30614.5994 | S77: 29821.88502 | T77: 29029.17064 | U77: 28236.45625 | V77: 27443.74187 | W77: 26651.02749 | X77: 25858.31311 | Y77: 25065.59873 | Z77: 24272.88435 | AA77: 23480.16996 | AB77: 22687.45558 | AC77: 21894.7412 | AD77: 21102.02682
C78: Sufficiency/(deficiency) after-tax - $k | E78: =E75-E77 -> -15141 | F78: -26390.8162 | G78: -37519.64177 | H78: -37839.51868 | I78: -38077.60952 | J78: -38240.45718 | K78: -38334.08113 | L78: -38364.01924 | M78: -38335.3664 | N78: -38252.80988 | O78: -38120.66197 | P78: -37942.88998 | Q78: -37723.14384 | R78: -37464.78148 | S78: -37170.8922 | T78: -36844.31815 | U78: -36487.67412 | V78: -36103.3657 | W78: -35693.60604 | X78: -35260.43125 | Y78: -34805.71453 | Z78: -34331.17924 | AA78: -33838.41086 | AB78: -33328.86804 | AC78: -32803.89274 | AD78: -32264.71955
C79: Sufficiency/(deficiency) before-tax - $k - above / (1 - Income tax rate) | E79: =E78/(1-'Standard Inputs'!$B$28) -> -20600 | F79: =F78/(1-'Standard Inputs'!$B$28) -> -35905.87238 | G79: =G78/(1-'Standard Inputs'!$B$28) -> -51047.13166 | H79: =H78/(1-'Standard Inputs'!$B$28) -> -51482.33833 | I79: =I78/(1-'Standard Inputs'!$B$28) -> -51806.27145 | J79: =J78/(1-'Standard Inputs'!$B$28) -> -52027.8329 | K79: =K78/(1-'Standard Inputs'!$B$28) -> -52155.21242 | L79: =L78/(1-'Standard Inputs'!$B$28) -> -52195.94455 | M79: =M78/(1-'Standard Inputs'!$B$28) -> -52156.96109 | N79: =N78/(1-'Standard Inputs'!$B$28) -> -52044.63929 | O79: =O78/(1-'Standard Inputs'!$B$28) -> -51864.84621 | P79: =P78/(1-'Standard Inputs'!$B$28) -> -51622.97956 | Q79: =Q78/(1-'Standard Inputs'!$B$28) -> -51324.00522 | R79: =R78/(1-'Standard Inputs'!$B$28) -> -50972.49181 | S79: =S78/(1-'Standard Inputs'!$B$28) -> -50572.64245 | T79: =T78/(1-'Standard Inputs'!$B$28) -> -50128.32402 | U79: =U78/(1-'Standard Inputs'!$B$28) -> -49643.09404 | V79: =V78/(1-'Standard Inputs'!$B$28) -> -49120.22544 | W79: =W78/(1-'Standard Inputs'!$B$28) -> -48562.72931 | X79: =X78/(1-'Standard Inputs'!$B$28) -> -47973.37585 | Y79: =Y78/(1-'Standard Inputs'!$B$28) -> -47354.71364 | Z79: =Z78/(1-'Standard Inputs'!$B$28) -> -46709.0874 | AA79: =AA78/(1-'Standard Inputs'!$B$28) -> -46038.65423 | AB79: =AB78/(1-'Standard Inputs'!$B$28) -> -45345.39869 | AC79: =AC78/(1-'Standard Inputs'!$B$28) -> -44631.14658 | AD79: =AD78/(1-'Standard Inputs'!$B$28) -> -43897.57762
C80: Revenue requirement - $k - Revenue + suff./(def.) above | E80: =E68-E79 -> 20600 | F80: 35905.87238 | G80: 51047.13166 | H80: 51482.33833 | I80: 51806.27145 | J80: 52027.8329 | K80: 52155.21242 | L80: 52195.94455 | M80: 52156.96109 | N80: 52044.63929 | O80: 51864.84621 | P80: 51622.97956 | Q80: 51324.00522 | R80: 50972.49181 | S80: 50572.64245 | T80: 50128.32402 | U80: 49643.09404 | V80: 49120.22544 | W80: 48562.72931 | X80: 47973.37585 | Y80: 47354.71364 | Z80: 46709.0874 | AA80: 46038.65423 | AB80: 45345.39869 | AC80: 44631.14658 | AD80: 43897.57762
C82: Check:
C83: Revenue requirement - $k | E83: =E80 -> 20600 | F83: 35905.87238 | G83: 51047.13166 | H83: 51482.33833 | I83: 51806.27145 | J83: 52027.8329 | K83: 52155.21242 | L83: 52195.94455 | M83: 52156.96109 | N83: 52044.63929 | O83: 51864.84621 | P83: 51622.97956 | Q83: 51324.00522 | R83: 50972.49181 | S83: 50572.64245 | T83: 50128.32402 | U83: 49643.09404 | V83: 49120.22544 | W83: 48562.72931 | X83: 47973.37585 | Y83: 47354.71364 | Z83: 46709.0874 | AA83: 46038.65423 | AB83: 45345.39869 | AC83: 44631.14658 | AD83: 43897.57762
C84: Total OM&A and expenses, excluding financing charges - $k | E84: =E69+E73 -> -20600 | F84: -16483.46142 | G84: -16483.46142 | H84: -16483.46142 | I84: -16483.46142 | J84: -16483.46142 | K84: -16483.46142 | L84: -16483.46142 | M84: -16483.46142 | N84: -16483.46142 | O84: -16483.46142 | P84: -16483.46142 | Q84: -16483.46142 | R84: -16483.46142 | S84: -16483.46142 | T84: -16483.46142 | U84: -16483.46142 | V84: -16483.46142 | W84: -16483.46142 | X84: -16483.46142 | Y84: -16483.46142 | Z84: -16483.46142 | AA84: -16483.46142 | AB84: -16483.46142 | AC84: -16483.46142 | AD84: -16483.46142
C85: Income taxes - $k - see D below | E85: =E101 -> 0 | F85: =F101 -> 442.9964347 | G85: 4770.787358 | H85: 3542.866303 | I85: 2426.218802 | J85: 1411.94297 | K85: 491.8490751 | L85: -341.597439 | M85: -1095.328362 | N85: -1775.720942 | O85: -2388.642246 | P85: -2939.489976 | Q85: -3433.230018 | R85: -3874.430987 | S85: -4267.296009 | T85: -4615.691959 | U85: -4923.176364 | V85: -5193.022147 | W85: -5428.240397 | X85: -5631.601318 | Y85: -5805.653496 | Z85: -5952.74163 | AA85: -6075.022843 | AB85: -6174.48169 | AC85: -6252.943959 | AD85: -6312.089378
C86: Achieved return - $k | E86: =SUM(E83:E85) -> 0 | F86: 19865.40739 | G86: 39334.4576 | H86: 38541.74322 | I86: 37749.02883 | J86: 36956.31445 | K86: 36163.60007 | L86: 35370.88569 | M86: 34578.17131 | N86: 33785.45693 | O86: 32992.74254 | P86: 32200.02816 | Q86: 31407.31378 | R86: 30614.5994 | S86: 29821.88502 | T86: 29029.17064 | U86: 28236.45625 | V86: 27443.74187 | W86: 26651.02749 | X86: 25858.31311 | Y86: 25065.59873 | Z86: 24272.88435 | AA86: 23480.16996 | AB86: 22687.45558 | AC86: 21894.7412 | AD86: 21102.02682
C87: Required return - $k - see B above | E87: =E77 -> 0 | F87: 19865.40739 | G87: 39334.4576 | H87: 38541.74322 | I87: 37749.02883 | J87: 36956.31445 | K87: 36163.60007 | L87: 35370.88569 | M87: 34578.17131 | N87: 33785.45693 | O87: 32992.74254 | P87: 32200.02816 | Q87: 31407.31378 | R87: 30614.5994 | S87: 29821.88502 | T87: 29029.17064 | U87: 28236.45625 | V87: 27443.74187 | W87: 26651.02749 | X87: 25858.31311 | Y87: 25065.59873 | Z87: 24272.88435 | AA87: 23480.16996 | AB87: 22687.45558 | AC87: 21894.7412 | AD87: 21102.02682
C88: Difference (should be zero) | E88: =E86-E87 -> 0 | F88: 0 | G88: 0 | H88: 0 | I88: 0 | J88: 0 | K88: 0 | L88: 0 | M88: 0 | N88: 0 | O88: 0 | P88: 0 | Q88: 0 | R88: 0 | S88: 0 | T88: 0 | U88: 0 | V88: 0 | W88: 0 | X88: 0 | Y88: 0 | Z88: 0 | AA88: 0 | AB88: 0 | AC88: 0 | AD88: 0
C89: Achieved return % | E89: =IF(E40<0.1,0,E86/E40) -> 0 | F89: 0.063124 | G89: 0.063124 | H89: 0.063124 | I89: 0.063124 | J89: 0.063124 | K89: 0.063124 | L89: 0.063124 | M89: 0.063124 | N89: 0.063124 | O89: 0.063124 | P89: 0.063124 | Q89: 0.063124 | R89: 0.063124 | S89: 0.063124 | T89: 0.063124 | U89: 0.063124 | V89: 0.063124 | W89: 0.063124 | X89: 0.063124 | Y89: 0.063124 | Z89: 0.063124 | AA89: 0.063124 | AB89: 0.063124 | AC89: 0.063124 | AD89: 0.063124
C90: Required return % | E90: =IF(E40<0.1,0,E87/E40) -> 0 | F90: 0.063124 | G90: 0.063124 | H90: 0.063124 | I90: 0.063124 | J90: 0.063124 | K90: 0.063124 | L90: 0.063124 | M90: 0.063124 | N90: 0.063124 | O90: 0.063124 | P90: 0.063124 | Q90: 0.063124 | R90: 0.063124 | S90: 0.063124 | T90: 0.063124 | U90: 0.063124 | V90: 0.063124 | W90: 0.063124 | X90: 0.063124 | Y90: 0.063124 | Z90: 0.063124 | AA90: 0.063124 | AB90: 0.063124 | AC90: 0.063124 | AD90: 0.063124
C92: Calculations of income taxes for revenue requirement
C93: Incremental revenue - $k | E93: =E80 -> 20600 | F93: =F80 -> 35905.87238 | G93: 51047.13166 | H93: 51482.33833 | I93: 51806.27145 | J93: 52027.8329 | K93: 52155.21242 | L93: 52195.94455 | M93: 52156.96109 | N93: 52044.63929 | O93: 51864.84621 | P93: 51622.97956 | Q93: 51324.00522 | R93: 50972.49181 | S93: 50572.64245 | T93: 50128.32402 | U93: 49643.09404 | V93: 49120.22544 | W93: 48562.72931 | X93: 47973.37585 | Y93: 47354.71364 | Z93: 46709.0874 | AA93: 46038.65423 | AB93: 45345.39869 | AC93: 44631.14658 | AD93: 43897.57762
C94: Incremental OM&A costs - $k | E94: =E69 -> -20600 | F94: =F69 -> -1500 | G94: -1500 | H94: -1500 | I94: -1500 | J94: -1500 | K94: -1500 | L94: -1500 | M94: -1500 | N94: -1500 | O94: -1500 | P94: -1500 | Q94: -1500 | R94: -1500 | S94: -1500 | T94: -1500 | U94: -1500 | V94: -1500 | W94: -1500 | X94: -1500 | Y94: -1500 | Z94: -1500 | AA94: -1500 | AB94: -1500 | AC94: -1500 | AD94: -1500
C95: Other expenses $k:
C96: Municipal tax | E96: =E58 -> 0 | F96: =F58 -> -2425.410891 | G96: -2425.410891 | H96: -2425.410891 | I96: -2425.410891 | J96: -2425.410891 | K96: -2425.410891 | L96: -2425.410891 | M96: -2425.410891 | N96: -2425.410891 | O96: -2425.410891 | P96: -2425.410891 | Q96: -2425.410891 | R96: -2425.410891 | S96: -2425.410891 | T96: -2425.410891 | U96: -2425.410891 | V96: -2425.410891 | W96: -2425.410891 | X96: -2425.410891 | Y96: -2425.410891 | Z96: -2425.410891 | AA96: -2425.410891 | AB96: -2425.410891 | AC96: -2425.410891 | AD96: -2425.410891
C97: CCA | E97: =E59 -> 0 | F97: =F59 -> -25116.10106 | G97: -48222.91404 | H97: -44365.08091 | I97: -40815.87444 | J97: -37550.60449 | K97: -34546.55613 | L97: -31782.83164 | M97: -29240.20511 | N97: -26900.9887 | O97: -24748.9096 | P97: -22768.99683 | Q97: -20947.47709 | R97: -19271.67892 | S97: -17729.94461 | T97: -16311.54904 | U97: -15006.62511 | V97: -13806.09511 | W97: -12701.6075 | X97: -11685.4789 | Y97: -10750.64059 | Z97: -9890.589339 | AA97: -9099.342191 | AB97: -8371.394816 | AC97: -7701.683231 | AD97: -7085.548572
C98: Interest (see C above) | E98: =E60 -> 0 | F98: =F60 -> -8536.045088 | G98: -16901.7779 | H98: -16561.15333 | I98: -16220.52877 | J98: -15879.90421 | K98: -15539.27965 | L98: -15198.65508 | M98: -14858.03052 | N98: -14517.40596 | O98: -14176.78139 | P98: -13836.15683 | Q98: -13495.53227 | R98: -13154.90771 | S98: -12814.28314 | T98: -12473.65858 | U98: -12133.03402 | V98: -11792.40946 | W98: -11451.78489 | X98: -11111.16033 | Y98: -10770.53577 | Z98: -10429.91121 | AA98: -10089.28664 | AB98: -9748.662081 | AC98: -9408.037519 | AD98: -9067.412956
C99: Total costs / expenses - $k | E99: =SUM(E96:E98) -> 0 | F99: =SUM(F96:F98) -> -36077.55704 | G99: -67550.10282 | H99: -63351.64514 | I99: -59461.8141 | J99: -55855.91958 | K99: -52511.24666 | L99: -49406.89761 | M99: -46523.64652 | N99: -43843.80555 | O99: -41351.10189 | P99: -39030.56456 | Q99: -36868.42025 | R99: -34851.99752 | S99: -32969.63864 | T99: -31210.61851 | U99: -29565.07003 | V99: -28023.91545 | W99: -26578.80328 | X99: -25222.05012 | Y99: -23946.58725 | Z99: -22745.91144 | AA99: -21614.03973 | AB99: -20545.46779 | AC99: -19535.13164 | AD99: -18578.37242
C100: Taxable income for revenue requirement purposes - $k: | E100: =E93+E94+E99 -> 0 | F100: =F93+F94+F99 -> -1671.684659 | G100: -18002.97116 | H100: -13369.3068 | I100: -9155.542648 | J100: -5328.086681 | K100: -1856.034246 | L100: 1289.046939 | M100: 4133.314575 | N100: 6700.833744 | O100: 9013.744324 | P100: 11092.415 | Q100: 12955.58497 | R100: 14620.49429 | S100: 16103.00381 | T100: 17417.70551 | U100: 18578.02401 | V100: 19596.30999 | W100: 20483.92603 | X100: 21251.32573 | Y100: 21908.1264 | Z100: 22463.17596 | AA100: 22924.6145 | AB100: 23299.93091 | AC100: 23596.01494 | AD100: 23819.2052
C101: Income taxes @ Fed. & Ont. Taxminus Surtax - $k - D | E101: =-E100*'Standard Inputs'!$B$28 -> 0 | F101: =-F100*'Standard Inputs'!$B$28 -> 442.9964347 | G101: =-G100*'Standard Inputs'!$B$28 -> 4770.787358 | H101: =-H100*'Standard Inputs'!$B$28 -> 3542.866303 | I101: =-I100*'Standard Inputs'!$B$28 -> 2426.218802 | J101: =-J100*'Standard Inputs'!$B$28 -> 1411.94297 | K101: =-K100*'Standard Inputs'!$B$28 -> 491.8490751 | L101: =-L100*'Standard Inputs'!$B$28 -> -341.597439 | M101: =-M100*'Standard Inputs'!$B$28 -> -1095.328362 | N101: =-N100*'Standard Inputs'!$B$28 -> -1775.720942 | O101: =-O100*'Standard Inputs'!$B$28 -> -2388.642246 | P101: =-P100*'Standard Inputs'!$B$28 -> -2939.489976 | Q101: =-Q100*'Standard Inputs'!$B$28 -> -3433.230018 | R101: =-R100*'Standard Inputs'!$B$28 -> -3874.430987 | S101: =-S100*'Standard Inputs'!$B$28 -> -4267.296009 | T101: =-T100*'Standard Inputs'!$B$28 -> -4615.691959 | U101: =-U100*'Standard Inputs'!$B$28 -> -4923.176364 | V101: =-V100*'Standard Inputs'!$B$28 -> -5193.022147 | W101: =-W100*'Standard Inputs'!$B$28 -> -5428.240397 | X101: =-X100*'Standard Inputs'!$B$28 -> -5631.601318 | Y101: =-Y100*'Standard Inputs'!$B$28 -> -5805.653496 | Z101: =-Z100*'Standard Inputs'!$B$28 -> -5952.74163 | AA101: =-AA100*'Standard Inputs'!$B$28 -> -6075.022843 | AB101: =-AB100*'Standard Inputs'!$B$28 -> -6174.48169 | AC101: =-AC100*'Standard Inputs'!$B$28 -> -6252.943959 | AD101: =-AD100*'Standard Inputs'!$B$28 -> -6312.089378
C104: Transformation revenue requirement | D104: =IF('Project Inputs'!$B$17="Transformation",'Standard Inputs'!C8,IF('Project Inputs'!$B$17="Network",'Standard Inputs'!C7,IF('Project Inputs'!$B$17="Line",'Standard Inputs'!C6,0))) -> 893562.074 | E104: =IF(ISNUMBER(E4),$D$104+E80,0) -> 914162.074 | F104: =IF(ISNUMBER(F4),$D$104+F80,0) -> 929467.9464 | G104: 944609.2057 | H104: 945044.4123 | I104: 945368.3455 | J104: 945589.9069 | K104: 945717.2864 | L104: 945758.0185 | M104: 945719.0351 | N104: 945606.7133 | O104: 945426.9202 | P104: 945185.0536 | Q104: 944886.0792 | R104: 944534.5658 | S104: 944134.7164 | T104: 943690.398 | U104: 943205.168 | V104: 942682.2994 | W104: 942124.8033 | X104: 941535.4498 | Y104: 940916.7876 | Z104: 940271.1614 | AA104: 939600.7282 | AB104: 938907.4727 | AC104: 938193.2206 | AD104: 937459.6516
C105: Transformation MW | D105: =IF('Project Inputs'!$B$17="Transformation",'Standard Inputs'!D8,IF('Project Inputs'!$B$17="Network",'Standard Inputs'!D7,IF('Project Inputs'!$B$17="Line",'Standard Inputs'!D6,""))) -> 249132.407 | E105: =IF(ISNUMBER(E4),$D$105+'NPV Calc'!E12*12,0) -> 249132.407 | F105: =IF(ISNUMBER(F4),$D$105+'NPV Calc'!F12*12,0) -> 249132.407 | G105: =IF(ISNUMBER(G4),$D$105+'NPV Calc'!G12*12,0) -> 249132.407 | H105: =IF(ISNUMBER(H4),$D$105+'NPV Calc'!H12*12,0) -> 249132.407 | I105: =IF(ISNUMBER(I4),$D$105+'NPV Calc'!I12*12,0) -> 249132.407 | J105: =IF(ISNUMBER(J4),$D$105+'NPV Calc'!J12*12,0) -> 249132.407 | K105: =IF(ISNUMBER(K4),$D$105+'NPV Calc'!K12*12,0) -> 249132.407 | L105: =IF(ISNUMBER(L4),$D$105+'NPV Calc'!L12*12,0) -> 249132.407 | M105: =IF(ISNUMBER(M4),$D$105+'NPV Calc'!M12*12,0) -> 249132.407 | N105: =IF(ISNUMBER(N4),$D$105+'NPV Calc'!N12*12,0) -> 249132.407 | O105: =IF(ISNUMBER(O4),$D$105+'NPV Calc'!O12*12,0) -> 249132.407 | P105: =IF(ISNUMBER(P4),$D$105+'NPV Calc'!P12*12,0) -> 249132.407 | Q105: =IF(ISNUMBER(Q4),$D$105+'NPV Calc'!Q12*12,0) -> 249132.407 | R105: =IF(ISNUMBER(R4),$D$105+'NPV Calc'!R12*12,0) -> 249132.407 | S105: =IF(ISNUMBER(S4),$D$105+'NPV Calc'!S12*12,0) -> 249132.407 | T105: =IF(ISNUMBER(T4),$D$105+'NPV Calc'!T12*12,0) -> 249132.407 | U105: =IF(ISNUMBER(U4),$D$105+'NPV Calc'!U12*12,0) -> 249132.407 | V105: =IF(ISNUMBER(V4),$D$105+'NPV Calc'!V12*12,0) -> 249132.407 | W105: =IF(ISNUMBER(W4),$D$105+'NPV Calc'!W12*12,0) -> 249132.407 | X105: =IF(ISNUMBER(X4),$D$105+'NPV Calc'!X12*12,0) -> 249132.407 | Y105: =IF(ISNUMBER(Y4),$D$105+'NPV Calc'!Y12*12,0) -> 249132.407 | Z105: =IF(ISNUMBER(Z4),$D$105+'NPV Calc'!Z12*12,0) -> 249132.407 | AA105: =IF(ISNUMBER(AA4),$D$105+'NPV Calc'!AA12*12,0) -> 249132.407 | AB105: =IF(ISNUMBER(AB4),$D$105+'NPV Calc'!AB12*12,0) -> 249132.407 | AC105: =IF(ISNUMBER(AC4),$D$105+'NPV Calc'!AC12*12,0) -> 249132.407 | AD105: =IF(ISNUMBER(AD4),$D$105+'NPV Calc'!AD12*12,0) -> 249132.407
C106: Transformation Rate ($/kW/month) | D106: =ROUND(D104/D105,2) -> 3.59 | E106: =IF(ISNUMBER(E4),ROUND(E104/E105,2),0) -> 3.67 | F106: =IF(ISNUMBER(F4),ROUND(F104/F105,2),0) -> 3.73 | G106: 3.79 | H106: 3.79 | I106: 3.79 | J106: 3.8 | K106: 3.8 | L106: 3.8 | M106: 3.8 | N106: 3.8 | O106: 3.79 | P106: 3.79 | Q106: 3.79 | R106: 3.79 | S106: 3.79 | T106: 3.79 | U106: 3.79 | V106: 3.78 | W106: 3.78 | X106: 3.78 | Y106: 3.78 | Z106: 3.77 | AA106: 3.77 | AB106: 3.77 | AC106: 3.77 | AD106: 3.76
C107: Rate Impact | E107: =IF(ISNUMBER(E4),E106/$D106-1,0) -> 0.02228412256 | F107: =IF(ISNUMBER(F4),F106/$D106-1,0) -> 0.03899721448 | G107: 0.05571030641 | H107: 0.05571030641 | I107: 0.05571030641 | J107: 0.05849582173 | K107: 0.05849582173 | L107: 0.05849582173 | M107: 0.05849582173 | N107: 0.05849582173 | O107: 0.05571030641 | P107: 0.05571030641 | Q107: 0.05571030641 | R107: 0.05571030641 | S107: 0.05571030641 | T107: 0.05571030641 | U107: 0.05571030641 | V107: 0.05292479109 | W107: 0.05292479109 | X107: 0.05292479109 | Y107: 0.05292479109 | Z107: 0.05013927577 | AA107: 0.05013927577 | AB107: 0.05013927577 | AC107: 0.05013927577 | AD107: 0.04735376045

Sheet Standard Report
A1: `
E2: Date: | F2: 2018-02-09 | I2: =IF('Capital Cont Inputs'!B52="Revenue Guarantee","SUMMARY OF REVENUE GUARANTEE","SUMMARY OF CONTRIBUTION CALCULATIONS") -> SUMMARY OF CONTRIBUTION CALCULATIONS
E3: Project # | F3: ='Project Inputs'!B7 -> 25032 | I3: ='Project Inputs'!B17&" Pool"&" - "&'Project Inputs'!B28 -> Network Pool - Estimated cost
J6: =IF('NPV Calc'!C2="Yes","WARNING - The detailed report is set to include capital contributions. Therefore, the report is not correct.","") -> 
E8: Facility Name: | G8: ='Project Inputs'!B9 -> Hydro One Lake Superior Link proposal
E9: Description: | G9: ='Project Inputs'!B11 -> Lake Superior Link 2018 Rates
E10: Customer: | G10: =Customer -> Lake Superior Link Project
I12: In-Service
I13: Date | J13: <------- | K13: Project year ended - annualized from In-Service Date -------->
G14: Month | I14: =IF(ISNUMBER(I15),'Project Inputs'!$B$15,"") -> 2021-10-26 | J14: =IF(ISNUMBER(J15),'Project Inputs'!$B$15,"") -> 2021-10-26 | K14: =IF(ISNUMBER(K15),'Project Inputs'!$B$15,"") -> 2021-10-26 | L14: =IF(ISNUMBER(L15),'Project Inputs'!$B$15,"") -> 2021-10-26 | M14: =IF(ISNUMBER(M15),'Project Inputs'!$B$15,"") -> 2021-10-26 | N14: =IF(ISNUMBER(N15),'Project Inputs'!$B$15,"") -> 2021-10-26 | O14: =IF(ISNUMBER(O15),'Project Inputs'!$B$15,"") -> 2021-10-26 | P14: =IF(ISNUMBER(P15),'Project Inputs'!$B$15,"") -> 2021-10-26 | Q14: =IF(ISNUMBER(Q15),'Project Inputs'!$B$15,"") -> 2021-10-26 | R14: =IF(ISNUMBER(R15),'Project Inputs'!$B$15,"") -> 2021-10-26 | S14: =IF(ISNUMBER(S15),'Project Inputs'!$B$15,"") -> 2021-10-26 | T14: =IF(ISNUMBER(T15),'Project Inputs'!$B$15,"") -> 2021-10-26 | U14: =IF(ISNUMBER(U15),'Project Inputs'!$B$15,"") -> 2021-10-26 | V14: =IF(ISNUMBER(V15),'Project Inputs'!$B$15,"") -> 2021-10-26 | W14: =IF(ISNUMBER(W15),'Project Inputs'!$B$15,"") -> 2021-10-26 | X14: =IF(ISNUMBER(X15),'Project Inputs'!$B$15,"") -> 2021-10-26 | Y14: =IF(ISNUMBER(Y15),'Project Inputs'!$B$15,"") -> 2021-10-26 | Z14: =IF(ISNUMBER(Z15),'Project Inputs'!$B$15,"") -> 2021-10-26 | AA14: =IF(ISNUMBER(AA15),'Project Inputs'!$B$15,"") -> 2021-10-26 | AB14: =IF(ISNUMBER(AB15),'Project Inputs'!$B$15,"") -> 2021-10-26 | AC14: =IF(ISNUMBER(AC15),'Project Inputs'!$B$15,"") -> 2021-10-26 | AD14: =IF(ISNUMBER(AD15),'Project Inputs'!$B$15,"") -> 2021-10-26 | AE14: =IF(ISNUMBER(AE15),'Project Inputs'!$B$15,"") -> 2021-10-26 | AF14: =IF(ISNUMBER(AF15),'Project Inputs'!$B$15,"") -> 2021-10-26 | AG14: =IF(ISNUMBER(AG15),'Project Inputs'!$B$15,"") -> 2021-10-26 | AH14: =IF(ISNUMBER(AH15),'Project Inputs'!$B$15,"") -> 2021-10-26
G15: Year | I15: ='Capital Cont Inputs'!B15 -> 2021 | J15: ='Capital Cont Inputs'!C15 -> 2022 | K15: ='Capital Cont Inputs'!D15 -> 2023 | L15: ='Capital Cont Inputs'!E15 -> 2024 | M15: ='Capital Cont Inputs'!F15 -> 2025 | N15: ='Capital Cont Inputs'!G15 -> 2026 | O15: ='Capital Cont Inputs'!H15 -> 2027 | P15: ='Capital Cont Inputs'!I15 -> 2028 | Q15: ='Capital Cont Inputs'!J15 -> 2029 | R15: ='Capital Cont Inputs'!K15 -> 2030 | S15: ='Capital Cont Inputs'!L15 -> 2031 | T15: ='Capital Cont Inputs'!M15 -> 2032 | U15: ='Capital Cont Inputs'!N15 -> 2033 | V15: ='Capital Cont Inputs'!O15 -> 2034 | W15: ='Capital Cont Inputs'!P15 -> 2035 | X15: ='Capital Cont Inputs'!Q15 -> 2036 | Y15: ='Capital Cont Inputs'!R15 -> 2037 | Z15: ='Capital Cont Inputs'!S15 -> 2038 | AA15: ='Capital Cont Inputs'!T15 -> 2039 | AB15: ='Capital Cont Inputs'!U15 -> 2040 | AC15: ='Capital Cont Inputs'!V15 -> 2041 | AD15: ='Capital Cont Inputs'!W15 -> 2042 | AE15: ='Capital Cont Inputs'!X15 -> 2043 | AF15: ='Capital Cont Inputs'!Y15 -> 2044 | AG15: ='Capital Cont Inputs'!Z15 -> 2045 | AH15: ='Capital Cont Inputs'!AA15 -> 2046
J16: =IF(ISNA('Capital Cont Inputs'!C14),"",'Capital Cont Inputs'!C14) ->  | K16: =IF(ISNA('Capital Cont Inputs'!D14),"",'Capital Cont Inputs'!D14) ->  | L16: =IF(ISNA('Capital Cont Inputs'!E14),"",'Capital Cont Inputs'!E14) ->  | M16: =IF(ISNA('Capital Cont Inputs'!F14),"",'Capital Cont Inputs'!F14) ->  | N16: =IF(ISNA('Capital Cont Inputs'!G14),"",'Capital Cont Inputs'!G14) -> 1st true-up | O16: =IF(ISNA('Capital Cont Inputs'!H14),"",'Capital Cont Inputs'!H14) ->  | P16: =IF(ISNA('Capital Cont Inputs'!I14),"",'Capital Cont Inputs'!I14) ->  | Q16: =IF(ISNA('Capital Cont Inputs'!J14),"",'Capital Cont Inputs'!J14) ->  | R16: =IF(ISNA('Capital Cont Inputs'!K14),"",'Capital Cont Inputs'!K14) ->  | S16: =IF(ISNA('Capital Cont Inputs'!L14),"",'Capital Cont Inputs'!L14) -> 2nd true-up | T16: =IF(ISNA('Capital Cont Inputs'!M14),"",'Capital Cont Inputs'!M14) ->  | U16: =IF(ISNA('Capital Cont Inputs'!N14),"",'Capital Cont Inputs'!N14) ->  | V16: =IF(ISNA('Capital Cont Inputs'!O14),"",'Capital Cont Inputs'!O14) ->  | W16: =IF(ISNA('Capital Cont Inputs'!P14),"",'Capital Cont Inputs'!P14) ->  | X16: =IF(ISNA('Capital Cont Inputs'!Q14),"",'Capital Cont Inputs'!Q14) -> 3rd true-up | Y16: =IF(ISNA('Capital Cont Inputs'!R14),"",'Capital Cont Inputs'!R14) ->  | Z16: =IF(ISNA('Capital Cont Inputs'!S14),"",'Capital Cont Inputs'!S14) ->  | AA16: =IF(ISNA('Capital Cont Inputs'!T14),"",'Capital Cont Inputs'!T14) ->  | AB16: =IF(ISNA('Capital Cont Inputs'!U14),"",'Capital Cont Inputs'!U14) ->  | AC16: =IF(ISNA('Capital Cont Inputs'!V14),"",'Capital Cont Inputs'!V14) ->  | AD16: =IF(ISNA('Capital Cont Inputs'!W14),"",'Capital Cont Inputs'!W14) ->  | AE16: =IF(ISNA('Capital Cont Inputs'!X14),"",'Capital Cont Inputs'!X14) ->  | AF16: =IF(ISNA('Capital Cont Inputs'!Y14),"",'Capital Cont Inputs'!Y14) ->  | AG16: =IF(ISNA('Capital Cont Inputs'!Z14),"",'Capital Cont Inputs'!Z14) ->  | AH16: =IF(ISNA('Capital Cont Inputs'!AA14),"",'Capital Cont Inputs'!AA14) -> 
I17: ='Capital Cont Inputs'!B16 -> 0 | J17: ='Capital Cont Inputs'!C16 -> 1 | K17: ='Capital Cont Inputs'!D16 -> 2 | L17: ='Capital Cont Inputs'!E16 -> 3 | M17: ='Capital Cont Inputs'!F16 -> 4 | N17: ='Capital Cont Inputs'!G16 -> 5 | O17: ='Capital Cont Inputs'!H16 -> 6 | P17: ='Capital Cont Inputs'!I16 -> 7 | Q17: ='Capital Cont Inputs'!J16 -> 8 | R17: ='Capital Cont Inputs'!K16 -> 9 | S17: ='Capital Cont Inputs'!L16 -> 10 | T17: ='Capital Cont Inputs'!M16 -> 11 | U17: ='Capital Cont Inputs'!N16 -> 12 | V17: ='Capital Cont Inputs'!O16 -> 13 | W17: ='Capital Cont Inputs'!P16 -> 14 | X17: ='Capital Cont Inputs'!Q16 -> 15 | Y17: ='Capital Cont Inputs'!R16 -> 16 | Z17: ='Capital Cont Inputs'!S16 -> 17 | AA17: ='Capital Cont Inputs'!T16 -> 18 | AB17: ='Capital Cont Inputs'!U16 -> 19 | AC17: ='Capital Cont Inputs'!V16 -> 20 | AD17: ='Capital Cont Inputs'!W16 -> 21 | AE17: ='Capital Cont Inputs'!X16 -> 22 | AF17: ='Capital Cont Inputs'!Y16 -> 23 | AG17: ='Capital Cont Inputs'!Z16 -> 24 | AH17: ='Capital Cont Inputs'!AA16 -> 25
C18: Revenue & Expense Forecast
E19: Load Forecast (MW) | J19: ='NPV Calc'!F10 -> 0 | K19: ='NPV Calc'!G10 -> 0 | L19: ='NPV Calc'!H10 -> 0 | M19: ='NPV Calc'!I10 -> 0 | N19: ='NPV Calc'!J10 -> 0 | O19: ='NPV Calc'!K10 -> 0 | P19: ='NPV Calc'!L10 -> 0 | Q19: ='NPV Calc'!M10 -> 0 | R19: ='NPV Calc'!N10 -> 0 | S19: ='NPV Calc'!O10 -> 0 | T19: ='NPV Calc'!P10 -> 0 | U19: ='NPV Calc'!Q10 -> 0 | V19: ='NPV Calc'!R10 -> 0 | W19: ='NPV Calc'!S10 -> 0 | X19: ='NPV Calc'!T10 -> 0 | Y19: ='NPV Calc'!U10 -> 0 | Z19: ='NPV Calc'!V10 -> 0 | AA19: ='NPV Calc'!W10 -> 0 | AB19: ='NPV Calc'!X10 -> 0 | AC19: ='NPV Calc'!Y10 -> 0 | AD19: ='NPV Calc'!Z10 -> 0 | AE19: ='NPV Calc'!AA10 -> 0 | AF19: ='NPV Calc'!AB10 -> 0 | AG19: ='NPV Calc'!AC10 -> 0 | AH19: ='NPV Calc'!AD10 -> 0
E20: Load adjustments (MW) | J20: ='NPV Calc'!F11 -> 0 | K20: ='NPV Calc'!G11 -> 0 | L20: ='NPV Calc'!H11 -> 0 | M20: ='NPV Calc'!I11 -> 0 | N20: ='NPV Calc'!J11 -> 0 | O20: ='NPV Calc'!K11 -> 0 | P20: ='NPV Calc'!L11 -> 0 | Q20: ='NPV Calc'!M11 -> 0 | R20: ='NPV Calc'!N11 -> 0 | S20: ='NPV Calc'!O11 -> 0 | T20: ='NPV Calc'!P11 -> 0 | U20: ='NPV Calc'!Q11 -> 0 | V20: ='NPV Calc'!R11 -> 0 | W20: ='NPV Calc'!S11 -> 0 | X20: ='NPV Calc'!T11 -> 0 | Y20: ='NPV Calc'!U11 -> 0 | Z20: ='NPV Calc'!V11 -> 0 | AA20: ='NPV Calc'!W11 -> 0 | AB20: ='NPV Calc'!X11 -> 0 | AC20: ='NPV Calc'!Y11 -> 0 | AD20: ='NPV Calc'!Z11 -> 0 | AE20: ='NPV Calc'!AA11 -> 0 | AF20: ='NPV Calc'!AB11 -> 0 | AG20: ='NPV Calc'!AC11 -> 0 | AH20: ='NPV Calc'!AD11 -> 0
J21: =J19+J20 -> 0 | K21: =K19+K20 -> 0 | L21: 0 | M21: 0 | N21: 0 | O21: 0 | P21: 0 | Q21: 0 | R21: 0 | S21: 0 | T21: 0 | U21: 0 | V21: 0 | W21: 0 | X21: 0 | Y21: 0 | Z21: 0 | AA21: 0 | AB21: 0 | AC21: 0 | AD21: 0 | AE21: 0 | AF21: 0 | AG21: 0 | AH21: 0
E22: Tariff Applied ($/kW/Month) | J22: ='NPV Calc'!F14 -> 3.59 | K22: ='NPV Calc'!G14 -> 3.59 | L22: ='NPV Calc'!H14 -> 3.59 | M22: ='NPV Calc'!I14 -> 3.59 | N22: ='NPV Calc'!J14 -> 3.59 | O22: ='NPV Calc'!K14 -> 3.59 | P22: ='NPV Calc'!L14 -> 3.59 | Q22: ='NPV Calc'!M14 -> 3.59 | R22: ='NPV Calc'!N14 -> 3.59 | S22: ='NPV Calc'!O14 -> 3.59 | T22: ='NPV Calc'!P14 -> 3.59 | U22: ='NPV Calc'!Q14 -> 3.59 | V22: ='NPV Calc'!R14 -> 3.59 | W22: ='NPV Calc'!S14 -> 3.59 | X22: ='NPV Calc'!T14 -> 3.59 | Y22: ='NPV Calc'!U14 -> 3.59 | Z22: ='NPV Calc'!V14 -> 3.59 | AA22: ='NPV Calc'!W14 -> 3.59 | AB22: ='NPV Calc'!X14 -> 3.59 | AC22: ='NPV Calc'!Y14 -> 3.59 | AD22: ='NPV Calc'!Z14 -> 3.59 | AE22: ='NPV Calc'!AA14 -> 3.59 | AF22: ='NPV Calc'!AB14 -> 3.59 | AG22: ='NPV Calc'!AC14 -> 3.59 | AH22: ='NPV Calc'!AD14 -> 3.59
C23: Incremental Revenue - $k | J23: =J21*J22*12 -> 0 | K23: =K21*K22*12 -> 0 | L23: 0 | M23: 0 | N23: 0 | O23: 0 | P23: 0 | Q23: 0 | R23: 0 | S23: 0 | T23: 0 | U23: 0 | V23: 0 | W23: 0 | X23: 0 | Y23: 0 | Z23: 0 | AA23: 0 | AB23: 0 | AC23: 0 | AD23: 0 | AE23: 0 | AF23: 0 | AG23: 0 | AH23: 0
E24: Removal Costs - $k | I24: ='NPV Calc'!E20 -> -20600
E25: On-going OM&A Costs - $k | I25: ='NPV Calc'!E21 -> 0 | J25: ='NPV Calc'!F21 -> -1500 | K25: ='NPV Calc'!G21 -> -1500 | L25: ='NPV Calc'!H21 -> -1500 | M25: ='NPV Calc'!I21 -> -1500 | N25: ='NPV Calc'!J21 -> -1500 | O25: ='NPV Calc'!K21 -> -1500 | P25: ='NPV Calc'!L21 -> -1500 | Q25: ='NPV Calc'!M21 -> -1500 | R25: ='NPV Calc'!N21 -> -1500 | S25: ='NPV Calc'!O21 -> -1500 | T25: ='NPV Calc'!P21 -> -1500 | U25: ='NPV Calc'!Q21 -> -1500 | V25: ='NPV Calc'!R21 -> -1500 | W25: ='NPV Calc'!S21 -> -1500 | X25: ='NPV Calc'!T21 -> -1500 | Y25: ='NPV Calc'!U21 -> -1500 | Z25: ='NPV Calc'!V21 -> -1500 | AA25: ='NPV Calc'!W21 -> -1500 | AB25: ='NPV Calc'!X21 -> -1500 | AC25: ='NPV Calc'!Y21 -> -1500 | AD25: ='NPV Calc'!Z21 -> -1500 | AE25: ='NPV Calc'!AA21 -> -1500 | AF25: ='NPV Calc'!AB21 -> -1500 | AG25: ='NPV Calc'!AC21 -> -1500 | AH25: ='NPV Calc'!AD21 -> -1500
E26: Municipal Tax - $k | J26: ='NPV Calc'!F22 -> -2425.410891 | K26: ='NPV Calc'!G22 -> -2425.410891 | L26: ='NPV Calc'!H22 -> -2425.410891 | M26: ='NPV Calc'!I22 -> -2425.410891 | N26: ='NPV Calc'!J22 -> -2425.410891 | O26: ='NPV Calc'!K22 -> -2425.410891 | P26: ='NPV Calc'!L22 -> -2425.410891 | Q26: ='NPV Calc'!M22 -> -2425.410891 | R26: ='NPV Calc'!N22 -> -2425.410891 | S26: ='NPV Calc'!O22 -> -2425.410891 | T26: ='NPV Calc'!P22 -> -2425.410891 | U26: ='NPV Calc'!Q22 -> -2425.410891 | V26: ='NPV Calc'!R22 -> -2425.410891 | W26: ='NPV Calc'!S22 -> -2425.410891 | X26: ='NPV Calc'!T22 -> -2425.410891 | Y26: ='NPV Calc'!U22 -> -2425.410891 | Z26: ='NPV Calc'!V22 -> -2425.410891 | AA26: ='NPV Calc'!W22 -> -2425.410891 | AB26: ='NPV Calc'!X22 -> -2425.410891 | AC26: ='NPV Calc'!Y22 -> -2425.410891 | AD26: ='NPV Calc'!Z22 -> -2425.410891 | AE26: ='NPV Calc'!AA22 -> -2425.410891 | AF26: ='NPV Calc'!AB22 -> -2425.410891 | AG26: ='NPV Calc'!AC22 -> -2425.410891 | AH26: ='NPV Calc'!AD22 -> -2425.410891
C27: Net Revenue/(Costs) before taxes - $k | I27: =SUM(I23:I26) -> -20600 | J27: -3925.410891 | K27: -3925.410891 | L27: -3925.410891 | M27: -3925.410891 | N27: -3925.410891 | O27: -3925.410891 | P27: -3925.410891 | Q27: -3925.410891 | R27: -3925.410891 | S27: -3925.410891 | T27: -3925.410891 | U27: -3925.410891 | V27: -3925.410891 | W27: -3925.410891 | X27: -3925.410891 | Y27: -3925.410891 | Z27: -3925.410891 | AA27: -3925.410891 | AB27: -3925.410891 | AC27: -3925.410891 | AD27: -3925.410891 | AE27: -3925.410891 | AF27: -3925.410891 | AG27: -3925.410891 | AH27: -3925.410891
E28: Income Taxes - $k | I28: ='NPV Calc'!E26 -> 5459 | J28: ='NPV Calc'!F26 -> 7696.000667 | K28: ='NPV Calc'!G26 -> 13819.30611 | L28: ='NPV Calc'!H26 -> 12796.98033 | M28: ='NPV Calc'!I26 -> 11856.44061 | N28: ='NPV Calc'!J26 -> 10991.14407 | O28: ='NPV Calc'!K26 -> 10195.07126 | P28: ='NPV Calc'!L26 -> 9462.68427 | Q28: ='NPV Calc'!M26 -> 8788.888239 | R28: ='NPV Calc'!N26 -> 8168.995891 | S28: ='NPV Calc'!O26 -> 7598.694931 | T28: ='NPV Calc'!P26 -> 7074.018047 | U28: ='NPV Calc'!Q26 -> 6591.315314 | V28: ='NPV Calc'!R26 -> 6147.2288 | W28: ='NPV Calc'!S26 -> 5738.669207 | X28: ='NPV Calc'!T26 -> 5362.794381 | Y28: ='NPV Calc'!U26 -> 5016.989542 | Z28: ='NPV Calc'!V26 -> 4698.849089 | AA28: ='NPV Calc'!W26 -> 4406.159873 | AB28: ='NPV Calc'!X26 -> 4136.885794 | AC28: ='NPV Calc'!Y26 -> 3889.153641 | AD28: ='NPV Calc'!Z26 -> 3661.240061 | AE28: ='NPV Calc'!AA26 -> 3451.559567 | AF28: ='NPV Calc'!AB26 -> 3258.653513 | AG28: ='NPV Calc'!AC26 -> 3081.179942 | AH28: ='NPV Calc'!AD26 -> 2917.904258
C29: Operating Cash Flow (after taxes) - $k | I29: =SUM(I27:I28) -> -15141 | J29: =SUM(J27:J28) -> 3770.589776 | K29: 9893.895214 | L29: 8871.569437 | M29: 7931.029721 | N29: 7065.733183 | O29: 6269.660368 | P29: 5537.273378 | Q29: 4863.477348 | R29: 4243.584999 | S29: 3673.284039 | T29: 3148.607156 | U29: 2665.904423 | V29: 2221.817908 | W29: 1813.258315 | X29: 1437.38349 | Y29: 1091.57865 | Z29: 773.4381977 | AA29: 480.7489815 | AB29: 211.4749025 | AC29: -36.2572501 | AD29: -264.1708305 | AE29: -473.8513245 | AF29: -666.7573789 | AG29: -844.2309491 | AH29: -1007.506634
G30: Cumulative PV @
G31: ='Prelim Calc'!H13 -> 0.05593614
C32: PV Operating Cash Flow (after taxes) - $k (A) | G32: =SUM(I32:AH32) -> 40062.42233 | I32: =I29*'NPV Calc'!E47 -> -15141 | J32: =J29*'NPV Calc'!F47 -> 3669.36115 | K32: =K29*'NPV Calc'!G47 -> 9118.235933 | L32: =L29*'NPV Calc'!H47 -> 7742.947611 | M32: =M29*'NPV Calc'!I47 -> 6555.378736 | N32: =N29*'NPV Calc'!J47 -> 5530.79791 | O32: =O29*'NPV Calc'!K47 -> 4647.687484 | P32: =P29*'NPV Calc'!L47 -> 3887.328244 | Q32: =Q29*'NPV Calc'!M47 -> 3233.437656 | R32: =R29*'NPV Calc'!N47 -> 2671.854755 | S32: =S29*'NPV Calc'!O47 -> 2190.265678 | T32: =T29*'NPV Calc'!P47 -> 1777.964601 | U32: =U29*'NPV Calc'!Q47 -> 1425.645518 | V32: =V29*'NPV Calc'!R47 -> 1125.220891 | W32: =W29*'NPV Calc'!S47 -> 869.663709 | X32: =X29*'NPV Calc'!T47 -> 652.869932 | Y32: =Y29*'NPV Calc'!U47 -> 469.5387011 | Z32: =Z29*'NPV Calc'!V47 -> 315.0680202 | AA32: =AA29*'NPV Calc'!W47 -> 185.4639162 | AB32: =AB29*'NPV Calc'!X47 -> 77.26133935 | AC32: =AC29*'NPV Calc'!Y47 -> -12.54470946 | AD32: =AD29*'NPV Calc'!Z47 -> -86.5591439 | AE32: =AE29*'NPV Calc'!AA47 -> -147.0389984 | AF32: =AF29*'NPV Calc'!AB47 -> -195.9388764 | AG32: =AG29*'NPV Calc'!AC47 -> -234.950513 | AH32: =AH29*'NPV Calc'!AD47 -> -265.5372106
C34: Capital Expenditures - $k
E35: Capital cost before overheads & AFUDC - $k | I35: ='NPV Calc'!D31 -> -590868.475
E36: - Overheads - $k | I36: ='NPV Calc'!E32 -> -8502.295784
E37: - AFUDC - $k | I37: ='NPV Calc'!E33 -> -42596.29673
E38: Total upfront capital expenditures - $k | I38: =SUM(I35:I37) -> -641967.0675
E39: On-going capital expenditures - $k | J39: ='NPV Calc'!F37 -> 0 | K39: ='NPV Calc'!G37 -> 0 | L39: ='NPV Calc'!H37 -> 0 | M39: ='NPV Calc'!I37 -> 0 | N39: ='NPV Calc'!J37 -> 0 | O39: ='NPV Calc'!K37 -> 0 | P39: ='NPV Calc'!L37 -> 0 | Q39: ='NPV Calc'!M37 -> 0 | R39: ='NPV Calc'!N37 -> 0 | S39: ='NPV Calc'!O37 -> 0 | T39: ='NPV Calc'!P37 -> 0 | U39: ='NPV Calc'!Q37 -> 0 | V39: ='NPV Calc'!R37 -> 0 | W39: ='NPV Calc'!S37 -> 0 | X39: ='NPV Calc'!T37 -> 0 | Y39: ='NPV Calc'!U37 -> 0 | Z39: ='NPV Calc'!V37 -> 0 | AA39: ='NPV Calc'!W37 -> 0 | AB39: ='NPV Calc'!X37 -> 0 | AC39: ='NPV Calc'!Y37 -> 0 | AD39: ='NPV Calc'!Z37 -> 0 | AE39: ='NPV Calc'!AA37 -> 0 | AF39: ='NPV Calc'!AB37 -> 0 | AG39: ='NPV Calc'!AC37 -> 0 | AH39: ='NPV Calc'!AD37 -> 0
E40: PV On-going capital expenditures - $k | I40: ='NPV Calc'!D37 -> 0
E41: Total capital expenditures - $k | I41: =I38+I40 -> -641967.0675
C43: Capital Contributions - $k
E44: Previous capital contribution/(credit) | I44: ='NPV Calc'!E40 -> 0 | J44: =IF(J15>=True_up_year,"",'NPV Calc'!F40) ->  | K44: =IF(K15>=True_up_year,"",'NPV Calc'!G40) ->  | L44: =IF(L15>=True_up_year,"",'NPV Calc'!H40) ->  | M44: =IF(M15>=True_up_year,"",'NPV Calc'!I40) ->  | N44: =IF(N15>=True_up_year,"",'NPV Calc'!J40) ->  | O44: =IF(O15>=True_up_year,"",'NPV Calc'!K40) ->  | P44: =IF(P15>=True_up_year,"",'NPV Calc'!L40) ->  | Q44: =IF(Q15>=True_up_year,"",'NPV Calc'!M40) ->  | R44: =IF(R15>=True_up_year,"",'NPV Calc'!N40) ->  | S44: =IF(S15>=True_up_year,"",'NPV Calc'!O40) ->  | T44: =IF(T15>=True_up_year,"",'NPV Calc'!P40) ->  | U44: =IF(U15>=True_up_year,"",'NPV Calc'!Q40) ->  | V44: =IF(V15>=True_up_year,"",'NPV Calc'!R40) ->  | W44: =IF(W15>=True_up_year,"",'NPV Calc'!S40) ->  | X44: =IF(X15>=True_up_year,"",'NPV Calc'!T40) ->  | Y44: =IF(Y15>=True_up_year,"",'NPV Calc'!U40) ->  | Z44: =IF(Z15>=True_up_year,"",'NPV Calc'!V40) ->  | AA44: =IF(AA15>=True_up_year,"",'NPV Calc'!W40) ->  | AB44: =IF(AB15>=True_up_year,"",'NPV Calc'!X40) ->  | AC44: =IF(AC15>=True_up_year,"",'NPV Calc'!Y40) ->  | AD44: =IF(AD15>=True_up_year,"",'NPV Calc'!Z40) ->  | AE44: =IF(AE15>=True_up_year,"",'NPV Calc'!AA40) ->  | AF44: =IF(AF15>=True_up_year,"",'NPV Calc'!AB40) ->  | AG44: =IF(AG15>=True_up_year,"",'NPV Calc'!AC40) ->  | AH44: =IF(AH15>=True_up_year,"",'NPV Calc'!AD40) -> 
E45: Current capital contribution/(credit) | I45: =IF(I15=True_up_year,'NPV Calc'!E41,"") -> 0 | J45: =IF(J15=True_up_year,'NPV Calc'!F41,"") ->  | K45: =IF(K15=True_up_year,'NPV Calc'!G41,"") ->  | L45: =IF(L15=True_up_year,'NPV Calc'!H41,"") ->  | M45: =IF(M15=True_up_year,'NPV Calc'!I41,"") ->  | N45: =IF(N15=True_up_year,'NPV Calc'!J41,"") ->  | O45: =IF(O15=True_up_year,'NPV Calc'!K41,"") ->  | P45: =IF(P15=True_up_year,'NPV Calc'!L41,"") ->  | Q45: =IF(Q15=True_up_year,'NPV Calc'!M41,"") ->  | R45: =IF(R15=True_up_year,'NPV Calc'!N41,"") ->  | S45: =IF(S15=True_up_year,'NPV Calc'!O41,"") ->  | T45: =IF(T15=True_up_year,'NPV Calc'!P41,"") ->  | U45: =IF(U15=True_up_year,'NPV Calc'!Q41,"") ->  | V45: =IF(V15=True_up_year,'NPV Calc'!R41,"") ->  | W45: =IF(W15=True_up_year,'NPV Calc'!S41,"") ->  | X45: =IF(X15=True_up_year,'NPV Calc'!T41,"") ->  | Y45: =IF(Y15=True_up_year,'NPV Calc'!U41,"") ->  | Z45: =IF(Z15=True_up_year,'NPV Calc'!V41,"") ->  | AA45: =IF(AA15=True_up_year,'NPV Calc'!W41,"") ->  | AB45: =IF(AB15=True_up_year,'NPV Calc'!X41,"") ->  | AC45: =IF(AC15=True_up_year,'NPV Calc'!Y41,"") ->  | AD45: =IF(AD15=True_up_year,'NPV Calc'!Z41,"") ->  | AE45: =IF(AE15=True_up_year,'NPV Calc'!AA41,"") ->  | AF45: =IF(AF15=True_up_year,'NPV Calc'!AB41,"") ->  | AG45: =IF(AG15=True_up_year,'NPV Calc'!AC41,"") ->  | AH45: =IF(AH15=True_up_year,'NPV Calc'!AD41,"") -> 
E46: PV of annual capital contribution | I46: =IF(AND(I45="",I44=""),"",'NPV Calc'!E52) -> 0 | J46: =IF(AND(J45="",J44=""),"",'NPV Calc'!F52) ->  | K46: =IF(AND(K45="",K44=""),"",'NPV Calc'!G52) ->  | L46: =IF(AND(L45="",L44=""),"",'NPV Calc'!H52) ->  | M46: =IF(AND(M45="",M44=""),"",'NPV Calc'!I52) ->  | N46: =IF(AND(N45="",N44=""),"",'NPV Calc'!J52) ->  | O46: =IF(AND(O45="",O44=""),"",'NPV Calc'!K52) ->  | P46: =IF(AND(P45="",P44=""),"",'NPV Calc'!L52) ->  | Q46: =IF(AND(Q45="",Q44=""),"",'NPV Calc'!M52) ->  | R46: =IF(AND(R45="",R44=""),"",'NPV Calc'!N52) ->  | S46: =IF(AND(S45="",S44=""),"",'NPV Calc'!O52) ->  | T46: =IF(AND(T45="",T44=""),"",'NPV Calc'!P52) ->  | U46: =IF(AND(U45="",U44=""),"",'NPV Calc'!Q52) ->  | V46: =IF(AND(V45="",V44=""),"",'NPV Calc'!R52) ->  | W46: =IF(AND(W45="",W44=""),"",'NPV Calc'!S52) ->  | X46: =IF(AND(X45="",X44=""),"",'NPV Calc'!T52) ->  | Y46: =IF(AND(Y45="",Y44=""),"",'NPV Calc'!U52) ->  | Z46: =IF(AND(Z45="",Z44=""),"",'NPV Calc'!V52) ->  | AA46: =IF(AND(AA45="",AA44=""),"",'NPV Calc'!W52) ->  | AB46: =IF(AND(AB45="",AB44=""),"",'NPV Calc'!X52) ->  | AC46: =IF(AND(AC45="",AC44=""),"",'NPV Calc'!Y52) ->  | AD46: =IF(AND(AD45="",AD44=""),"",'NPV Calc'!Z52) ->  | AE46: =IF(AND(AE45="",AE44=""),"",'NPV Calc'!AA52) ->  | AF46: =IF(AND(AF45="",AF44=""),"",'NPV Calc'!AB52) ->  | AG46: =IF(AND(AG45="",AG44=""),"",'NPV Calc'!AC52) ->  | AH46: =IF(AND(AH45="",AH44=""),"",'NPV Calc'!AD52) -> 
E47: Total PV | I47: ='NPV Calc'!D42 -> 0
C51: PV CCA Residual Tax Shield - $k | I51: ='NPV Calc'!D27 -> 3259.349216
C53: PV Working Capital - $k | I53: ='NPV Calc'!D44 -> -24.85958148
C55: PV Capital (after taxes) - $k (B) | G55: =+I55 -> -638732.5779 | I55: =I41+I47+I51+I53 -> -638732.5779
C58: Cumulative PV Cash Flow (after taxes) - $k (A) + (B) | G58: =G32+G55 -> -598670.1555 | I58: =I55+I32 -> -653873.5779 | J58: =IF(ISNUMBER(J17),I58+J32,0) -> -650204.2167 | K58: =IF(ISNUMBER(K17),J58+K32,0) -> -641085.9808 | L58: -633343.0332 | M58: -626787.6545 | N58: -621256.8565 | O58: -616609.1691 | P58: -612721.8408 | Q58: -609488.4032 | R58: -606816.5484 | S58: -604626.2827 | T58: -602848.3181 | U58: -601422.6726 | V58: -600297.4517 | W58: -599427.788 | X58: -598774.9181 | Y58: -598305.3794 | Z58: -597990.3114 | AA58: -597804.8474 | AB58: -597727.5861 | AC58: -597740.1308 | AD58: -597826.69 | AE58: -597973.7289 | AF58: -598169.6678 | AG58: -598404.6183 | AH58: -598670.1555
C62: Discounted Cash Flow Summary | Z62: Other Assumptions | AD62: Notes:
C64: Economic Study Horizon - Years: | G64: =IF(ISNUMBER('Project Inputs'!B21),'Project Inputs'!B21,'Project Inputs'!E19) -> 25 | Z64: In-Service Date: | AC64: ='Project Inputs'!B15 -> 2021-10-26
C66: Discount Rate - % | G66: ='Prelim Calc'!H13 -> 0.05593614 | Z66: Municipal Tax | AC66: ='Standard Inputs'!B30 -> 0.003778092389 | AD66: Transmission system average
G68: Before | Z68: Federal Income Tax | AC68: ='Standard Inputs'!B26 -> 0.15 | AD68: ='Standard Inputs'!B65&" federal corporate income tax" -> 2018 federal corporate income tax
G69: Cont
G70: $k | Z70: Ontario Corporation Income Tax | AC70: ='Standard Inputs'!B27 -> 0.115 | AD70: ='Standard Inputs'!B65&" provincial corporate income tax" -> 2018 provincial corporate income tax
C72: PV Incremental Revenue | G72: ='NPV Calc'!D17 -> 0 | Z72: Working cash net lag days | AC72: ='Standard Inputs'!B59 -> 8.76 | AD72: ='Standard Inputs'!B69 -> As per Lead Lag Study as prepared by Navigant for 2018/2019 rates
C73: PV OM&A Costs | G73: ='NPV Calc'!D21+'NPV Calc'!D20 -> -41088.42026
C74: PV Municipal Tax | G74: ='NPV Calc'!D22 -> -33128.55842 | Z74: ="CCA Rate for Class "&'Standard Inputs'!B35&" Assets" -> CCA Rate for Class 47 Assets | AC74: ='Standard Inputs'!C35 -> 0.08 | AD74: =+IF('NPV Calc'!F119=0,"100% Class "&'Standard Inputs'!B35&" assets"&IF('NPV Calc'!F98=0,""," except for Land"),ROUND('NPV Calc'!F106/('NPV Calc'!F86-'NPV Calc'!F98)*100,1)&"% Class "&'Standard Inputs'!B35&" assets"&IF('NPV Calc'!F98=0,""," except for Land")) -> 100% Class 47 assets except for Land
C75: PV Income Taxes | G75: ='NPV Calc'!D26-SUM('NPV Calc'!E80:AD80)*'Standard Inputs'!B28 -> 19667.49935
C76: PV CCA Tax Shield | G76: ='NPV Calc'!D27+SUM('NPV Calc'!E80:AD80)*'Standard Inputs'!B28 -> 97871.25088
C77: PV Capital - Upfront | F77: =SUM('NPV Calc'!D31:D33) -> -641967.0675
C78: Add: PV Capital Contribution | F78: ='NPV Calc'!D42 -> 0 | G78: =SUM(F77:F78) -> -641967.0675
C79: PV Capital - On-going | G79: =I40 -> 0
C80: PV Working Capital | G80: =I53 -> -24.85958148
C81: PV Surplus / (Shortfall) | G81: =SUM(G72:G80) -> -598670.1555
E83: Profitability Index* | G83: =IF(G78+G79=0," ",(SUM(G72:G76)+G80)/ABS(G78+G79)) -> 0.06744413251
C85: Notes:
C86: *PV of total cash flow, excluding net capital expenditure & on-going capital & proceeds on disposal / PV of net capital expenditure & on-going capital & proceeds on disposal
AD90: Calculation Time Stamp: | AF90: 09-Feb-18, 1:32 PM
E95: Net Present Value check:
E96: * Previous NPV $ before cap cont: | F96: -578413.2112
E97: * Represents the last recorded NPV before capital contributions when the IEE/true-up calculation was completed.
E98: Cap Contributions included in report? | F98: ='Capital Cont Inputs'!B53 -> Yes

Sheet S92 Report Before Cont $M p1
A1: `
E2: ='Standard Report'!E2 -> Date: | F2: =DateCalculated -> 2018-02-09 | O2: ='Standard Report'!I2 -> SUMMARY OF CONTRIBUTION CALCULATIONS
E3: =#REF! ->  | F3: ='Standard Report'!F3 -> 25032 | O3: ='Project Inputs'!B17&" Pool"&" - "&'Project Inputs'!B28 -> Network Pool - Estimated cost
E8: ='Standard Report'!E8 -> Facility Name: | G8: ='Standard Report'!G8 -> Hydro One Lake Superior Link proposal
E9: ='Standard Report'!E9 -> Description: | G9: ='Standard Report'!G9 -> Lake Superior Link 2018 Rates
E10: ='Standard Report'!E10 -> Customer: | G10: ='Standard Report'!G10 -> Lake Superior Link Project
I12: In-Service
I13: Date | J13: <------- | K13: Project year ended - annualized from In-Service Date -------->
G14: Month | I14: ='Standard Report'!I14 -> 2021-10-26 | J14: ='Standard Report'!J14 -> 2021-10-26 | K14: ='Standard Report'!K14 -> 2021-10-26 | L14: ='Standard Report'!L14 -> 2021-10-26 | M14: ='Standard Report'!M14 -> 2021-10-26 | N14: ='Standard Report'!N14 -> 2021-10-26 | O14: ='Standard Report'!O14 -> 2021-10-26 | P14: ='Standard Report'!P14 -> 2021-10-26 | Q14: ='Standard Report'!Q14 -> 2021-10-26 | R14: ='Standard Report'!R14 -> 2021-10-26 | S14: ='Standard Report'!S14 -> 2021-10-26 | T14: ='Standard Report'!T14 -> 2021-10-26 | U14: ='Standard Report'!U14 -> 2021-10-26
G15: Year | I15: ='Capital Cont Inputs'!B15 -> 2021 | J15: ='Capital Cont Inputs'!C15 -> 2022 | K15: ='Capital Cont Inputs'!D15 -> 2023 | L15: ='Capital Cont Inputs'!E15 -> 2024 | M15: ='Capital Cont Inputs'!F15 -> 2025 | N15: ='Capital Cont Inputs'!G15 -> 2026 | O15: ='Capital Cont Inputs'!H15 -> 2027 | P15: ='Capital Cont Inputs'!I15 -> 2028 | Q15: ='Capital Cont Inputs'!J15 -> 2029 | R15: ='Capital Cont Inputs'!K15 -> 2030 | S15: ='Capital Cont Inputs'!L15 -> 2031 | T15: ='Capital Cont Inputs'!M15 -> 2032 | U15: ='Capital Cont Inputs'!N15 -> 2033
I17: ='Capital Cont Inputs'!B16 -> 0 | J17: ='Capital Cont Inputs'!C16 -> 1 | K17: ='Capital Cont Inputs'!D16 -> 2 | L17: ='Capital Cont Inputs'!E16 -> 3 | M17: ='Capital Cont Inputs'!F16 -> 4 | N17: ='Capital Cont Inputs'!G16 -> 5 | O17: ='Capital Cont Inputs'!H16 -> 6 | P17: ='Capital Cont Inputs'!I16 -> 7 | Q17: ='Capital Cont Inputs'!J16 -> 8 | R17: ='Capital Cont Inputs'!K16 -> 9 | S17: ='Capital Cont Inputs'!L16 -> 10 | T17: ='Capital Cont Inputs'!M16 -> 11 | U17: ='Capital Cont Inputs'!N16 -> 12
C18: Revenue & Expense Forecast
E19: Load Forecast (MW) | J19: ='NPV Calc'!F10 -> 0 | K19: ='NPV Calc'!G10 -> 0 | L19: ='NPV Calc'!H10 -> 0 | M19: ='NPV Calc'!I10 -> 0 | N19: ='NPV Calc'!J10 -> 0 | O19: ='NPV Calc'!K10 -> 0 | P19: ='NPV Calc'!L10 -> 0 | Q19: ='NPV Calc'!M10 -> 0 | R19: ='NPV Calc'!N10 -> 0 | S19: ='NPV Calc'!O10 -> 0 | T19: ='NPV Calc'!P10 -> 0 | U19: ='NPV Calc'!Q10 -> 0
E20: Load adjustments (MW) | J20: ='NPV Calc'!F11 -> 0 | K20: ='NPV Calc'!G11 -> 0 | L20: ='NPV Calc'!H11 -> 0 | M20: ='NPV Calc'!I11 -> 0 | N20: ='NPV Calc'!J11 -> 0 | O20: ='NPV Calc'!K11 -> 0 | P20: ='NPV Calc'!L11 -> 0 | Q20: ='NPV Calc'!M11 -> 0 | R20: ='NPV Calc'!N11 -> 0 | S20: ='NPV Calc'!O11 -> 0 | T20: ='NPV Calc'!P11 -> 0 | U20: ='NPV Calc'!Q11 -> 0
J21: =J19+J20 -> 0 | K21: =K19+K20 -> 0 | L21: 0 | M21: 0 | N21: 0 | O21: 0 | P21: 0 | Q21: 0 | R21: 0 | S21: 0 | T21: 0 | U21: 0
E22: Tariff Applied ($/kW/Month) | J22: ='NPV Calc'!F14 -> 3.59 | K22: ='NPV Calc'!G14 -> 3.59 | L22: ='NPV Calc'!H14 -> 3.59 | M22: ='NPV Calc'!I14 -> 3.59 | N22: ='NPV Calc'!J14 -> 3.59 | O22: ='NPV Calc'!K14 -> 3.59 | P22: ='NPV Calc'!L14 -> 3.59 | Q22: ='NPV Calc'!M14 -> 3.59 | R22: ='NPV Calc'!N14 -> 3.59 | S22: ='NPV Calc'!O14 -> 3.59 | T22: ='NPV Calc'!P14 -> 3.59 | U22: ='NPV Calc'!Q14 -> 3.59
C23: Incremental Revenue - $M | J23: ='Standard Report'!J23/1000 -> 0 | K23: ='Standard Report'!K23/1000 -> 0 | L23: ='Standard Report'!L23/1000 -> 0 | M23: ='Standard Report'!M23/1000 -> 0 | N23: ='Standard Report'!N23/1000 -> 0 | O23: ='Standard Report'!O23/1000 -> 0 | P23: ='Standard Report'!P23/1000 -> 0 | Q23: ='Standard Report'!Q23/1000 -> 0 | R23: ='Standard Report'!R23/1000 -> 0 | S23: ='Standard Report'!S23/1000 -> 0 | T23: ='Standard Report'!T23/1000 -> 0 | U23: ='Standard Report'!U23/1000 -> 0
E24: Removal Costs - $M | I24: ='Standard Report'!I24/1000 -> -20.6
E25: On-going OM&A Costs - $M | I25: ='Standard Report'!I25/1000 -> 0 | J25: ='Standard Report'!J25/1000 -> -1.5 | K25: ='Standard Report'!K25/1000 -> -1.5 | L25: ='Standard Report'!L25/1000 -> -1.5 | M25: ='Standard Report'!M25/1000 -> -1.5 | N25: ='Standard Report'!N25/1000 -> -1.5 | O25: ='Standard Report'!O25/1000 -> -1.5 | P25: ='Standard Report'!P25/1000 -> -1.5 | Q25: ='Standard Report'!Q25/1000 -> -1.5 | R25: ='Standard Report'!R25/1000 -> -1.5 | S25: ='Standard Report'!S25/1000 -> -1.5 | T25: ='Standard Report'!T25/1000 -> -1.5 | U25: ='Standard Report'!U25/1000 -> -1.5
E26: Municipal Tax - $M | J26: ='Standard Report'!J26/1000 -> -2.425410891 | K26: ='Standard Report'!K26/1000 -> -2.425410891 | L26: ='Standard Report'!L26/1000 -> -2.425410891 | M26: ='Standard Report'!M26/1000 -> -2.425410891 | N26: ='Standard Report'!N26/1000 -> -2.425410891 | O26: ='Standard Report'!O26/1000 -> -2.425410891 | P26: ='Standard Report'!P26/1000 -> -2.425410891 | Q26: ='Standard Report'!Q26/1000 -> -2.425410891 | R26: ='Standard Report'!R26/1000 -> -2.425410891 | S26: ='Standard Report'!S26/1000 -> -2.425410891 | T26: ='Standard Report'!T26/1000 -> -2.425410891 | U26: ='Standard Report'!U26/1000 -> -2.425410891
C27: Net Revenue/(Costs) before taxes - $M | I27: ='Standard Report'!I27/1000 -> -20.6 | J27: ='Standard Report'!J27/1000 -> -3.925410891 | K27: ='Standard Report'!K27/1000 -> -3.925410891 | L27: ='Standard Report'!L27/1000 -> -3.925410891 | M27: ='Standard Report'!M27/1000 -> -3.925410891 | N27: ='Standard Report'!N27/1000 -> -3.925410891 | O27: ='Standard Report'!O27/1000 -> -3.925410891 | P27: ='Standard Report'!P27/1000 -> -3.925410891 | Q27: ='Standard Report'!Q27/1000 -> -3.925410891 | R27: ='Standard Report'!R27/1000 -> -3.925410891 | S27: ='Standard Report'!S27/1000 -> -3.925410891 | T27: ='Standard Report'!T27/1000 -> -3.925410891 | U27: ='Standard Report'!U27/1000 -> -3.925410891
E28: Income Taxes | I28: ='Standard Report'!I28/1000 -> 5.459 | J28: ='Standard Report'!J28/1000 -> 7.696000667 | K28: ='Standard Report'!K28/1000 -> 13.81930611 | L28: ='Standard Report'!L28/1000 -> 12.79698033 | M28: ='Standard Report'!M28/1000 -> 11.85644061 | N28: ='Standard Report'!N28/1000 -> 10.99114407 | O28: ='Standard Report'!O28/1000 -> 10.19507126 | P28: ='Standard Report'!P28/1000 -> 9.46268427 | Q28: ='Standard Report'!Q28/1000 -> 8.788888239 | R28: ='Standard Report'!R28/1000 -> 8.168995891 | S28: ='Standard Report'!S28/1000 -> 7.598694931 | T28: ='Standard Report'!T28/1000 -> 7.074018047 | U28: ='Standard Report'!U28/1000 -> 6.591315314
C29: Operating Cash Flow (after taxes) - $M | I29: ='Standard Report'!I29/1000 -> -15.141 | J29: ='Standard Report'!J29/1000 -> 3.770589776 | K29: ='Standard Report'!K29/1000 -> 9.893895214 | L29: ='Standard Report'!L29/1000 -> 8.871569437 | M29: ='Standard Report'!M29/1000 -> 7.931029721 | N29: ='Standard Report'!N29/1000 -> 7.065733183 | O29: ='Standard Report'!O29/1000 -> 6.269660368 | P29: ='Standard Report'!P29/1000 -> 5.537273378 | Q29: ='Standard Report'!Q29/1000 -> 4.863477348 | R29: ='Standard Report'!R29/1000 -> 4.243584999 | S29: ='Standard Report'!S29/1000 -> 3.673284039 | T29: ='Standard Report'!T29/1000 -> 3.148607156 | U29: ='Standard Report'!U29/1000 -> 2.665904423
G30: Cumulative PV @
G31: ='Prelim Calc'!H13 -> 0.05593614
C32: PV Operating Cash Flow (after taxes) - $M (A) | G32: ='Standard Report'!G32/1000 -> 40.06242233 | I32: ='Standard Report'!I32/1000 -> -15.141 | J32: ='Standard Report'!J32/1000 -> 3.66936115 | K32: ='Standard Report'!K32/1000 -> 9.118235933 | L32: ='Standard Report'!L32/1000 -> 7.742947611 | M32: ='Standard Report'!M32/1000 -> 6.555378736 | N32: ='Standard Report'!N32/1000 -> 5.53079791 | O32: ='Standard Report'!O32/1000 -> 4.647687484 | P32: ='Standard Report'!P32/1000 -> 3.887328244 | Q32: ='Standard Report'!Q32/1000 -> 3.233437656 | R32: ='Standard Report'!R32/1000 -> 2.671854755 | S32: ='Standard Report'!S32/1000 -> 2.190265678 | T32: ='Standard Report'!T32/1000 -> 1.777964601 | U32: ='Standard Report'!U32/1000 -> 1.425645518
C34: Capital Expenditures - $M
E35: Upfront - capital cost before overheads & AFUDC | I35: ='Standard Report'!I35/1000 -> -590.868475
E36: - Overheads | I36: ='Standard Report'!I36/1000 -> -8.502295784
E37: - AFUDC | I37: ='Standard Report'!I37/1000 -> -42.59629673
E38: Total upfront capital expenditures | I38: ='Standard Report'!I38/1000 -> -641.9670675
E39: On-going capital expenditures | J39: ='Standard Report'!J39/1000 -> 0 | K39: ='Standard Report'!K39/1000 -> 0 | L39: ='Standard Report'!L39/1000 -> 0 | M39: ='Standard Report'!M39/1000 -> 0 | N39: ='Standard Report'!N39/1000 -> 0 | O39: ='Standard Report'!O39/1000 -> 0 | P39: ='Standard Report'!P39/1000 -> 0 | Q39: ='Standard Report'!Q39/1000 -> 0 | R39: ='Standard Report'!R39/1000 -> 0 | S39: ='Standard Report'!S39/1000 -> 0 | T39: ='Standard Report'!T39/1000 -> 0 | U39: ='Standard Report'!U39/1000 -> 0
E40: PV On-going capital expenditures | I40: ='Standard Report'!I40/1000 -> 0
E41: Total capital expenditures - $M | I41: ='Standard Report'!I41/1000 -> -641.9670675
C42: Capital Expenditures - $M
E44: Estimated IEE pre-payments | I44: ='Standard Report'!I44 -> 0 | J44: ='Standard Report'!J44 ->  | K44: ='Standard Report'!K44 ->  | L44: ='Standard Report'!L44 ->  | M44: ='Standard Report'!M44 ->  | N44: ='Standard Report'!N44 ->  | O44: ='Standard Report'!O44 ->  | P44: ='Standard Report'!P44 ->  | Q44: ='Standard Report'!Q44 ->  | R44: ='Standard Report'!R44 ->  | S44: ='Standard Report'!S44 ->  | T44: ='Standard Report'!T44 ->  | U44: ='Standard Report'!U44 -> 
E45: Annual capital contributions | I45: ='Standard Report'!I45/1000 -> 0 | J45: ='Standard Report'!J45 ->  | K45: ='Standard Report'!K45 ->  | L45: ='Standard Report'!L45 ->  | M45: ='Standard Report'!M45 ->  | N45: ='Standard Report'!N45 ->  | O45: ='Standard Report'!O45 ->  | P45: ='Standard Report'!P45 ->  | Q45: ='Standard Report'!Q45 ->  | R45: ='Standard Report'!R45 ->  | S45: ='Standard Report'!S45 ->  | T45: ='Standard Report'!T45 ->  | U45: ='Standard Report'!U45 -> 
E46: PV of annual capital contribution | I46: ='Standard Report'!I46/1000 -> 0 | J46: ='Standard Report'!J46/1000 ->  | K46: ='Standard Report'!K46/1000 ->  | L46: ='Standard Report'!L46/1000 ->  | M46: ='Standard Report'!M46/1000 ->  | N46: ='Standard Report'!N46/1000 ->  | O46: ='Standard Report'!O46/1000 ->  | P46: ='Standard Report'!P46/1000 ->  | Q46: ='Standard Report'!Q46/1000 ->  | R46: ='Standard Report'!R46/1000 ->  | S46: ='Standard Report'!S46/1000 ->  | T46: ='Standard Report'!T46/1000 ->  | U46: ='Standard Report'!U46/1000 -> 
E47: Total PV | I47: ='Standard Report'!I47/1000 -> 0
C51: PV CCA Residual Tax Shield - $M | I51: ='Standard Report'!I51/1000 -> 3.259349216
C53: PV Working Capital - $M | I53: ='Standard Report'!I53/1000 -> -0.02485958148
C55: PV Capital (after taxes) - $M (B) | G55: ='Standard Report'!G55/1000 -> -638.7325779 | I55: ='Standard Report'!I55/1000 -> -638.7325779
C58: Cumulative PV Cash Flow (after taxes) - $M (A) + (B) | G58: ='Standard Report'!G58/1000 -> -598.6701555 | I58: ='Standard Report'!I58/1000 -> -653.8735779 | J58: ='Standard Report'!J58/1000 -> -650.2042167 | K58: ='Standard Report'!K58/1000 -> -641.0859808 | L58: ='Standard Report'!L58/1000 -> -633.3430332 | M58: ='Standard Report'!M58/1000 -> -626.7876545 | N58: ='Standard Report'!N58/1000 -> -621.2568565 | O58: ='Standard Report'!O58/1000 -> -616.6091691 | P58: ='Standard Report'!P58/1000 -> -612.7218408 | Q58: ='Standard Report'!Q58/1000 -> -609.4884032 | R58: ='Standard Report'!R58/1000 -> -606.8165484 | S58: ='Standard Report'!S58/1000 -> -604.6262827 | T58: ='Standard Report'!T58/1000 -> -602.8483181 | U58: ='Standard Report'!U58/1000 -> -601.4226726
C62: Discounted Cash Flow Summary | O62: Other Assumptions
C64: Economic Study Horizon - Years: | G64: ='Standard Report'!G64 -> 25
C66: Discount Rate - % | G66: ='Prelim Calc'!H13 -> 0.05593614 | O66: In-Service Date: | R66: ='Project Inputs'!B15 -> 2021-10-26
G68: Before
G69: Cont
G70: $M | O70: Payback Year: | R70: =IF(LOOKUP(0,'Standard Report'!I58:AH58,'Standard Report'!I15:AH15)+1>'Capital Cont Inputs'!B10,'Capital Cont Inputs'!B10,LOOKUP(0,'Standard Report'!I58:AH58,'Standard Report'!I15:AH15)+1) -> 2046
C72: PV Incremental Revenue | G72: ='Standard Report'!G72/1000 -> 0
C73: PV OM&A Costs | G73: ='Standard Report'!G73/1000 -> -41.08842026 | O73: No. of years required for payback: | R73: =R70-'Capital Cont Inputs'!B4 -> 25
C74: PV Municipal Tax | G74: ='Standard Report'!G74/1000 -> -33.12855842
C75: PV Income Taxes | G75: ='Standard Report'!G75/1000 -> 19.66749935
C76: PV CCA Tax Shield | G76: ='Standard Report'!G76/1000 -> 97.87125088
C77: PV Capital - Upfront | F77: ='Standard Report'!F77/1000 -> -641.9670675
C78: Add: PV Capital Contribution | F78: ='Standard Report'!F78 -> 0 | G78: ='Standard Report'!G78/1000 -> -641.9670675
C79: PV Capital - On-going | G79: ='Standard Report'!G79/1000 -> 0
C80: PV Working Capital | G80: ='Standard Report'!G80/1000 -> -0.02485958148
C81: PV Surplus / (Shortfall) | G81: ='Standard Report'!G81/1000 -> -598.6701555
E83: Profitability Index* | G83: =IF(G78+G79=0," ",(SUM(G72:G76)+G80)/ABS(G78+G79)) -> 0.06744413251
C85: Notes:
C86: *PV of total cash flow, excluding net capital expenditure & on-going capital & proceeds on disposal / PV of net capital expenditure & on-going capital & proceeds on disposal

Sheet S92 Report Before Cont $M p2
A1: `
E2: ='Standard Report'!E2 -> Date: | F2: =DateCalculated -> 2018-02-09 | O2: ='S92 Report Before Cont $M p1'!O2 -> SUMMARY OF CONTRIBUTION CALCULATIONS
E3: ='Standard Report'!E3 -> Project # | F3: ='Standard Report'!F3 -> 25032 | O3: ='Project Inputs'!B17&" Pool"&" - "&'Project Inputs'!B28 -> Network Pool - Estimated cost
E8: ='Standard Report'!E8 -> Facility Name: | G8: ='Standard Report'!G8 -> Hydro One Lake Superior Link proposal
E9: ='Standard Report'!E9 -> Description: | G9: ='Standard Report'!G9 -> Lake Superior Link 2018 Rates
E10: ='Standard Report'!E10 -> Customer: | G10: ='Standard Report'!G10 -> Lake Superior Link Project
J13: <------- | K13: Project year ended - annualized from In-Service Date -------->
G14: Month | I14: ='Standard Report'!V14 -> 2021-10-26 | J14: ='Standard Report'!W14 -> 2021-10-26 | K14: ='Standard Report'!X14 -> 2021-10-26 | L14: ='Standard Report'!Y14 -> 2021-10-26 | M14: ='Standard Report'!Z14 -> 2021-10-26 | N14: ='Standard Report'!AA14 -> 2021-10-26 | O14: ='Standard Report'!AB14 -> 2021-10-26 | P14: ='Standard Report'!AC14 -> 2021-10-26 | Q14: ='Standard Report'!AD14 -> 2021-10-26 | R14: ='Standard Report'!AE14 -> 2021-10-26 | S14: ='Standard Report'!AF14 -> 2021-10-26 | T14: ='Standard Report'!AG14 -> 2021-10-26 | U14: ='Standard Report'!AH14 -> 2021-10-26
G15: Year | I15: ='Capital Cont Inputs'!O15 -> 2034 | J15: ='Capital Cont Inputs'!P15 -> 2035 | K15: ='Capital Cont Inputs'!Q15 -> 2036 | L15: ='Capital Cont Inputs'!R15 -> 2037 | M15: ='Capital Cont Inputs'!S15 -> 2038 | N15: ='Capital Cont Inputs'!T15 -> 2039 | O15: ='Capital Cont Inputs'!U15 -> 2040 | P15: ='Capital Cont Inputs'!V15 -> 2041 | Q15: ='Capital Cont Inputs'!W15 -> 2042 | R15: ='Capital Cont Inputs'!X15 -> 2043 | S15: ='Capital Cont Inputs'!Y15 -> 2044 | T15: ='Capital Cont Inputs'!Z15 -> 2045 | U15: ='Capital Cont Inputs'!AA15 -> 2046
I17: ='Capital Cont Inputs'!O16 -> 13 | J17: ='Capital Cont Inputs'!P16 -> 14 | K17: ='Capital Cont Inputs'!Q16 -> 15 | L17: ='Capital Cont Inputs'!R16 -> 16 | M17: ='Capital Cont Inputs'!S16 -> 17 | N17: ='Capital Cont Inputs'!T16 -> 18 | O17: ='Capital Cont Inputs'!U16 -> 19 | P17: ='Capital Cont Inputs'!V16 -> 20 | Q17: ='Capital Cont Inputs'!W16 -> 21 | R17: ='Capital Cont Inputs'!X16 -> 22 | S17: ='Capital Cont Inputs'!Y16 -> 23 | T17: ='Capital Cont Inputs'!Z16 -> 24 | U17: ='Capital Cont Inputs'!AA16 -> 25
C18: Revenue & Expense Forecast
E19: Load Forecast (MW) | I19: ='NPV Calc'!R10 -> 0 | J19: ='NPV Calc'!S10 -> 0 | K19: ='NPV Calc'!T10 -> 0 | L19: ='NPV Calc'!U10 -> 0 | M19: ='NPV Calc'!V10 -> 0 | N19: ='NPV Calc'!W10 -> 0 | O19: ='NPV Calc'!X10 -> 0 | P19: ='NPV Calc'!Y10 -> 0 | Q19: ='NPV Calc'!Z10 -> 0 | R19: ='NPV Calc'!AA10 -> 0 | S19: ='NPV Calc'!AB10 -> 0 | T19: ='NPV Calc'!AC10 -> 0 | U19: ='NPV Calc'!AD10 -> 0
E20: Load adjustments (MW) | I20: ='NPV Calc'!R11 -> 0 | J20: ='NPV Calc'!S11 -> 0 | K20: ='NPV Calc'!T11 -> 0 | L20: ='NPV Calc'!U11 -> 0 | M20: ='NPV Calc'!V11 -> 0 | N20: ='NPV Calc'!W11 -> 0 | O20: ='NPV Calc'!X11 -> 0 | P20: ='NPV Calc'!Y11 -> 0 | Q20: ='NPV Calc'!Z11 -> 0 | R20: ='NPV Calc'!AA11 -> 0 | S20: ='NPV Calc'!AB11 -> 0 | T20: ='NPV Calc'!AC11 -> 0 | U20: ='NPV Calc'!AD11 -> 0
I21: =I19+I20 -> 0 | J21: =J19+J20 -> 0 | K21: 0 | L21: 0 | M21: 0 | N21: 0 | O21: 0 | P21: 0 | Q21: 0 | R21: 0 | S21: 0 | T21: 0 | U21: 0
E22: Tariff Applied ($/kW/Month) | I22: ='NPV Calc'!R14 -> 3.59 | J22: ='NPV Calc'!S14 -> 3.59 | K22: ='NPV Calc'!T14 -> 3.59 | L22: ='NPV Calc'!U14 -> 3.59 | M22: ='NPV Calc'!V14 -> 3.59 | N22: ='NPV Calc'!W14 -> 3.59 | O22: ='NPV Calc'!X14 -> 3.59 | P22: ='NPV Calc'!Y14 -> 3.59 | Q22: ='NPV Calc'!Z14 -> 3.59 | R22: ='NPV Calc'!AA14 -> 3.59 | S22: ='NPV Calc'!AB14 -> 3.59 | T22: ='NPV Calc'!AC14 -> 3.59 | U22: ='NPV Calc'!AD14 -> 3.59
C23: Incremental Revenue - $M | I23: ='Standard Report'!V23/1000 -> 0 | J23: ='Standard Report'!W23/1000 -> 0 | K23: ='Standard Report'!X23/1000 -> 0 | L23: ='Standard Report'!Y23/1000 -> 0 | M23: ='Standard Report'!Z23/1000 -> 0 | N23: ='Standard Report'!AA23/1000 -> 0 | O23: ='Standard Report'!AB23/1000 -> 0 | P23: ='Standard Report'!AC23/1000 -> 0 | Q23: ='Standard Report'!AD23/1000 -> 0 | R23: ='Standard Report'!AE23/1000 -> 0 | S23: ='Standard Report'!AF23/1000 -> 0 | T23: ='Standard Report'!AG23/1000 -> 0 | U23: ='Standard Report'!AH23/1000 -> 0
E24: Removal Costs - $M
E25: On-going OM&A Costs - $M | I25: ='Standard Report'!V25/1000 -> -1.5 | J25: ='Standard Report'!W25/1000 -> -1.5 | K25: ='Standard Report'!X25/1000 -> -1.5 | L25: ='Standard Report'!Y25/1000 -> -1.5 | M25: ='Standard Report'!Z25/1000 -> -1.5 | N25: ='Standard Report'!AA25/1000 -> -1.5 | O25: ='Standard Report'!AB25/1000 -> -1.5 | P25: ='Standard Report'!AC25/1000 -> -1.5 | Q25: ='Standard Report'!AD25/1000 -> -1.5 | R25: ='Standard Report'!AE25/1000 -> -1.5 | S25: ='Standard Report'!AF25/1000 -> -1.5 | T25: ='Standard Report'!AG25/1000 -> -1.5 | U25: ='Standard Report'!AH25/1000 -> -1.5
E26: Municipal Tax - $M | I26: ='Standard Report'!V26/1000 -> -2.425410891 | J26: ='Standard Report'!W26/1000 -> -2.425410891 | K26: ='Standard Report'!X26/1000 -> -2.425410891 | L26: ='Standard Report'!Y26/1000 -> -2.425410891 | M26: ='Standard Report'!Z26/1000 -> -2.425410891 | N26: ='Standard Report'!AA26/1000 -> -2.425410891 | O26: ='Standard Report'!AB26/1000 -> -2.425410891 | P26: ='Standard Report'!AC26/1000 -> -2.425410891 | Q26: ='Standard Report'!AD26/1000 -> -2.425410891 | R26: ='Standard Report'!AE26/1000 -> -2.425410891 | S26: ='Standard Report'!AF26/1000 -> -2.425410891 | T26: ='Standard Report'!AG26/1000 -> -2.425410891 | U26: ='Standard Report'!AH26/1000 -> -2.425410891
C27: Net Revenue/(Costs) before taxes - $M | I27: ='Standard Report'!V27/1000 -> -3.925410891 | J27: ='Standard Report'!W27/1000 -> -3.925410891 | K27: ='Standard Report'!X27/1000 -> -3.925410891 | L27: ='Standard Report'!Y27/1000 -> -3.925410891 | M27: ='Standard Report'!Z27/1000 -> -3.925410891 | N27: ='Standard Report'!AA27/1000 -> -3.925410891 | O27: ='Standard Report'!AB27/1000 -> -3.925410891 | P27: ='Standard Report'!AC27/1000 -> -3.925410891 | Q27: ='Standard Report'!AD27/1000 -> -3.925410891 | R27: ='Standard Report'!AE27/1000 -> -3.925410891 | S27: ='Standard Report'!AF27/1000 -> -3.925410891 | T27: ='Standard Report'!AG27/1000 -> -3.925410891 | U27: ='Standard Report'!AH27/1000 -> -3.925410891
E28: Income Taxes | I28: ='Standard Report'!V28/1000 -> 6.1472288 | J28: ='Standard Report'!W28/1000 -> 5.738669207 | K28: ='Standard Report'!X28/1000 -> 5.362794381 | L28: ='Standard Report'!Y28/1000 -> 5.016989542 | M28: ='Standard Report'!Z28/1000 -> 4.698849089 | N28: ='Standard Report'!AA28/1000 -> 4.406159873 | O28: ='Standard Report'!AB28/1000 -> 4.136885794 | P28: ='Standard Report'!AC28/1000 -> 3.889153641 | Q28: ='Standard Report'!AD28/1000 -> 3.661240061 | R28: ='Standard Report'!AE28/1000 -> 3.451559567 | S28: ='Standard Report'!AF28/1000 -> 3.258653513 | T28: ='Standard Report'!AG28/1000 -> 3.081179942 | U28: ='Standard Report'!AH28/1000 -> 2.917904258
C29: Operating Cash Flow (after taxes) - $M | I29: ='Standard Report'!V29/1000 -> 2.221817908 | J29: ='Standard Report'!W29/1000 -> 1.813258315 | K29: ='Standard Report'!X29/1000 -> 1.43738349 | L29: ='Standard Report'!Y29/1000 -> 1.09157865 | M29: ='Standard Report'!Z29/1000 -> 0.7734381977 | N29: ='Standard Report'!AA29/1000 -> 0.4807489815 | O29: ='Standard Report'!AB29/1000 -> 0.2114749025 | P29: ='Standard Report'!AC29/1000 -> -0.0362572501 | Q29: ='Standard Report'!AD29/1000 -> -0.2641708305 | R29: ='Standard Report'!AE29/1000 -> -0.4738513245 | S29: ='Standard Report'!AF29/1000 -> -0.6667573789 | T29: ='Standard Report'!AG29/1000 -> -0.8442309491 | U29: ='Standard Report'!AH29/1000 -> -1.007506634
C32: PV Operating Cash Flow (after taxes) - $M (A) | I32: ='Standard Report'!V32/1000 -> 1.125220891 | J32: ='Standard Report'!W32/1000 -> 0.869663709 | K32: ='Standard Report'!X32/1000 -> 0.652869932 | L32: ='Standard Report'!Y32/1000 -> 0.4695387011 | M32: ='Standard Report'!Z32/1000 -> 0.3150680202 | N32: ='Standard Report'!AA32/1000 -> 0.1854639162 | O32: ='Standard Report'!AB32/1000 -> 0.07726133935 | P32: ='Standard Report'!AC32/1000 -> -0.01254470946 | Q32: ='Standard Report'!AD32/1000 -> -0.0865591439 | R32: ='Standard Report'!AE32/1000 -> -0.1470389984 | S32: ='Standard Report'!AF32/1000 -> -0.1959388764 | T32: ='Standard Report'!AG32/1000 -> -0.234950513 | U32: ='Standard Report'!AH32/1000 -> -0.2655372106
C34: Capital Expenditures - $M
E35: Upfront - capital cost before overheads & AFUDC
E36: - Overheads
E37: - AFUDC
E38: Total upfront capital expenditures
E39: On-going capital expenditures | I39: ='Standard Report'!V39/1000 -> 0 | J39: ='Standard Report'!W39/1000 -> 0 | K39: ='Standard Report'!X39/1000 -> 0 | L39: ='Standard Report'!Y39/1000 -> 0 | M39: ='Standard Report'!Z39/1000 -> 0 | N39: ='Standard Report'!AA39/1000 -> 0 | O39: ='Standard Report'!AB39/1000 -> 0 | P39: ='Standard Report'!AC39/1000 -> 0 | Q39: ='Standard Report'!AD39/1000 -> 0 | R39: ='Standard Report'!AE39/1000 -> 0 | S39: ='Standard Report'!AF39/1000 -> 0 | T39: ='Standard Report'!AG39/1000 -> 0 | U39: ='Standard Report'!AH39/1000 -> 0
E40: PV On-going capital expenditures
E41: Total capital expenditures - $M
C42: Capital Expenditures - $M
E44: Estimated IEE pre-payments | I44: ='Standard Report'!V44 ->  | J44: ='Standard Report'!W44 ->  | K44: ='Standard Report'!X44 ->  | L44: ='Standard Report'!Y44 ->  | M44: ='Standard Report'!Z44 ->  | N44: ='Standard Report'!AA44 ->  | O44: ='Standard Report'!AB44 ->  | P44: ='Standard Report'!AC44 ->  | Q44: ='Standard Report'!AD44 ->  | R44: ='Standard Report'!AE44 ->  | S44: ='Standard Report'!AF44 ->  | T44: ='Standard Report'!AG44 ->  | U44: ='Standard Report'!AH44 -> 
E45: Annual capital contributions | I45: ='Standard Report'!V45 ->  | J45: ='Standard Report'!W45 ->  | K45: ='Standard Report'!X45 ->  | L45: ='Standard Report'!Y45 ->  | M45: ='Standard Report'!Z45 ->  | N45: ='Standard Report'!AA45 ->  | O45: ='Standard Report'!AB45 ->  | P45: ='Standard Report'!AC45 ->  | Q45: ='Standard Report'!AD45 ->  | R45: ='Standard Report'!AE45 ->  | S45: ='Standard Report'!AF45 ->  | T45: ='Standard Report'!AG45 ->  | U45: ='Standard Report'!AH45 -> 
E46: PV of annual capital contribution | I46: ='Standard Report'!V46/1000 ->  | J46: ='Standard Report'!W46/1000 ->  | K46: ='Standard Report'!X46/1000 ->  | L46: ='Standard Report'!Y46/1000 ->  | M46: ='Standard Report'!Z46/1000 ->  | N46: ='Standard Report'!AA46/1000 ->  | O46: ='Standard Report'!AB46/1000 ->  | P46: ='Standard Report'!AC46/1000 ->  | Q46: ='Standard Report'!AD46/1000 ->  | R46: ='Standard Report'!AE46/1000 ->  | S46: ='Standard Report'!AF46/1000 ->  | T46: ='Standard Report'!AG46/1000 ->  | U46: ='Standard Report'!AH46/1000 -> 
E47: Total PV
C51: PV CCA Residual Tax Shield - $M
C53: PV Working Capital - $M
C55: PV Capital (after taxes) - $M (B)
C58: Cumulative PV Cash Flow (after taxes) - $M (A) + (B) | I58: ='Standard Report'!V58/1000 -> -600.2974517 | J58: ='Standard Report'!W58/1000 -> -599.427788 | K58: ='Standard Report'!X58/1000 -> -598.7749181 | L58: ='Standard Report'!Y58/1000 -> -598.3053794 | M58: ='Standard Report'!Z58/1000 -> -597.9903114 | N58: ='Standard Report'!AA58/1000 -> -597.8048474 | O58: ='Standard Report'!AB58/1000 -> -597.7275861 | P58: ='Standard Report'!AC58/1000 -> -597.7401308 | Q58: ='Standard Report'!AD58/1000 -> -597.82669 | R58: ='Standard Report'!AE58/1000 -> -597.9737289 | S58: ='Standard Report'!AF58/1000 -> -598.1696678 | T58: ='Standard Report'!AG58/1000 -> -598.4046183 | U58: ='Standard Report'!AH58/1000 -> -598.6701555

Sheet S92 Rate Impact p1
O1: Filed: xxx xxxx
O2: RP-200x-xxxx
O3: Exhibit B
O4: Tab 4
O5: Schedule 4
O6: page 1 of 2
C11: ="Revenue Requirement and "&'Project Inputs'!B17&" Pool Rate Impact" -> Revenue Requirement and Network Pool Rate Impact | J11: =IF('NPV Calc'!C2="Yes","(After Capital Contribution)","(Before Capital Contribution)") -> (Before Capital Contribution)
F13: Project YE
B14: ='Project Inputs'!B9:G9 -> Hydro One Lake Superior Link proposal | F14: ='S92 Report Before Cont $M p1'!J14 -> 2021-10-26 | G14: ='S92 Report Before Cont $M p1'!K14 -> 2021-10-26 | H14: ='S92 Report Before Cont $M p1'!L14 -> 2021-10-26 | I14: ='S92 Report Before Cont $M p1'!M14 -> 2021-10-26 | J14: ='S92 Report Before Cont $M p1'!N14 -> 2021-10-26 | K14: ='S92 Report Before Cont $M p1'!O14 -> 2021-10-26 | L14: ='S92 Report Before Cont $M p1'!P14 -> 2021-10-26 | M14: ='S92 Report Before Cont $M p1'!Q14 -> 2021-10-26 | N14: ='S92 Report Before Cont $M p1'!R14 -> 2021-10-26 | O14: ='S92 Report Before Cont $M p1'!S14 -> 2021-10-26 | P14: ='S92 Report Before Cont $M p1'!T14 -> 2021-10-26 | Q14: ='S92 Report Before Cont $M p1'!U14 -> 2021-10-26
F15: ='Capital Cont Inputs'!C15 -> 2022 | G15: ='Capital Cont Inputs'!D15 -> 2023 | H15: ='Capital Cont Inputs'!E15 -> 2024 | I15: ='Capital Cont Inputs'!F15 -> 2025 | J15: ='Capital Cont Inputs'!G15 -> 2026 | K15: ='Capital Cont Inputs'!H15 -> 2027 | L15: ='Capital Cont Inputs'!I15 -> 2028 | M15: ='Capital Cont Inputs'!J15 -> 2029 | N15: ='Capital Cont Inputs'!K15 -> 2030 | O15: ='Capital Cont Inputs'!L15 -> 2031 | P15: ='Capital Cont Inputs'!M15 -> 2032 | Q15: ='Capital Cont Inputs'!N15 -> 2033
B16: Calculation of Incremental Revenue Requirement ($000) | F16: ='Capital Cont Inputs'!C16 -> 1 | G16: ='Capital Cont Inputs'!D16 -> 2 | H16: ='Capital Cont Inputs'!E16 -> 3 | I16: ='Capital Cont Inputs'!F16 -> 4 | J16: ='Capital Cont Inputs'!G16 -> 5 | K16: ='Capital Cont Inputs'!H16 -> 6 | L16: ='Capital Cont Inputs'!I16 -> 7 | M16: ='Capital Cont Inputs'!J16 -> 8 | N16: ='Capital Cont Inputs'!K16 -> 9 | O16: ='Capital Cont Inputs'!L16 -> 10 | P16: ='Capital Cont Inputs'!M16 -> 11 | Q16: ='Capital Cont Inputs'!N16 -> 12
B18: In-service date | C18: ='Project Inputs'!B15 -> 2021-10-26
B19: Capital Cost | C19: =-'NPV Calc'!C34 -> 641967.0675
B20: Less: Capital Contribution Required | C20: =-'Standard Report'!F78 -> 0
B21: Net Project Capital Cost | C21: =SUM(C19:C20) -> 641967.0675
B23: Average Rate Base | F23: ='S92 RevReq Calc'!F40 -> 314704.5085 | G23: ='S92 RevReq Calc'!G40 -> 623129.9917 | H23: ='S92 RevReq Calc'!H40 -> 610571.9412 | I23: ='S92 RevReq Calc'!I40 -> 598013.8907 | J23: ='S92 RevReq Calc'!J40 -> 585455.8401 | K23: ='S92 RevReq Calc'!K40 -> 572897.7896 | L23: ='S92 RevReq Calc'!L40 -> 560339.7391 | M23: ='S92 RevReq Calc'!M40 -> 547781.6885 | N23: ='S92 RevReq Calc'!N40 -> 535223.638 | O23: ='S92 RevReq Calc'!O40 -> 522665.5875 | P23: ='S92 RevReq Calc'!P40 -> 510107.5369 | Q23: ='S92 RevReq Calc'!Q40 -> 497549.4864
B25: Incremental OM&A Costs | F25: =-'S92 RevReq Calc'!F56 -> 1500 | G25: =-'S92 RevReq Calc'!G56 -> 1500 | H25: =-'S92 RevReq Calc'!H56 -> 1500 | I25: =-'S92 RevReq Calc'!I56 -> 1500 | J25: =-'S92 RevReq Calc'!J56 -> 1500 | K25: =-'S92 RevReq Calc'!K56 -> 1500 | L25: =-'S92 RevReq Calc'!L56 -> 1500 | M25: =-'S92 RevReq Calc'!M56 -> 1500 | N25: =-'S92 RevReq Calc'!N56 -> 1500 | O25: =-'S92 RevReq Calc'!O56 -> 1500 | P25: =-'S92 RevReq Calc'!P56 -> 1500 | Q25: =-'S92 RevReq Calc'!Q56 -> 1500
B26: Grants in Lieu of Municipal tax | F26: =-'S92 RevReq Calc'!F71 -> 2425.410891 | G26: =-'S92 RevReq Calc'!G71 -> 2425.410891 | H26: =-'S92 RevReq Calc'!H71 -> 2425.410891 | I26: =-'S92 RevReq Calc'!I71 -> 2425.410891 | J26: =-'S92 RevReq Calc'!J71 -> 2425.410891 | K26: =-'S92 RevReq Calc'!K71 -> 2425.410891 | L26: =-'S92 RevReq Calc'!L71 -> 2425.410891 | M26: =-'S92 RevReq Calc'!M71 -> 2425.410891 | N26: =-'S92 RevReq Calc'!N71 -> 2425.410891 | O26: =-'S92 RevReq Calc'!O71 -> 2425.410891 | P26: =-'S92 RevReq Calc'!P71 -> 2425.410891 | Q26: =-'S92 RevReq Calc'!Q71 -> 2425.410891
B27: Depreciation | F27: =-'S92 RevReq Calc'!F72 -> 12558.05053 | G27: =-'S92 RevReq Calc'!G72 -> 12558.05053 | H27: =-'S92 RevReq Calc'!H72 -> 12558.05053 | I27: =-'S92 RevReq Calc'!I72 -> 12558.05053 | J27: =-'S92 RevReq Calc'!J72 -> 12558.05053 | K27: =-'S92 RevReq Calc'!K72 -> 12558.05053 | L27: =-'S92 RevReq Calc'!L72 -> 12558.05053 | M27: =-'S92 RevReq Calc'!M72 -> 12558.05053 | N27: =-'S92 RevReq Calc'!N72 -> 12558.05053 | O27: =-'S92 RevReq Calc'!O72 -> 12558.05053 | P27: =-'S92 RevReq Calc'!P72 -> 12558.05053 | Q27: =-'S92 RevReq Calc'!Q72 -> 12558.05053
B28: Interest and Return on Rate Base | F28: ='S92 RevReq Calc'!F44 -> 19865.40739 | G28: ='S92 RevReq Calc'!G44 -> 39334.4576 | H28: ='S92 RevReq Calc'!H44 -> 38541.74322 | I28: ='S92 RevReq Calc'!I44 -> 37749.02883 | J28: ='S92 RevReq Calc'!J44 -> 36956.31445 | K28: ='S92 RevReq Calc'!K44 -> 36163.60007 | L28: ='S92 RevReq Calc'!L44 -> 35370.88569 | M28: ='S92 RevReq Calc'!M44 -> 34578.17131 | N28: ='S92 RevReq Calc'!N44 -> 33785.45693 | O28: ='S92 RevReq Calc'!O44 -> 32992.74254 | P28: ='S92 RevReq Calc'!P44 -> 32200.02816 | Q28: ='S92 RevReq Calc'!Q44 -> 31407.31378
B29: Income Tax Provision | F29: =-'S92 RevReq Calc'!F101 -> -442.9964347 | G29: =-'S92 RevReq Calc'!G101 -> -4770.787358 | H29: =-'S92 RevReq Calc'!H101 -> -3542.866303 | I29: =-'S92 RevReq Calc'!I101 -> -2426.218802 | J29: =-'S92 RevReq Calc'!J101 -> -1411.94297 | K29: =-'S92 RevReq Calc'!K101 -> -491.8490751 | L29: =-'S92 RevReq Calc'!L101 -> 341.597439 | M29: =-'S92 RevReq Calc'!M101 -> 1095.328362 | N29: =-'S92 RevReq Calc'!N101 -> 1775.720942 | O29: =-'S92 RevReq Calc'!O101 -> 2388.642246 | P29: =-'S92 RevReq Calc'!P101 -> 2939.489976 | Q29: =-'S92 RevReq Calc'!Q101 -> 3433.230018
B31: REVENUE REQUIREMENT PRE-TAX | F31: =SUM(F25:F30) -> 35905.87238 | G31: =SUM(G25:G30) -> 51047.13166 | H31: 51482.33833 | I31: 51806.27145 | J31: 52027.8329 | K31: 52155.21242 | L31: 52195.94455 | M31: 52156.96109 | N31: 52044.63929 | O31: 51864.84621 | P31: 51622.97956 | Q31: 51324.00522
B33: Incremental Revenue | F33: ='S92 RevReq Calc'!F54 -> 0 | G33: ='S92 RevReq Calc'!G54 -> 0 | H33: ='S92 RevReq Calc'!H54 -> 0 | I33: ='S92 RevReq Calc'!I54 -> 0 | J33: ='S92 RevReq Calc'!J54 -> 0 | K33: ='S92 RevReq Calc'!K54 -> 0 | L33: ='S92 RevReq Calc'!L54 -> 0 | M33: ='S92 RevReq Calc'!M54 -> 0 | N33: ='S92 RevReq Calc'!N54 -> 0 | O33: ='S92 RevReq Calc'!O54 -> 0 | P33: ='S92 RevReq Calc'!P54 -> 0 | Q33: ='S92 RevReq Calc'!Q54 -> 0
B35: SUFFICIENCY/(DEFICIENCY) | F35: =F33-F31 -> -35905.87238 | G35: =G33-G31 -> -51047.13166 | H35: -51482.33833 | I35: -51806.27145 | J35: -52027.8329 | K35: -52155.21242 | L35: -52195.94455 | M35: -52156.96109 | N35: -52044.63929 | O35: -51864.84621 | P35: -51622.97956 | Q35: -51324.00522
D36: Base Year
B37: =ProjectType &" Pool Revenue Requirement including sufficiency/(deficiency)" -> Network Pool Revenue Requirement including sufficiency/(deficiency) | D37: ='S92 RevReq Calc'!D104 -> 893562.074 | F37: =IF(ISNUMBER(F15),$D$37+F31,0) -> 929467.9464 | G37: 944609.2057 | H37: 945044.4123 | I37: 945368.3455 | J37: 945589.9069 | K37: 945717.2864 | L37: 945758.0185 | M37: 945719.0351 | N37: 945606.7133 | O37: 945426.9202 | P37: 945185.0536 | Q37: 944886.0792
B38: =ProjectType & " MW" -> Network MW | D38: ='S92 RevReq Calc'!D105 -> 249132.407 | F38: ='S92 RevReq Calc'!F105 -> 249132.407 | G38: ='S92 RevReq Calc'!G105 -> 249132.407 | H38: ='S92 RevReq Calc'!H105 -> 249132.407 | I38: ='S92 RevReq Calc'!I105 -> 249132.407 | J38: ='S92 RevReq Calc'!J105 -> 249132.407 | K38: ='S92 RevReq Calc'!K105 -> 249132.407 | L38: ='S92 RevReq Calc'!L105 -> 249132.407 | M38: ='S92 RevReq Calc'!M105 -> 249132.407 | N38: ='S92 RevReq Calc'!N105 -> 249132.407 | O38: ='S92 RevReq Calc'!O105 -> 249132.407 | P38: ='S92 RevReq Calc'!P105 -> 249132.407 | Q38: ='S92 RevReq Calc'!Q105 -> 249132.407
B39: =ProjectType &" Pool Rate ($/kw/month)" -> Network Pool Rate ($/kw/month) | D39: =ROUND(D37/D38,2) -> 3.59 | F39: =IF(ISNUMBER(F15),ROUND(F37/F38,2),0) -> 3.73 | G39: 3.79 | H39: 3.79 | I39: 3.79 | J39: 3.8 | K39: 3.8 | L39: 3.8 | M39: 3.8 | N39: 3.8 | O39: 3.79 | P39: 3.79 | Q39: 3.79
B40: ="Increase/(Decrease) in "&ProjectType&" Pool Rate ($/kw/month), relative to base year" -> Increase/(Decrease) in Network Pool Rate ($/kw/month), relative to base year | F40: =IF(ISNUMBER(F15),+F39-$D$39,0) -> 0.14 | G40: 0.2 | H40: 0.2 | I40: 0.2 | J40: 0.21 | K40: 0.21 | L40: 0.21 | M40: 0.21 | N40: 0.21 | O40: 0.2 | P40: 0.2 | Q40: 0.2
B42: RATE IMPACT relative to base year | F42: =IF(ISNUMBER(F15),+F39/$D$39-1,0) -> 0.03899721448 | G42: 0.05571030641 | H42: 0.05571030641 | I42: 0.05571030641 | J42: 0.05849582173 | K42: 0.05849582173 | L42: 0.05849582173 | M42: 0.05849582173 | N42: 0.05849582173 | O42: 0.05571030641 | P42: 0.05571030641 | Q42: 0.05571030641
B46: Assumptions
B47: Incremental OM&A | E47: =IF('Project Inputs'!B69="Line - Overhead",'Standard Inputs'!AB44,IF('Project Inputs'!B69="Line - Underground",'Standard Inputs'!AB45,IF('Project Inputs'!B69="Network - SS",'Standard Inputs'!AB46,IF('Project Inputs'!B69="Network - TS",'Standard Inputs'!AB47,IF('Project Inputs'!B69="Station - DESN",'Standard Inputs'!AB48,IF('Project Inputs'!B69="Station - single",'Standard Inputs'!AB49,"N.A.")))))) -> 0
B48: Grants in Lieu of Municipal tax | C48: ='Standard Inputs'!B30 -> 0.003778092389 | E48: Transmission system average
B49: Depreciation | C49: =1/'Standard Inputs'!D35 -> 0.02 | E49: ="Reflects " & 'Standard Inputs'!D35 & " year average service life for towers, conductors and station equipment, excluding land" -> Reflects 50 year average service life for towers, conductors and station equipment, excluding land
B50: Interest and Return on Rate Base | C50: ='Prelim Calc'!F13 -> 0.063124 | E50: =+"Includes OEB-approved ROE of "&'Standard Inputs'!B22*100&"%, "&'Standard Inputs'!B21*100&"% on ST debt, and "&'Standard Inputs'!B20*100&"% on LT debt. 40/4/56 equity/ST debt/ LT debt split" -> Includes OEB-approved ROE of 9%, 2.29% on ST debt, and 4.68% on LT debt. 40/4/56 equity/ST debt/ LT debt split
B51: Income Tax Provision | C51: ='Standard Inputs'!B28 -> 0.265 | E51: ='Standard Inputs'!B65&" federal and provincial corporate income tax rate" -> 2018 federal and provincial corporate income tax rate
B52: Capital Cost Allowance | C52: ='Standard Inputs'!C35 -> 0.08 | E52: =+IF('NPV Calc'!F119=0,"100% Class 47 assets"&IF('NPV Calc'!F98=0,""," except for Land"),ROUND('NPV Calc'!F106/('NPV Calc'!F86-'NPV Calc'!F98)*100,1)&"% Class 47 assets"&IF('NPV Calc'!F98=0,""," except for Land")) -> 100% Class 47 assets except for Land
B58: Checks
B59: SUFFICIENCY/(DEFICIENCY) CHECK | F59: ='S92 RevReq Calc'!F79 -> -35905.87238 | G59: ='S92 RevReq Calc'!G79 -> -51047.13166 | H59: ='S92 RevReq Calc'!H79 -> -51482.33833 | I59: ='S92 RevReq Calc'!I79 -> -51806.27145 | J59: ='S92 RevReq Calc'!J79 -> -52027.8329 | K59: ='S92 RevReq Calc'!K79 -> -52155.21242 | L59: ='S92 RevReq Calc'!L79 -> -52195.94455 | M59: ='S92 RevReq Calc'!M79 -> -52156.96109 | N59: ='S92 RevReq Calc'!N79 -> -52044.63929 | O59: ='S92 RevReq Calc'!O79 -> -51864.84621 | P59: ='S92 RevReq Calc'!P79 -> -51622.97956 | Q59: ='S92 RevReq Calc'!Q79 -> -51324.00522
F60: =IF(ABS(F59-F35)<0.000001,"Check: ok","error") -> Check: ok | G60: Check: ok | H60: Check: ok | I60: Check: ok | J60: Check: ok | K60: Check: ok | L60: Check: ok | M60: Check: ok | N60: Check: ok | O60: Check: ok | P60: Check: ok | Q60: Check: ok
B62: RATE IMPACT RELATIVE TO BASE YEAR CHECK | F62: ='S92 RevReq Calc'!F107 -> 0.03899721448 | G62: ='S92 RevReq Calc'!G107 -> 0.05571030641 | H62: ='S92 RevReq Calc'!H107 -> 0.05571030641 | I62: ='S92 RevReq Calc'!I107 -> 0.05571030641 | J62: ='S92 RevReq Calc'!J107 -> 0.05849582173 | K62: ='S92 RevReq Calc'!K107 -> 0.05849582173 | L62: ='S92 RevReq Calc'!L107 -> 0.05849582173 | M62: ='S92 RevReq Calc'!M107 -> 0.05849582173 | N62: ='S92 RevReq Calc'!N107 -> 0.05849582173 | O62: ='S92 RevReq Calc'!O107 -> 0.05571030641 | P62: ='S92 RevReq Calc'!P107 -> 0.05571030641 | Q62: ='S92 RevReq Calc'!Q107 -> 0.05571030641
F63: =IF(F62=F42,"Check: ok","error") -> Check: ok | G63: Check: ok | H63: Check: ok | I63: Check: ok | J63: Check: ok | K63: Check: ok | L63: Check: ok | M63: Check: ok | N63: Check: ok | O63: Check: ok | P63: Check: ok | Q63: Check: ok
B65: INCOME TAX PROVISION CHECK | F65: =(F23*'Prelim Calc'!$E$11*'Prelim Calc'!$D$11+F27+'S92 RevReq Calc'!F59)*'Standard Inputs'!$B$28/(1-'Standard Inputs'!$B$28) -> -442.9964347 | G65: =(G23*'Prelim Calc'!$E$11*'Prelim Calc'!$D$11+G27+'S92 RevReq Calc'!G59)*'Standard Inputs'!$B$28/(1-'Standard Inputs'!$B$28) -> -4770.787358 | H65: =(H23*'Prelim Calc'!$E$11*'Prelim Calc'!$D$11+H27+'S92 RevReq Calc'!H59)*'Standard Inputs'!$B$28/(1-'Standard Inputs'!$B$28) -> -3542.866303 | I65: =(I23*'Prelim Calc'!$E$11*'Prelim Calc'!$D$11+I27+'S92 RevReq Calc'!I59)*'Standard Inputs'!$B$28/(1-'Standard Inputs'!$B$28) -> -2426.218802 | J65: =(J23*'Prelim Calc'!$E$11*'Prelim Calc'!$D$11+J27+'S92 RevReq Calc'!J59)*'Standard Inputs'!$B$28/(1-'Standard Inputs'!$B$28) -> -1411.94297 | K65: =(K23*'Prelim Calc'!$E$11*'Prelim Calc'!$D$11+K27+'S92 RevReq Calc'!K59)*'Standard Inputs'!$B$28/(1-'Standard Inputs'!$B$28) -> -491.8490751 | L65: =(L23*'Prelim Calc'!$E$11*'Prelim Calc'!$D$11+L27+'S92 RevReq Calc'!L59)*'Standard Inputs'!$B$28/(1-'Standard Inputs'!$B$28) -> 341.597439 | M65: =(M23*'Prelim Calc'!$E$11*'Prelim Calc'!$D$11+M27+'S92 RevReq Calc'!M59)*'Standard Inputs'!$B$28/(1-'Standard Inputs'!$B$28) -> 1095.328362 | N65: =(N23*'Prelim Calc'!$E$11*'Prelim Calc'!$D$11+N27+'S92 RevReq Calc'!N59)*'Standard Inputs'!$B$28/(1-'Standard Inputs'!$B$28) -> 1775.720942 | O65: =(O23*'Prelim Calc'!$E$11*'Prelim Calc'!$D$11+O27+'S92 RevReq Calc'!O59)*'Standard Inputs'!$B$28/(1-'Standard Inputs'!$B$28) -> 2388.642246 | P65: =(P23*'Prelim Calc'!$E$11*'Prelim Calc'!$D$11+P27+'S92 RevReq Calc'!P59)*'Standard Inputs'!$B$28/(1-'Standard Inputs'!$B$28) -> 2939.489976 | Q65: =(Q23*'Prelim Calc'!$E$11*'Prelim Calc'!$D$11+Q27+'S92 RevReq Calc'!Q59)*'Standard Inputs'!$B$28/(1-'Standard Inputs'!$B$28) -> 3433.230018
F66: =IF(ABS(F65+'S92 RevReq Calc'!F101)<1,"Check: ok","error") -> Check: ok | G66: =IF(ABS(G65+'S92 RevReq Calc'!G101)<1,"Check: ok","error") -> Check: ok | H66: =IF(ABS(H65+'S92 RevReq Calc'!H101)<1,"Check: ok","error") -> Check: ok | I66: =IF(ABS(I65+'S92 RevReq Calc'!I101)<1,"Check: ok","error") -> Check: ok | J66: =IF(ABS(J65+'S92 RevReq Calc'!J101)<1,"Check: ok","error") -> Check: ok | K66: =IF(ABS(K65+'S92 RevReq Calc'!K101)<1,"Check: ok","error") -> Check: ok | L66: =IF(ABS(L65+'S92 RevReq Calc'!L101)<1,"Check: ok","error") -> Check: ok | M66: =IF(ABS(M65+'S92 RevReq Calc'!M101)<1,"Check: ok","error") -> Check: ok | N66: =IF(ABS(N65+'S92 RevReq Calc'!N101)<1,"Check: ok","error") -> Check: ok | O66: =IF(ABS(O65+'S92 RevReq Calc'!O101)<1,"Check: ok","error") -> Check: ok | P66: =IF(ABS(P65+'S92 RevReq Calc'!P101)<1,"Check: ok","error") -> Check: ok | Q66: =IF(ABS(Q65+'S92 RevReq Calc'!Q101)<1,"Check: ok","error") -> Check: ok
C71: =C11 -> Revenue Requirement and Network Pool Rate Impact | J71: =J11 -> (Before Capital Contribution)
F73: =F13 -> Project YE
B74: =B14 -> Hydro One Lake Superior Link proposal | F74: =F14 -> 2021-10-26 | G74: =G14 -> 2021-10-26 | H74: 2021-10-26 | I74: 2021-10-26 | J74: 2021-10-26 | K74: 2021-10-26 | L74: 2021-10-26 | M74: 2021-10-26 | N74: 2021-10-26 | O74: 2021-10-26 | P74: 2021-10-26 | Q74: 2021-10-26
F75: =F15 -> 2022 | G75: =G15 -> 2023 | H75: 2024 | I75: 2025 | J75: 2026 | K75: 2027 | L75: 2028 | M75: 2029 | N75: 2030 | O75: 2031 | P75: 2032 | Q75: 2033
B76: Calculation of Incremental Revenue Requirement ($ millions) | F76: =F16 -> 1 | G76: =G16 -> 2 | H76: 3 | I76: 4 | J76: 5 | K76: 6 | L76: 7 | M76: 8 | N76: 9 | O76: 10 | P76: 11 | Q76: 12
B78: =B18 -> In-service date | C78: =C18 -> 2021-10-26
B79: Capital Cost | C79: =C19/1000 -> 641.9670675
B80: Less: Capital Contribution Required | C80: =C20/1000 -> 0
B81: Net Project Capital Cost | C81: =C21/1000 -> 641.9670675
B83: =B23 -> Average Rate Base | F83: =F23/1000 -> 314.7045085 | G83: 623.1299917 | H83: 610.5719412 | I83: 598.0138907 | J83: 585.4558401 | K83: 572.8977896 | L83: 560.3397391 | M83: 547.7816885 | N83: 535.223638 | O83: 522.6655875 | P83: 510.1075369 | Q83: 497.5494864
B85: =B25 -> Incremental OM&A Costs | F85: =F25/1000 -> 1.5 | G85: 1.5 | H85: 1.5 | I85: 1.5 | J85: 1.5 | K85: 1.5 | L85: 1.5 | M85: 1.5 | N85: 1.5 | O85: 1.5 | P85: 1.5 | Q85: 1.5
B86: Grants in Lieu of Municipal tax | F86: =F26/1000 -> 2.425410891 | G86: 2.425410891 | H86: 2.425410891 | I86: 2.425410891 | J86: 2.425410891 | K86: 2.425410891 | L86: 2.425410891 | M86: 2.425410891 | N86: 2.425410891 | O86: 2.425410891 | P86: 2.425410891 | Q86: 2.425410891
B87: Depreciation | F87: =F27/1000 -> 12.55805053 | G87: 12.55805053 | H87: 12.55805053 | I87: 12.55805053 | J87: 12.55805053 | K87: 12.55805053 | L87: 12.55805053 | M87: 12.55805053 | N87: 12.55805053 | O87: 12.55805053 | P87: 12.55805053 | Q87: 12.55805053
B88: Interest and Return on Rate Base | F88: =F28/1000 -> 19.86540739 | G88: 39.3344576 | H88: 38.54174322 | I88: 37.74902883 | J88: 36.95631445 | K88: 36.16360007 | L88: 35.37088569 | M88: 34.57817131 | N88: 33.78545693 | O88: 32.99274254 | P88: 32.20002816 | Q88: 31.40731378
B89: Income Tax Provision | F89: =F29/1000 -> -0.4429964347 | G89: -4.770787358 | H89: -3.542866303 | I89: -2.426218802 | J89: -1.41194297 | K89: -0.4918490751 | L89: 0.341597439 | M89: 1.095328362 | N89: 1.775720942 | O89: 2.388642246 | P89: 2.939489976 | Q89: 3.433230018
B91: =B31 -> REVENUE REQUIREMENT PRE-TAX | F91: =F31/1000 -> 35.90587238 | G91: 51.04713166 | H91: 51.48233833 | I91: 51.80627145 | J91: 52.0278329 | K91: 52.15521242 | L91: 52.19594455 | M91: 52.15696109 | N91: 52.04463929 | O91: 51.86484621 | P91: 51.62297956 | Q91: 51.32400522
B93: =B33 -> Incremental Revenue | F93: =F33/1000 -> 0 | G93: 0 | H93: 0 | I93: 0 | J93: 0 | K93: 0 | L93: 0 | M93: 0 | N93: 0 | O93: 0 | P93: 0 | Q93: 0
B95: =B35 -> SUFFICIENCY/(DEFICIENCY) | F95: =F35/1000 -> -35.90587238 | G95: -51.04713166 | H95: -51.48233833 | I95: -51.80627145 | J95: -52.0278329 | K95: -52.15521242 | L95: -52.19594455 | M95: -52.15696109 | N95: -52.04463929 | O95: -51.86484621 | P95: -51.62297956 | Q95: -51.32400522
D96: Base Year
B97: =B37 -> Network Pool Revenue Requirement including sufficiency/(deficiency) | D97: =D37/1000 -> 893.562074 | F97: =IF(ISNUMBER(F75),F37/1000,0) -> 929.4679464 | G97: =IF(ISNUMBER(G75),G37/1000,0) -> 944.6092057 | H97: 945.0444123 | I97: 945.3683455 | J97: 945.5899069 | K97: 945.7172864 | L97: 945.7580185 | M97: 945.7190351 | N97: 945.6067133 | O97: 945.4269202 | P97: 945.1850536 | Q97: 944.8860792
B98: Network MW | D98: =D38/1000 -> 249.132407 | F98: =IF(ISNUMBER(F75),F38/1000,0) -> 249.132407 | G98: =IF(ISNUMBER(G75),G38/1000,0) -> 249.132407 | H98: 249.132407 | I98: 249.132407 | J98: 249.132407 | K98: 249.132407 | L98: 249.132407 | M98: 249.132407 | N98: 249.132407 | O98: 249.132407 | P98: 249.132407 | Q98: 249.132407
B99: Network Pool Rate ($/kw/month) | D99: =D39 -> 3.59 | F99: =F39 -> 3.73 | G99: 3.79 | H99: 3.79 | I99: 3.79 | J99: 3.8 | K99: 3.8 | L99: 3.8 | M99: 3.8 | N99: 3.8 | O99: 3.79 | P99: 3.79 | Q99: 3.79
B100: Increase/(Decrease) in Network Pool Rate ($/kw/month), relative to base year | F100: =IF(ISNUMBER(F75),F40/1000,"") -> 0.00014 | G100: 0.0002 | H100: 0.0002 | I100: 0.0002 | J100: 0.00021 | K100: 0.00021 | L100: 0.00021 | M100: 0.00021 | N100: 0.00021 | O100: 0.0002 | P100: 0.0002 | Q100: 0.0002
B102: =B42 -> RATE IMPACT relative to base year | F102: =IF(ISNUMBER(F75),F42,"") -> 0.03899721448 | G102: 0.05571030641 | H102: 0.05571030641 | I102: 0.05571030641 | J102: 0.05849582173 | K102: 0.05849582173 | L102: 0.05849582173 | M102: 0.05849582173 | N102: 0.05849582173 | O102: 0.05571030641 | P102: 0.05571030641 | Q102: 0.05571030641
B106: =B46 -> Assumptions
B107: Incremental OM&A | E107: =E47 -> 0
B108: Grants in Lieu of Municipal tax | C108: =C48 -> 0.003778092389 | E108: Transmission system average
B109: Depreciation | C109: =C49 -> 0.02 | E109: Reflects 50 year average service life for towers, conductors and station equipment, excluding land
B110: Interest and Return on Rate Base | C110: =C50 -> 0.063124 | E110: Includes OEB-approved ROE of 9%, 2.29% on ST debt, and 4.68% on LT debt. 40/4/56 equity/ST debt/ LT debt split
B111: Income Tax Provision | C111: =C51 -> 0.265 | E111: 2018 federal and provincial corporate income tax rate
B112: Capital Cost Allowance | C112: =C52 -> 0.08 | E112: 100% Class 47 assets except for Land

Sheet S92 Rate Impact p2
O1: ='S92 Rate Impact p1'!O1 -> Filed: xxx xxxx
O2: ='S92 Rate Impact p1'!O2 -> RP-200x-xxxx
O3: ='S92 Rate Impact p1'!O3 -> Exhibit B
O4: ='S92 Rate Impact p1'!O4 -> Tab 4
O5: ='S92 Rate Impact p1'!O5 -> Schedule 4
O6: page 2 of 2
C11: ='S92 Rate Impact p1'!C11:I11 -> Revenue Requirement and Network Pool Rate Impact | J11: ='S92 Rate Impact p1'!J11 -> (Before Capital Contribution)
